Workbook

Sheet Jan (hidden)
A1: =Einstellungen!A27 -> Universität Hohenheim KIM © 2026 | I1: Datum | K1: Arbeits- | N1: Arbeits- | O1: Arb.Zeit ohne | Q1: Sonstige Unterbrechungen | T1: Erläuterungen, Hinweise, | U1: U,K | V1: Reine Arb.- | X1: Productive | Z1: Productive | AB1: Sonstiges | AD1: Summe | AF1: Summe | AH1: =Projektdaten!D4 -> EU Projekt 1 | AK1: =Projektdaten!D6 -> EU Projekt 2 | AN1: =Projektdaten!D8 -> EU Projekt 3 | AQ1: =Projektdaten!D13 -> Projekt 1 | AS1: =Projektdaten!D15 -> Projekt 2 | AU1: =Projektdaten!D17 -> Projekt 3 | AW1: =Projektdaten!D19 -> Projekt 4 | AY1: =Projektdaten!D21 -> Projekt 5 | BA1: =Projektdaten!D23 -> Projekt 6 | BC1: =Projektdaten!D25 -> Projekt 7 | BE1: =Projektdaten!D27 -> Projekt 8 | BG1: =Projektdaten!D29 -> Projekt 9
A2: Arbeitszeitblatt | D2: =Einstellungen!A28 -> Version 5.12 | I2: Tag | J2: Wo- | K2: beginn | L2: Mittagspause | N2: ende | O2: Mittagspause | Q2: von - bis | R2: Gesamtdauer | T2: Vermerke, z.B. Dienstreise | U2: F,X | V2: Zeit | W2: IST | X2: Hours | Z2: Hours | AD2: EU- | AF2: andere
J3: tag | L3: von | M3: bis | O3: Std. | P3: Min. | R3: Std. | S3: Min. | T3: - non eligible - | U3: A,B | V3: Std. | W3: Min. | X3: i.S.d. EU | Z3: verteilt | AD3: Projekte | AF3: Projekte
X4: Std. | Y4: Min. | Z4: Std. | AA4: Min. | AB4: Std. | AC4: Min. | AD4: Std. | AE4: Min. | AF4: Std. | AG4: Min. | AH4: Std. | AI4: Min. | AJ4: Geleistete Arbeitspakete nach Annex 1 | AK4: Std. | AL4: Min. | AM4: Geleistete Arbeitspakete nach Annex 1 | AN4: Std. | AO4: Min. | AP4: Geleistete Arbeitspakete nach Annex 1 | AQ4: Std. | AR4: Min. | AS4: Std. | AT4: Min. | AU4: Std. | AV4: Min. | AW4: Std. | AX4: Min. | AY4: Std. | AZ4: Min. | BA4: Std. | BB4: Min. | BC4: Std. | BD4: Min. | BE4: Std. | BF4: Min. | BG4: Std. | BH4: Min.
F5: U | G5: =IF(AND(E14>0,I5<>"",U5<>"f"),1,0) -> 0 | H5: =IF(AND(I5<>"",U5<>"f"),1,0) -> 0 | I5: =IF(CHOOSE(WEEKDAY(Einstellungen!$A$3,2),"Mo","Di","Mi","Do","Fr","Sa","So")=J5,Einstellungen!$A$3,"") -> 2026-01-01 | J5: Do | O5: =HOUR(N5-K5-(M5-L5)) -> 0 | P5: =MINUTE(N5-K5-(M5-L5)) -> 0 | T5: nur dienstl. Sonderfälle!* | U5: F | V5: =IF(OR(U5="U",U5="k",U5="B"),$C$14,IF(S5>P5,O5-1-R5,O5-R5)) -> 0 | W5: =IF(OR(U5="U",U5="k",U5="B"),$D$14,IF(S5>P5,P5+60-S5,P5-S5)) -> 0 | X5: =IF(OR(U5="U",U5="K",U5="B"),0,V5) -> 0 | Y5: =IF(OR(U5="U",U5="K",U5="B"),0,W5) -> 0 | Z5: =INT(((SUM(AB5,AH5,AK5,AN5,AQ5,AS5,AU5,AW5,AY5,BA5,BC5,BE5,BG5)*100)+(SUM(AC5,AI5,AL5,AO5,AR5,AT5,AV5,AX5,AZ5,BB5,BD5,BF5,BH5)/60*100))/100) -> 0 | AA5: =MOD(((SUM(AC5,AI5,AL5,AO5,AR5,AT5,AV5,AX5,AZ5,BB5,BD5,BF5,BH5)*100)+(SUM(AC5,AI5,AL5,AO5,AR5,AT5,AV5,AX5,AZ5,BB5,BD5,BF5,BH5)/60*100))/100,1)*60 -> 0 | AD5: =INT(((SUM(AH5,AK5,AN5)*100)+SUM(AI5,AL5,AO5)/60*100)/100) -> 0 | AE5: =MOD(((SUM(AI5,AL5,AO5)*100)+(SUM(AI5,AL5,AO5)/60*100))/100,1)*60 -> 0 | AF5: =INT(((SUM(AQ5+AS5+AU5+AW5+AY5+BA5+BC5+BE5+BG5)*100)+SUM(AR5+AT5+AV5+AX5+AZ5+BB5+BD5+BF5+BH5)/60*100)/100) -> 0 | AG5: =MOD(((SUM(AR5+AT5+AV5+AX5+AZ5+BB5+BD5+BF5+BH5)*100)+(SUM(AR5+AT5+AV5+AX5+AZ5+BB5+BD5+BF5+BH5)/60*100))/100,1)*60 -> 0
F6: K | G6: =IF(AND(E15>0,I6<>"",U6<>"f"),F14,0) -> 1 | H6: =IF(AND(I6<>"",U6<>"f"),1,0) -> 1 | I6: =IF(I5<>"",I5+1,IF(CHOOSE(WEEKDAY(Einstellungen!$A$3,2),"Mo","Di","Mi","Do","Fr","Sa","So")=J6,Einstellungen!$A$3,"")) -> 2026-01-02 | J6: Fr | O6: =HOUR(N6-K6-(M6-L6)) -> 0 | P6: =MINUTE(N6-K6-(M6-L6)) -> 0 | V6: =IF(OR(U6="U",U6="k",U6="B"),$C$15,IF(S6>P6,O6-1-R6,O6-R6)) -> 0 | W6: =IF(OR(U6="U",U6="k",U6="B"),$D$15,IF(S6>P6,P6+60-S6,P6-S6)) -> 0 | X6: =IF(OR(U6="U",U6="K",U6="B"),0,V6) -> 0 | Y6: =IF(OR(U6="U",U6="K",U6="B"),0,W6) -> 0 | Z6: =INT(((SUM(AB6,AH6,AK6,AN6,AQ6,AS6,AU6,AW6,AY6,BA6,BC6,BE6,BG6)*100)+(SUM(AC6,AI6,AL6,AO6,AR6,AT6,AV6,AX6,AZ6,BB6,BD6,BF6,BH6)/60*100))/100) -> 0 | AA6: =MOD(((SUM(AC6,AI6,AL6,AO6,AR6,AT6,AV6,AX6,AZ6,BB6,BD6,BF6,BH6)*100)+(SUM(AC6,AI6,AL6,AO6,AR6,AT6,AV6,AX6,AZ6,BB6,BD6,BF6,BH6)/60*100))/100,1)*60 -> 0 | AD6: =INT(((SUM(AH6,AK6,AN6)*100)+SUM(AI6,AL6,AO6)/60*100)/100) -> 0 | AE6: =MOD(((SUM(AI6,AL6,AO6)*100)+(SUM(AI6,AL6,AO6)/60*100))/100,1)*60 -> 0 | AF6: =INT(((SUM(AQ6+AS6+AU6+AW6+AY6+BA6+BC6+BE6+BG6)*100)+SUM(AR6+AT6+AV6+AX6+AZ6+BB6+BD6+BF6+BH6)/60*100)/100) -> 0 | AG6: =MOD(((SUM(AR6+AT6+AV6+AX6+AZ6+BB6+BD6+BF6+BH6)*100)+(SUM(AR6+AT6+AV6+AX6+AZ6+BB6+BD6+BF6+BH6)/60*100))/100,1)*60 -> 0
F7: A | G7: =IF(AND(E16>0,I7<>"",U7<>"f"),F15,0) -> 0 | I7: =IF(I6<>"",I6+1,IF(CHOOSE(WEEKDAY(Einstellungen!$A$3,2),"Mo","Di","Mi","Do","Fr","Sa","So")=J7,Einstellungen!$A$3,"")) -> 2026-01-03 | J7: Sa | O7: =HOUR(N7-K7-(M7-L7)) -> 0 | P7: =MINUTE(N7-K7-(M7-L7)) -> 0 | T7: nur dienstl. Sonderfälle!* | V7: =IF(S7>P7,O7-1-R7,O7-R7) -> 0 | W7: =IF(S7>P7,P7+60-S7,P7-S7) -> 0 | X7: 0 | Y7: 0 | Z7: =INT(((SUM(AB7,AH7,AK7,AN7,AQ7,AS7,AU7,AW7,AY7,BA7,BC7,BE7,BG7)*100)+(SUM(AC7,AI7,AL7,AO7,AR7,AT7,AV7,AX7,AZ7,BB7,BD7,BF7,BH7)/60*100))/100) -> 0 | AA7: =MOD(((SUM(AC7,AI7,AL7,AO7,AR7,AT7,AV7,AX7,AZ7,BB7,BD7,BF7,BH7)*100)+(SUM(AC7,AI7,AL7,AO7,AR7,AT7,AV7,AX7,AZ7,BB7,BD7,BF7,BH7)/60*100))/100,1)*60 -> 0 | AD7: =INT(((SUM(AH7,AK7,AN7)*100)+SUM(AI7,AL7,AO7)/60*100)/100) -> 0 | AE7: =MOD(((SUM(AI7,AL7,AO7)*100)+(SUM(AI7,AL7,AO7)/60*100))/100,1)*60 -> 0 | AF7: =INT(((SUM(AQ7+AS7+AU7+AW7+AY7+BA7+BC7+BE7+BG7)*100)+SUM(AR7+AT7+AV7+AX7+AZ7+BB7+BD7+BF7+BH7)/60*100)/100) -> 0 | AG7: =MOD(((SUM(AR7+AT7+AV7+AX7+AZ7+BB7+BD7+BF7+BH7)*100)+(SUM(AR7+AT7+AV7+AX7+AZ7+BB7+BD7+BF7+BH7)/60*100))/100,1)*60 -> 0
A8: =IF(Einstellungen!D25>0.0005,"Bitte Werte prüfen","") ->  | F8: B | I8: =IF(I7<>"",I7+1,IF(CHOOSE(WEEKDAY(Einstellungen!$A$3,2),"Mo","Di","Mi","Do","Fr","Sa","So")=J8,Einstellungen!$A$3,"")) -> 2026-01-04 | J8: So | O8: =HOUR(N8-K8-(M8-L8)) -> 0 | P8: =MINUTE(N8-K8-(M8-L8)) -> 0 | T8: nur dienstl. Sonderfälle!* | V8: =IF(S8>P8,O8-1-R8,O8-R8) -> 0 | W8: =IF(S8>P8,P8+60-S8,P8-S8) -> 0 | X8: 0 | Y8: 0 | Z8: =INT(((SUM(AB8,AH8,AK8,AN8,AQ8,AS8,AU8,AW8,AY8,BA8,BC8,BE8,BG8)*100)+(SUM(AC8,AI8,AL8,AO8,AR8,AT8,AV8,AX8,AZ8,BB8,BD8,BF8,BH8)/60*100))/100) -> 0 | AA8: =MOD(((SUM(AC8,AI8,AL8,AO8,AR8,AT8,AV8,AX8,AZ8,BB8,BD8,BF8,BH8)*100)+(SUM(AC8,AI8,AL8,AO8,AR8,AT8,AV8,AX8,AZ8,BB8,BD8,BF8,BH8)/60*100))/100,1)*60 -> 0 | AD8: =INT(((SUM(AH8,AK8,AN8)*100)+SUM(AI8,AL8,AO8)/60*100)/100) -> 0 | AE8: =MOD(((SUM(AI8,AL8,AO8)*100)+(SUM(AI8,AL8,AO8)/60*100))/100,1)*60 -> 0 | AF8: =INT(((SUM(AQ8+AS8+AU8+AW8+AY8+BA8+BC8+BE8+BG8)*100)+SUM(AR8+AT8+AV8+AX8+AZ8+BB8+BD8+BF8+BH8)/60*100)/100) -> 0 | AG8: =MOD(((SUM(AR8+AT8+AV8+AX8+AZ8+BB8+BD8+BF8+BH8)*100)+(SUM(AR8+AT8+AV8+AX8+AZ8+BB8+BD8+BF8+BH8)/60*100))/100,1)*60 -> 0
A9: Meine tägl. Regelarbeitszeit: | F9: X | V9: =INT((60*SUM(V5:V8)+SUM(W5:W8)-W9)/60) -> 0 | W9: =INT(60*SUM(V5:V8)+SUM(W5:W8)-60*INT((60*SUM(V5:V8)+SUM(W5:W8))/60)) -> 0 | X9: =INT((60*SUM(X5:X8)+SUM(Y5:Y8)-Y9)/60) -> 0 | Y9: =INT(60*SUM(X5:X8)+SUM(Y5:Y8)-60*INT((60*SUM(X5:X8)+SUM(Y5:Y8))/60)) -> 0 | Z9: =INT((60*SUM(Z5:Z8)+SUM(AA5:AA8)-AA9)/60) -> 0 | AA9: =INT(60*SUM(Z5:Z8)+SUM(AA5:AA8)-60*INT((60*SUM(Z5:Z8)+SUM(AA5:AA8))/60)) -> 0 | AB9: =INT((60*SUM(AB5:AB8)+SUM(AC5:AC8)-AC9)/60) -> 0 | AC9: =INT(60*SUM(AB5:AB8)+SUM(AC5:AC8)-60*INT((60*SUM(AB5:AB8)+SUM(AC5:AC8))/60)) -> 0 | AD9: =INT((60*SUM(AD5:AD8)+SUM(AE5:AE8)-AE9)/60) -> 0 | AE9: =INT(60*SUM(AD5:AD8)+SUM(AE5:AE8)-60*INT((60*SUM(AD5:AD8)+SUM(AE5:AE8))/60)) -> 0 | AF9: =INT((60*SUM(AF5:AF8)+SUM(AG5:AG8)-AG9)/60) -> 0 | AG9: =INT(60*SUM(AF5:AF8)+SUM(AG5:AG8)-60*INT((60*SUM(AF5:AF8)+SUM(AG5:AG8))/60)) -> 0 | AH9: =INT((60*SUM(AH5:AH8)+SUM(AI5:AI8)-AI9)/60) -> 0 | AI9: =INT(60*SUM(AH5:AH8)+SUM(AI5:AI8)-60*INT((60*SUM(AH5:AH8)+SUM(AI5:AI8))/60)) -> 0 | AK9: =INT((60*SUM(AK5:AK8)+SUM(AL5:AL8)-AL9)/60) -> 0 | AL9: =INT(60*SUM(AK5:AK8)+SUM(AL5:AL8)-60*INT((60*SUM(AK5:AK8)+SUM(AL5:AL8))/60)) -> 0 | AN9: =INT((60*SUM(AN5:AN8)+SUM(AO5:AO8)-AO9)/60) -> 0 | AO9: =INT(60*SUM(AN5:AN8)+SUM(AO5:AO8)-60*INT((60*SUM(AN5:AN8)+SUM(AO5:AO8))/60)) -> 0 | AQ9: =INT((60*SUM(AQ5:AQ8)+SUM(AR5:AR8)-AR9)/60) -> 0 | AR9: =INT(60*SUM(AQ5:AQ8)+SUM(AR5:AR8)-60*INT((60*SUM(AQ5:AQ8)+SUM(AR5:AR8))/60)) -> 0 | AS9: =INT((60*SUM(AS5:AS8)+SUM(AT5:AT8)-AT9)/60) -> 0 | AT9: =INT(60*SUM(AS5:AS8)+SUM(AT5:AT8)-60*INT((60*SUM(AS5:AS8)+SUM(AT5:AT8))/60)) -> 0 | AU9: =INT((60*SUM(AU5:AU8)+SUM(AV5:AV8)-AV9)/60) -> 0 | AV9: =INT(60*SUM(AU5:AU8)+SUM(AV5:AV8)-60*INT((60*SUM(AU5:AU8)+SUM(AV5:AV8))/60)) -> 0 | AW9: =INT((60*SUM(AW5:AW8)+SUM(AX5:AX8)-AX9)/60) -> 0 | AX9: =INT(60*SUM(AW5:AW8)+SUM(AX5:AX8)-60*INT((60*SUM(AW5:AW8)+SUM(AX5:AX8))/60)) -> 0 | AY9: =INT((60*SUM(AY5:AY8)+SUM(AZ5:AZ8)-AZ9)/60) -> 0 | AZ9: =INT(60*SUM(AY5:AY8)+SUM(AZ5:AZ8)-60*INT((60*SUM(AY5:AY8)+SUM(AZ5:AZ8))/60)) -> 0 | BA9: =INT((60*SUM(BA5:BA8)+SUM(BB5:BB8)-BB9)/60) -> 0 | BB9: =INT(60*SUM(BA5:BA8)+SUM(BB5:BB8)-60*INT((60*SUM(BA5:BA8)+SUM(BB5:BB8))/60)) -> 0 | BC9: =INT((60*SUM(BC5:BC8)+SUM(BD5:BD8)-BD9)/60) -> 0 | BD9: =INT(60*SUM(BC5:BC8)+SUM(BD5:BD8)-60*INT((60*SUM(BC5:BC8)+SUM(BD5:BD8))/60)) -> 0 | BE9: =INT((60*SUM(BE5:BE8)+SUM(BF5:BF8)-BF9)/60) -> 0 | BF9: =INT(60*SUM(BE5:BE8)+SUM(BF5:BF8)-60*INT((60*SUM(BE5:BE8)+SUM(BF5:BF8))/60)) -> 0 | BG9: =INT((60*SUM(BG5:BG8)+SUM(BH5:BH8)-BH9)/60) -> 0 | BH9: =INT(60*SUM(BG5:BG8)+SUM(BH5:BH8)-60*INT((60*SUM(BG5:BG8)+SUM(BH5:BH8))/60)) -> 0
E10: =5-COUNTIF(E11:E15,0) -> 5 | F10: =(SUM(C11:C15)*60+SUM(D11:D15))/E10 -> 474
A11: Mo | B11: =IF(E11=0,"frei","") ->  | C11: =SUM(Einstellungen!C19) -> 7 | D11: =SUM(Einstellungen!D19) -> 54 | E11: =C11*60+D11 -> 474 | F11: =E11/$F$10 -> 1 | G11: =IF(AND(E11>0,I11<>"",U11<>"f"),F11,0) -> 1 | H11: =IF(AND(I11<>"",U11<>"f"),1,0) -> 1 | I11: =IF(I8<>"",I8+1,IF(CHOOSE(WEEKDAY(Einstellungen!$A$3,2),"Mo","Di","Mi","Do","Fr","Sa","So")=J11,Einstellungen!$A$3,"")) -> 2026-01-05 | J11: Mo | O11: =HOUR(N11-K11-(M11-L11)) -> 0 | P11: =MINUTE(N11-K11-(M11-L11)) -> 0 | V11: =IF(OR(U11="U",U11="k",U11="B"),$C$11,IF(S11>P11,O11-1-R11,O11-R11)) -> 0 | W11: =IF(OR(U11="U",U11="k",U11="B"),$D$11,IF(S11>P11,P11+60-S11,P11-S11)) -> 0 | X11: =IF(OR(U11="U",U11="K",U11="B"),0,V11) -> 0 | Y11: =IF(OR(U11="U",U11="K",U11="B"),0,W11) -> 0 | Z11: =INT(((SUM(AB11,AH11,AK11,AN11,AQ11,AS11,AU11,AW11,AY11,BA11,BC11,BE11,BG11)*100)+(SUM(AC11,AI11,AL11,AO11,AR11,AT11,AV11,AX11,AZ11,BB11,BD11,BF11,BH11)/60*100))/100) -> 0 | AA11: =MOD(((SUM(AC11,AI11,AL11,AO11,AR11,AT11,AV11,AX11,AZ11,BB11,BD11,BF11,BH11)*100)+(SUM(AC11,AI11,AL11,AO11,AR11,AT11,AV11,AX11,AZ11,BB11,BD11,BF11,BH11)/60*100))/100,1)*60 -> 0 | AD11: =INT(((SUM(AH11,AK11,AN11)*100)+SUM(AI11,AL11,AO11)/60*100)/100) -> 0 | AE11: =MOD(((SUM(AI11,AL11,AO11)*100)+(SUM(AI11,AL11,AO11)/60*100))/100,1)*60 -> 0 | AF11: =INT(((SUM(AQ11+AS11+AU11+AW11+AY11+BA11+BC11+BE11+BG11)*100)+SUM(AR11+AT11+AV11+AX11+AZ11+BB11+BD11+BF11+BH11)/60*100)/100) -> 0 | AG11: =MOD(((SUM(AR11+AT11+AV11+AX11+AZ11+BB11+BD11+BF11+BH11)*100)+(SUM(AR11+AT11+AV11+AX11+AZ11+BB11+BD11+BF11+BH11)/60*100))/100,1)*60 -> 0
A12: Di | B12: =IF(E12=0,"frei","") ->  | C12: =SUM(Einstellungen!C20) -> 7 | D12: =SUM(Einstellungen!D20) -> 54 | E12: =C12*60+D12 -> 474 | F12: =E12/$F$10 -> 1 | G12: =IF(AND(E12>0,I12<>"",U12<>"f"),F12,0) -> 0 | H12: =IF(AND(I12<>"",U12<>"f"),1,0) -> 0 | I12: =IF(I11<>"",I11+1,IF(CHOOSE(WEEKDAY(Einstellungen!$A$3,2),"Mo","Di","Mi","Do","Fr","Sa","So")=J12,Einstellungen!$A$3,"")) -> 2026-01-06 | J12: Di | O12: =HOUR(N12-K12-(M12-L12)) -> 0 | P12: =MINUTE(N12-K12-(M12-L12)) -> 0 | T12: nur dienstl. Sonderfälle!* | U12: F | V12: =IF(OR(U12="U",U12="k",U12="B"),$C$12,IF(S12>P12,O12-1-R12,O12-R12)) -> 0 | W12: =IF(OR(U12="U",U12="k",U12="B"),$D$12,IF(S12>P12,P12+60-S12,P12-S12)) -> 0 | X12: 0 | Y12: 0 | Z12: 0 | AA12: 0 | AD12: 0 | AE12: 0 | AF12: 0 | AG12: 0
A13: Mi | B13: =IF(E13=0,"frei","") ->  | C13: =SUM(Einstellungen!C21) -> 7 | D13: =SUM(Einstellungen!D21) -> 54 | E13: =C13*60+D13 -> 474 | F13: =E13/$F$10 -> 1 | G13: =IF(AND(E13>0,I13<>"",U13<>"f"),F13,0) -> 1 | H13: =IF(AND(I13<>"",U13<>"f"),1,0) -> 1 | I13: =IF(I12<>"",I12+1,IF(CHOOSE(WEEKDAY(Einstellungen!$A$3,2),"Mo","Di","Mi","Do","Fr","Sa","So")=J13,Einstellungen!$A$3,"")) -> 2026-01-07 | J13: Mi | O13: 0 | P13: 0 | V13: =IF(OR(U13="U",U13="k",U13="B"),$C$13,IF(S13>P13,O13-1-R13,O13-R13)) -> 0 | W13: =IF(OR(U13="U",U13="k",U13="B"),$D$13,IF(S13>P13,P13+60-S13,P13-S13)) -> 0 | X13: 0 | Y13: 0 | Z13: 0 | AA13: 0 | AD13: 0 | AE13: 0 | AF13: 0 | AG13: 0
A14: Do | B14: =IF(E14=0,"frei","") ->  | C14: =SUM(Einstellungen!C22) -> 7 | D14: =SUM(Einstellungen!D22) -> 54 | E14: =C14*60+D14 -> 474 | F14: =E14/$F$10 -> 1 | G14: =IF(AND(E14>0,I14<>"",U14<>"f"),F14,0) -> 1 | H14: =IF(AND(I14<>"",U14<>"f"),1,0) -> 1 | I14: =IF(I13<>"",I13+1,IF(CHOOSE(WEEKDAY(Einstellungen!$A$3,2),"Mo","Di","Mi","Do","Fr","Sa","So")=J14,Einstellungen!$A$3,"")) -> 2026-01-08 | J14: Do | O14: 0 | P14: 0 | V14: =IF(OR(U14="U",U14="k",U14="B"),$C$14,IF(S14>P14,O14-1-R14,O14-R14)) -> 0 | W14: =IF(OR(U14="U",U14="k",U14="B"),$D$14,IF(S14>P14,P14+60-S14,P14-S14)) -> 0 | X14: 0 | Y14: 0 | Z14: 0 | AA14: 0 | AD14: 0 | AE14: 0 | AF14: 0 | AG14: 0
A15: Fr | B15: =IF(E15=0,"frei","") ->  | C15: =SUM(Einstellungen!C23) -> 7 | D15: =SUM(Einstellungen!D23) -> 54 | E15: =C15*60+D15 -> 474 | F15: =E15/$F$10 -> 1 | G15: =IF(AND(E15>0,I15<>"",U15<>"f"),F15,0) -> 1 | H15: =IF(AND(I15<>"",U15<>"f"),1,0) -> 1 | I15: =I14+1 -> 2026-01-09 | J15: Fr | O15: 0 | P15: 0 | V15: =IF(OR(U15="U",U15="k",U15="B"),$C$15,IF(S15>P15,O15-1-R15,O15-R15)) -> 0 | W15: =IF(OR(U15="U",U15="k",U15="B"),$D$15,IF(S15>P15,P15+60-S15,P15-S15)) -> 0 | X15: 0 | Y15: 0 | Z15: 0 | AA15: 0 | AD15: 0 | AE15: 0 | AF15: 0 | AG15: 0
A16: =Einstellungen!$L$1 -> Hinweise: | I16: =I15+1 -> 2026-01-10 | J16: Sa | O16: 0 | P16: 0 | T16: nur dienstl. Sonderfälle!* | V16: =IF(S16>P16,O16-1-R16,O16-R16) -> 0 | W16: =IF(S16>P16,P16+60-S16,P16-S16) -> 0 | X16: 0 | Y16: 0 | Z16: 0 | AA16: 0 | AD16: 0 | AE16: 0 | AF16: 0 | AG16: 0
A17: =Einstellungen!$L$2 -> I Beschäftigte mit 39,5 Std-Woche | I17: =I16+1 -> 2026-01-11 | J17: So | O17: 0 | P17: 0 | T17: nur dienstl. Sonderfälle!* | V17: =IF(S17>P17,O17-1-R17,O17-R17) -> 0 | W17: =IF(S17>P17,P17+60-S17,P17-S17) -> 0 | X17: 0 | Y17: 0 | Z17: 0 | AA17: 0 | AD17: 0 | AE17: 0 | AF17: 0 | AG17: 0
A18: =Einstellungen!$L$3 ->  | C18: =Einstellungen!$N$3 -> Beschäftigungsumfang | V18: =INT((60*SUM(V11:V17)+SUM(W11:W17)-W18)/60) -> 0 | W18: =INT(60*SUM(V11:V17)+SUM(W11:W17)-60*INT((60*SUM(V11:V17)+SUM(W11:W17))/60)) -> 0 | X18: =INT((60*SUM(X11:X17)+SUM(Y11:Y17)-Y18)/60) -> 0 | Y18: =INT(60*SUM(X11:X17)+SUM(Y11:Y17)-60*INT((60*SUM(X11:X17)+SUM(Y11:Y17))/60)) -> 0 | Z18: =INT((60*SUM(Z11:Z17)+SUM(AA11:AA17)-AA18)/60) -> 0 | AA18: =INT(60*SUM(Z11:Z17)+SUM(AA11:AA17)-60*INT((60*SUM(Z11:Z17)+SUM(AA11:AA17))/60)) -> 0 | AB18: =INT((60*SUM(AB11:AB17)+SUM(AC11:AC17)-AC18)/60) -> 0 | AC18: =INT(60*SUM(AB11:AB17)+SUM(AC11:AC17)-60*INT((60*SUM(AB11:AB17)+SUM(AC11:AC17))/60)) -> 0 | AD18: =INT((60*SUM(AD11:AD17)+SUM(AE11:AE17)-AE18)/60) -> 0 | AE18: =INT(60*SUM(AD11:AD17)+SUM(AE11:AE17)-60*INT((60*SUM(AD11:AD17)+SUM(AE11:AE17))/60)) -> 0 | AF18: =INT((60*SUM(AF11:AF17)+SUM(AG11:AG17)-AG18)/60) -> 0 | AG18: =INT(60*SUM(AF11:AF17)+SUM(AG11:AG17)-60*INT((60*SUM(AF11:AF17)+SUM(AG11:AG17))/60)) -> 0 | AH18: =INT((60*SUM(AH11:AH17)+SUM(AI11:AI17)-AI18)/60) -> 0 | AI18: =INT(60*SUM(AH11:AH17)+SUM(AI11:AI17)-60*INT((60*SUM(AH11:AH17)+SUM(AI11:AI17))/60)) -> 0 | AK18: =INT((60*SUM(AK11:AK17)+SUM(AL11:AL17)-AL18)/60) -> 0 | AL18: =INT(60*SUM(AK11:AK17)+SUM(AL11:AL17)-60*INT((60*SUM(AK11:AK17)+SUM(AL11:AL17))/60)) -> 0 | AN18: =INT((60*SUM(AN11:AN17)+SUM(AO11:AO17)-AO18)/60) -> 0 | AO18: =INT(60*SUM(AN11:AN17)+SUM(AO11:AO17)-60*INT((60*SUM(AN11:AN17)+SUM(AO11:AO17))/60)) -> 0 | AQ18: =INT((60*SUM(AQ11:AQ17)+SUM(AR11:AR17)-AR18)/60) -> 0 | AR18: =INT(60*SUM(AQ11:AQ17)+SUM(AR11:AR17)-60*INT((60*SUM(AQ11:AQ17)+SUM(AR11:AR17))/60)) -> 0 | AS18: =INT((60*SUM(AS11:AS17)+SUM(AT11:AT17)-AT18)/60) -> 0 | AT18: =INT(60*SUM(AS11:AS17)+SUM(AT11:AT17)-60*INT((60*SUM(AS11:AS17)+SUM(AT11:AT17))/60)) -> 0 | AU18: =INT((60*SUM(AU11:AU17)+SUM(AV11:AV17)-AV18)/60) -> 0 | AV18: =INT(60*SUM(AU11:AU17)+SUM(AV11:AV17)-60*INT((60*SUM(AU11:AU17)+SUM(AV11:AV17))/60)) -> 0 | AW18: =INT((60*SUM(AW11:AW17)+SUM(AX11:AX17)-AX18)/60) -> 0 | AX18: =INT(60*SUM(AW11:AW17)+SUM(AX11:AX17)-60*INT((60*SUM(AW11:AW17)+SUM(AX11:AX17))/60)) -> 0 | AY18: =INT((60*SUM(AY11:AY17)+SUM(AZ11:AZ17)-AZ18)/60) -> 0 | AZ18: =INT(60*SUM(AY11:AY17)+SUM(AZ11:AZ17)-60*INT((60*SUM(AY11:AY17)+SUM(AZ11:AZ17))/60)) -> 0 | BA18: =INT((60*SUM(BA11:BA17)+SUM(BB11:BB17)-BB18)/60) -> 0 | BB18: =INT(60*SUM(BA11:BA17)+SUM(BB11:BB17)-60*INT((60*SUM(BA11:BA17)+SUM(BB11:BB17))/60)) -> 0 | BC18: =INT((60*SUM(BC11:BC17)+SUM(BD11:BD17)-BD18)/60) -> 0 | BD18: =INT(60*SUM(BC11:BC17)+SUM(BD11:BD17)-60*INT((60*SUM(BC11:BC17)+SUM(BD11:BD17))/60)) -> 0 | BE18: =INT((60*SUM(BE11:BE17)+SUM(BF11:BF17)-BF18)/60) -> 0 | BF18: =INT(60*SUM(BE11:BE17)+SUM(BF11:BF17)-60*INT((60*SUM(BE11:BE17)+SUM(BF11:BF17))/60)) -> 0 | BG18: =INT((60*SUM(BG11:BG17)+SUM(BH11:BH17)-BH18)/60) -> 0 | BH18: =INT(60*SUM(BG11:BG17)+SUM(BH11:BH17)-60*INT((60*SUM(BG11:BG17)+SUM(BH11:BH17))/60)) -> 0
A20: =Einstellungen!$L$4 -> 5 Tage-Woche | C20: =Einstellungen!$N$4 -> 1 | D20: =Einstellungen!$O$4 -> 0.75 | F20: =Einstellungen!$Q$4 -> 0.5 | G20: =IF(AND(E11>0,I20<>"",U20<>"f"),F11,0) -> 1 | H20: =IF(AND(I20<>"",U20<>"f"),1,0) -> 1 | I20: =I17+1 -> 2026-01-12 | J20: Mo | O20: =HOUR(N20-K20-(M20-L20)) -> 0 | P20: =MINUTE(N20-K20-(M20-L20)) -> 0 | V20: =IF(OR(U20="U",U20="k",U20="B"),$C$11,IF(S20>P20,O20-1-R20,O20-R20)) -> 0 | W20: =IF(OR(U20="U",U20="k",U20="B"),$D$11,IF(S20>P20,P20+60-S20,P20-S20)) -> 0 | X20: =IF(OR(U20="U",U20="K",U20="B"),0,V20) -> 0 | Y20: =IF(OR(U20="U",U20="K",U20="B"),0,W20) -> 0 | Z20: =INT(((SUM(AB20,AH20,AK20,AN20,AQ20,AS20,AU20,AW20,AY20,BA20,BC20,BE20,BG20)*100)+(SUM(AC20,AI20,AL20,AO20,AR20,AT20,AV20,AX20,AZ20,BB20,BD20,BF20,BH20)/60*100))/100) -> 0 | AA20: =MOD(((SUM(AC20,AI20,AL20,AO20,AR20,AT20,AV20,AX20,AZ20,BB20,BD20,BF20,BH20)*100)+(SUM(AC20,AI20,AL20,AO20,AR20,AT20,AV20,AX20,AZ20,BB20,BD20,BF20,BH20)/60*100))/100,1)*60 -> 0 | AD20: =INT(((SUM(AH20,AK20,AN20)*100)+SUM(AI20,AL20,AO20)/60*100)/100) -> 0 | AE20: =MOD(((SUM(AI20,AL20,AO20)*100)+(SUM(AI20,AL20,AO20)/60*100))/100,1)*60 -> 0 | AF20: =INT(((SUM(AQ20+AS20+AU20+AW20+AY20+BA20+BC20+BE20+BG20)*100)+SUM(AR20+AT20+AV20+AX20+AZ20+BB20+BD20+BF20+BH20)/60*100)/100) -> 0 | AG20: =MOD(((SUM(AR20+AT20+AV20+AX20+AZ20+BB20+BD20+BF20+BH20)*100)+(SUM(AR20+AT20+AV20+AX20+AZ20+BB20+BD20+BF20+BH20)/60*100))/100,1)*60 -> 0
A21: =Einstellungen!$L$5 ->  | G21: =IF(AND(E12>0,I21<>"",U21<>"f"),F12,0) -> 1 | H21: =IF(AND(I21<>"",U21<>"f"),1,0) -> 1 | I21: =I20+1 -> 2026-01-13 | J21: Di | O21: 0 | P21: 0 | V21: =IF(OR(U21="U",U21="k",U21="B"),$C$12,IF(S21>P21,O21-1-R21,O21-R21)) -> 0 | W21: =IF(OR(U21="U",U21="k",U21="B"),$D$12,IF(S21>P21,P21+60-S21,P21-S21)) -> 0 | X21: 0 | Y21: 0 | Z21: 0 | AA21: 0 | AD21: 0 | AE21: 0 | AF21: 0 | AG21: 0
A22: =Einstellungen!$L$6 -> tägliche Regel- | G22: =IF(AND(E13>0,I22<>"",U22<>"f"),F13,0) -> 1 | H22: =IF(AND(I22<>"",U22<>"f"),1,0) -> 1 | I22: =I21+1 -> 2026-01-14 | J22: Mi | O22: 0 | P22: 0 | V22: =IF(OR(U22="U",U22="k",U22="B"),$C$13,IF(S22>P22,O22-1-R22,O22-R22)) -> 0 | W22: =IF(OR(U22="U",U22="k",U22="B"),$D$13,IF(S22>P22,P22+60-S22,P22-S22)) -> 0 | X22: 0 | Y22: 0 | Z22: 0 | AA22: 0 | AD22: 0 | AE22: 0 | AF22: 0 | AG22: 0
A23: =Einstellungen!$L$7 -> arbeitszeit für | G23: =IF(AND(E14>0,I23<>"",U23<>"f"),F14,0) -> 1 | H23: =IF(AND(I23<>"",U23<>"f"),1,0) -> 1 | I23: 2026-01-15 | J23: Do | O23: 0 | P23: 0 | V23: =IF(OR(U23="U",U23="k",U23="B"),$C$14,IF(S23>P23,O23-1-R23,O23-R23)) -> 0 | W23: =IF(OR(U23="U",U23="k",U23="B"),$D$14,IF(S23>P23,P23+60-S23,P23-S23)) -> 0 | X23: 0 | Y23: 0 | Z23: 0 | AA23: 0 | AD23: 0 | AE23: 0 | AF23: 0 | AG23: 0
A24: =Einstellungen!$L$8 -> Wochenfeier- | G24: =IF(AND(E15>0,I24<>"",U24<>"f"),F15,0) -> 1 | H24: =IF(AND(I24<>"",U24<>"f"),1,0) -> 1 | I24: 2026-01-16 | J24: Fr | O24: 0 | P24: 0 | V24: =IF(OR(U24="U",U24="k",U24="B"),$C$15,IF(S24>P24,O24-1-R24,O24-R24)) -> 0 | W24: =IF(OR(U24="U",U24="k",U24="B"),$D$15,IF(S24>P24,P24+60-S24,P24-S24)) -> 0 | X24: 0 | Y24: 0 | Z24: 0 | AA24: 0 | AD24: 0 | AE24: 0 | AF24: 0 | AG24: 0
A25: =Einstellungen!$L$9 -> tage, bei Urlaub | I25: 2026-01-17 | J25: Sa | O25: 0 | P25: 0 | T25: nur dienstl. Sonderfälle!* | V25: =IF(S25>P25,O25-1-R25,O25-R25) -> 0 | W25: =IF(S25>P25,P25+60-S25,P25-S25) -> 0 | X25: 0 | Y25: 0 | Z25: 0 | AA25: 0 | AD25: 0 | AE25: 0 | AF25: 0 | AG25: 0
A26: =Einstellungen!$L$10 -> oder Krankheit | I26: 2026-01-18 | J26: So | O26: 0 | P26: 0 | T26: nur dienstl. Sonderfälle!* | V26: =IF(S26>P26,O26-1-R26,O26-R26) -> 0 | W26: =IF(S26>P26,P26+60-S26,P26-S26) -> 0 | X26: 0 | Y26: 0 | Z26: 0 | AA26: 0 | AD26: 0 | AE26: 0 | AF26: 0 | AG26: 0
A27: =Einstellungen!$L$11 -> Mo-Fr | B27: =Einstellungen!$M$11 -> Std.Min | C27: =Einstellungen!$N$11 -> 7.54 | D27: =Einstellungen!$O$11 -> 5.56 | F27: =Einstellungen!$Q$11 -> 3.57 | V27: =INT((60*SUM(V20:V26)+SUM(W20:W26)-W27)/60) -> 0 | W27: =INT(60*SUM(V20:V26)+SUM(W20:W26)-60*INT((60*SUM(V20:V26)+SUM(W20:W26))/60)) -> 0 | X27: =INT((60*SUM(X20:X26)+SUM(Y20:Y26)-Y27)/60) -> 0 | Y27: =INT(60*SUM(X20:X26)+SUM(Y20:Y26)-60*INT((60*SUM(X20:X26)+SUM(Y20:Y26))/60)) -> 0 | Z27: =INT((60*SUM(Z20:Z26)+SUM(AA20:AA26)-AA27)/60) -> 0 | AA27: =INT(60*SUM(Z20:Z26)+SUM(AA20:AA26)-60*INT((60*SUM(Z20:Z26)+SUM(AA20:AA26))/60)) -> 0 | AB27: =INT((60*SUM(AB20:AB26)+SUM(AC20:AC26)-AC27)/60) -> 0 | AC27: =INT(60*SUM(AB20:AB26)+SUM(AC20:AC26)-60*INT((60*SUM(AB20:AB26)+SUM(AC20:AC26))/60)) -> 0 | AD27: =INT((60*SUM(AD20:AD26)+SUM(AE20:AE26)-AE27)/60) -> 0 | AE27: =INT(60*SUM(AD20:AD26)+SUM(AE20:AE26)-60*INT((60*SUM(AD20:AD26)+SUM(AE20:AE26))/60)) -> 0 | AF27: =INT((60*SUM(AF20:AF26)+SUM(AG20:AG26)-AG27)/60) -> 0 | AG27: =INT(60*SUM(AF20:AF26)+SUM(AG20:AG26)-60*INT((60*SUM(AF20:AF26)+SUM(AG20:AG26))/60)) -> 0 | AH27: =INT((60*SUM(AH20:AH26)+SUM(AI20:AI26)-AI27)/60) -> 0 | AI27: =INT(60*SUM(AH20:AH26)+SUM(AI20:AI26)-60*INT((60*SUM(AH20:AH26)+SUM(AI20:AI26))/60)) -> 0 | AK27: =INT((60*SUM(AK20:AK26)+SUM(AL20:AL26)-AL27)/60) -> 0 | AL27: =INT(60*SUM(AK20:AK26)+SUM(AL20:AL26)-60*INT((60*SUM(AK20:AK26)+SUM(AL20:AL26))/60)) -> 0 | AN27: =INT((60*SUM(AN20:AN26)+SUM(AO20:AO26)-AO27)/60) -> 0 | AO27: =INT(60*SUM(AN20:AN26)+SUM(AO20:AO26)-60*INT((60*SUM(AN20:AN26)+SUM(AO20:AO26))/60)) -> 0 | AQ27: =INT((60*SUM(AQ20:AQ26)+SUM(AR20:AR26)-AR27)/60) -> 0 | AR27: =INT(60*SUM(AQ20:AQ26)+SUM(AR20:AR26)-60*INT((60*SUM(AQ20:AQ26)+SUM(AR20:AR26))/60)) -> 0 | AS27: =INT((60*SUM(AS20:AS26)+SUM(AT20:AT26)-AT27)/60) -> 0 | AT27: =INT(60*SUM(AS20:AS26)+SUM(AT20:AT26)-60*INT((60*SUM(AS20:AS26)+SUM(AT20:AT26))/60)) -> 0 | AU27: =INT((60*SUM(AU20:AU26)+SUM(AV20:AV26)-AV27)/60) -> 0 | AV27: =INT(60*SUM(AU20:AU26)+SUM(AV20:AV26)-60*INT((60*SUM(AU20:AU26)+SUM(AV20:AV26))/60)) -> 0 | AW27: =INT((60*SUM(AW20:AW26)+SUM(AX20:AX26)-AX27)/60) -> 0 | AX27: =INT(60*SUM(AW20:AW26)+SUM(AX20:AX26)-60*INT((60*SUM(AW20:AW26)+SUM(AX20:AX26))/60)) -> 0 | AY27: =INT((60*SUM(AY20:AY26)+SUM(AZ20:AZ26)-AZ27)/60) -> 0 | AZ27: =INT(60*SUM(AY20:AY26)+SUM(AZ20:AZ26)-60*INT((60*SUM(AY20:AY26)+SUM(AZ20:AZ26))/60)) -> 0 | BA27: =INT((60*SUM(BA20:BA26)+SUM(BB20:BB26)-BB27)/60) -> 0 | BB27: =INT(60*SUM(BA20:BA26)+SUM(BB20:BB26)-60*INT((60*SUM(BA20:BA26)+SUM(BB20:BB26))/60)) -> 0 | BC27: =INT((60*SUM(BC20:BC26)+SUM(BD20:BD26)-BD27)/60) -> 0 | BD27: =INT(60*SUM(BC20:BC26)+SUM(BD20:BD26)-60*INT((60*SUM(BC20:BC26)+SUM(BD20:BD26))/60)) -> 0 | BE27: =INT((60*SUM(BE20:BE26)+SUM(BF20:BF26)-BF27)/60) -> 0 | BF27: =INT(60*SUM(BE20:BE26)+SUM(BF20:BF26)-60*INT((60*SUM(BE20:BE26)+SUM(BF20:BF26))/60)) -> 0 | BG27: =INT((60*SUM(BG20:BG26)+SUM(BH20:BH26)-BH27)/60) -> 0 | BH27: =INT(60*SUM(BG20:BG26)+SUM(BH20:BH26)-60*INT((60*SUM(BG20:BG26)+SUM(BH20:BH26))/60)) -> 0
A29: =Einstellungen!$L$13 -> Wochen | G29: =IF(AND(E11>0,I29<>"",U29<>"f"),F11,0) -> 1 | H29: =IF(AND(I29<>"",U29<>"f"),1,0) -> 1 | I29: =I26+1 -> 2026-01-19 | J29: Mo | O29: =HOUR(N29-K29-(M29-L29)) -> 0 | P29: =MINUTE(N29-K29-(M29-L29)) -> 0 | V29: =IF(OR(U29="U",U29="k",U29="B"),$C$11,IF(S29>P29,O29-1-R29,O29-R29)) -> 0 | W29: =IF(OR(U29="U",U29="k",U29="B"),$D$11,IF(S29>P29,P29+60-S29,P29-S29)) -> 0 | X29: =IF(OR(U29="U",U29="K",U29="B"),0,V29) -> 0 | Y29: =IF(OR(U29="U",U29="K",U29="B"),0,W29) -> 0 | Z29: =INT(((SUM(AB29,AH29,AK29,AN29,AQ29,AS29,AU29,AW29,AY29,BA29,BC29,BE29,BG29)*100)+(SUM(AC29,AI29,AL29,AO29,AR29,AT29,AV29,AX29,AZ29,BB29,BD29,BF29,BH29)/60*100))/100) -> 0 | AA29: =MOD(((SUM(AC29,AI29,AL29,AO29,AR29,AT29,AV29,AX29,AZ29,BB29,BD29,BF29,BH29)*100)+(SUM(AC29,AI29,AL29,AO29,AR29,AT29,AV29,AX29,AZ29,BB29,BD29,BF29,BH29)/60*100))/100,1)*60 -> 0 | AD29: =INT(((SUM(AH29,AK29,AN29)*100)+SUM(AI29,AL29,AO29)/60*100)/100) -> 0 | AE29: =MOD(((SUM(AI29,AL29,AO29)*100)+(SUM(AI29,AL29,AO29)/60*100))/100,1)*60 -> 0 | AF29: =INT(((SUM(AQ29+AS29+AU29+AW29+AY29+BA29+BC29+BE29+BG29)*100)+SUM(AR29+AT29+AV29+AX29+AZ29+BB29+BD29+BF29+BH29)/60*100)/100) -> 0 | AG29: =MOD(((SUM(AR29+AT29+AV29+AX29+AZ29+BB29+BD29+BF29+BH29)*100)+(SUM(AR29+AT29+AV29+AX29+AZ29+BB29+BD29+BF29+BH29)/60*100))/100,1)*60 -> 0
A30: =CONCATENATE(Einstellungen!$L$14," ",Einstellungen!$M$14) -> Arbeitzeit Std.Min | C30: =Einstellungen!$N$14 -> 39.30 | D30: =Einstellungen!$O$14 -> 29.38 | F30: =Einstellungen!$Q$14 -> 19.45 | G30: =IF(AND(E12>0,I30<>"",U30<>"f"),F12,0) -> 1 | H30: =IF(AND(I30<>"",U30<>"f"),1,0) -> 1 | I30: =I29+1 -> 2026-01-20 | J30: Di | O30: 0 | P30: 0 | V30: =IF(OR(U30="U",U30="k",U30="B"),$C$12,IF(S30>P30,O30-1-R30,O30-R30)) -> 0 | W30: =IF(OR(U30="U",U30="k",U30="B"),$D$12,IF(S30>P30,P30+60-S30,P30-S30)) -> 0 | X30: 0 | Y30: 0 | Z30: 0 | AA30: 0 | AD30: 0 | AE30: 0 | AF30: 0 | AG30: 0
A31: =Einstellungen!$L$15 -> max.Übertrag auf das | G31: =IF(AND(E13>0,I31<>"",U31<>"f"),F13,0) -> 1 | H31: =IF(AND(I31<>"",U31<>"f"),1,0) -> 1 | I31: =I30+1 -> 2026-01-21 | J31: Mi | O31: 0 | P31: 0 | V31: =IF(OR(U31="U",U31="k",U31="B"),$C$13,IF(S31>P31,O31-1-R31,O31-R31)) -> 0 | W31: =IF(OR(U31="U",U31="k",U31="B"),$D$13,IF(S31>P31,P31+60-S31,P31-S31)) -> 0 | X31: 0 | Y31: 0 | Z31: 0 | AA31: 0 | AD31: 0 | AE31: 0 | AF31: 0 | AG31: 0
A32: =Einstellungen!$L$16 -> Folgejahr Std.Min | C32: =Einstellungen!$N$16 -> 39.30 | D32: =Einstellungen!$O$16 -> 39.30 | F32: =Einstellungen!$Q$16 -> 39.30 | G32: =IF(AND(E14>0,I32<>"",U32<>"f"),F14,0) -> 1 | H32: =IF(AND(I32<>"",U32<>"f"),1,0) -> 1 | I32: 2026-01-22 | J32: Do | O32: 0 | P32: 0 | V32: =IF(OR(U32="U",U32="k",U32="B"),$C$14,IF(S32>P32,O32-1-R32,O32-R32)) -> 0 | W32: =IF(OR(U32="U",U32="k",U32="B"),$D$14,IF(S32>P32,P32+60-S32,P32-S32)) -> 0 | X32: 0 | Y32: 0 | Z32: 0 | AA32: 0 | AD32: 0 | AE32: 0 | AF32: 0 | AG32: 0
A33: =Einstellungen!$L$17 -> II Beschäftigte mit 41 Std-Woche | G33: =IF(AND(E15>0,I33<>"",U33<>"f"),F15,0) -> 1 | H33: =IF(AND(I33<>"",U33<>"f"),1,0) -> 1 | I33: 2026-01-23 | J33: Fr | O33: 0 | P33: 0 | V33: =IF(OR(U33="U",U33="k",U33="B"),$C$15,IF(S33>P33,O33-1-R33,O33-R33)) -> 0 | W33: =IF(OR(U33="U",U33="k",U33="B"),$D$15,IF(S33>P33,P33+60-S33,P33-S33)) -> 0 | X33: 0 | Y33: 0 | Z33: 0 | AA33: 0 | AD33: 0 | AE33: 0 | AF33: 0 | AG33: 0
A34: =Einstellungen!$L$18 -> tägliche Arbeitszeit | I34: 2026-01-24 | J34: Sa | O34: 0 | P34: 0 | T34: nur dienstl. Sonderfälle!* | V34: =IF(S34>P34,O34-1-R34,O34-R34) -> 0 | W34: =IF(S34>P34,P34+60-S34,P34-S34) -> 0 | X34: 0 | Y34: 0 | Z34: 0 | AA34: 0 | AD34: 0 | AE34: 0 | AF34: 0 | AG34: 0
A35: =Einstellungen!$L$19 -> Mo-Fr | B35: =Einstellungen!$M$19 -> Std.Min | C35: =Einstellungen!$N$19 -> 8.12 | D35: =Einstellungen!$O$19 -> 6.09 | F35: =Einstellungen!$Q$19 -> 4.06 | I35: 2026-01-25 | J35: So | O35: 0 | P35: 0 | T35: nur dienstl. Sonderfälle!* | V35: =IF(S35>P35,O35-1-R35,O35-R35) -> 0 | W35: =IF(S35>P35,P35+60-S35,P35-S35) -> 0 | X35: 0 | Y35: 0 | Z35: 0 | AA35: 0 | AD35: 0 | AE35: 0 | AF35: 0 | AG35: 0
A36: =Einstellungen!$L$20 -> Wochen | V36: =INT((60*SUM(V29:V35)+SUM(W29:W35)-W36)/60) -> 0 | W36: =INT(60*SUM(V29:V35)+SUM(W29:W35)-60*INT((60*SUM(V29:V35)+SUM(W29:W35))/60)) -> 0 | X36: =INT((60*SUM(X29:X35)+SUM(Y29:Y35)-Y36)/60) -> 0 | Y36: =INT(60*SUM(X29:X35)+SUM(Y29:Y35)-60*INT((60*SUM(X29:X35)+SUM(Y29:Y35))/60)) -> 0 | Z36: =INT((60*SUM(Z29:Z35)+SUM(AA29:AA35)-AA36)/60) -> 0 | AA36: =INT(60*SUM(Z29:Z35)+SUM(AA29:AA35)-60*INT((60*SUM(Z29:Z35)+SUM(AA29:AA35))/60)) -> 0 | AB36: =INT((60*SUM(AB29:AB35)+SUM(AC29:AC35)-AC36)/60) -> 0 | AC36: =INT(60*SUM(AB29:AB35)+SUM(AC29:AC35)-60*INT((60*SUM(AB29:AB35)+SUM(AC29:AC35))/60)) -> 0 | AD36: =INT((60*SUM(AD29:AD35)+SUM(AE29:AE35)-AE36)/60) -> 0 | AE36: =INT(60*SUM(AD29:AD35)+SUM(AE29:AE35)-60*INT((60*SUM(AD29:AD35)+SUM(AE29:AE35))/60)) -> 0 | AF36: =INT((60*SUM(AF29:AF35)+SUM(AG29:AG35)-AG36)/60) -> 0 | AG36: =INT(60*SUM(AF29:AF35)+SUM(AG29:AG35)-60*INT((60*SUM(AF29:AF35)+SUM(AG29:AG35))/60)) -> 0 | AH36: =INT((60*SUM(AH29:AH35)+SUM(AI29:AI35)-AI36)/60) -> 0 | AI36: =INT(60*SUM(AH29:AH35)+SUM(AI29:AI35)-60*INT((60*SUM(AH29:AH35)+SUM(AI29:AI35))/60)) -> 0 | AK36: =INT((60*SUM(AK29:AK35)+SUM(AL29:AL35)-AL36)/60) -> 0 | AL36: =INT(60*SUM(AK29:AK35)+SUM(AL29:AL35)-60*INT((60*SUM(AK29:AK35)+SUM(AL29:AL35))/60)) -> 0 | AN36: =INT((60*SUM(AN29:AN35)+SUM(AO29:AO35)-AO36)/60) -> 0 | AO36: =INT(60*SUM(AN29:AN35)+SUM(AO29:AO35)-60*INT((60*SUM(AN29:AN35)+SUM(AO29:AO35))/60)) -> 0 | AQ36: =INT((60*SUM(AQ29:AQ35)+SUM(AR29:AR35)-AR36)/60) -> 0 | AR36: =INT(60*SUM(AQ29:AQ35)+SUM(AR29:AR35)-60*INT((60*SUM(AQ29:AQ35)+SUM(AR29:AR35))/60)) -> 0 | AS36: =INT((60*SUM(AS29:AS35)+SUM(AT29:AT35)-AT36)/60) -> 0 | AT36: =INT(60*SUM(AS29:AS35)+SUM(AT29:AT35)-60*INT((60*SUM(AS29:AS35)+SUM(AT29:AT35))/60)) -> 0 | AU36: =INT((60*SUM(AU29:AU35)+SUM(AV29:AV35)-AV36)/60) -> 0 | AV36: =INT(60*SUM(AU29:AU35)+SUM(AV29:AV35)-60*INT((60*SUM(AU29:AU35)+SUM(AV29:AV35))/60)) -> 0 | AW36: =INT((60*SUM(AW29:AW35)+SUM(AX29:AX35)-AX36)/60) -> 0 | AX36: =INT(60*SUM(AW29:AW35)+SUM(AX29:AX35)-60*INT((60*SUM(AW29:AW35)+SUM(AX29:AX35))/60)) -> 0 | AY36: =INT((60*SUM(AY29:AY35)+SUM(AZ29:AZ35)-AZ36)/60) -> 0 | AZ36: =INT(60*SUM(AY29:AY35)+SUM(AZ29:AZ35)-60*INT((60*SUM(AY29:AY35)+SUM(AZ29:AZ35))/60)) -> 0 | BA36: =INT((60*SUM(BA29:BA35)+SUM(BB29:BB35)-BB36)/60) -> 0 | BB36: =INT(60*SUM(BA29:BA35)+SUM(BB29:BB35)-60*INT((60*SUM(BA29:BA35)+SUM(BB29:BB35))/60)) -> 0 | BC36: =INT((60*SUM(BC29:BC35)+SUM(BD29:BD35)-BD36)/60) -> 0 | BD36: =INT(60*SUM(BC29:BC35)+SUM(BD29:BD35)-60*INT((60*SUM(BC29:BC35)+SUM(BD29:BD35))/60)) -> 0 | BE36: =INT((60*SUM(BE29:BE35)+SUM(BF29:BF35)-BF36)/60) -> 0 | BF36: =INT(60*SUM(BE29:BE35)+SUM(BF29:BF35)-60*INT((60*SUM(BE29:BE35)+SUM(BF29:BF35))/60)) -> 0 | BG36: =INT((60*SUM(BG29:BG35)+SUM(BH29:BH35)-BH36)/60) -> 0 | BH36: =INT(60*SUM(BG29:BG35)+SUM(BH29:BH35)-60*INT((60*SUM(BG29:BG35)+SUM(BH29:BH35))/60)) -> 0
A38: =CONCATENATE(Einstellungen!$L$21," ",Einstellungen!$M$21) -> Arbeitzeit Std.Min | C38: =Einstellungen!$N$21 -> 41.00 | D38: =Einstellungen!$O$21 -> 30.45 | F38: =Einstellungen!$Q$21 -> 20.30 | G38: =IF(AND(E11>0,I38<>"",U38<>"f"),F11,0) -> 1 | H38: =IF(AND(I38<>"",U38<>"f"),1,0) -> 1 | I38: =IF(I35<>"",IF(MONTH(I35)=MONTH(I35+1),I35+1,""),"") -> 2026-01-26 | J38: Mo | O38: =HOUR(N38-K38-(M38-L38)) -> 0 | P38: =MINUTE(N38-K38-(M38-L38)) -> 0 | V38: =IF(OR(U38="U",U38="k",U38="B"),$C$11,IF(S38>P38,O38-1-R38,O38-R38)) -> 0 | W38: =IF(OR(U38="U",U38="k",U38="B"),$D$11,IF(S38>P38,P38+60-S38,P38-S38)) -> 0 | X38: =IF(OR(U38="U",U38="K",U38="B"),0,V38) -> 0 | Y38: =IF(OR(U38="U",U38="K",U38="B"),0,W38) -> 0 | Z38: =INT(((SUM(AB38,AH38,AK38,AN38,AQ38,AS38,AU38,AW38,AY38,BA38,BC38,BE38,BG38)*100)+(SUM(AC38,AI38,AL38,AO38,AR38,AT38,AV38,AX38,AZ38,BB38,BD38,BF38,BH38)/60*100))/100) -> 0 | AA38: =MOD(((SUM(AC38,AI38,AL38,AO38,AR38,AT38,AV38,AX38,AZ38,BB38,BD38,BF38,BH38)*100)+(SUM(AC38,AI38,AL38,AO38,AR38,AT38,AV38,AX38,AZ38,BB38,BD38,BF38,BH38)/60*100))/100,1)*60 -> 0 | AD38: =INT(((SUM(AH38,AK38,AN38)*100)+SUM(AI38,AL38,AO38)/60*100)/100) -> 0 | AE38: =MOD(((SUM(AI38,AL38,AO38)*100)+(SUM(AI38,AL38,AO38)/60*100))/100,1)*60 -> 0 | AF38: =INT(((SUM(AQ38+AS38+AU38+AW38+AY38+BA38+BC38+BE38+BG38)*100)+SUM(AR38+AT38+AV38+AX38+AZ38+BB38+BD38+BF38+BH38)/60*100)/100) -> 0 | AG38: =MOD(((SUM(AR38+AT38+AV38+AX38+AZ38+BB38+BD38+BF38+BH38)*100)+(SUM(AR38+AT38+AV38+AX38+AZ38+BB38+BD38+BF38+BH38)/60*100))/100,1)*60 -> 0
A39: =Einstellungen!$L$22 -> max.Übertrag auf das | G39: =IF(AND(E12>0,I39<>"",U39<>"f"),F12,0) -> 1 | H39: =IF(AND(I39<>"",U39<>"f"),1,0) -> 1 | I39: =IF(I38<>"",IF(MONTH(I38)=MONTH(I38+1),I38+1,""),"") -> 2026-01-27 | J39: Di | O39: 0 | P39: 0 | V39: =IF(OR(U39="U",U39="k",U39="B"),$C$12,IF(S39>P39,O39-1-R39,O39-R39)) -> 0 | W39: =IF(OR(U39="U",U39="k",U39="B"),$D$12,IF(S39>P39,P39+60-S39,P39-S39)) -> 0 | X39: 0 | Y39: 0 | Z39: 0 | AA39: 0 | AD39: 0 | AE39: 0 | AF39: 0 | AG39: 0
A40: =Einstellungen!$L$23 -> Folgejahr Std.Min | C40: =Einstellungen!$N$23 -> 41.00 | D40: =Einstellungen!$O$23 -> 41.00 | F40: =Einstellungen!$Q$23 -> 41.00 | G40: =IF(AND(E13>0,I40<>"",U40<>"f"),F13,0) -> 1 | H40: =IF(AND(I40<>"",U40<>"f"),1,0) -> 1 | I40: =IF(I39<>"",IF(MONTH(I39)=MONTH(I39+1),I39+1,""),"") -> 2026-01-28 | J40: Mi | O40: 0 | P40: 0 | V40: =IF(OR(U40="U",U40="k",U40="B"),$C$13,IF(S40>P40,O40-1-R40,O40-R40)) -> 0 | W40: =IF(OR(U40="U",U40="k",U40="B"),$D$13,IF(S40>P40,P40+60-S40,P40-S40)) -> 0 | X40: 0 | Y40: 0 | Z40: 0 | AA40: 0 | AD40: 0 | AE40: 0 | AF40: 0 | AG40: 0
A41: =Einstellungen!$L$24 -> Kernarbeitszeit: | C41: =Einstellungen!$N$24 -> Mo-Do | D41: =Einstellungen!$O$24 -> 9:00 - 14:30 Uhr | G41: =IF(AND(E14>0,I41<>"",U41<>"f"),F14,0) -> 1 | H41: =IF(AND(I41<>"",U41<>"f"),1,0) -> 1 | I41: 2026-01-29 | J41: Do | O41: 0 | P41: 0 | V41: =IF(OR(U41="U",U41="k",U41="B"),$C$14,IF(S41>P41,O41-1-R41,O41-R41)) -> 0 | W41: =IF(OR(U41="U",U41="k",U41="B"),$D$14,IF(S41>P41,P41+60-S41,P41-S41)) -> 0 | X41: 0 | Y41: 0 | Z41: 0 | AA41: 0 | AD41: 0 | AE41: 0 | AF41: 0 | AG41: 0
A42: =Einstellungen!$L$25 ->  | B42: =Einstellungen!$M$25 ->  | C42: =Einstellungen!$N$25 -> Fr | D42: =Einstellungen!$O$25 -> 9:00 - 12:00 Uhr | G42: =IF(AND(E15>0,I42<>"",U42<>"f"),F15,0) -> 1 | H42: =IF(AND(I42<>"",U42<>"f"),1,0) -> 1 | I42: 2026-01-30 | J42: Fr | O42: 0 | P42: 0 | V42: =IF(OR(U42="U",U42="k",U42="B"),$C$15,IF(S42>P42,O42-1-R42,O42-R42)) -> 0 | W42: =IF(OR(U42="U",U42="k",U42="B"),$D$15,IF(S42>P42,P42+60-S42,P42-S42)) -> 0 | X42: 0 | Y42: 0 | Z42: 0 | AA42: 0 | AD42: 0 | AE42: 0 | AF42: 0 | AG42: 0
A43: =Einstellungen!$L$26 -> Gleitzeit: | B43: =Einstellungen!$M$26 -> frühester Beginn | F43: =Einstellungen!$P$26 -> 6:00 Uhr | I43: 2026-01-31 | J43: Sa | O43: 0 | P43: 0 | T43: nur dienstl. Sonderfälle!* | V43: =IF(S43>P43,O43-1-R43,O43-R43) -> 0 | W43: =IF(S43>P43,P43+60-S43,P43-S43) -> 0 | X43: 0 | Y43: 0 | Z43: 0 | AA43: 0 | AD43: 0 | AE43: 0 | AF43: 0 | AG43: 0
A44: =Einstellungen!$L$27 ->  | B44: =Einstellungen!$M$27 -> spätestes Ende | F44: =Einstellungen!$P$27 -> 21:00 Uhr | J44: So | O44: 0 | P44: 0 | T44: nur dienstl. Sonderfälle!* | V44: =IF(S44>P44,O44-1-R44,O44-R44) -> 0 | W44: =IF(S44>P44,P44+60-S44,P44-S44) -> 0 | X44: 0 | Y44: 0 | Z44: 0 | AA44: 0 | AD44: 0 | AE44: 0 | AF44: 0 | AG44: 0
A45: =Einstellungen!$L$29 -> Mittagspause zw. | D45: =Einstellungen!$O$29 -> 11:15 - 14:00 Uhr | V45: =INT((60*SUM(V38:V44)+SUM(W38:W44)-W45)/60) -> 0 | W45: =INT(60*SUM(V38:V44)+SUM(W38:W44)-60*INT((60*SUM(V38:V44)+SUM(W38:W44))/60)) -> 0 | X45: =INT((60*SUM(X38:X44)+SUM(Y38:Y44)-Y45)/60) -> 0 | Y45: =INT(60*SUM(X38:X44)+SUM(Y38:Y44)-60*INT((60*SUM(X38:X44)+SUM(Y38:Y44))/60)) -> 0 | Z45: =INT((60*SUM(Z38:Z44)+SUM(AA38:AA44)-AA45)/60) -> 0 | AA45: =INT(60*SUM(Z38:Z44)+SUM(AA38:AA44)-60*INT((60*SUM(Z38:Z44)+SUM(AA38:AA44))/60)) -> 0 | AB45: =INT((60*SUM(AB38:AB44)+SUM(AC38:AC44)-AC45)/60) -> 0 | AC45: =INT(60*SUM(AB38:AB44)+SUM(AC38:AC44)-60*INT((60*SUM(AB38:AB44)+SUM(AC38:AC44))/60)) -> 0 | AD45: =INT((60*SUM(AD38:AD44)+SUM(AE38:AE44)-AE45)/60) -> 0 | AE45: =INT(60*SUM(AD38:AD44)+SUM(AE38:AE44)-60*INT((60*SUM(AD38:AD44)+SUM(AE38:AE44))/60)) -> 0 | AF45: =INT((60*SUM(AF38:AF44)+SUM(AG38:AG44)-AG45)/60) -> 0 | AG45: =INT(60*SUM(AF38:AF44)+SUM(AG38:AG44)-60*INT((60*SUM(AF38:AF44)+SUM(AG38:AG44))/60)) -> 0 | AH45: =INT((60*SUM(AH38:AH44)+SUM(AI38:AI44)-AI45)/60) -> 0 | AI45: =INT(60*SUM(AH38:AH44)+SUM(AI38:AI44)-60*INT((60*SUM(AH38:AH44)+SUM(AI38:AI44))/60)) -> 0 | AK45: =INT((60*SUM(AK38:AK44)+SUM(AL38:AL44)-AL45)/60) -> 0 | AL45: =INT(60*SUM(AK38:AK44)+SUM(AL38:AL44)-60*INT((60*SUM(AK38:AK44)+SUM(AL38:AL44))/60)) -> 0 | AN45: =INT((60*SUM(AN38:AN44)+SUM(AO38:AO44)-AO45)/60) -> 0 | AO45: =INT(60*SUM(AN38:AN44)+SUM(AO38:AO44)-60*INT((60*SUM(AN38:AN44)+SUM(AO38:AO44))/60)) -> 0 | AQ45: =INT((60*SUM(AQ38:AQ44)+SUM(AR38:AR44)-AR45)/60) -> 0 | AR45: =INT(60*SUM(AQ38:AQ44)+SUM(AR38:AR44)-60*INT((60*SUM(AQ38:AQ44)+SUM(AR38:AR44))/60)) -> 0 | AS45: =INT((60*SUM(AS38:AS44)+SUM(AT38:AT44)-AT45)/60) -> 0 | AT45: =INT(60*SUM(AS38:AS44)+SUM(AT38:AT44)-60*INT((60*SUM(AS38:AS44)+SUM(AT38:AT44))/60)) -> 0 | AU45: =INT((60*SUM(AU38:AU44)+SUM(AV38:AV44)-AV45)/60) -> 0 | AV45: =INT(60*SUM(AU38:AU44)+SUM(AV38:AV44)-60*INT((60*SUM(AU38:AU44)+SUM(AV38:AV44))/60)) -> 0 | AW45: =INT((60*SUM(AW38:AW44)+SUM(AX38:AX44)-AX45)/60) -> 0 | AX45: =INT(60*SUM(AW38:AW44)+SUM(AX38:AX44)-60*INT((60*SUM(AW38:AW44)+SUM(AX38:AX44))/60)) -> 0 | AY45: =INT((60*SUM(AY38:AY44)+SUM(AZ38:AZ44)-AZ45)/60) -> 0 | AZ45: =INT(60*SUM(AY38:AY44)+SUM(AZ38:AZ44)-60*INT((60*SUM(AY38:AY44)+SUM(AZ38:AZ44))/60)) -> 0 | BA45: =INT((60*SUM(BA38:BA44)+SUM(BB38:BB44)-BB45)/60) -> 0 | BB45: =INT(60*SUM(BA38:BA44)+SUM(BB38:BB44)-60*INT((60*SUM(BA38:BA44)+SUM(BB38:BB44))/60)) -> 0 | BC45: =INT((60*SUM(BC38:BC44)+SUM(BD38:BD44)-BD45)/60) -> 0 | BD45: =INT(60*SUM(BC38:BC44)+SUM(BD38:BD44)-60*INT((60*SUM(BC38:BC44)+SUM(BD38:BD44))/60)) -> 0 | BE45: =INT((60*SUM(BE38:BE44)+SUM(BF38:BF44)-BF45)/60) -> 0 | BF45: =INT(60*SUM(BE38:BE44)+SUM(BF38:BF44)-60*INT((60*SUM(BE38:BE44)+SUM(BF38:BF44))/60)) -> 0 | BG45: =INT((60*SUM(BG38:BG44)+SUM(BH38:BH44)-BH45)/60) -> 0 | BH45: =INT(60*SUM(BG38:BG44)+SUM(BH38:BH44)-60*INT((60*SUM(BG38:BG44)+SUM(BH38:BH44))/60)) -> 0
A47: =Einstellungen!$L$30 -> ab 6 Std. Arbeitszeit: Dauer min. | F47: =Einstellungen!$Q$30 -> 30 Min | G47: =IF(AND(E11>0,I47<>"",U47<>"f"),F11,0) -> 0 | H47: =IF(AND(I47<>"",U47<>"f"),1,0) -> 0 | I47: =IF(I44<>"",IF(MONTH(I44)=MONTH(I44+1),I44+1,""),"") ->  | J47: Mo | O47: =HOUR(N47-K47-(M47-L47)) -> 0 | P47: =MINUTE(N47-K47-(M47-L47)) -> 0 | V47: =IF(OR(U47="U",U47="k",U47="B"),$C$11,IF(S47>P47,O47-1-R47,O47-R47)) -> 0 | W47: =IF(OR(U47="U",U47="k",U47="B"),$D$11,IF(S47>P47,P47+60-S47,P47-S47)) -> 0 | X47: =IF(OR(U47="U",U47="K",U47="B"),0,V47) -> 0 | Y47: =IF(OR(U47="U",U47="K",U47="B"),0,W47) -> 0 | Z47: =INT(((SUM(AB47,AH47,AK47,AN47,AQ47,AS47,AU47,AW47,AY47,BA47,BC47,BE47,BG47)*100)+(SUM(AC47,AI47,AL47,AO47,AR47,AT47,AV47,AX47,AZ47,BB47,BD47,BF47,BH47)/60*100))/100) -> 0 | AA47: =MOD(((SUM(AC47,AI47,AL47,AO47,AR47,AT47,AV47,AX47,AZ47,BB47,BD47,BF47,BH47)*100)+(SUM(AC47,AI47,AL47,AO47,AR47,AT47,AV47,AX47,AZ47,BB47,BD47,BF47,BH47)/60*100))/100,1)*60 -> 0 | AD47: =INT(((SUM(AH47,AK47,AN47)*100)+SUM(AI47,AL47,AO47)/60*100)/100) -> 0 | AE47: =MOD(((SUM(AI47,AL47,AO47)*100)+(SUM(AI47,AL47,AO47)/60*100))/100,1)*60 -> 0 | AF47: =INT(((SUM(AQ47+AS47+AU47+AW47+AY47+BA47+BC47+BE47+BG47)*100)+SUM(AR47+AT47+AV47+AX47+AZ47+BB47+BD47+BF47+BH47)/60*100)/100) -> 0 | AG47: =MOD(((SUM(AR47+AT47+AV47+AX47+AZ47+BB47+BD47+BF47+BH47)*100)+(SUM(AR47+AT47+AV47+AX47+AZ47+BB47+BD47+BF47+BH47)/60*100))/100,1)*60 -> 0
A48: =Einstellungen!$L$31 -> ab 9 Std. (exklusiv Beamte) min. | F48: =Einstellungen!$Q$31 -> 45 Min | G48: =IF(AND(E12>0,I48<>"",U48<>"f"),F12,0) -> 0 | H48: =IF(AND(I48<>"",U48<>"f"),1,0) -> 0 | I48: =IF(I47<>"",IF(MONTH(I47)=MONTH(I47+1),I47+1,""),"") ->  | J48: Di | O48: 0 | P48: 0 | V48: =IF(OR(U48="U",U48="k",U48="B"),$C$12,IF(S48>P48,O48-1-R48,O48-R48)) -> 0 | W48: =IF(OR(U48="U",U48="k",U48="B"),$D$12,IF(S48>P48,P48+60-S48,P48-S48)) -> 0 | X48: 0 | Y48: 0 | Z48: 0 | AA48: 0 | AD48: 0 | AE48: 0 | AF48: 0 | AG48: 0
A49: =Einstellungen!$L$32 ->  | D49: =Einstellungen!$O$32 -> max. | F49: =Einstellungen!$Q$32 -> 120 Min | G49: =IF(AND(E13>0,I49<>"",U49<>"f"),F13,0) -> 0 | H49: =IF(AND(I49<>"",U49<>"f"),1,0) -> 0 | I49: =IF(I48<>"",IF(MONTH(I48)=MONTH(I48+1),I48+1,""),"") ->  | J49: Mi | O49: 0 | P49: 0 | V49: =IF(OR(U49="U",U49="k",U49="B"),$C$13,IF(S49>P49,O49-1-R49,O49-R49)) -> 0 | W49: =IF(OR(U49="U",U49="k",U49="B"),$D$13,IF(S49>P49,P49+60-S49,P49-S49)) -> 0 | X49: 0 | Y49: 0 | Z49: 0 | AA49: 0 | AD49: 0 | AE49: 0 | AF49: 0 | AG49: 0
A50: =Einstellungen!$L$33 -> tägliche Arbeitszeit | F50: =Einstellungen!$Q$33 -> 10 Std | G50: =IF(AND(E14>0,I50<>"",U50<>"f"),F14,0) -> 0 | H50: =IF(AND(I50<>"",U50<>"f"),1,0) -> 0 | J50: Do | O50: 0 | P50: 0 | V50: =IF(OR(U50="U",U50="k",U50="B"),$C$14,IF(S50>P50,O50-1-R50,O50-R50)) -> 0 | W50: =IF(OR(U50="U",U50="k",U50="B"),$D$14,IF(S50>P50,P50+60-S50,P50-S50)) -> 0 | X50: 0 | Y50: 0 | Z50: 0 | AA50: 0 | AD50: 0 | AE50: 0 | AF50: 0 | AG50: 0
A51: =Einstellungen!$L$34 -> *) beachte § 5 der Dienstvereinbarung vom 17.04.2024 über die Arbeitszeit der Beschäftigten der Universität Hohenheim | G51: =IF(AND(E15>0,I51<>"",U51<>"f"),F15,0) -> 0 | H51: =IF(AND(I51<>"",U51<>"f"),1,0) -> 0 | J51: Fr | O51: 0 | P51: 0 | V51: =IF(OR(U51="U",U51="k",U51="B"),$C$15,IF(S51>P51,O51-1-R51,O51-R51)) -> 0 | W51: =IF(OR(U51="U",U51="k",U51="B"),$D$15,IF(S51>P51,P51+60-S51,P51-S51)) -> 0 | X51: 0 | Y51: 0 | Z51: 0 | AA51: 0 | AD51: 0 | AE51: 0 | AF51: 0 | AG51: 0
J52: Sa | O52: 0 | P52: 0 | T52: nur dienstl. Sonderfälle!* | V52: =IF(S52>P52,O52-1-R52,O52-R52) -> 0 | W52: =IF(S52>P52,P52+60-S52,P52-S52) -> 0 | X52: 0 | Y52: 0 | Z52: 0 | AA52: 0 | AD52: 0 | AE52: 0 | AF52: 0 | AG52: 0
J53: So | O53: 0 | P53: 0 | T53: nur dienstl. Sonderfälle!* | V53: =IF(S53>P53,O53-1-R53,O53-R53) -> 0 | W53: =IF(S53>P53,P53+60-S53,P53-S53) -> 0 | X53: 0 | Y53: 0 | Z53: 0 | AA53: 0 | AD53: 0 | AE53: 0 | AF53: 0 | AG53: 0
V54: =INT((60*SUM(V47:V53)+SUM(W47:W53)-W54)/60) -> 0 | W54: =INT(60*SUM(V47:V53)+SUM(W47:W53)-60*INT((60*SUM(V47:V53)+SUM(W47:W53))/60)) -> 0 | X54: =INT((60*SUM(X47:X53)+SUM(Y47:Y53)-Y54)/60) -> 0 | Y54: =INT(60*SUM(X47:X53)+SUM(Y47:Y53)-60*INT((60*SUM(X47:X53)+SUM(Y47:Y53))/60)) -> 0 | Z54: =INT((60*SUM(Z47:Z53)+SUM(AA47:AA53)-AA54)/60) -> 0 | AA54: =INT(60*SUM(Z47:Z53)+SUM(AA47:AA53)-60*INT((60*SUM(Z47:Z53)+SUM(AA47:AA53))/60)) -> 0 | AB54: =INT((60*SUM(AB47:AB53)+SUM(AC47:AC53)-AC54)/60) -> 0 | AC54: =INT(60*SUM(AB47:AB53)+SUM(AC47:AC53)-60*INT((60*SUM(AB47:AB53)+SUM(AC47:AC53))/60)) -> 0 | AD54: =INT((60*SUM(AD47:AD53)+SUM(AE47:AE53)-AE54)/60) -> 0 | AE54: =INT(60*SUM(AD47:AD53)+SUM(AE47:AE53)-60*INT((60*SUM(AD47:AD53)+SUM(AE47:AE53))/60)) -> 0 | AF54: =INT((60*SUM(AF47:AF53)+SUM(AG47:AG53)-AG54)/60) -> 0 | AG54: =INT(60*SUM(AF47:AF53)+SUM(AG47:AG53)-60*INT((60*SUM(AF47:AF53)+SUM(AG47:AG53))/60)) -> 0 | AH54: =INT((60*SUM(AH47:AH53)+SUM(AI47:AI53)-AI54)/60) -> 0 | AI54: =INT(60*SUM(AH47:AH53)+SUM(AI47:AI53)-60*INT((60*SUM(AH47:AH53)+SUM(AI47:AI53))/60)) -> 0 | AK54: =INT((60*SUM(AK47:AK53)+SUM(AL47:AL53)-AL54)/60) -> 0 | AL54: =INT(60*SUM(AK47:AK53)+SUM(AL47:AL53)-60*INT((60*SUM(AK47:AK53)+SUM(AL47:AL53))/60)) -> 0 | AN54: =INT((60*SUM(AN47:AN53)+SUM(AO47:AO53)-AO54)/60) -> 0 | AO54: =INT(60*SUM(AN47:AN53)+SUM(AO47:AO53)-60*INT((60*SUM(AN47:AN53)+SUM(AO47:AO53))/60)) -> 0 | AQ54: =INT((60*SUM(AQ47:AQ53)+SUM(AR47:AR53)-AR54)/60) -> 0 | AR54: =INT(60*SUM(AQ47:AQ53)+SUM(AR47:AR53)-60*INT((60*SUM(AQ47:AQ53)+SUM(AR47:AR53))/60)) -> 0 | AS54: =INT((60*SUM(AS47:AS53)+SUM(AT47:AT53)-AT54)/60) -> 0 | AT54: =INT(60*SUM(AS47:AS53)+SUM(AT47:AT53)-60*INT((60*SUM(AS47:AS53)+SUM(AT47:AT53))/60)) -> 0 | AU54: =INT((60*SUM(AU47:AU53)+SUM(AV47:AV53)-AV54)/60) -> 0 | AV54: =INT(60*SUM(AU47:AU53)+SUM(AV47:AV53)-60*INT((60*SUM(AU47:AU53)+SUM(AV47:AV53))/60)) -> 0 | AW54: =INT((60*SUM(AW47:AW53)+SUM(AX47:AX53)-AX54)/60) -> 0 | AX54: =INT(60*SUM(AW47:AW53)+SUM(AX47:AX53)-60*INT((60*SUM(AW47:AW53)+SUM(AX47:AX53))/60)) -> 0 | AY54: =INT((60*SUM(AY47:AY53)+SUM(AZ47:AZ53)-AZ54)/60) -> 0 | AZ54: =INT(60*SUM(AY47:AY53)+SUM(AZ47:AZ53)-60*INT((60*SUM(AY47:AY53)+SUM(AZ47:AZ53))/60)) -> 0 | BA54: =INT((60*SUM(BA47:BA53)+SUM(BB47:BB53)-BB54)/60) -> 0 | BB54: =INT(60*SUM(BA47:BA53)+SUM(BB47:BB53)-60*INT((60*SUM(BA47:BA53)+SUM(BB47:BB53))/60)) -> 0 | BC54: =INT((60*SUM(BC47:BC53)+SUM(BD47:BD53)-BD54)/60) -> 0 | BD54: =INT(60*SUM(BC47:BC53)+SUM(BD47:BD53)-60*INT((60*SUM(BC47:BC53)+SUM(BD47:BD53))/60)) -> 0 | BE54: =INT((60*SUM(BE47:BE53)+SUM(BF47:BF53)-BF54)/60) -> 0 | BF54: =INT(60*SUM(BE47:BE53)+SUM(BF47:BF53)-60*INT((60*SUM(BE47:BE53)+SUM(BF47:BF53))/60)) -> 0 | BG54: =INT((60*SUM(BG47:BG53)+SUM(BH47:BH53)-BH54)/60) -> 0 | BH54: =INT(60*SUM(BG47:BG53)+SUM(BH47:BH53)-60*INT((60*SUM(BG47:BG53)+SUM(BH47:BH53))/60)) -> 0
G55: =SUM(G5:G53) -> 20 | H55: =SUM(H5:H53) -> 20 | I55: Januar | P55: =Einstellungen!A1 -> 2026 | X55: Summe: | Z55: Summe: | AB55: Summe: | AD55: Summe: | AF55: Summe: | AH55: =INT(((SUM(AH9,AH18,AH27,AH36,AH45,AH54)*100)+(SUM(AI9,AI18,AI27,AI36,AI45,AI54)/60*100))/100) -> 0 | AI55: =MOD(((SUM(AH9,AH18,AH27,AH36,AH45,AH54)*100)+(SUM(AI9,AI18,AI27,AI36,AI45,AI54)/60*100))/100,1)*60 -> 0 | AK55: =INT(((SUM(AK9,AK18,AK27,AK36,AK45,AK54)*100)+(SUM(AL9,AL18,AL27,AL36,AL45,AL54)/60*100))/100) -> 0 | AL55: =MOD(((SUM(AK9,AK18,AK27,AK36,AK45,AK54)*100)+(SUM(AL9,AL18,AL27,AL36,AL45,AL54)/60*100))/100,1)*60 -> 0 | AN55: =INT(((SUM(AN9,AN18,AN27,AN36,AN45,AN54)*100)+(SUM(AO9,AO18,AO27,AO36,AO45,AO54)/60*100))/100) -> 0 | AO55: =MOD(((SUM(AN9,AN18,AN27,AN36,AN45,AN54)*100)+(SUM(AO9,AO18,AO27,AO36,AO45,AO54)/60*100))/100,1)*60 -> 0 | AQ55: =INT(((SUM(AQ9,AQ18,AQ27,AQ36,AQ45,AQ54)*100)+(SUM(AR9,AR18,AR27,AR36,AR45,AR54)/60*100))/100) -> 0 | AR55: =MOD(((SUM(AQ9,AQ18,AQ27,AQ36,AQ45,AQ54)*100)+(SUM(AR9,AR18,AR27,AR36,AR45,AR54)/60*100))/100,1)*60 -> 0 | AS55: =INT(((SUM(AS9,AS18,AS27,AS36,AS45,AS54)*100)+(SUM(AT9,AT18,AT27,AT36,AT45,AT54)/60*100))/100) -> 0 | AT55: =MOD(((SUM(AS9,AS18,AS27,AS36,AS45,AS54)*100)+(SUM(AT9,AT18,AT27,AT36,AT45,AT54)/60*100))/100,1)*60 -> 0 | AU55: =INT(((SUM(AU9,AU18,AU27,AU36,AU45,AU54)*100)+(SUM(AV9,AV18,AV27,AV36,AV45,AV54)/60*100))/100) -> 0 | AV55: =MOD(((SUM(AU9,AU18,AU27,AU36,AU45,AU54)*100)+(SUM(AV9,AV18,AV27,AV36,AV45,AV54)/60*100))/100,1)*60 -> 0 | AW55: =INT(((SUM(AW9,AW18,AW27,AW36,AW45,AW54)*100)+(SUM(AX9,AX18,AX27,AX36,AX45,AX54)/60*100))/100) -> 0 | AX55: =MOD(((SUM(AW9,AW18,AW27,AW36,AW45,AW54)*100)+(SUM(AX9,AX18,AX27,AX36,AX45,AX54)/60*100))/100,1)*60 -> 0 | AY55: =INT(((SUM(AY9,AY18,AY27,AY36,AY45,AY54)*100)+(SUM(AZ9,AZ18,AZ27,AZ36,AZ45,AZ54)/60*100))/100) -> 0 | AZ55: =MOD(((SUM(AY9,AY18,AY27,AY36,AY45,AY54)*100)+(SUM(AZ9,AZ18,AZ27,AZ36,AZ45,AZ54)/60*100))/100,1)*60 -> 0 | BA55: =INT(((SUM(BA9,BA18,BA27,BA36,BA45,BA54)*100)+(SUM(BB9,BB18,BB27,BB36,BB45,BB54)/60*100))/100) -> 0 | BB55: =MOD(((SUM(BA9,BA18,BA27,BA36,BA45,BA54)*100)+(SUM(BB9,BB18,BB27,BB36,BB45,BB54)/60*100))/100,1)*60 -> 0 | BC55: =INT(((SUM(BC9,BC18,BC27,BC36,BC45,BC54)*100)+(SUM(BD9,BD18,BD27,BD36,BD45,BD54)/60*100))/100) -> 0 | BD55: =MOD(((SUM(BC9,BC18,BC27,BC36,BC45,BC54)*100)+(SUM(BD9,BD18,BD27,BD36,BD45,BD54)/60*100))/100,1)*60 -> 0 | BE55: =INT(((SUM(BE9,BE18,BE27,BE36,BE45,BE54)*100)+(SUM(BF9,BF18,BF27,BF36,BF45,BF54)/60*100))/100) -> 0 | BF55: =MOD(((SUM(BE9,BE18,BE27,BE36,BE45,BE54)*100)+(SUM(BF9,BF18,BF27,BF36,BF45,BF54)/60*100))/100,1)*60 -> 0 | BG55: =INT(((SUM(BG9,BG18,BG27,BG36,BG45,BG54)*100)+(SUM(BH9,BH18,BH27,BH36,BH45,BH54)/60*100))/100) -> 0 | BH55: =MOD(((SUM(BG9,BG18,BG27,BG36,BG45,BG54)*100)+(SUM(BH9,BH18,BH27,BH36,BH45,BH54)/60*100))/100,1)*60 -> 0
I56: Abrechnungsmonat | P56: Jahr | T56: Monatsarbeitszeit IST | V56: =INT((60*SUM(V54,V45,V36,V27,V18,V9)+SUM(W54,W45,W36,W27,W18,W9)-W56)/60) -> 0 | W56: =INT(60*SUM(V54,V45,V36,V27,V18,V9)+SUM(W54,W45,W36,W27,W18,W9)-60*INT((60*SUM(V54,V45,V36,V27,V18,V9)+SUM(W54,W45,W36,W27,W18,W9))/60)) -> 0 | X56: =INT((60*SUM(X54,X45,X36,X27,X18,X9)+SUM(Y54,Y45,Y36,Y27,Y18,Y9)-Y56)/60) -> 0 | Y56: =INT(60*SUM(X54,X45,X36,X27,X18,X9)+SUM(Y54,Y45,Y36,Y27,Y18,Y9)-60*INT((60*SUM(X54,X45,X36,X27,X18,X9)+SUM(Y54,Y45,Y36,Y27,Y18,Y9))/60)) -> 0 | Z56: =INT((60*SUM(Z54,Z45,Z36,Z27,Z18,Z9)+SUM(AA54,AA45,AA36,AA27,AA18,AA9)-AA56)/60) -> 0 | AA56: =INT(60*SUM(Z54,Z45,Z36,Z27,Z18,Z9)+SUM(AA54,AA45,AA36,AA27,AA18,AA9)-60*INT((60*SUM(Z54,Z45,Z36,Z27,Z18,Z9)+SUM(AA54,AA45,AA36,AA27,AA18,AA9))/60)) -> 0 | AB56: =INT((60*SUM(AB54,AB45,AB36,AB27,AB18,AB9)+SUM(AC54,AC45,AC36,AC27,AC18,AC9)-AC56)/60) -> 0 | AC56: =INT(60*SUM(AB54,AB45,AB36,AB27,AB18,AB9)+SUM(AC54,AC45,AC36,AC27,AC18,AC9)-60*INT((60*SUM(AB54,AB45,AB36,AB27,AB18,AB9)+SUM(AC54,AC45,AC36,AC27,AC18,AC9))/60)) -> 0 | AD56: =INT((60*SUM(AD54,AD45,AD36,AD27,AD18,AD9)+SUM(AE54,AE45,AE36,AE27,AE18,AE9)-AE56)/60) -> 0 | AE56: =INT(60*SUM(AD54,AD45,AD36,AD27,AD18,AD9)+SUM(AE54,AE45,AE36,AE27,AE18,AE9)-60*INT((60*SUM(AD54,AD45,AD36,AD27,AD18,AD9)+SUM(AE54,AE45,AE36,AE27,AE18,AE9))/60)) -> 0 | AF56: =INT((60*SUM(AF54,AF45,AF36,AF27,AF18,AF9)+SUM(AG54,AG45,AG36,AG27,AG18,AG9)-AG56)/60) -> 0 | AG56: =INT(60*SUM(AF54,AF45,AF36,AF27,AF18,AF9)+SUM(AG54,AG45,AG36,AG27,AG18,AG9)-60*INT((60*SUM(AF54,AF45,AF36,AF27,AF18,AF9)+SUM(AG54,AG45,AG36,AG27,AG18,AG9))/60)) -> 0
I57: =Einstellungen!K23 -> Franziska von Hohenheim | T57: Übertrag aus Vormonat (+/-) | U57: =IF(V57*W57<0,"!","") ->  | V57: 0 | W57: 0
I58: Name, Vorname | Q58: Datum | T58: Summe | V58: =ROUND(SIGN(V56+V57+(W56+W57)/60)*ROUNDDOWN(ABS(V56+V57+(W56+W57)/60),0),0) -> 0 | W58: =ROUND(SIGN(V56+V57+(W56+W57)/60)*(ABS(V56+V57+(W56+W57)/60)-ABS(V58))*60,0) -> 0
I59: =Einstellungen!$K$25 -> 630 | K59: =Einstellungen!K24 -> KIM | T59: Monatsarbeitszeit SOLL | V59: =SUM(Einstellungen!B3) -> 158 | W59: =SUM(Einstellungen!C3) -> 0
I60: Einr.-Nr. | K60: Abt. / FG | Q60: Name Leiter/in | T60: Zeitübertrag auf Folgemonat | U60: =IF(V60*W60<0,"!","") ->  | V60: =ROUND(SIGN(V58-V59+(W58-W59)/60)*ROUNDDOWN(ABS(V58-V59+(W58-W59)/60),0),0) -> -158 | W60: =ROUND(SIGN(V58-V59+(W58-W59)/60)*(ABS(V58-V59+(W58-W59)/60)-ABS(V60))*60,0) -> 0
T62: Summe Urlaubstage | V62: =SUMPRODUCT((U5:U6="U")*(E14:E15>0))+SUMPRODUCT((U11:U15="U")*(E11:E15>0))+SUMPRODUCT((U20:U24="U")*(E11:E15>0))+SUMPRODUCT((U29:U33="U")*(E11:E15>0))+SUMPRODUCT((U38:U42="U")*(E11:E15>0))+SUMPRODUCT((U47:U51="U")*(E11:E15>0)) -> 0
I63: Datum | K63: Unterschrift Mitarbeiter/in | Q63: Unterschrift Leiter/in | T63: alter / neuer Übertrag | V63: =IF(SUM(Einstellungen!K27:K30)>0,SUM(Einstellungen!K27:K30),"--- ") -> 30 | W63: =IF(SUM(Einstellungen!K27:K30)>0,V63-V62,"--- ") -> 30

Sheet Febr (hidden)
A1: =Einstellungen!A27 -> Universität Hohenheim KIM © 2026 | I1: Datum | K1: Arbeits- | N1: Arbeits- | O1: Arb.Zeit ohne | Q1: Sonstige Unterbrechungen | T1: Erläuterungen, Hinweise, | U1: U,K | V1: Reine Arb.- | X1: Productive | Z1: Productive | AB1: Sonstiges | AD1: Summe | AF1: Summe | AH1: =Projektdaten!D4 -> EU Projekt 1 | AK1: =Projektdaten!D6 -> EU Projekt 2 | AN1: =Projektdaten!D8 -> EU Projekt 3 | AQ1: =Projektdaten!D13 -> Projekt 1 | AS1: =Projektdaten!D15 -> Projekt 2 | AU1: =Projektdaten!D17 -> Projekt 3 | AW1: =Projektdaten!D19 -> Projekt 4 | AY1: =Projektdaten!D21 -> Projekt 5 | BA1: =Projektdaten!D23 -> Projekt 6 | BC1: =Projektdaten!D25 -> Projekt 7 | BE1: =Projektdaten!D27 -> Projekt 8 | BG1: =Projektdaten!D29 -> Projekt 9
A2: Arbeitszeitblatt | D2: =Einstellungen!A28 -> Version 5.12 | I2: Tag | J2: Wo- | K2: beginn | L2: Mittagspause | N2: ende | O2: Mittagspause | Q2: von - bis | R2: Gesamtdauer | T2: Vermerke, z.B. Dienstreise | U2: F,X | V2: Zeit | W2: IST | X2: Hours | Z2: Hours | AD2: EU- | AF2: andere
J3: tag | L3: von | M3: bis | O3: Std. | P3: Min. | R3: Std. | S3: Min. | T3: - non eligible - | U3: A,B | V3: Std. | W3: Min. | X3: i.S.d. EU | Z3: verteilt | AD3: Projekte | AF3: Projekte
X4: Std. | Y4: Min. | Z4: Std. | AA4: Min. | AB4: Std. | AC4: Min. | AD4: Std. | AE4: Min. | AF4: Std. | AG4: Min. | AH4: Std. | AI4: Min. | AJ4: Geleistete Arbeitspakete nach Annex 1 | AK4: Std. | AL4: Min. | AM4: Geleistete Arbeitspakete nach Annex 1 | AN4: Std. | AO4: Min. | AP4: Geleistete Arbeitspakete nach Annex 1 | AQ4: Std. | AR4: Min. | AS4: Std. | AT4: Min. | AU4: Std. | AV4: Min. | AW4: Std. | AX4: Min. | AY4: Std. | AZ4: Min. | BA4: Std. | BB4: Min. | BC4: Std. | BD4: Min. | BE4: Std. | BF4: Min. | BG4: Std. | BH4: Min.
F5: U | G5: =IF(AND(E14>0,I5<>"",U5<>"f"),1,0) -> 0 | H5: =IF(AND(I5<>"",U5<>"f"),1,0) -> 0 | I5: =IF(CHOOSE(WEEKDAY(Einstellungen!$A$4,2),"Mo","Di","Mi","Do","Fr","Sa","So")=J5,Einstellungen!$A$4,"") ->  | J5: Do | O5: =HOUR(N5-K5-(M5-L5)) -> 0 | P5: =MINUTE(N5-K5-(M5-L5)) -> 0 | V5: =IF(OR(U5="U",U5="k",U5="B"),$C$14,IF(S5>P5,O5-1-R5,O5-R5)) -> 0 | W5: =IF(OR(U5="U",U5="k",U5="B"),$D$14,IF(S5>P5,P5+60-S5,P5-S5)) -> 0 | X5: =IF(OR(U5="U",U5="K",U5="B"),0,V5) -> 0 | Y5: =IF(OR(U5="U",U5="K",U5="B"),0,W5) -> 0 | Z5: =INT(((SUM(AB5,AH5,AK5,AN5,AQ5,AS5,AU5,AW5,AY5,BA5,BC5,BE5,BG5)*100)+(SUM(AC5,AI5,AL5,AO5,AR5,AT5,AV5,AX5,AZ5,BB5,BD5,BF5,BH5)/60*100))/100) -> 0 | AA5: =MOD(((SUM(AC5,AI5,AL5,AO5,AR5,AT5,AV5,AX5,AZ5,BB5,BD5,BF5,BH5)*100)+(SUM(AC5,AI5,AL5,AO5,AR5,AT5,AV5,AX5,AZ5,BB5,BD5,BF5,BH5)/60*100))/100,1)*60 -> 0 | AD5: =INT(((SUM(AH5,AK5,AN5)*100)+SUM(AI5,AL5,AO5)/60*100)/100) -> 0 | AE5: =MOD(((SUM(AI5,AL5,AO5)*100)+(SUM(AI5,AL5,AO5)/60*100))/100,1)*60 -> 0 | AF5: =INT(((SUM(AQ5+AS5+AU5+AW5+AY5+BA5+BC5+BE5+BG5)*100)+SUM(AR5+AT5+AV5+AX5+AZ5+BB5+BD5+BF5+BH5)/60*100)/100) -> 0 | AG5: =MOD(((SUM(AR5+AT5+AV5+AX5+AZ5+BB5+BD5+BF5+BH5)*100)+(SUM(AR5+AT5+AV5+AX5+AZ5+BB5+BD5+BF5+BH5)/60*100))/100,1)*60 -> 0
F6: K | G6: =IF(AND(E15>0,I6<>"",U6<>"f"),F14,0) -> 0 | H6: =IF(AND(I6<>"",U6<>"f"),1,0) -> 0 | I6: =IF(I5<>"",I5+1,IF(CHOOSE(WEEKDAY(Einstellungen!$A$4,2),"Mo","Di","Mi","Do","Fr","Sa","So")=J6,Einstellungen!$A$4,"")) ->  | J6: Fr | O6: =HOUR(N6-K6-(M6-L6)) -> 0 | P6: =MINUTE(N6-K6-(M6-L6)) -> 0 | V6: =IF(OR(U6="U",U6="k",U6="B"),$C$15,IF(S6>P6,O6-1-R6,O6-R6)) -> 0 | W6: =IF(OR(U6="U",U6="k",U6="B"),$D$15,IF(S6>P6,P6+60-S6,P6-S6)) -> 0 | X6: =IF(OR(U6="U",U6="K",U6="B"),0,V6) -> 0 | Y6: =IF(OR(U6="U",U6="K",U6="B"),0,W6) -> 0 | Z6: =INT(((SUM(AB6,AH6,AK6,AN6,AQ6,AS6,AU6,AW6,AY6,BA6,BC6,BE6,BG6)*100)+(SUM(AC6,AI6,AL6,AO6,AR6,AT6,AV6,AX6,AZ6,BB6,BD6,BF6,BH6)/60*100))/100) -> 0 | AA6: =MOD(((SUM(AC6,AI6,AL6,AO6,AR6,AT6,AV6,AX6,AZ6,BB6,BD6,BF6,BH6)*100)+(SUM(AC6,AI6,AL6,AO6,AR6,AT6,AV6,AX6,AZ6,BB6,BD6,BF6,BH6)/60*100))/100,1)*60 -> 0 | AD6: =INT(((SUM(AH6,AK6,AN6)*100)+SUM(AI6,AL6,AO6)/60*100)/100) -> 0 | AE6: =MOD(((SUM(AI6,AL6,AO6)*100)+(SUM(AI6,AL6,AO6)/60*100))/100,1)*60 -> 0 | AF6: =INT(((SUM(AQ6+AS6+AU6+AW6+AY6+BA6+BC6+BE6+BG6)*100)+SUM(AR6+AT6+AV6+AX6+AZ6+BB6+BD6+BF6+BH6)/60*100)/100) -> 0 | AG6: =MOD(((SUM(AR6+AT6+AV6+AX6+AZ6+BB6+BD6+BF6+BH6)*100)+(SUM(AR6+AT6+AV6+AX6+AZ6+BB6+BD6+BF6+BH6)/60*100))/100,1)*60 -> 0
F7: A | G7: =IF(AND(E16>0,I7<>"",U7<>"f"),F15,0) -> 0 | I7: =IF(I6<>"",I6+1,IF(CHOOSE(WEEKDAY(Einstellungen!$A$4,2),"Mo","Di","Mi","Do","Fr","Sa","So")=J7,Einstellungen!$A$4,"")) ->  | J7: Sa | O7: =HOUR(N7-K7-(M7-L7)) -> 0 | P7: =MINUTE(N7-K7-(M7-L7)) -> 0 | T7: nur dienstl. Sonderfälle!* | V7: =IF(S7>P7,O7-1-R7,O7-R7) -> 0 | W7: =IF(S7>P7,P7+60-S7,P7-S7) -> 0 | X7: 0 | Y7: 0 | Z7: =INT(((SUM(AB7,AH7,AK7,AN7,AQ7,AS7,AU7,AW7,AY7,BA7,BC7,BE7,BG7)*100)+(SUM(AC7,AI7,AL7,AO7,AR7,AT7,AV7,AX7,AZ7,BB7,BD7,BF7,BH7)/60*100))/100) -> 0 | AA7: =MOD(((SUM(AC7,AI7,AL7,AO7,AR7,AT7,AV7,AX7,AZ7,BB7,BD7,BF7,BH7)*100)+(SUM(AC7,AI7,AL7,AO7,AR7,AT7,AV7,AX7,AZ7,BB7,BD7,BF7,BH7)/60*100))/100,1)*60 -> 0 | AD7: =INT(((SUM(AH7,AK7,AN7)*100)+SUM(AI7,AL7,AO7)/60*100)/100) -> 0 | AE7: =MOD(((SUM(AI7,AL7,AO7)*100)+(SUM(AI7,AL7,AO7)/60*100))/100,1)*60 -> 0 | AF7: =INT(((SUM(AQ7+AS7+AU7+AW7+AY7+BA7+BC7+BE7+BG7)*100)+SUM(AR7+AT7+AV7+AX7+AZ7+BB7+BD7+BF7+BH7)/60*100)/100) -> 0 | AG7: =MOD(((SUM(AR7+AT7+AV7+AX7+AZ7+BB7+BD7+BF7+BH7)*100)+(SUM(AR7+AT7+AV7+AX7+AZ7+BB7+BD7+BF7+BH7)/60*100))/100,1)*60 -> 0
A8: =IF(Einstellungen!D25>0.0005,"Bitte Werte prüfen","") ->  | F8: B | I8: =IF(I7<>"",I7+1,IF(CHOOSE(WEEKDAY(Einstellungen!$A$4,2),"Mo","Di","Mi","Do","Fr","Sa","So")=J8,Einstellungen!$A$4,"")) -> 2026-02-01 | J8: So | O8: =HOUR(N8-K8-(M8-L8)) -> 0 | P8: =MINUTE(N8-K8-(M8-L8)) -> 0 | T8: nur dienstl. Sonderfälle!* | V8: =IF(S8>P8,O8-1-R8,O8-R8) -> 0 | W8: =IF(S8>P8,P8+60-S8,P8-S8) -> 0 | X8: 0 | Y8: 0 | Z8: =INT(((SUM(AB8,AH8,AK8,AN8,AQ8,AS8,AU8,AW8,AY8,BA8,BC8,BE8,BG8)*100)+(SUM(AC8,AI8,AL8,AO8,AR8,AT8,AV8,AX8,AZ8,BB8,BD8,BF8,BH8)/60*100))/100) -> 0 | AA8: =MOD(((SUM(AC8,AI8,AL8,AO8,AR8,AT8,AV8,AX8,AZ8,BB8,BD8,BF8,BH8)*100)+(SUM(AC8,AI8,AL8,AO8,AR8,AT8,AV8,AX8,AZ8,BB8,BD8,BF8,BH8)/60*100))/100,1)*60 -> 0 | AD8: =INT(((SUM(AH8,AK8,AN8)*100)+SUM(AI8,AL8,AO8)/60*100)/100) -> 0 | AE8: =MOD(((SUM(AI8,AL8,AO8)*100)+(SUM(AI8,AL8,AO8)/60*100))/100,1)*60 -> 0 | AF8: =INT(((SUM(AQ8+AS8+AU8+AW8+AY8+BA8+BC8+BE8+BG8)*100)+SUM(AR8+AT8+AV8+AX8+AZ8+BB8+BD8+BF8+BH8)/60*100)/100) -> 0 | AG8: =MOD(((SUM(AR8+AT8+AV8+AX8+AZ8+BB8+BD8+BF8+BH8)*100)+(SUM(AR8+AT8+AV8+AX8+AZ8+BB8+BD8+BF8+BH8)/60*100))/100,1)*60 -> 0
A9: Meine tägl. Regelarbeitszeit: | F9: X | V9: =INT((60*SUM(V5:V8)+SUM(W5:W8)-W9)/60) -> 0 | W9: =INT(60*SUM(V5:V8)+SUM(W5:W8)-60*INT((60*SUM(V5:V8)+SUM(W5:W8))/60)) -> 0 | X9: =INT((60*SUM(X5:X8)+SUM(Y5:Y8)-Y9)/60) -> 0 | Y9: =INT(60*SUM(X5:X8)+SUM(Y5:Y8)-60*INT((60*SUM(X5:X8)+SUM(Y5:Y8))/60)) -> 0 | Z9: =INT((60*SUM(Z5:Z8)+SUM(AA5:AA8)-AA9)/60) -> 0 | AA9: =INT(60*SUM(Z5:Z8)+SUM(AA5:AA8)-60*INT((60*SUM(Z5:Z8)+SUM(AA5:AA8))/60)) -> 0 | AB9: =INT((60*SUM(AB5:AB8)+SUM(AC5:AC8)-AC9)/60) -> 0 | AC9: =INT(60*SUM(AB5:AB8)+SUM(AC5:AC8)-60*INT((60*SUM(AB5:AB8)+SUM(AC5:AC8))/60)) -> 0 | AD9: =INT((60*SUM(AD5:AD8)+SUM(AE5:AE8)-AE9)/60) -> 0 | AE9: =INT(60*SUM(AD5:AD8)+SUM(AE5:AE8)-60*INT((60*SUM(AD5:AD8)+SUM(AE5:AE8))/60)) -> 0 | AF9: =INT((60*SUM(AF5:AF8)+SUM(AG5:AG8)-AG9)/60) -> 0 | AG9: =INT(60*SUM(AF5:AF8)+SUM(AG5:AG8)-60*INT((60*SUM(AF5:AF8)+SUM(AG5:AG8))/60)) -> 0 | AH9: =INT((60*SUM(AH5:AH8)+SUM(AI5:AI8)-AI9)/60) -> 0 | AI9: =INT(60*SUM(AH5:AH8)+SUM(AI5:AI8)-60*INT((60*SUM(AH5:AH8)+SUM(AI5:AI8))/60)) -> 0 | AK9: =INT((60*SUM(AK5:AK8)+SUM(AL5:AL8)-AL9)/60) -> 0 | AL9: =INT(60*SUM(AK5:AK8)+SUM(AL5:AL8)-60*INT((60*SUM(AK5:AK8)+SUM(AL5:AL8))/60)) -> 0 | AN9: =INT((60*SUM(AN5:AN8)+SUM(AO5:AO8)-AO9)/60) -> 0 | AO9: =INT(60*SUM(AN5:AN8)+SUM(AO5:AO8)-60*INT((60*SUM(AN5:AN8)+SUM(AO5:AO8))/60)) -> 0 | AQ9: =INT((60*SUM(AQ5:AQ8)+SUM(AR5:AR8)-AR9)/60) -> 0 | AR9: =INT(60*SUM(AQ5:AQ8)+SUM(AR5:AR8)-60*INT((60*SUM(AQ5:AQ8)+SUM(AR5:AR8))/60)) -> 0 | AS9: =INT((60*SUM(AS5:AS8)+SUM(AT5:AT8)-AT9)/60) -> 0 | AT9: =INT(60*SUM(AS5:AS8)+SUM(AT5:AT8)-60*INT((60*SUM(AS5:AS8)+SUM(AT5:AT8))/60)) -> 0 | AU9: =INT((60*SUM(AU5:AU8)+SUM(AV5:AV8)-AV9)/60) -> 0 | AV9: =INT(60*SUM(AU5:AU8)+SUM(AV5:AV8)-60*INT((60*SUM(AU5:AU8)+SUM(AV5:AV8))/60)) -> 0 | AW9: =INT((60*SUM(AW5:AW8)+SUM(AX5:AX8)-AX9)/60) -> 0 | AX9: =INT(60*SUM(AW5:AW8)+SUM(AX5:AX8)-60*INT((60*SUM(AW5:AW8)+SUM(AX5:AX8))/60)) -> 0 | AY9: =INT((60*SUM(AY5:AY8)+SUM(AZ5:AZ8)-AZ9)/60) -> 0 | AZ9: =INT(60*SUM(AY5:AY8)+SUM(AZ5:AZ8)-60*INT((60*SUM(AY5:AY8)+SUM(AZ5:AZ8))/60)) -> 0 | BA9: =INT((60*SUM(BA5:BA8)+SUM(BB5:BB8)-BB9)/60) -> 0 | BB9: =INT(60*SUM(BA5:BA8)+SUM(BB5:BB8)-60*INT((60*SUM(BA5:BA8)+SUM(BB5:BB8))/60)) -> 0 | BC9: =INT((60*SUM(BC5:BC8)+SUM(BD5:BD8)-BD9)/60) -> 0 | BD9: =INT(60*SUM(BC5:BC8)+SUM(BD5:BD8)-60*INT((60*SUM(BC5:BC8)+SUM(BD5:BD8))/60)) -> 0 | BE9: =INT((60*SUM(BE5:BE8)+SUM(BF5:BF8)-BF9)/60) -> 0 | BF9: =INT(60*SUM(BE5:BE8)+SUM(BF5:BF8)-60*INT((60*SUM(BE5:BE8)+SUM(BF5:BF8))/60)) -> 0 | BG9: =INT((60*SUM(BG5:BG8)+SUM(BH5:BH8)-BH9)/60) -> 0 | BH9: =INT(60*SUM(BG5:BG8)+SUM(BH5:BH8)-60*INT((60*SUM(BG5:BG8)+SUM(BH5:BH8))/60)) -> 0
E10: =5-COUNTIF(E11:E15,0) -> 5 | F10: =(SUM(C11:C15)*60+SUM(D11:D15))/E10 -> 474
A11: Mo | B11: =IF(E11=0,"frei","") ->  | C11: =SUM(Einstellungen!C19) -> 7 | D11: =SUM(Einstellungen!D19) -> 54 | E11: =C11*60+D11 -> 474 | F11: =E11/$F$10 -> 1 | G11: =IF(AND(E11>0,I11<>"",U11<>"f"),F11,0) -> 1 | H11: =IF(AND(I11<>"",U11<>"f"),1,0) -> 1 | I11: =IF(I8<>"",I8+1,IF(CHOOSE(WEEKDAY(Einstellungen!$A$4,2),"Mo","Di","Mi","Do","Fr","Sa","So")=J11,Einstellungen!$A$4,"")) -> 2026-02-02 | J11: Mo | O11: =HOUR(N11-K11-(M11-L11)) -> 0 | P11: =MINUTE(N11-K11-(M11-L11)) -> 0 | V11: =IF(OR(U11="U",U11="k",U11="B"),$C$11,IF(S11>P11,O11-1-R11,O11-R11)) -> 0 | W11: =IF(OR(U11="U",U11="k",U11="B"),$D$11,IF(S11>P11,P11+60-S11,P11-S11)) -> 0 | X11: =IF(OR(U11="U",U11="K",U11="B"),0,V11) -> 0 | Y11: =IF(OR(U11="U",U11="K",U11="B"),0,W11) -> 0 | Z11: =INT(((SUM(AB11,AH11,AK11,AN11,AQ11,AS11,AU11,AW11,AY11,BA11,BC11,BE11,BG11)*100)+(SUM(AC11,AI11,AL11,AO11,AR11,AT11,AV11,AX11,AZ11,BB11,BD11,BF11,BH11)/60*100))/100) -> 0 | AA11: =MOD(((SUM(AC11,AI11,AL11,AO11,AR11,AT11,AV11,AX11,AZ11,BB11,BD11,BF11,BH11)*100)+(SUM(AC11,AI11,AL11,AO11,AR11,AT11,AV11,AX11,AZ11,BB11,BD11,BF11,BH11)/60*100))/100,1)*60 -> 0 | AD11: =INT(((SUM(AH11,AK11,AN11)*100)+SUM(AI11,AL11,AO11)/60*100)/100) -> 0 | AE11: =MOD(((SUM(AI11,AL11,AO11)*100)+(SUM(AI11,AL11,AO11)/60*100))/100,1)*60 -> 0 | AF11: =INT(((SUM(AQ11+AS11+AU11+AW11+AY11+BA11+BC11+BE11+BG11)*100)+SUM(AR11+AT11+AV11+AX11+AZ11+BB11+BD11+BF11+BH11)/60*100)/100) -> 0 | AG11: =MOD(((SUM(AR11+AT11+AV11+AX11+AZ11+BB11+BD11+BF11+BH11)*100)+(SUM(AR11+AT11+AV11+AX11+AZ11+BB11+BD11+BF11+BH11)/60*100))/100,1)*60 -> 0
A12: Di | B12: =IF(E12=0,"frei","") ->  | C12: =SUM(Einstellungen!C20) -> 7 | D12: =SUM(Einstellungen!D20) -> 54 | E12: =C12*60+D12 -> 474 | F12: =E12/$F$10 -> 1 | G12: =IF(AND(E12>0,I12<>"",U12<>"f"),F12,0) -> 1 | H12: =IF(AND(I12<>"",U12<>"f"),1,0) -> 1 | I12: =IF(I11<>"",I11+1,IF(CHOOSE(WEEKDAY(Einstellungen!$A$4,2),"Mo","Di","Mi","Do","Fr","Sa","So")=J12,Einstellungen!$A$4,"")) -> 2026-02-03 | J12: Di | O12: 0 | P12: 0 | V12: =IF(OR(U12="U",U12="k",U12="B"),$C$12,IF(S12>P12,O12-1-R12,O12-R12)) -> 0 | W12: =IF(OR(U12="U",U12="k",U12="B"),$D$12,IF(S12>P12,P12+60-S12,P12-S12)) -> 0 | X12: 0 | Y12: 0 | Z12: 0 | AA12: 0 | AD12: 0 | AE12: 0 | AF12: 0 | AG12: 0
A13: Mi | B13: =IF(E13=0,"frei","") ->  | C13: =SUM(Einstellungen!C21) -> 7 | D13: =SUM(Einstellungen!D21) -> 54 | E13: =C13*60+D13 -> 474 | F13: =E13/$F$10 -> 1 | G13: =IF(AND(E13>0,I13<>"",U13<>"f"),F13,0) -> 1 | H13: =IF(AND(I13<>"",U13<>"f"),1,0) -> 1 | I13: =IF(I12<>"",I12+1,IF(CHOOSE(WEEKDAY(Einstellungen!$A$4,2),"Mo","Di","Mi","Do","Fr","Sa","So")=J13,Einstellungen!$A$4,"")) -> 2026-02-04 | J13: Mi | O13: 0 | P13: 0 | V13: =IF(OR(U13="U",U13="k",U13="B"),$C$13,IF(S13>P13,O13-1-R13,O13-R13)) -> 0 | W13: =IF(OR(U13="U",U13="k",U13="B"),$D$13,IF(S13>P13,P13+60-S13,P13-S13)) -> 0 | X13: 0 | Y13: 0 | Z13: 0 | AA13: 0 | AD13: 0 | AE13: 0 | AF13: 0 | AG13: 0
A14: Do | B14: =IF(E14=0,"frei","") ->  | C14: =SUM(Einstellungen!C22) -> 7 | D14: =SUM(Einstellungen!D22) -> 54 | E14: =C14*60+D14 -> 474 | F14: =E14/$F$10 -> 1 | G14: =IF(AND(E14>0,I14<>"",U14<>"f"),F14,0) -> 1 | H14: =IF(AND(I14<>"",U14<>"f"),1,0) -> 1 | I14: =IF(I13<>"",I13+1,IF(CHOOSE(WEEKDAY(Einstellungen!$A$4,2),"Mo","Di","Mi","Do","Fr","Sa","So")=J14,Einstellungen!$A$4,"")) -> 2026-02-05 | J14: Do | O14: 0 | P14: 0 | V14: =IF(OR(U14="U",U14="k",U14="B"),$C$14,IF(S14>P14,O14-1-R14,O14-R14)) -> 0 | W14: =IF(OR(U14="U",U14="k",U14="B"),$D$14,IF(S14>P14,P14+60-S14,P14-S14)) -> 0 | X14: 0 | Y14: 0 | Z14: 0 | AA14: 0 | AD14: 0 | AE14: 0 | AF14: 0 | AG14: 0
A15: Fr | B15: =IF(E15=0,"frei","") ->  | C15: =SUM(Einstellungen!C23) -> 7 | D15: =SUM(Einstellungen!D23) -> 54 | E15: =C15*60+D15 -> 474 | F15: =E15/$F$10 -> 1 | G15: =IF(AND(E15>0,I15<>"",U15<>"f"),F15,0) -> 1 | H15: =IF(AND(I15<>"",U15<>"f"),1,0) -> 1 | I15: =I14+1 -> 2026-02-06 | J15: Fr | O15: 0 | P15: 0 | V15: =IF(OR(U15="U",U15="k",U15="B"),$C$15,IF(S15>P15,O15-1-R15,O15-R15)) -> 0 | W15: =IF(OR(U15="U",U15="k",U15="B"),$D$15,IF(S15>P15,P15+60-S15,P15-S15)) -> 0 | X15: 0 | Y15: 0 | Z15: 0 | AA15: 0 | AD15: 0 | AE15: 0 | AF15: 0 | AG15: 0
A16: =Einstellungen!$L$1 -> Hinweise: | I16: =I15+1 -> 2026-02-07 | J16: Sa | O16: 0 | P16: 0 | T16: nur dienstl. Sonderfälle!* | V16: =IF(S16>P16,O16-1-R16,O16-R16) -> 0 | W16: =IF(S16>P16,P16+60-S16,P16-S16) -> 0 | X16: 0 | Y16: 0 | Z16: 0 | AA16: 0 | AD16: 0 | AE16: 0 | AF16: 0 | AG16: 0
A17: =Einstellungen!$L$2 -> I Beschäftigte mit 39,5 Std-Woche | I17: =I16+1 -> 2026-02-08 | J17: So | O17: 0 | P17: 0 | T17: nur dienstl. Sonderfälle!* | V17: =IF(S17>P17,O17-1-R17,O17-R17) -> 0 | W17: =IF(S17>P17,P17+60-S17,P17-S17) -> 0 | X17: 0 | Y17: 0 | Z17: 0 | AA17: 0 | AD17: 0 | AE17: 0 | AF17: 0 | AG17: 0
A18: =Einstellungen!$L$3 ->  | C18: =Einstellungen!$N$3 -> Beschäftigungsumfang | V18: =INT((60*SUM(V11:V17)+SUM(W11:W17)-W18)/60) -> 0 | W18: =INT(60*SUM(V11:V17)+SUM(W11:W17)-60*INT((60*SUM(V11:V17)+SUM(W11:W17))/60)) -> 0 | X18: =INT((60*SUM(X11:X17)+SUM(Y11:Y17)-Y18)/60) -> 0 | Y18: =INT(60*SUM(X11:X17)+SUM(Y11:Y17)-60*INT((60*SUM(X11:X17)+SUM(Y11:Y17))/60)) -> 0 | Z18: =INT((60*SUM(Z11:Z17)+SUM(AA11:AA17)-AA18)/60) -> 0 | AA18: =INT(60*SUM(Z11:Z17)+SUM(AA11:AA17)-60*INT((60*SUM(Z11:Z17)+SUM(AA11:AA17))/60)) -> 0 | AB18: =INT((60*SUM(AB11:AB17)+SUM(AC11:AC17)-AC18)/60) -> 0 | AC18: =INT(60*SUM(AB11:AB17)+SUM(AC11:AC17)-60*INT((60*SUM(AB11:AB17)+SUM(AC11:AC17))/60)) -> 0 | AD18: =INT((60*SUM(AD11:AD17)+SUM(AE11:AE17)-AE18)/60) -> 0 | AE18: =INT(60*SUM(AD11:AD17)+SUM(AE11:AE17)-60*INT((60*SUM(AD11:AD17)+SUM(AE11:AE17))/60)) -> 0 | AF18: =INT((60*SUM(AF11:AF17)+SUM(AG11:AG17)-AG18)/60) -> 0 | AG18: =INT(60*SUM(AF11:AF17)+SUM(AG11:AG17)-60*INT((60*SUM(AF11:AF17)+SUM(AG11:AG17))/60)) -> 0 | AH18: =INT((60*SUM(AH11:AH17)+SUM(AI11:AI17)-AI18)/60) -> 0 | AI18: =INT(60*SUM(AH11:AH17)+SUM(AI11:AI17)-60*INT((60*SUM(AH11:AH17)+SUM(AI11:AI17))/60)) -> 0 | AK18: =INT((60*SUM(AK11:AK17)+SUM(AL11:AL17)-AL18)/60) -> 0 | AL18: =INT(60*SUM(AK11:AK17)+SUM(AL11:AL17)-60*INT((60*SUM(AK11:AK17)+SUM(AL11:AL17))/60)) -> 0 | AN18: =INT((60*SUM(AN11:AN17)+SUM(AO11:AO17)-AO18)/60) -> 0 | AO18: =INT(60*SUM(AN11:AN17)+SUM(AO11:AO17)-60*INT((60*SUM(AN11:AN17)+SUM(AO11:AO17))/60)) -> 0 | AQ18: =INT((60*SUM(AQ11:AQ17)+SUM(AR11:AR17)-AR18)/60) -> 0 | AR18: =INT(60*SUM(AQ11:AQ17)+SUM(AR11:AR17)-60*INT((60*SUM(AQ11:AQ17)+SUM(AR11:AR17))/60)) -> 0 | AS18: =INT((60*SUM(AS11:AS17)+SUM(AT11:AT17)-AT18)/60) -> 0 | AT18: =INT(60*SUM(AS11:AS17)+SUM(AT11:AT17)-60*INT((60*SUM(AS11:AS17)+SUM(AT11:AT17))/60)) -> 0 | AU18: =INT((60*SUM(AU11:AU17)+SUM(AV11:AV17)-AV18)/60) -> 0 | AV18: =INT(60*SUM(AU11:AU17)+SUM(AV11:AV17)-60*INT((60*SUM(AU11:AU17)+SUM(AV11:AV17))/60)) -> 0 | AW18: =INT((60*SUM(AW11:AW17)+SUM(AX11:AX17)-AX18)/60) -> 0 | AX18: =INT(60*SUM(AW11:AW17)+SUM(AX11:AX17)-60*INT((60*SUM(AW11:AW17)+SUM(AX11:AX17))/60)) -> 0 | AY18: =INT((60*SUM(AY11:AY17)+SUM(AZ11:AZ17)-AZ18)/60) -> 0 | AZ18: =INT(60*SUM(AY11:AY17)+SUM(AZ11:AZ17)-60*INT((60*SUM(AY11:AY17)+SUM(AZ11:AZ17))/60)) -> 0 | BA18: =INT((60*SUM(BA11:BA17)+SUM(BB11:BB17)-BB18)/60) -> 0 | BB18: =INT(60*SUM(BA11:BA17)+SUM(BB11:BB17)-60*INT((60*SUM(BA11:BA17)+SUM(BB11:BB17))/60)) -> 0 | BC18: =INT((60*SUM(BC11:BC17)+SUM(BD11:BD17)-BD18)/60) -> 0 | BD18: =INT(60*SUM(BC11:BC17)+SUM(BD11:BD17)-60*INT((60*SUM(BC11:BC17)+SUM(BD11:BD17))/60)) -> 0 | BE18: =INT((60*SUM(BE11:BE17)+SUM(BF11:BF17)-BF18)/60) -> 0 | BF18: =INT(60*SUM(BE11:BE17)+SUM(BF11:BF17)-60*INT((60*SUM(BE11:BE17)+SUM(BF11:BF17))/60)) -> 0 | BG18: =INT((60*SUM(BG11:BG17)+SUM(BH11:BH17)-BH18)/60) -> 0 | BH18: =INT(60*SUM(BG11:BG17)+SUM(BH11:BH17)-60*INT((60*SUM(BG11:BG17)+SUM(BH11:BH17))/60)) -> 0
A20: =Einstellungen!$L$4 -> 5 Tage-Woche | C20: =Einstellungen!$N$4 -> 1 | D20: =Einstellungen!$O$4 -> 0.75 | F20: =Einstellungen!$Q$4 -> 0.5 | G20: =IF(AND(E11>0,I20<>"",U20<>"f"),F11,0) -> 1 | H20: =IF(AND(I20<>"",U20<>"f"),1,0) -> 1 | I20: =I17+1 -> 2026-02-09 | J20: Mo | O20: =HOUR(N20-K20-(M20-L20)) -> 0 | P20: =MINUTE(N20-K20-(M20-L20)) -> 0 | V20: =IF(OR(U20="U",U20="k",U20="B"),$C$11,IF(S20>P20,O20-1-R20,O20-R20)) -> 0 | W20: =IF(OR(U20="U",U20="k",U20="B"),$D$11,IF(S20>P20,P20+60-S20,P20-S20)) -> 0 | X20: =IF(OR(U20="U",U20="K",U20="B"),0,V20) -> 0 | Y20: =IF(OR(U20="U",U20="K",U20="B"),0,W20) -> 0 | Z20: =INT(((SUM(AB20,AH20,AK20,AN20,AQ20,AS20,AU20,AW20,AY20,BA20,BC20,BE20,BG20)*100)+(SUM(AC20,AI20,AL20,AO20,AR20,AT20,AV20,AX20,AZ20,BB20,BD20,BF20,BH20)/60*100))/100) -> 0 | AA20: =MOD(((SUM(AC20,AI20,AL20,AO20,AR20,AT20,AV20,AX20,AZ20,BB20,BD20,BF20,BH20)*100)+(SUM(AC20,AI20,AL20,AO20,AR20,AT20,AV20,AX20,AZ20,BB20,BD20,BF20,BH20)/60*100))/100,1)*60 -> 0 | AD20: =INT(((SUM(AH20,AK20,AN20)*100)+SUM(AI20,AL20,AO20)/60*100)/100) -> 0 | AE20: =MOD(((SUM(AI20,AL20,AO20)*100)+(SUM(AI20,AL20,AO20)/60*100))/100,1)*60 -> 0 | AF20: =INT(((SUM(AQ20+AS20+AU20+AW20+AY20+BA20+BC20+BE20+BG20)*100)+SUM(AR20+AT20+AV20+AX20+AZ20+BB20+BD20+BF20+BH20)/60*100)/100) -> 0 | AG20: =MOD(((SUM(AR20+AT20+AV20+AX20+AZ20+BB20+BD20+BF20+BH20)*100)+(SUM(AR20+AT20+AV20+AX20+AZ20+BB20+BD20+BF20+BH20)/60*100))/100,1)*60 -> 0
A21: =Einstellungen!$L$5 ->  | G21: =IF(AND(E12>0,I21<>"",U21<>"f"),F12,0) -> 1 | H21: =IF(AND(I21<>"",U21<>"f"),1,0) -> 1 | I21: =I20+1 -> 2026-02-10 | J21: Di | O21: 0 | P21: 0 | V21: =IF(OR(U21="U",U21="k",U21="B"),$C$12,IF(S21>P21,O21-1-R21,O21-R21)) -> 0 | W21: =IF(OR(U21="U",U21="k",U21="B"),$D$12,IF(S21>P21,P21+60-S21,P21-S21)) -> 0 | X21: 0 | Y21: 0 | Z21: 0 | AA21: 0 | AD21: 0 | AE21: 0 | AF21: 0 | AG21: 0
A22: =Einstellungen!$L$6 -> tägliche Regel- | G22: =IF(AND(E13>0,I22<>"",U22<>"f"),F13,0) -> 1 | H22: =IF(AND(I22<>"",U22<>"f"),1,0) -> 1 | I22: =I21+1 -> 2026-02-11 | J22: Mi | O22: 0 | P22: 0 | V22: =IF(OR(U22="U",U22="k",U22="B"),$C$13,IF(S22>P22,O22-1-R22,O22-R22)) -> 0 | W22: =IF(OR(U22="U",U22="k",U22="B"),$D$13,IF(S22>P22,P22+60-S22,P22-S22)) -> 0 | X22: 0 | Y22: 0 | Z22: 0 | AA22: 0 | AD22: 0 | AE22: 0 | AF22: 0 | AG22: 0
A23: =Einstellungen!$L$7 -> arbeitszeit für | G23: =IF(AND(E14>0,I23<>"",U23<>"f"),F14,0) -> 1 | H23: =IF(AND(I23<>"",U23<>"f"),1,0) -> 1 | I23: 2026-02-12 | J23: Do | O23: 0 | P23: 0 | V23: =IF(OR(U23="U",U23="k",U23="B"),$C$14,IF(S23>P23,O23-1-R23,O23-R23)) -> 0 | W23: =IF(OR(U23="U",U23="k",U23="B"),$D$14,IF(S23>P23,P23+60-S23,P23-S23)) -> 0 | X23: 0 | Y23: 0 | Z23: 0 | AA23: 0 | AD23: 0 | AE23: 0 | AF23: 0 | AG23: 0
A24: =Einstellungen!$L$8 -> Wochenfeier- | G24: =IF(AND(E15>0,I24<>"",U24<>"f"),F15,0) -> 1 | H24: =IF(AND(I24<>"",U24<>"f"),1,0) -> 1 | I24: 2026-02-13 | J24: Fr | O24: 0 | P24: 0 | V24: =IF(OR(U24="U",U24="k",U24="B"),$C$15,IF(S24>P24,O24-1-R24,O24-R24)) -> 0 | W24: =IF(OR(U24="U",U24="k",U24="B"),$D$15,IF(S24>P24,P24+60-S24,P24-S24)) -> 0 | X24: 0 | Y24: 0 | Z24: 0 | AA24: 0 | AD24: 0 | AE24: 0 | AF24: 0 | AG24: 0
A25: =Einstellungen!$L$9 -> tage, bei Urlaub | I25: 2026-02-14 | J25: Sa | O25: 0 | P25: 0 | T25: nur dienstl. Sonderfälle!* | V25: =IF(S25>P25,O25-1-R25,O25-R25) -> 0 | W25: =IF(S25>P25,P25+60-S25,P25-S25) -> 0 | X25: 0 | Y25: 0 | Z25: 0 | AA25: 0 | AD25: 0 | AE25: 0 | AF25: 0 | AG25: 0
A26: =Einstellungen!$L$10 -> oder Krankheit | I26: 2026-02-15 | J26: So | O26: 0 | P26: 0 | T26: nur dienstl. Sonderfälle!* | V26: =IF(S26>P26,O26-1-R26,O26-R26) -> 0 | W26: =IF(S26>P26,P26+60-S26,P26-S26) -> 0 | X26: 0 | Y26: 0 | Z26: 0 | AA26: 0 | AD26: 0 | AE26: 0 | AF26: 0 | AG26: 0
A27: =Einstellungen!$L$11 -> Mo-Fr | B27: =Einstellungen!$M$11 -> Std.Min | C27: =Einstellungen!$N$11 -> 7.54 | D27: =Einstellungen!$O$11 -> 5.56 | F27: =Einstellungen!$Q$11 -> 3.57 | V27: =INT((60*SUM(V20:V26)+SUM(W20:W26)-W27)/60) -> 0 | W27: =INT(60*SUM(V20:V26)+SUM(W20:W26)-60*INT((60*SUM(V20:V26)+SUM(W20:W26))/60)) -> 0 | X27: =INT((60*SUM(X20:X26)+SUM(Y20:Y26)-Y27)/60) -> 0 | Y27: =INT(60*SUM(X20:X26)+SUM(Y20:Y26)-60*INT((60*SUM(X20:X26)+SUM(Y20:Y26))/60)) -> 0 | Z27: =INT((60*SUM(Z20:Z26)+SUM(AA20:AA26)-AA27)/60) -> 0 | AA27: =INT(60*SUM(Z20:Z26)+SUM(AA20:AA26)-60*INT((60*SUM(Z20:Z26)+SUM(AA20:AA26))/60)) -> 0 | AB27: =INT((60*SUM(AB20:AB26)+SUM(AC20:AC26)-AC27)/60) -> 0 | AC27: =INT(60*SUM(AB20:AB26)+SUM(AC20:AC26)-60*INT((60*SUM(AB20:AB26)+SUM(AC20:AC26))/60)) -> 0 | AD27: =INT((60*SUM(AD20:AD26)+SUM(AE20:AE26)-AE27)/60) -> 0 | AE27: =INT(60*SUM(AD20:AD26)+SUM(AE20:AE26)-60*INT((60*SUM(AD20:AD26)+SUM(AE20:AE26))/60)) -> 0 | AF27: =INT((60*SUM(AF20:AF26)+SUM(AG20:AG26)-AG27)/60) -> 0 | AG27: =INT(60*SUM(AF20:AF26)+SUM(AG20:AG26)-60*INT((60*SUM(AF20:AF26)+SUM(AG20:AG26))/60)) -> 0 | AH27: =INT((60*SUM(AH20:AH26)+SUM(AI20:AI26)-AI27)/60) -> 0 | AI27: =INT(60*SUM(AH20:AH26)+SUM(AI20:AI26)-60*INT((60*SUM(AH20:AH26)+SUM(AI20:AI26))/60)) -> 0 | AK27: =INT((60*SUM(AK20:AK26)+SUM(AL20:AL26)-AL27)/60) -> 0 | AL27: =INT(60*SUM(AK20:AK26)+SUM(AL20:AL26)-60*INT((60*SUM(AK20:AK26)+SUM(AL20:AL26))/60)) -> 0 | AN27: =INT((60*SUM(AN20:AN26)+SUM(AO20:AO26)-AO27)/60) -> 0 | AO27: =INT(60*SUM(AN20:AN26)+SUM(AO20:AO26)-60*INT((60*SUM(AN20:AN26)+SUM(AO20:AO26))/60)) -> 0 | AQ27: =INT((60*SUM(AQ20:AQ26)+SUM(AR20:AR26)-AR27)/60) -> 0 | AR27: =INT(60*SUM(AQ20:AQ26)+SUM(AR20:AR26)-60*INT((60*SUM(AQ20:AQ26)+SUM(AR20:AR26))/60)) -> 0 | AS27: =INT((60*SUM(AS20:AS26)+SUM(AT20:AT26)-AT27)/60) -> 0 | AT27: =INT(60*SUM(AS20:AS26)+SUM(AT20:AT26)-60*INT((60*SUM(AS20:AS26)+SUM(AT20:AT26))/60)) -> 0 | AU27: =INT((60*SUM(AU20:AU26)+SUM(AV20:AV26)-AV27)/60) -> 0 | AV27: =INT(60*SUM(AU20:AU26)+SUM(AV20:AV26)-60*INT((60*SUM(AU20:AU26)+SUM(AV20:AV26))/60)) -> 0 | AW27: =INT((60*SUM(AW20:AW26)+SUM(AX20:AX26)-AX27)/60) -> 0 | AX27: =INT(60*SUM(AW20:AW26)+SUM(AX20:AX26)-60*INT((60*SUM(AW20:AW26)+SUM(AX20:AX26))/60)) -> 0 | AY27: =INT((60*SUM(AY20:AY26)+SUM(AZ20:AZ26)-AZ27)/60) -> 0 | AZ27: =INT(60*SUM(AY20:AY26)+SUM(AZ20:AZ26)-60*INT((60*SUM(AY20:AY26)+SUM(AZ20:AZ26))/60)) -> 0 | BA27: =INT((60*SUM(BA20:BA26)+SUM(BB20:BB26)-BB27)/60) -> 0 | BB27: =INT(60*SUM(BA20:BA26)+SUM(BB20:BB26)-60*INT((60*SUM(BA20:BA26)+SUM(BB20:BB26))/60)) -> 0 | BC27: =INT((60*SUM(BC20:BC26)+SUM(BD20:BD26)-BD27)/60) -> 0 | BD27: =INT(60*SUM(BC20:BC26)+SUM(BD20:BD26)-60*INT((60*SUM(BC20:BC26)+SUM(BD20:BD26))/60)) -> 0 | BE27: =INT((60*SUM(BE20:BE26)+SUM(BF20:BF26)-BF27)/60) -> 0 | BF27: =INT(60*SUM(BE20:BE26)+SUM(BF20:BF26)-60*INT((60*SUM(BE20:BE26)+SUM(BF20:BF26))/60)) -> 0 | BG27: =INT((60*SUM(BG20:BG26)+SUM(BH20:BH26)-BH27)/60) -> 0 | BH27: =INT(60*SUM(BG20:BG26)+SUM(BH20:BH26)-60*INT((60*SUM(BG20:BG26)+SUM(BH20:BH26))/60)) -> 0
A29: =Einstellungen!$L$13 -> Wochen | G29: =IF(AND(E11>0,I29<>"",U29<>"f"),F11,0) -> 1 | H29: =IF(AND(I29<>"",U29<>"f"),1,0) -> 1 | I29: =I26+1 -> 2026-02-16 | J29: Mo | O29: =HOUR(N29-K29-(M29-L29)) -> 0 | P29: =MINUTE(N29-K29-(M29-L29)) -> 0 | V29: =IF(OR(U29="U",U29="k",U29="B"),$C$11,IF(S29>P29,O29-1-R29,O29-R29)) -> 0 | W29: =IF(OR(U29="U",U29="k",U29="B"),$D$11,IF(S29>P29,P29+60-S29,P29-S29)) -> 0 | X29: =IF(OR(U29="U",U29="K",U29="B"),0,V29) -> 0 | Y29: =IF(OR(U29="U",U29="K",U29="B"),0,W29) -> 0 | Z29: =INT(((SUM(AB29,AH29,AK29,AN29,AQ29,AS29,AU29,AW29,AY29,BA29,BC29,BE29,BG29)*100)+(SUM(AC29,AI29,AL29,AO29,AR29,AT29,AV29,AX29,AZ29,BB29,BD29,BF29,BH29)/60*100))/100) -> 0 | AA29: =MOD(((SUM(AC29,AI29,AL29,AO29,AR29,AT29,AV29,AX29,AZ29,BB29,BD29,BF29,BH29)*100)+(SUM(AC29,AI29,AL29,AO29,AR29,AT29,AV29,AX29,AZ29,BB29,BD29,BF29,BH29)/60*100))/100,1)*60 -> 0 | AD29: =INT(((SUM(AH29,AK29,AN29)*100)+SUM(AI29,AL29,AO29)/60*100)/100) -> 0 | AE29: =MOD(((SUM(AI29,AL29,AO29)*100)+(SUM(AI29,AL29,AO29)/60*100))/100,1)*60 -> 0 | AF29: =INT(((SUM(AQ29+AS29+AU29+AW29+AY29+BA29+BC29+BE29+BG29)*100)+SUM(AR29+AT29+AV29+AX29+AZ29+BB29+BD29+BF29+BH29)/60*100)/100) -> 0 | AG29: =MOD(((SUM(AR29+AT29+AV29+AX29+AZ29+BB29+BD29+BF29+BH29)*100)+(SUM(AR29+AT29+AV29+AX29+AZ29+BB29+BD29+BF29+BH29)/60*100))/100,1)*60 -> 0
A30: =CONCATENATE(Einstellungen!$L$14," ",Einstellungen!$M$14) -> Arbeitzeit Std.Min | C30: =Einstellungen!$N$14 -> 39.30 | D30: =Einstellungen!$O$14 -> 29.38 | F30: =Einstellungen!$Q$14 -> 19.45 | G30: =IF(AND(E12>0,I30<>"",U30<>"f"),F12,0) -> 1 | H30: =IF(AND(I30<>"",U30<>"f"),1,0) -> 1 | I30: =I29+1 -> 2026-02-17 | J30: Di | O30: 0 | P30: 0 | V30: =IF(OR(U30="U",U30="k",U30="B"),$C$12,IF(S30>P30,O30-1-R30,O30-R30)) -> 0 | W30: =IF(OR(U30="U",U30="k",U30="B"),$D$12,IF(S30>P30,P30+60-S30,P30-S30)) -> 0 | X30: 0 | Y30: 0 | Z30: 0 | AA30: 0 | AD30: 0 | AE30: 0 | AF30: 0 | AG30: 0
A31: =Einstellungen!$L$15 -> max.Übertrag auf das | G31: =IF(AND(E13>0,I31<>"",U31<>"f"),F13,0) -> 1 | H31: =IF(AND(I31<>"",U31<>"f"),1,0) -> 1 | I31: =I30+1 -> 2026-02-18 | J31: Mi | O31: 0 | P31: 0 | V31: =IF(OR(U31="U",U31="k",U31="B"),$C$13,IF(S31>P31,O31-1-R31,O31-R31)) -> 0 | W31: =IF(OR(U31="U",U31="k",U31="B"),$D$13,IF(S31>P31,P31+60-S31,P31-S31)) -> 0 | X31: 0 | Y31: 0 | Z31: 0 | AA31: 0 | AD31: 0 | AE31: 0 | AF31: 0 | AG31: 0
A32: =Einstellungen!$L$16 -> Folgejahr Std.Min | C32: =Einstellungen!$N$16 -> 39.30 | D32: =Einstellungen!$O$16 -> 39.30 | F32: =Einstellungen!$Q$16 -> 39.30 | G32: =IF(AND(E14>0,I32<>"",U32<>"f"),F14,0) -> 1 | H32: =IF(AND(I32<>"",U32<>"f"),1,0) -> 1 | I32: 2026-02-19 | J32: Do | O32: 0 | P32: 0 | V32: =IF(OR(U32="U",U32="k",U32="B"),$C$14,IF(S32>P32,O32-1-R32,O32-R32)) -> 0 | W32: =IF(OR(U32="U",U32="k",U32="B"),$D$14,IF(S32>P32,P32+60-S32,P32-S32)) -> 0 | X32: 0 | Y32: 0 | Z32: 0 | AA32: 0 | AD32: 0 | AE32: 0 | AF32: 0 | AG32: 0
A33: =Einstellungen!$L$17 -> II Beschäftigte mit 41 Std-Woche | G33: =IF(AND(E15>0,I33<>"",U33<>"f"),F15,0) -> 1 | H33: =IF(AND(I33<>"",U33<>"f"),1,0) -> 1 | I33: 2026-02-20 | J33: Fr | O33: 0 | P33: 0 | V33: =IF(OR(U33="U",U33="k",U33="B"),$C$15,IF(S33>P33,O33-1-R33,O33-R33)) -> 0 | W33: =IF(OR(U33="U",U33="k",U33="B"),$D$15,IF(S33>P33,P33+60-S33,P33-S33)) -> 0 | X33: 0 | Y33: 0 | Z33: 0 | AA33: 0 | AD33: 0 | AE33: 0 | AF33: 0 | AG33: 0
A34: =Einstellungen!$L$18 -> tägliche Arbeitszeit | I34: 2026-02-21 | J34: Sa | O34: 0 | P34: 0 | T34: nur dienstl. Sonderfälle!* | V34: =IF(S34>P34,O34-1-R34,O34-R34) -> 0 | W34: =IF(S34>P34,P34+60-S34,P34-S34) -> 0 | X34: 0 | Y34: 0 | Z34: 0 | AA34: 0 | AD34: 0 | AE34: 0 | AF34: 0 | AG34: 0
A35: =Einstellungen!$L$19 -> Mo-Fr | B35: =Einstellungen!$M$19 -> Std.Min | C35: =Einstellungen!$N$19 -> 8.12 | D35: =Einstellungen!$O$19 -> 6.09 | F35: =Einstellungen!$Q$19 -> 4.06 | I35: 2026-02-22 | J35: So | O35: 0 | P35: 0 | T35: nur dienstl. Sonderfälle!* | V35: =IF(S35>P35,O35-1-R35,O35-R35) -> 0 | W35: =IF(S35>P35,P35+60-S35,P35-S35) -> 0 | X35: 0 | Y35: 0 | Z35: 0 | AA35: 0 | AD35: 0 | AE35: 0 | AF35: 0 | AG35: 0
A36: =Einstellungen!$L$20 -> Wochen | V36: =INT((60*SUM(V29:V35)+SUM(W29:W35)-W36)/60) -> 0 | W36: =INT(60*SUM(V29:V35)+SUM(W29:W35)-60*INT((60*SUM(V29:V35)+SUM(W29:W35))/60)) -> 0 | X36: =INT((60*SUM(X29:X35)+SUM(Y29:Y35)-Y36)/60) -> 0 | Y36: =INT(60*SUM(X29:X35)+SUM(Y29:Y35)-60*INT((60*SUM(X29:X35)+SUM(Y29:Y35))/60)) -> 0 | Z36: =INT((60*SUM(Z29:Z35)+SUM(AA29:AA35)-AA36)/60) -> 0 | AA36: =INT(60*SUM(Z29:Z35)+SUM(AA29:AA35)-60*INT((60*SUM(Z29:Z35)+SUM(AA29:AA35))/60)) -> 0 | AB36: =INT((60*SUM(AB29:AB35)+SUM(AC29:AC35)-AC36)/60) -> 0 | AC36: =INT(60*SUM(AB29:AB35)+SUM(AC29:AC35)-60*INT((60*SUM(AB29:AB35)+SUM(AC29:AC35))/60)) -> 0 | AD36: =INT((60*SUM(AD29:AD35)+SUM(AE29:AE35)-AE36)/60) -> 0 | AE36: =INT(60*SUM(AD29:AD35)+SUM(AE29:AE35)-60*INT((60*SUM(AD29:AD35)+SUM(AE29:AE35))/60)) -> 0 | AF36: =INT((60*SUM(AF29:AF35)+SUM(AG29:AG35)-AG36)/60) -> 0 | AG36: =INT(60*SUM(AF29:AF35)+SUM(AG29:AG35)-60*INT((60*SUM(AF29:AF35)+SUM(AG29:AG35))/60)) -> 0 | AH36: =INT((60*SUM(AH29:AH35)+SUM(AI29:AI35)-AI36)/60) -> 0 | AI36: =INT(60*SUM(AH29:AH35)+SUM(AI29:AI35)-60*INT((60*SUM(AH29:AH35)+SUM(AI29:AI35))/60)) -> 0 | AK36: =INT((60*SUM(AK29:AK35)+SUM(AL29:AL35)-AL36)/60) -> 0 | AL36: =INT(60*SUM(AK29:AK35)+SUM(AL29:AL35)-60*INT((60*SUM(AK29:AK35)+SUM(AL29:AL35))/60)) -> 0 | AN36: =INT((60*SUM(AN29:AN35)+SUM(AO29:AO35)-AO36)/60) -> 0 | AO36: =INT(60*SUM(AN29:AN35)+SUM(AO29:AO35)-60*INT((60*SUM(AN29:AN35)+SUM(AO29:AO35))/60)) -> 0 | AQ36: =INT((60*SUM(AQ29:AQ35)+SUM(AR29:AR35)-AR36)/60) -> 0 | AR36: =INT(60*SUM(AQ29:AQ35)+SUM(AR29:AR35)-60*INT((60*SUM(AQ29:AQ35)+SUM(AR29:AR35))/60)) -> 0 | AS36: =INT((60*SUM(AS29:AS35)+SUM(AT29:AT35)-AT36)/60) -> 0 | AT36: =INT(60*SUM(AS29:AS35)+SUM(AT29:AT35)-60*INT((60*SUM(AS29:AS35)+SUM(AT29:AT35))/60)) -> 0 | AU36: =INT((60*SUM(AU29:AU35)+SUM(AV29:AV35)-AV36)/60) -> 0 | AV36: =INT(60*SUM(AU29:AU35)+SUM(AV29:AV35)-60*INT((60*SUM(AU29:AU35)+SUM(AV29:AV35))/60)) -> 0 | AW36: =INT((60*SUM(AW29:AW35)+SUM(AX29:AX35)-AX36)/60) -> 0 | AX36: =INT(60*SUM(AW29:AW35)+SUM(AX29:AX35)-60*INT((60*SUM(AW29:AW35)+SUM(AX29:AX35))/60)) -> 0 | AY36: =INT((60*SUM(AY29:AY35)+SUM(AZ29:AZ35)-AZ36)/60) -> 0 | AZ36: =INT(60*SUM(AY29:AY35)+SUM(AZ29:AZ35)-60*INT((60*SUM(AY29:AY35)+SUM(AZ29:AZ35))/60)) -> 0 | BA36: =INT((60*SUM(BA29:BA35)+SUM(BB29:BB35)-BB36)/60) -> 0 | BB36: =INT(60*SUM(BA29:BA35)+SUM(BB29:BB35)-60*INT((60*SUM(BA29:BA35)+SUM(BB29:BB35))/60)) -> 0 | BC36: =INT((60*SUM(BC29:BC35)+SUM(BD29:BD35)-BD36)/60) -> 0 | BD36: =INT(60*SUM(BC29:BC35)+SUM(BD29:BD35)-60*INT((60*SUM(BC29:BC35)+SUM(BD29:BD35))/60)) -> 0 | BE36: =INT((60*SUM(BE29:BE35)+SUM(BF29:BF35)-BF36)/60) -> 0 | BF36: =INT(60*SUM(BE29:BE35)+SUM(BF29:BF35)-60*INT((60*SUM(BE29:BE35)+SUM(BF29:BF35))/60)) -> 0 | BG36: =INT((60*SUM(BG29:BG35)+SUM(BH29:BH35)-BH36)/60) -> 0 | BH36: =INT(60*SUM(BG29:BG35)+SUM(BH29:BH35)-60*INT((60*SUM(BG29:BG35)+SUM(BH29:BH35))/60)) -> 0
A38: =CONCATENATE(Einstellungen!$L$21," ",Einstellungen!$M$21) -> Arbeitzeit Std.Min | C38: =Einstellungen!$N$21 -> 41.00 | D38: =Einstellungen!$O$21 -> 30.45 | F38: =Einstellungen!$Q$21 -> 20.30 | G38: =IF(AND(E11>0,I38<>"",U38<>"f"),F11,0) -> 1 | H38: =IF(AND(I38<>"",U38<>"f"),1,0) -> 1 | I38: =IF(I35<>"",IF(MONTH(I35)=MONTH(I35+1),I35+1,""),"") -> 2026-02-23 | J38: Mo | O38: =HOUR(N38-K38-(M38-L38)) -> 0 | P38: =MINUTE(N38-K38-(M38-L38)) -> 0 | V38: =IF(OR(U38="U",U38="k",U38="B"),$C$11,IF(S38>P38,O38-1-R38,O38-R38)) -> 0 | W38: =IF(OR(U38="U",U38="k",U38="B"),$D$11,IF(S38>P38,P38+60-S38,P38-S38)) -> 0 | X38: =IF(OR(U38="U",U38="K",U38="B"),0,V38) -> 0 | Y38: =IF(OR(U38="U",U38="K",U38="B"),0,W38) -> 0 | Z38: =INT(((SUM(AB38,AH38,AK38,AN38,AQ38,AS38,AU38,AW38,AY38,BA38,BC38,BE38,BG38)*100)+(SUM(AC38,AI38,AL38,AO38,AR38,AT38,AV38,AX38,AZ38,BB38,BD38,BF38,BH38)/60*100))/100) -> 0 | AA38: =MOD(((SUM(AC38,AI38,AL38,AO38,AR38,AT38,AV38,AX38,AZ38,BB38,BD38,BF38,BH38)*100)+(SUM(AC38,AI38,AL38,AO38,AR38,AT38,AV38,AX38,AZ38,BB38,BD38,BF38,BH38)/60*100))/100,1)*60 -> 0 | AD38: =INT(((SUM(AH38,AK38,AN38)*100)+SUM(AI38,AL38,AO38)/60*100)/100) -> 0 | AE38: =MOD(((SUM(AI38,AL38,AO38)*100)+(SUM(AI38,AL38,AO38)/60*100))/100,1)*60 -> 0 | AF38: =INT(((SUM(AQ38+AS38+AU38+AW38+AY38+BA38+BC38+BE38+BG38)*100)+SUM(AR38+AT38+AV38+AX38+AZ38+BB38+BD38+BF38+BH38)/60*100)/100) -> 0 | AG38: =MOD(((SUM(AR38+AT38+AV38+AX38+AZ38+BB38+BD38+BF38+BH38)*100)+(SUM(AR38+AT38+AV38+AX38+AZ38+BB38+BD38+BF38+BH38)/60*100))/100,1)*60 -> 0
A39: =Einstellungen!$L$22 -> max.Übertrag auf das | G39: =IF(AND(E12>0,I39<>"",U39<>"f"),F12,0) -> 1 | H39: =IF(AND(I39<>"",U39<>"f"),1,0) -> 1 | I39: =IF(I38<>"",IF(MONTH(I38)=MONTH(I38+1),I38+1,""),"") -> 2026-02-24 | J39: Di | O39: 0 | P39: 0 | V39: =IF(OR(U39="U",U39="k",U39="B"),$C$12,IF(S39>P39,O39-1-R39,O39-R39)) -> 0 | W39: =IF(OR(U39="U",U39="k",U39="B"),$D$12,IF(S39>P39,P39+60-S39,P39-S39)) -> 0 | X39: 0 | Y39: 0 | Z39: 0 | AA39: 0 | AD39: 0 | AE39: 0 | AF39: 0 | AG39: 0
A40: =Einstellungen!$L$23 -> Folgejahr Std.Min | C40: =Einstellungen!$N$23 -> 41.00 | D40: =Einstellungen!$O$23 -> 41.00 | F40: =Einstellungen!$Q$23 -> 41.00 | G40: =IF(AND(E13>0,I40<>"",U40<>"f"),F13,0) -> 1 | H40: =IF(AND(I40<>"",U40<>"f"),1,0) -> 1 | I40: =IF(I39<>"",IF(MONTH(I39)=MONTH(I39+1),I39+1,""),"") -> 2026-02-25 | J40: Mi | O40: 0 | P40: 0 | V40: =IF(OR(U40="U",U40="k",U40="B"),$C$13,IF(S40>P40,O40-1-R40,O40-R40)) -> 0 | W40: =IF(OR(U40="U",U40="k",U40="B"),$D$13,IF(S40>P40,P40+60-S40,P40-S40)) -> 0 | X40: 0 | Y40: 0 | Z40: 0 | AA40: 0 | AD40: 0 | AE40: 0 | AF40: 0 | AG40: 0
A41: =Einstellungen!$L$24 -> Kernarbeitszeit: | C41: =Einstellungen!$N$24 -> Mo-Do | D41: =Einstellungen!$O$24 -> 9:00 - 14:30 Uhr | G41: =IF(AND(E14>0,I41<>"",U41<>"f"),F14,0) -> 1 | H41: =IF(AND(I41<>"",U41<>"f"),1,0) -> 1 | I41: 2026-02-26 | J41: Do | O41: 0 | P41: 0 | V41: =IF(OR(U41="U",U41="k",U41="B"),$C$14,IF(S41>P41,O41-1-R41,O41-R41)) -> 0 | W41: =IF(OR(U41="U",U41="k",U41="B"),$D$14,IF(S41>P41,P41+60-S41,P41-S41)) -> 0 | X41: 0 | Y41: 0 | Z41: 0 | AA41: 0 | AD41: 0 | AE41: 0 | AF41: 0 | AG41: 0
A42: =Einstellungen!$L$25 ->  | B42: =Einstellungen!$M$25 ->  | C42: =Einstellungen!$N$25 -> Fr | D42: =Einstellungen!$O$25 -> 9:00 - 12:00 Uhr | G42: =IF(AND(E15>0,I42<>"",U42<>"f"),F15,0) -> 1 | H42: =IF(AND(I42<>"",U42<>"f"),1,0) -> 1 | I42: 2026-02-27 | J42: Fr | O42: 0 | P42: 0 | V42: =IF(OR(U42="U",U42="k",U42="B"),$C$15,IF(S42>P42,O42-1-R42,O42-R42)) -> 0 | W42: =IF(OR(U42="U",U42="k",U42="B"),$D$15,IF(S42>P42,P42+60-S42,P42-S42)) -> 0 | X42: 0 | Y42: 0 | Z42: 0 | AA42: 0 | AD42: 0 | AE42: 0 | AF42: 0 | AG42: 0
A43: =Einstellungen!$L$26 -> Gleitzeit: | B43: =Einstellungen!$M$26 -> frühester Beginn | F43: =Einstellungen!$P$26 -> 6:00 Uhr | I43: 2026-02-28 | J43: Sa | O43: 0 | P43: 0 | T43: nur dienstl. Sonderfälle!* | V43: =IF(S43>P43,O43-1-R43,O43-R43) -> 0 | W43: =IF(S43>P43,P43+60-S43,P43-S43) -> 0 | X43: 0 | Y43: 0 | Z43: 0 | AA43: 0 | AD43: 0 | AE43: 0 | AF43: 0 | AG43: 0
A44: =Einstellungen!$L$27 ->  | B44: =Einstellungen!$M$27 -> spätestes Ende | F44: =Einstellungen!$P$27 -> 21:00 Uhr | J44: So | O44: 0 | P44: 0 | T44: nur dienstl. Sonderfälle!* | V44: =IF(S44>P44,O44-1-R44,O44-R44) -> 0 | W44: =IF(S44>P44,P44+60-S44,P44-S44) -> 0 | X44: 0 | Y44: 0 | Z44: 0 | AA44: 0 | AD44: 0 | AE44: 0 | AF44: 0 | AG44: 0
A45: =Einstellungen!$L$29 -> Mittagspause zw. | D45: =Einstellungen!$O$29 -> 11:15 - 14:00 Uhr | V45: =INT((60*SUM(V38:V44)+SUM(W38:W44)-W45)/60) -> 0 | W45: =INT(60*SUM(V38:V44)+SUM(W38:W44)-60*INT((60*SUM(V38:V44)+SUM(W38:W44))/60)) -> 0 | X45: =INT((60*SUM(X38:X44)+SUM(Y38:Y44)-Y45)/60) -> 0 | Y45: =INT(60*SUM(X38:X44)+SUM(Y38:Y44)-60*INT((60*SUM(X38:X44)+SUM(Y38:Y44))/60)) -> 0 | Z45: =INT((60*SUM(Z38:Z44)+SUM(AA38:AA44)-AA45)/60) -> 0 | AA45: =INT(60*SUM(Z38:Z44)+SUM(AA38:AA44)-60*INT((60*SUM(Z38:Z44)+SUM(AA38:AA44))/60)) -> 0 | AB45: =INT((60*SUM(AB38:AB44)+SUM(AC38:AC44)-AC45)/60) -> 0 | AC45: =INT(60*SUM(AB38:AB44)+SUM(AC38:AC44)-60*INT((60*SUM(AB38:AB44)+SUM(AC38:AC44))/60)) -> 0 | AD45: =INT((60*SUM(AD38:AD44)+SUM(AE38:AE44)-AE45)/60) -> 0 | AE45: =INT(60*SUM(AD38:AD44)+SUM(AE38:AE44)-60*INT((60*SUM(AD38:AD44)+SUM(AE38:AE44))/60)) -> 0 | AF45: =INT((60*SUM(AF38:AF44)+SUM(AG38:AG44)-AG45)/60) -> 0 | AG45: =INT(60*SUM(AF38:AF44)+SUM(AG38:AG44)-60*INT((60*SUM(AF38:AF44)+SUM(AG38:AG44))/60)) -> 0 | AH45: =INT((60*SUM(AH38:AH44)+SUM(AI38:AI44)-AI45)/60) -> 0 | AI45: =INT(60*SUM(AH38:AH44)+SUM(AI38:AI44)-60*INT((60*SUM(AH38:AH44)+SUM(AI38:AI44))/60)) -> 0 | AK45: =INT((60*SUM(AK38:AK44)+SUM(AL38:AL44)-AL45)/60) -> 0 | AL45: =INT(60*SUM(AK38:AK44)+SUM(AL38:AL44)-60*INT((60*SUM(AK38:AK44)+SUM(AL38:AL44))/60)) -> 0 | AN45: =INT((60*SUM(AN38:AN44)+SUM(AO38:AO44)-AO45)/60) -> 0 | AO45: =INT(60*SUM(AN38:AN44)+SUM(AO38:AO44)-60*INT((60*SUM(AN38:AN44)+SUM(AO38:AO44))/60)) -> 0 | AQ45: =INT((60*SUM(AQ38:AQ44)+SUM(AR38:AR44)-AR45)/60) -> 0 | AR45: =INT(60*SUM(AQ38:AQ44)+SUM(AR38:AR44)-60*INT((60*SUM(AQ38:AQ44)+SUM(AR38:AR44))/60)) -> 0 | AS45: =INT((60*SUM(AS38:AS44)+SUM(AT38:AT44)-AT45)/60) -> 0 | AT45: =INT(60*SUM(AS38:AS44)+SUM(AT38:AT44)-60*INT((60*SUM(AS38:AS44)+SUM(AT38:AT44))/60)) -> 0 | AU45: =INT((60*SUM(AU38:AU44)+SUM(AV38:AV44)-AV45)/60) -> 0 | AV45: =INT(60*SUM(AU38:AU44)+SUM(AV38:AV44)-60*INT((60*SUM(AU38:AU44)+SUM(AV38:AV44))/60)) -> 0 | AW45: =INT((60*SUM(AW38:AW44)+SUM(AX38:AX44)-AX45)/60) -> 0 | AX45: =INT(60*SUM(AW38:AW44)+SUM(AX38:AX44)-60*INT((60*SUM(AW38:AW44)+SUM(AX38:AX44))/60)) -> 0 | AY45: =INT((60*SUM(AY38:AY44)+SUM(AZ38:AZ44)-AZ45)/60) -> 0 | AZ45: =INT(60*SUM(AY38:AY44)+SUM(AZ38:AZ44)-60*INT((60*SUM(AY38:AY44)+SUM(AZ38:AZ44))/60)) -> 0 | BA45: =INT((60*SUM(BA38:BA44)+SUM(BB38:BB44)-BB45)/60) -> 0 | BB45: =INT(60*SUM(BA38:BA44)+SUM(BB38:BB44)-60*INT((60*SUM(BA38:BA44)+SUM(BB38:BB44))/60)) -> 0 | BC45: =INT((60*SUM(BC38:BC44)+SUM(BD38:BD44)-BD45)/60) -> 0 | BD45: =INT(60*SUM(BC38:BC44)+SUM(BD38:BD44)-60*INT((60*SUM(BC38:BC44)+SUM(BD38:BD44))/60)) -> 0 | BE45: =INT((60*SUM(BE38:BE44)+SUM(BF38:BF44)-BF45)/60) -> 0 | BF45: =INT(60*SUM(BE38:BE44)+SUM(BF38:BF44)-60*INT((60*SUM(BE38:BE44)+SUM(BF38:BF44))/60)) -> 0 | BG45: =INT((60*SUM(BG38:BG44)+SUM(BH38:BH44)-BH45)/60) -> 0 | BH45: =INT(60*SUM(BG38:BG44)+SUM(BH38:BH44)-60*INT((60*SUM(BG38:BG44)+SUM(BH38:BH44))/60)) -> 0
A47: =Einstellungen!$L$30 -> ab 6 Std. Arbeitszeit: Dauer min. | F47: =Einstellungen!$Q$30 -> 30 Min | G47: =IF(AND(E11>0,I47<>"",U47<>"f"),F11,0) -> 0 | H47: =IF(AND(I47<>"",U47<>"f"),1,0) -> 0 | I47: =IF(I44<>"",IF(MONTH(I44)=MONTH(I44+1),I44+1,""),"") ->  | J47: Mo | O47: =HOUR(N47-K47-(M47-L47)) -> 0 | P47: =MINUTE(N47-K47-(M47-L47)) -> 0 | V47: =IF(OR(U47="U",U47="k",U47="B"),$C$11,IF(S47>P47,O47-1-R47,O47-R47)) -> 0 | W47: =IF(OR(U47="U",U47="k",U47="B"),$D$11,IF(S47>P47,P47+60-S47,P47-S47)) -> 0 | X47: =IF(OR(U47="U",U47="K",U47="B"),0,V47) -> 0 | Y47: =IF(OR(U47="U",U47="K",U47="B"),0,W47) -> 0 | Z47: =INT(((SUM(AB47,AH47,AK47,AN47,AQ47,AS47,AU47,AW47,AY47,BA47,BC47,BE47,BG47)*100)+(SUM(AC47,AI47,AL47,AO47,AR47,AT47,AV47,AX47,AZ47,BB47,BD47,BF47,BH47)/60*100))/100) -> 0 | AA47: =MOD(((SUM(AC47,AI47,AL47,AO47,AR47,AT47,AV47,AX47,AZ47,BB47,BD47,BF47,BH47)*100)+(SUM(AC47,AI47,AL47,AO47,AR47,AT47,AV47,AX47,AZ47,BB47,BD47,BF47,BH47)/60*100))/100,1)*60 -> 0 | AD47: =INT(((SUM(AH47,AK47,AN47)*100)+SUM(AI47,AL47,AO47)/60*100)/100) -> 0 | AE47: =MOD(((SUM(AI47,AL47,AO47)*100)+(SUM(AI47,AL47,AO47)/60*100))/100,1)*60 -> 0 | AF47: =INT(((SUM(AQ47+AS47+AU47+AW47+AY47+BA47+BC47+BE47+BG47)*100)+SUM(AR47+AT47+AV47+AX47+AZ47+BB47+BD47+BF47+BH47)/60*100)/100) -> 0 | AG47: =MOD(((SUM(AR47+AT47+AV47+AX47+AZ47+BB47+BD47+BF47+BH47)*100)+(SUM(AR47+AT47+AV47+AX47+AZ47+BB47+BD47+BF47+BH47)/60*100))/100,1)*60 -> 0
A48: =Einstellungen!$L$31 -> ab 9 Std. (exklusiv Beamte) min. | F48: =Einstellungen!$Q$31 -> 45 Min | G48: =IF(AND(E12>0,I48<>"",U48<>"f"),F12,0) -> 0 | H48: =IF(AND(I48<>"",U48<>"f"),1,0) -> 0 | I48: =IF(I47<>"",IF(MONTH(I47)=MONTH(I47+1),I47+1,""),"") ->  | J48: Di | O48: 0 | P48: 0 | V48: =IF(OR(U48="U",U48="k",U48="B"),$C$12,IF(S48>P48,O48-1-R48,O48-R48)) -> 0 | W48: =IF(OR(U48="U",U48="k",U48="B"),$D$12,IF(S48>P48,P48+60-S48,P48-S48)) -> 0 | X48: 0 | Y48: 0 | Z48: 0 | AA48: 0 | AD48: 0 | AE48: 0 | AF48: 0 | AG48: 0
A49: =Einstellungen!$L$32 ->  | D49: =Einstellungen!$O$32 -> max. | F49: =Einstellungen!$Q$32 -> 120 Min | G49: =IF(AND(E13>0,I49<>"",U49<>"f"),F13,0) -> 0 | H49: =IF(AND(I49<>"",U49<>"f"),1,0) -> 0 | I49: =IF(I48<>"",IF(MONTH(I48)=MONTH(I48+1),I48+1,""),"") ->  | J49: Mi | O49: 0 | P49: 0 | V49: =IF(OR(U49="U",U49="k",U49="B"),$C$13,IF(S49>P49,O49-1-R49,O49-R49)) -> 0 | W49: =IF(OR(U49="U",U49="k",U49="B"),$D$13,IF(S49>P49,P49+60-S49,P49-S49)) -> 0 | X49: 0 | Y49: 0 | Z49: 0 | AA49: 0 | AD49: 0 | AE49: 0 | AF49: 0 | AG49: 0
A50: =Einstellungen!$L$33 -> tägliche Arbeitszeit | F50: =Einstellungen!$Q$33 -> 10 Std | G50: =IF(AND(E14>0,I50<>"",U50<>"f"),F14,0) -> 0 | H50: =IF(AND(I50<>"",U50<>"f"),1,0) -> 0 | J50: Do | O50: 0 | P50: 0 | V50: =IF(OR(U50="U",U50="k",U50="B"),$C$14,IF(S50>P50,O50-1-R50,O50-R50)) -> 0 | W50: =IF(OR(U50="U",U50="k",U50="B"),$D$14,IF(S50>P50,P50+60-S50,P50-S50)) -> 0 | X50: 0 | Y50: 0 | Z50: 0 | AA50: 0 | AD50: 0 | AE50: 0 | AF50: 0 | AG50: 0
A51: =Einstellungen!$L$34 -> *) beachte § 5 der Dienstvereinbarung vom 17.04.2024 über die Arbeitszeit der Beschäftigten der Universität Hohenheim | G51: =IF(AND(E15>0,I51<>"",U51<>"f"),F15,0) -> 0 | H51: =IF(AND(I51<>"",U51<>"f"),1,0) -> 0 | J51: Fr | O51: 0 | P51: 0 | V51: =IF(OR(U51="U",U51="k",U51="B"),$C$15,IF(S51>P51,O51-1-R51,O51-R51)) -> 0 | W51: =IF(OR(U51="U",U51="k",U51="B"),$D$15,IF(S51>P51,P51+60-S51,P51-S51)) -> 0 | X51: 0 | Y51: 0 | Z51: 0 | AA51: 0 | AD51: 0 | AE51: 0 | AF51: 0 | AG51: 0
J52: Sa | O52: 0 | P52: 0 | T52: nur dienstl. Sonderfälle!* | V52: =IF(S52>P52,O52-1-R52,O52-R52) -> 0 | W52: =IF(S52>P52,P52+60-S52,P52-S52) -> 0 | X52: 0 | Y52: 0 | Z52: 0 | AA52: 0 | AD52: 0 | AE52: 0 | AF52: 0 | AG52: 0
J53: So | O53: 0 | P53: 0 | T53: nur dienstl. Sonderfälle!* | V53: =IF(S53>P53,O53-1-R53,O53-R53) -> 0 | W53: =IF(S53>P53,P53+60-S53,P53-S53) -> 0 | X53: 0 | Y53: 0 | Z53: 0 | AA53: 0 | AD53: 0 | AE53: 0 | AF53: 0 | AG53: 0
V54: =INT((60*SUM(V47:V53)+SUM(W47:W53)-W54)/60) -> 0 | W54: =INT(60*SUM(V47:V53)+SUM(W47:W53)-60*INT((60*SUM(V47:V53)+SUM(W47:W53))/60)) -> 0 | X54: =INT((60*SUM(X47:X53)+SUM(Y47:Y53)-Y54)/60) -> 0 | Y54: =INT(60*SUM(X47:X53)+SUM(Y47:Y53)-60*INT((60*SUM(X47:X53)+SUM(Y47:Y53))/60)) -> 0 | Z54: =INT((60*SUM(Z47:Z53)+SUM(AA47:AA53)-AA54)/60) -> 0 | AA54: =INT(60*SUM(Z47:Z53)+SUM(AA47:AA53)-60*INT((60*SUM(Z47:Z53)+SUM(AA47:AA53))/60)) -> 0 | AB54: =INT((60*SUM(AB47:AB53)+SUM(AC47:AC53)-AC54)/60) -> 0 | AC54: =INT(60*SUM(AB47:AB53)+SUM(AC47:AC53)-60*INT((60*SUM(AB47:AB53)+SUM(AC47:AC53))/60)) -> 0 | AD54: =INT((60*SUM(AD47:AD53)+SUM(AE47:AE53)-AE54)/60) -> 0 | AE54: =INT(60*SUM(AD47:AD53)+SUM(AE47:AE53)-60*INT((60*SUM(AD47:AD53)+SUM(AE47:AE53))/60)) -> 0 | AF54: =INT((60*SUM(AF47:AF53)+SUM(AG47:AG53)-AG54)/60) -> 0 | AG54: =INT(60*SUM(AF47:AF53)+SUM(AG47:AG53)-60*INT((60*SUM(AF47:AF53)+SUM(AG47:AG53))/60)) -> 0 | AH54: =INT((60*SUM(AH47:AH53)+SUM(AI47:AI53)-AI54)/60) -> 0 | AI54: =INT(60*SUM(AH47:AH53)+SUM(AI47:AI53)-60*INT((60*SUM(AH47:AH53)+SUM(AI47:AI53))/60)) -> 0 | AK54: =INT((60*SUM(AK47:AK53)+SUM(AL47:AL53)-AL54)/60) -> 0 | AL54: =INT(60*SUM(AK47:AK53)+SUM(AL47:AL53)-60*INT((60*SUM(AK47:AK53)+SUM(AL47:AL53))/60)) -> 0 | AN54: =INT((60*SUM(AN47:AN53)+SUM(AO47:AO53)-AO54)/60) -> 0 | AO54: =INT(60*SUM(AN47:AN53)+SUM(AO47:AO53)-60*INT((60*SUM(AN47:AN53)+SUM(AO47:AO53))/60)) -> 0 | AQ54: =INT((60*SUM(AQ47:AQ53)+SUM(AR47:AR53)-AR54)/60) -> 0 | AR54: =INT(60*SUM(AQ47:AQ53)+SUM(AR47:AR53)-60*INT((60*SUM(AQ47:AQ53)+SUM(AR47:AR53))/60)) -> 0 | AS54: =INT((60*SUM(AS47:AS53)+SUM(AT47:AT53)-AT54)/60) -> 0 | AT54: =INT(60*SUM(AS47:AS53)+SUM(AT47:AT53)-60*INT((60*SUM(AS47:AS53)+SUM(AT47:AT53))/60)) -> 0 | AU54: =INT((60*SUM(AU47:AU53)+SUM(AV47:AV53)-AV54)/60) -> 0 | AV54: =INT(60*SUM(AU47:AU53)+SUM(AV47:AV53)-60*INT((60*SUM(AU47:AU53)+SUM(AV47:AV53))/60)) -> 0 | AW54: =INT((60*SUM(AW47:AW53)+SUM(AX47:AX53)-AX54)/60) -> 0 | AX54: =INT(60*SUM(AW47:AW53)+SUM(AX47:AX53)-60*INT((60*SUM(AW47:AW53)+SUM(AX47:AX53))/60)) -> 0 | AY54: =INT((60*SUM(AY47:AY53)+SUM(AZ47:AZ53)-AZ54)/60) -> 0 | AZ54: =INT(60*SUM(AY47:AY53)+SUM(AZ47:AZ53)-60*INT((60*SUM(AY47:AY53)+SUM(AZ47:AZ53))/60)) -> 0 | BA54: =INT((60*SUM(BA47:BA53)+SUM(BB47:BB53)-BB54)/60) -> 0 | BB54: =INT(60*SUM(BA47:BA53)+SUM(BB47:BB53)-60*INT((60*SUM(BA47:BA53)+SUM(BB47:BB53))/60)) -> 0 | BC54: =INT((60*SUM(BC47:BC53)+SUM(BD47:BD53)-BD54)/60) -> 0 | BD54: =INT(60*SUM(BC47:BC53)+SUM(BD47:BD53)-60*INT((60*SUM(BC47:BC53)+SUM(BD47:BD53))/60)) -> 0 | BE54: =INT((60*SUM(BE47:BE53)+SUM(BF47:BF53)-BF54)/60) -> 0 | BF54: =INT(60*SUM(BE47:BE53)+SUM(BF47:BF53)-60*INT((60*SUM(BE47:BE53)+SUM(BF47:BF53))/60)) -> 0 | BG54: =INT((60*SUM(BG47:BG53)+SUM(BH47:BH53)-BH54)/60) -> 0 | BH54: =INT(60*SUM(BG47:BG53)+SUM(BH47:BH53)-60*INT((60*SUM(BG47:BG53)+SUM(BH47:BH53))/60)) -> 0
G55: =SUM(G5:G53) -> 20 | H55: =SUM(H5:H53) -> 20 | I55: Februar | P55: =Einstellungen!A1 -> 2026 | X55: Summe: | Z55: Summe: | AB55: Summe: | AD55: Summe: | AF55: Summe: | AH55: =INT(((SUM(AH9,AH18,AH27,AH36,AH45,AH54)*100)+(SUM(AI9,AI18,AI27,AI36,AI45,AI54)/60*100))/100) -> 0 | AI55: =MOD(((SUM(AH9,AH18,AH27,AH36,AH45,AH54)*100)+(SUM(AI9,AI18,AI27,AI36,AI45,AI54)/60*100))/100,1)*60 -> 0 | AK55: =INT(((SUM(AK9,AK18,AK27,AK36,AK45,AK54)*100)+(SUM(AL9,AL18,AL27,AL36,AL45,AL54)/60*100))/100) -> 0 | AL55: =MOD(((SUM(AK9,AK18,AK27,AK36,AK45,AK54)*100)+(SUM(AL9,AL18,AL27,AL36,AL45,AL54)/60*100))/100,1)*60 -> 0 | AN55: =INT(((SUM(AN9,AN18,AN27,AN36,AN45,AN54)*100)+(SUM(AO9,AO18,AO27,AO36,AO45,AO54)/60*100))/100) -> 0 | AO55: =MOD(((SUM(AN9,AN18,AN27,AN36,AN45,AN54)*100)+(SUM(AO9,AO18,AO27,AO36,AO45,AO54)/60*100))/100,1)*60 -> 0 | AQ55: =INT(((SUM(AQ9,AQ18,AQ27,AQ36,AQ45,AQ54)*100)+(SUM(AR9,AR18,AR27,AR36,AR45,AR54)/60*100))/100) -> 0 | AR55: =MOD(((SUM(AQ9,AQ18,AQ27,AQ36,AQ45,AQ54)*100)+(SUM(AR9,AR18,AR27,AR36,AR45,AR54)/60*100))/100,1)*60 -> 0 | AS55: =INT(((SUM(AS9,AS18,AS27,AS36,AS45,AS54)*100)+(SUM(AT9,AT18,AT27,AT36,AT45,AT54)/60*100))/100) -> 0 | AT55: =MOD(((SUM(AS9,AS18,AS27,AS36,AS45,AS54)*100)+(SUM(AT9,AT18,AT27,AT36,AT45,AT54)/60*100))/100,1)*60 -> 0 | AU55: =INT(((SUM(AU9,AU18,AU27,AU36,AU45,AU54)*100)+(SUM(AV9,AV18,AV27,AV36,AV45,AV54)/60*100))/100) -> 0 | AV55: =MOD(((SUM(AU9,AU18,AU27,AU36,AU45,AU54)*100)+(SUM(AV9,AV18,AV27,AV36,AV45,AV54)/60*100))/100,1)*60 -> 0 | AW55: =INT(((SUM(AW9,AW18,AW27,AW36,AW45,AW54)*100)+(SUM(AX9,AX18,AX27,AX36,AX45,AX54)/60*100))/100) -> 0 | AX55: =MOD(((SUM(AW9,AW18,AW27,AW36,AW45,AW54)*100)+(SUM(AX9,AX18,AX27,AX36,AX45,AX54)/60*100))/100,1)*60 -> 0 | AY55: =INT(((SUM(AY9,AY18,AY27,AY36,AY45,AY54)*100)+(SUM(AZ9,AZ18,AZ27,AZ36,AZ45,AZ54)/60*100))/100) -> 0 | AZ55: =MOD(((SUM(AY9,AY18,AY27,AY36,AY45,AY54)*100)+(SUM(AZ9,AZ18,AZ27,AZ36,AZ45,AZ54)/60*100))/100,1)*60 -> 0 | BA55: =INT(((SUM(BA9,BA18,BA27,BA36,BA45,BA54)*100)+(SUM(BB9,BB18,BB27,BB36,BB45,BB54)/60*100))/100) -> 0 | BB55: =MOD(((SUM(BA9,BA18,BA27,BA36,BA45,BA54)*100)+(SUM(BB9,BB18,BB27,BB36,BB45,BB54)/60*100))/100,1)*60 -> 0 | BC55: =INT(((SUM(BC9,BC18,BC27,BC36,BC45,BC54)*100)+(SUM(BD9,BD18,BD27,BD36,BD45,BD54)/60*100))/100) -> 0 | BD55: =MOD(((SUM(BC9,BC18,BC27,BC36,BC45,BC54)*100)+(SUM(BD9,BD18,BD27,BD36,BD45,BD54)/60*100))/100,1)*60 -> 0 | BE55: =INT(((SUM(BE9,BE18,BE27,BE36,BE45,BE54)*100)+(SUM(BF9,BF18,BF27,BF36,BF45,BF54)/60*100))/100) -> 0 | BF55: =MOD(((SUM(BE9,BE18,BE27,BE36,BE45,BE54)*100)+(SUM(BF9,BF18,BF27,BF36,BF45,BF54)/60*100))/100,1)*60 -> 0 | BG55: =INT(((SUM(BG9,BG18,BG27,BG36,BG45,BG54)*100)+(SUM(BH9,BH18,BH27,BH36,BH45,BH54)/60*100))/100) -> 0 | BH55: =MOD(((SUM(BG9,BG18,BG27,BG36,BG45,BG54)*100)+(SUM(BH9,BH18,BH27,BH36,BH45,BH54)/60*100))/100,1)*60 -> 0
I56: Abrechnungsmonat | P56: Jahr | T56: Monatsarbeitszeit IST | V56: =INT((60*SUM(V54,V45,V36,V27,V18,V9)+SUM(W54,W45,W36,W27,W18,W9)-W56)/60) -> 0 | W56: =INT(60*SUM(V54,V45,V36,V27,V18,V9)+SUM(W54,W45,W36,W27,W18,W9)-60*INT((60*SUM(V54,V45,V36,V27,V18,V9)+SUM(W54,W45,W36,W27,W18,W9))/60)) -> 0 | X56: =INT((60*SUM(X54,X45,X36,X27,X18,X9)+SUM(Y54,Y45,Y36,Y27,Y18,Y9)-Y56)/60) -> 0 | Y56: =INT(60*SUM(X54,X45,X36,X27,X18,X9)+SUM(Y54,Y45,Y36,Y27,Y18,Y9)-60*INT((60*SUM(X54,X45,X36,X27,X18,X9)+SUM(Y54,Y45,Y36,Y27,Y18,Y9))/60)) -> 0 | Z56: =INT((60*SUM(Z54,Z45,Z36,Z27,Z18,Z9)+SUM(AA54,AA45,AA36,AA27,AA18,AA9)-AA56)/60) -> 0 | AA56: =INT(60*SUM(Z54,Z45,Z36,Z27,Z18,Z9)+SUM(AA54,AA45,AA36,AA27,AA18,AA9)-60*INT((60*SUM(Z54,Z45,Z36,Z27,Z18,Z9)+SUM(AA54,AA45,AA36,AA27,AA18,AA9))/60)) -> 0 | AB56: =INT((60*SUM(AB54,AB45,AB36,AB27,AB18,AB9)+SUM(AC54,AC45,AC36,AC27,AC18,AC9)-AC56)/60) -> 0 | AC56: =INT(60*SUM(AB54,AB45,AB36,AB27,AB18,AB9)+SUM(AC54,AC45,AC36,AC27,AC18,AC9)-60*INT((60*SUM(AB54,AB45,AB36,AB27,AB18,AB9)+SUM(AC54,AC45,AC36,AC27,AC18,AC9))/60)) -> 0 | AD56: =INT((60*SUM(AD54,AD45,AD36,AD27,AD18,AD9)+SUM(AE54,AE45,AE36,AE27,AE18,AE9)-AE56)/60) -> 0 | AE56: =INT(60*SUM(AD54,AD45,AD36,AD27,AD18,AD9)+SUM(AE54,AE45,AE36,AE27,AE18,AE9)-60*INT((60*SUM(AD54,AD45,AD36,AD27,AD18,AD9)+SUM(AE54,AE45,AE36,AE27,AE18,AE9))/60)) -> 0 | AF56: =INT((60*SUM(AF54,AF45,AF36,AF27,AF18,AF9)+SUM(AG54,AG45,AG36,AG27,AG18,AG9)-AG56)/60) -> 0 | AG56: =INT(60*SUM(AF54,AF45,AF36,AF27,AF18,AF9)+SUM(AG54,AG45,AG36,AG27,AG18,AG9)-60*INT((60*SUM(AF54,AF45,AF36,AF27,AF18,AF9)+SUM(AG54,AG45,AG36,AG27,AG18,AG9))/60)) -> 0
I57: =Einstellungen!K23 -> Franziska von Hohenheim | T57: Übertrag aus Vormonat (+/-) | U57: =IF(V57*W57<0,"!","") ->  | V57: =ROUND(Jan!V60,0) -> -158 | W57: =ROUND(Jan!W60,0) -> 0
I58: Name, Vorname | Q58: Datum | T58: Summe | V58: =ROUND(SIGN(V56+V57+(W56+W57)/60)*ROUNDDOWN(ABS(V56+V57+(W56+W57)/60),0),0) -> -158 | W58: =ROUND(SIGN(V56+V57+(W56+W57)/60)*(ABS(V56+V57+(W56+W57)/60)-ABS(V58))*60,0) -> 0
I59: =Einstellungen!$K$25 -> 630 | K59: =Einstellungen!K24 -> KIM | T59: Monatsarbeitszeit SOLL | V59: =SUM(Einstellungen!B4) -> 158 | W59: =SUM(Einstellungen!C4) -> 0
I60: Einr.-Nr. | K60: Abt. / FG | Q60: Name Leiter/in | T60: Zeitübertrag auf Folgemonat | U60: =IF(V60*W60<0,"!","") ->  | V60: =ROUND(SIGN(V58-V59+(W58-W59)/60)*ROUNDDOWN(ABS(V58-V59+(W58-W59)/60),0),0) -> -316 | W60: =ROUND(SIGN(V58-V59+(W58-W59)/60)*(ABS(V58-V59+(W58-W59)/60)-ABS(V60))*60,0) -> 0
T62: Summe Urlaubstage | V62: =SUMPRODUCT((U5:U6="U")*(E14:E15>0))+SUMPRODUCT((U11:U15="U")*(E11:E15>0))+SUMPRODUCT((U20:U24="U")*(E11:E15>0))+SUMPRODUCT((U29:U33="U")*(E11:E15>0))+SUMPRODUCT((U38:U42="U")*(E11:E15>0))+SUMPRODUCT((U47:U51="U")*(E11:E15>0)) -> 0
I63: Datum | K63: Unterschrift Mitarbeiter/in | Q63: Unterschrift Leiter/in | T63: alter / neuer Übertrag | V63: =IF(SUM(Einstellungen!K27:K30)>0,Jan!W63,"--- ") -> 30 | W63: =IF(SUM(Einstellungen!K27:K30)>0,V63-V62,"--- ") -> 30

Sheet März (hidden)
A1: =Einstellungen!A27 -> Universität Hohenheim KIM © 2026 | I1: Datum | K1: Arbeits- | N1: Arbeits- | O1: Arb.Zeit ohne | Q1: Sonstige Unterbrechungen | T1: Erläuterungen, Hinweise, | U1: U,K | V1: Reine Arb.- | X1: Productive | Z1: Productive | AB1: Sonstiges | AD1: Summe | AF1: Summe | AH1: =Projektdaten!D4 -> EU Projekt 1 | AK1: =Projektdaten!D6 -> EU Projekt 2 | AN1: =Projektdaten!D8 -> EU Projekt 3 | AQ1: =Projektdaten!D13 -> Projekt 1 | AS1: =Projektdaten!D15 -> Projekt 2 | AU1: =Projektdaten!D17 -> Projekt 3 | AW1: =Projektdaten!D19 -> Projekt 4 | AY1: =Projektdaten!D21 -> Projekt 5 | BA1: =Projektdaten!D23 -> Projekt 6 | BC1: =Projektdaten!D25 -> Projekt 7 | BE1: =Projektdaten!D27 -> Projekt 8 | BG1: =Projektdaten!D29 -> Projekt 9
A2: Arbeitszeitblatt | D2: =Einstellungen!A28 -> Version 5.12 | I2: Tag | J2: Wo- | K2: beginn | L2: Mittagspause | N2: ende | O2: Mittagspause | Q2: von - bis | R2: Gesamtdauer | T2: Vermerke, z.B. Dienstreise | U2: F,X | V2: Zeit | W2: IST | X2: Hours | Z2: Hours | AD2: EU- | AF2: andere
J3: tag | L3: von | M3: bis | O3: Std. | P3: Min. | R3: Std. | S3: Min. | T3: - non eligible - | U3: A,B | V3: Std. | W3: Min. | X3: i.S.d. EU | Z3: verteilt | AD3: Projekte | AF3: Projekte
X4: Std. | Y4: Min. | Z4: Std. | AA4: Min. | AB4: Std. | AC4: Min. | AD4: Std. | AE4: Min. | AF4: Std. | AG4: Min. | AH4: Std. | AI4: Min. | AJ4: Geleistete Arbeitspakete nach Annex 1 | AK4: Std. | AL4: Min. | AM4: Geleistete Arbeitspakete nach Annex 1 | AN4: Std. | AO4: Min. | AP4: Geleistete Arbeitspakete nach Annex 1 | AQ4: Std. | AR4: Min. | AS4: Std. | AT4: Min. | AU4: Std. | AV4: Min. | AW4: Std. | AX4: Min. | AY4: Std. | AZ4: Min. | BA4: Std. | BB4: Min. | BC4: Std. | BD4: Min. | BE4: Std. | BF4: Min. | BG4: Std. | BH4: Min.
F5: U | G5: =IF(AND(E14>0,I5<>"",U5<>"f"),1,0) -> 0 | H5: =IF(AND(I5<>"",U5<>"f"),1,0) -> 0 | I5: =IF(CHOOSE(WEEKDAY(Einstellungen!$A$5,2),"Mo","Di","Mi","Do","Fr","Sa","So")=J5,Einstellungen!$A$5,"") ->  | J5: Do | O5: =HOUR(N5-K5-(M5-L5)) -> 0 | P5: =MINUTE(N5-K5-(M5-L5)) -> 0 | V5: =IF(OR(U5="U",U5="k",U5="B"),$C$14,IF(S5>P5,O5-1-R5,O5-R5)) -> 0 | W5: =IF(OR(U5="U",U5="k",U5="B"),$D$14,IF(S5>P5,P5+60-S5,P5-S5)) -> 0 | X5: =IF(OR(U5="U",U5="K",U5="B"),0,V5) -> 0 | Y5: =IF(OR(U5="U",U5="K",U5="B"),0,W5) -> 0 | Z5: =INT(((SUM(AB5,AH5,AK5,AN5,AQ5,AS5,AU5,AW5,AY5,BA5,BC5,BE5,BG5)*100)+(SUM(AC5,AI5,AL5,AO5,AR5,AT5,AV5,AX5,AZ5,BB5,BD5,BF5,BH5)/60*100))/100) -> 0 | AA5: =MOD(((SUM(AC5,AI5,AL5,AO5,AR5,AT5,AV5,AX5,AZ5,BB5,BD5,BF5,BH5)*100)+(SUM(AC5,AI5,AL5,AO5,AR5,AT5,AV5,AX5,AZ5,BB5,BD5,BF5,BH5)/60*100))/100,1)*60 -> 0 | AD5: =INT(((SUM(AH5,AK5,AN5)*100)+SUM(AI5,AL5,AO5)/60*100)/100) -> 0 | AE5: =MOD(((SUM(AI5,AL5,AO5)*100)+(SUM(AI5,AL5,AO5)/60*100))/100,1)*60 -> 0 | AF5: =INT(((SUM(AQ5+AS5+AU5+AW5+AY5+BA5+BC5+BE5+BG5)*100)+SUM(AR5+AT5+AV5+AX5+AZ5+BB5+BD5+BF5+BH5)/60*100)/100) -> 0 | AG5: =MOD(((SUM(AR5+AT5+AV5+AX5+AZ5+BB5+BD5+BF5+BH5)*100)+(SUM(AR5+AT5+AV5+AX5+AZ5+BB5+BD5+BF5+BH5)/60*100))/100,1)*60 -> 0
F6: K | G6: =IF(AND(E15>0,I6<>"",U6<>"f"),F14,0) -> 0 | H6: =IF(AND(I6<>"",U6<>"f"),1,0) -> 0 | I6: =IF(I5<>"",I5+1,IF(CHOOSE(WEEKDAY(Einstellungen!$A$5,2),"Mo","Di","Mi","Do","Fr","Sa","So")=J6,Einstellungen!$A$5,"")) ->  | J6: Fr | O6: =HOUR(N6-K6-(M6-L6)) -> 0 | P6: =MINUTE(N6-K6-(M6-L6)) -> 0 | V6: =IF(OR(U6="U",U6="k",U6="B"),$C$15,IF(S6>P6,O6-1-R6,O6-R6)) -> 0 | W6: =IF(OR(U6="U",U6="k",U6="B"),$D$15,IF(S6>P6,P6+60-S6,P6-S6)) -> 0 | X6: =IF(OR(U6="U",U6="K",U6="B"),0,V6) -> 0 | Y6: =IF(OR(U6="U",U6="K",U6="B"),0,W6) -> 0 | Z6: =INT(((SUM(AB6,AH6,AK6,AN6,AQ6,AS6,AU6,AW6,AY6,BA6,BC6,BE6,BG6)*100)+(SUM(AC6,AI6,AL6,AO6,AR6,AT6,AV6,AX6,AZ6,BB6,BD6,BF6,BH6)/60*100))/100) -> 0 | AA6: =MOD(((SUM(AC6,AI6,AL6,AO6,AR6,AT6,AV6,AX6,AZ6,BB6,BD6,BF6,BH6)*100)+(SUM(AC6,AI6,AL6,AO6,AR6,AT6,AV6,AX6,AZ6,BB6,BD6,BF6,BH6)/60*100))/100,1)*60 -> 0 | AD6: =INT(((SUM(AH6,AK6,AN6)*100)+SUM(AI6,AL6,AO6)/60*100)/100) -> 0 | AE6: =MOD(((SUM(AI6,AL6,AO6)*100)+(SUM(AI6,AL6,AO6)/60*100))/100,1)*60 -> 0 | AF6: =INT(((SUM(AQ6+AS6+AU6+AW6+AY6+BA6+BC6+BE6+BG6)*100)+SUM(AR6+AT6+AV6+AX6+AZ6+BB6+BD6+BF6+BH6)/60*100)/100) -> 0 | AG6: =MOD(((SUM(AR6+AT6+AV6+AX6+AZ6+BB6+BD6+BF6+BH6)*100)+(SUM(AR6+AT6+AV6+AX6+AZ6+BB6+BD6+BF6+BH6)/60*100))/100,1)*60 -> 0
F7: A | G7: =IF(AND(E16>0,I7<>"",U7<>"f"),F15,0) -> 0 | I7: =IF(I6<>"",I6+1,IF(CHOOSE(WEEKDAY(Einstellungen!$A$5,2),"Mo","Di","Mi","Do","Fr","Sa","So")=J7,Einstellungen!$A$5,"")) ->  | J7: Sa | O7: =HOUR(N7-K7-(M7-L7)) -> 0 | P7: =MINUTE(N7-K7-(M7-L7)) -> 0 | T7: nur dienstl. Sonderfälle!* | V7: =IF(S7>P7,O7-1-R7,O7-R7) -> 0 | W7: =IF(S7>P7,P7+60-S7,P7-S7) -> 0 | X7: 0 | Y7: 0 | Z7: =INT(((SUM(AB7,AH7,AK7,AN7,AQ7,AS7,AU7,AW7,AY7,BA7,BC7,BE7,BG7)*100)+(SUM(AC7,AI7,AL7,AO7,AR7,AT7,AV7,AX7,AZ7,BB7,BD7,BF7,BH7)/60*100))/100) -> 0 | AA7: =MOD(((SUM(AC7,AI7,AL7,AO7,AR7,AT7,AV7,AX7,AZ7,BB7,BD7,BF7,BH7)*100)+(SUM(AC7,AI7,AL7,AO7,AR7,AT7,AV7,AX7,AZ7,BB7,BD7,BF7,BH7)/60*100))/100,1)*60 -> 0 | AD7: =INT(((SUM(AH7,AK7,AN7)*100)+SUM(AI7,AL7,AO7)/60*100)/100) -> 0 | AE7: =MOD(((SUM(AI7,AL7,AO7)*100)+(SUM(AI7,AL7,AO7)/60*100))/100,1)*60 -> 0 | AF7: =INT(((SUM(AQ7+AS7+AU7+AW7+AY7+BA7+BC7+BE7+BG7)*100)+SUM(AR7+AT7+AV7+AX7+AZ7+BB7+BD7+BF7+BH7)/60*100)/100) -> 0 | AG7: =MOD(((SUM(AR7+AT7+AV7+AX7+AZ7+BB7+BD7+BF7+BH7)*100)+(SUM(AR7+AT7+AV7+AX7+AZ7+BB7+BD7+BF7+BH7)/60*100))/100,1)*60 -> 0
A8: =IF(Einstellungen!D25>0.0005,"Bitte Werte prüfen","") ->  | F8: B | I8: =IF(I7<>"",I7+1,IF(CHOOSE(WEEKDAY(Einstellungen!$A$5,2),"Mo","Di","Mi","Do","Fr","Sa","So")=J8,Einstellungen!$A$5,"")) -> 2026-03-01 | J8: So | O8: =HOUR(N8-K8-(M8-L8)) -> 0 | P8: =MINUTE(N8-K8-(M8-L8)) -> 0 | T8: nur dienstl. Sonderfälle!* | V8: =IF(S8>P8,O8-1-R8,O8-R8) -> 0 | W8: =IF(S8>P8,P8+60-S8,P8-S8) -> 0 | X8: 0 | Y8: 0 | Z8: =INT(((SUM(AB8,AH8,AK8,AN8,AQ8,AS8,AU8,AW8,AY8,BA8,BC8,BE8,BG8)*100)+(SUM(AC8,AI8,AL8,AO8,AR8,AT8,AV8,AX8,AZ8,BB8,BD8,BF8,BH8)/60*100))/100) -> 0 | AA8: =MOD(((SUM(AC8,AI8,AL8,AO8,AR8,AT8,AV8,AX8,AZ8,BB8,BD8,BF8,BH8)*100)+(SUM(AC8,AI8,AL8,AO8,AR8,AT8,AV8,AX8,AZ8,BB8,BD8,BF8,BH8)/60*100))/100,1)*60 -> 0 | AD8: =INT(((SUM(AH8,AK8,AN8)*100)+SUM(AI8,AL8,AO8)/60*100)/100) -> 0 | AE8: =MOD(((SUM(AI8,AL8,AO8)*100)+(SUM(AI8,AL8,AO8)/60*100))/100,1)*60 -> 0 | AF8: =INT(((SUM(AQ8+AS8+AU8+AW8+AY8+BA8+BC8+BE8+BG8)*100)+SUM(AR8+AT8+AV8+AX8+AZ8+BB8+BD8+BF8+BH8)/60*100)/100) -> 0 | AG8: =MOD(((SUM(AR8+AT8+AV8+AX8+AZ8+BB8+BD8+BF8+BH8)*100)+(SUM(AR8+AT8+AV8+AX8+AZ8+BB8+BD8+BF8+BH8)/60*100))/100,1)*60 -> 0
A9: Meine tägl. Regelarbeitszeit: | F9: X | V9: =INT((60*SUM(V5:V8)+SUM(W5:W8)-W9)/60) -> 0 | W9: =INT(60*SUM(V5:V8)+SUM(W5:W8)-60*INT((60*SUM(V5:V8)+SUM(W5:W8))/60)) -> 0 | X9: =INT((60*SUM(X5:X8)+SUM(Y5:Y8)-Y9)/60) -> 0 | Y9: =INT(60*SUM(X5:X8)+SUM(Y5:Y8)-60*INT((60*SUM(X5:X8)+SUM(Y5:Y8))/60)) -> 0 | Z9: =INT((60*SUM(Z5:Z8)+SUM(AA5:AA8)-AA9)/60) -> 0 | AA9: =INT(60*SUM(Z5:Z8)+SUM(AA5:AA8)-60*INT((60*SUM(Z5:Z8)+SUM(AA5:AA8))/60)) -> 0 | AB9: =INT((60*SUM(AB5:AB8)+SUM(AC5:AC8)-AC9)/60) -> 0 | AC9: =INT(60*SUM(AB5:AB8)+SUM(AC5:AC8)-60*INT((60*SUM(AB5:AB8)+SUM(AC5:AC8))/60)) -> 0 | AD9: =INT((60*SUM(AD5:AD8)+SUM(AE5:AE8)-AE9)/60) -> 0 | AE9: =INT(60*SUM(AD5:AD8)+SUM(AE5:AE8)-60*INT((60*SUM(AD5:AD8)+SUM(AE5:AE8))/60)) -> 0 | AF9: =INT((60*SUM(AF5:AF8)+SUM(AG5:AG8)-AG9)/60) -> 0 | AG9: =INT(60*SUM(AF5:AF8)+SUM(AG5:AG8)-60*INT((60*SUM(AF5:AF8)+SUM(AG5:AG8))/60)) -> 0 | AH9: =INT((60*SUM(AH5:AH8)+SUM(AI5:AI8)-AI9)/60) -> 0 | AI9: =INT(60*SUM(AH5:AH8)+SUM(AI5:AI8)-60*INT((60*SUM(AH5:AH8)+SUM(AI5:AI8))/60)) -> 0 | AK9: =INT((60*SUM(AK5:AK8)+SUM(AL5:AL8)-AL9)/60) -> 0 | AL9: =INT(60*SUM(AK5:AK8)+SUM(AL5:AL8)-60*INT((60*SUM(AK5:AK8)+SUM(AL5:AL8))/60)) -> 0 | AN9: =INT((60*SUM(AN5:AN8)+SUM(AO5:AO8)-AO9)/60) -> 0 | AO9: =INT(60*SUM(AN5:AN8)+SUM(AO5:AO8)-60*INT((60*SUM(AN5:AN8)+SUM(AO5:AO8))/60)) -> 0 | AQ9: =INT((60*SUM(AQ5:AQ8)+SUM(AR5:AR8)-AR9)/60) -> 0 | AR9: =INT(60*SUM(AQ5:AQ8)+SUM(AR5:AR8)-60*INT((60*SUM(AQ5:AQ8)+SUM(AR5:AR8))/60)) -> 0 | AS9: =INT((60*SUM(AS5:AS8)+SUM(AT5:AT8)-AT9)/60) -> 0 | AT9: =INT(60*SUM(AS5:AS8)+SUM(AT5:AT8)-60*INT((60*SUM(AS5:AS8)+SUM(AT5:AT8))/60)) -> 0 | AU9: =INT((60*SUM(AU5:AU8)+SUM(AV5:AV8)-AV9)/60) -> 0 | AV9: =INT(60*SUM(AU5:AU8)+SUM(AV5:AV8)-60*INT((60*SUM(AU5:AU8)+SUM(AV5:AV8))/60)) -> 0 | AW9: =INT((60*SUM(AW5:AW8)+SUM(AX5:AX8)-AX9)/60) -> 0 | AX9: =INT(60*SUM(AW5:AW8)+SUM(AX5:AX8)-60*INT((60*SUM(AW5:AW8)+SUM(AX5:AX8))/60)) -> 0 | AY9: =INT((60*SUM(AY5:AY8)+SUM(AZ5:AZ8)-AZ9)/60) -> 0 | AZ9: =INT(60*SUM(AY5:AY8)+SUM(AZ5:AZ8)-60*INT((60*SUM(AY5:AY8)+SUM(AZ5:AZ8))/60)) -> 0 | BA9: =INT((60*SUM(BA5:BA8)+SUM(BB5:BB8)-BB9)/60) -> 0 | BB9: =INT(60*SUM(BA5:BA8)+SUM(BB5:BB8)-60*INT((60*SUM(BA5:BA8)+SUM(BB5:BB8))/60)) -> 0 | BC9: =INT((60*SUM(BC5:BC8)+SUM(BD5:BD8)-BD9)/60) -> 0 | BD9: =INT(60*SUM(BC5:BC8)+SUM(BD5:BD8)-60*INT((60*SUM(BC5:BC8)+SUM(BD5:BD8))/60)) -> 0 | BE9: =INT((60*SUM(BE5:BE8)+SUM(BF5:BF8)-BF9)/60) -> 0 | BF9: =INT(60*SUM(BE5:BE8)+SUM(BF5:BF8)-60*INT((60*SUM(BE5:BE8)+SUM(BF5:BF8))/60)) -> 0 | BG9: =INT((60*SUM(BG5:BG8)+SUM(BH5:BH8)-BH9)/60) -> 0 | BH9: =INT(60*SUM(BG5:BG8)+SUM(BH5:BH8)-60*INT((60*SUM(BG5:BG8)+SUM(BH5:BH8))/60)) -> 0
E10: =5-COUNTIF(E11:E15,0) -> 5 | F10: =(SUM(C11:C15)*60+SUM(D11:D15))/E10 -> 474
A11: Mo | B11: =IF(E11=0,"frei","") ->  | C11: =SUM(Einstellungen!C19) -> 7 | D11: =SUM(Einstellungen!D19) -> 54 | E11: =C11*60+D11 -> 474 | F11: =E11/$F$10 -> 1 | G11: =IF(AND(E11>0,I11<>"",U11<>"f"),F11,0) -> 1 | H11: =IF(AND(I11<>"",U11<>"f"),1,0) -> 1 | I11: =IF(I8<>"",I8+1,IF(CHOOSE(WEEKDAY(Einstellungen!$A$5,2),"Mo","Di","Mi","Do","Fr","Sa","So")=J11,Einstellungen!$A$5,"")) -> 2026-03-02 | J11: Mo | O11: =HOUR(N11-K11-(M11-L11)) -> 0 | P11: =MINUTE(N11-K11-(M11-L11)) -> 0 | V11: =IF(OR(U11="U",U11="k",U11="B"),$C$11,IF(S11>P11,O11-1-R11,O11-R11)) -> 0 | W11: =IF(OR(U11="U",U11="k",U11="B"),$D$11,IF(S11>P11,P11+60-S11,P11-S11)) -> 0 | X11: =IF(OR(U11="U",U11="K",U11="B"),0,V11) -> 0 | Y11: =IF(OR(U11="U",U11="K",U11="B"),0,W11) -> 0 | Z11: =INT(((SUM(AB11,AH11,AK11,AN11,AQ11,AS11,AU11,AW11,AY11,BA11,BC11,BE11,BG11)*100)+(SUM(AC11,AI11,AL11,AO11,AR11,AT11,AV11,AX11,AZ11,BB11,BD11,BF11,BH11)/60*100))/100) -> 0 | AA11: =MOD(((SUM(AC11,AI11,AL11,AO11,AR11,AT11,AV11,AX11,AZ11,BB11,BD11,BF11,BH11)*100)+(SUM(AC11,AI11,AL11,AO11,AR11,AT11,AV11,AX11,AZ11,BB11,BD11,BF11,BH11)/60*100))/100,1)*60 -> 0 | AD11: =INT(((SUM(AH11,AK11,AN11)*100)+SUM(AI11,AL11,AO11)/60*100)/100) -> 0 | AE11: =MOD(((SUM(AI11,AL11,AO11)*100)+(SUM(AI11,AL11,AO11)/60*100))/100,1)*60 -> 0 | AF11: =INT(((SUM(AQ11+AS11+AU11+AW11+AY11+BA11+BC11+BE11+BG11)*100)+SUM(AR11+AT11+AV11+AX11+AZ11+BB11+BD11+BF11+BH11)/60*100)/100) -> 0 | AG11: =MOD(((SUM(AR11+AT11+AV11+AX11+AZ11+BB11+BD11+BF11+BH11)*100)+(SUM(AR11+AT11+AV11+AX11+AZ11+BB11+BD11+BF11+BH11)/60*100))/100,1)*60 -> 0
A12: Di | B12: =IF(E12=0,"frei","") ->  | C12: =SUM(Einstellungen!C20) -> 7 | D12: =SUM(Einstellungen!D20) -> 54 | E12: =C12*60+D12 -> 474 | F12: =E12/$F$10 -> 1 | G12: =IF(AND(E12>0,I12<>"",U12<>"f"),F12,0) -> 1 | H12: =IF(AND(I12<>"",U12<>"f"),1,0) -> 1 | I12: =IF(I11<>"",I11+1,IF(CHOOSE(WEEKDAY(Einstellungen!$A$5,2),"Mo","Di","Mi","Do","Fr","Sa","So")=J12,Einstellungen!$A$5,"")) -> 2026-03-03 | J12: Di | O12: 0 | P12: 0 | V12: =IF(OR(U12="U",U12="k",U12="B"),$C$12,IF(S12>P12,O12-1-R12,O12-R12)) -> 0 | W12: =IF(OR(U12="U",U12="k",U12="B"),$D$12,IF(S12>P12,P12+60-S12,P12-S12)) -> 0 | X12: 0 | Y12: 0 | Z12: 0 | AA12: 0 | AD12: 0 | AE12: 0 | AF12: 0 | AG12: 0
A13: Mi | B13: =IF(E13=0,"frei","") ->  | C13: =SUM(Einstellungen!C21) -> 7 | D13: =SUM(Einstellungen!D21) -> 54 | E13: =C13*60+D13 -> 474 | F13: =E13/$F$10 -> 1 | G13: =IF(AND(E13>0,I13<>"",U13<>"f"),F13,0) -> 1 | H13: =IF(AND(I13<>"",U13<>"f"),1,0) -> 1 | I13: =IF(I12<>"",I12+1,IF(CHOOSE(WEEKDAY(Einstellungen!$A$5,2),"Mo","Di","Mi","Do","Fr","Sa","So")=J13,Einstellungen!$A$5,"")) -> 2026-03-04 | J13: Mi | O13: 0 | P13: 0 | V13: =IF(OR(U13="U",U13="k",U13="B"),$C$13,IF(S13>P13,O13-1-R13,O13-R13)) -> 0 | W13: =IF(OR(U13="U",U13="k",U13="B"),$D$13,IF(S13>P13,P13+60-S13,P13-S13)) -> 0 | X13: 0 | Y13: 0 | Z13: 0 | AA13: 0 | AD13: 0 | AE13: 0 | AF13: 0 | AG13: 0
A14: Do | B14: =IF(E14=0,"frei","") ->  | C14: =SUM(Einstellungen!C22) -> 7 | D14: =SUM(Einstellungen!D22) -> 54 | E14: =C14*60+D14 -> 474 | F14: =E14/$F$10 -> 1 | G14: =IF(AND(E14>0,I14<>"",U14<>"f"),F14,0) -> 1 | H14: =IF(AND(I14<>"",U14<>"f"),1,0) -> 1 | I14: =IF(I13<>"",I13+1,IF(CHOOSE(WEEKDAY(Einstellungen!$A$5,2),"Mo","Di","Mi","Do","Fr","Sa","So")=J14,Einstellungen!$A$5,"")) -> 2026-03-05 | J14: Do | O14: 0 | P14: 0 | V14: =IF(OR(U14="U",U14="k",U14="B"),$C$14,IF(S14>P14,O14-1-R14,O14-R14)) -> 0 | W14: =IF(OR(U14="U",U14="k",U14="B"),$D$14,IF(S14>P14,P14+60-S14,P14-S14)) -> 0 | X14: 0 | Y14: 0 | Z14: 0 | AA14: 0 | AD14: 0 | AE14: 0 | AF14: 0 | AG14: 0
A15: Fr | B15: =IF(E15=0,"frei","") ->  | C15: =SUM(Einstellungen!C23) -> 7 | D15: =SUM(Einstellungen!D23) -> 54 | E15: =C15*60+D15 -> 474 | F15: =E15/$F$10 -> 1 | G15: =IF(AND(E15>0,I15<>"",U15<>"f"),F15,0) -> 1 | H15: =IF(AND(I15<>"",U15<>"f"),1,0) -> 1 | I15: =I14+1 -> 2026-03-06 | J15: Fr | O15: 0 | P15: 0 | V15: =IF(OR(U15="U",U15="k",U15="B"),$C$15,IF(S15>P15,O15-1-R15,O15-R15)) -> 0 | W15: =IF(OR(U15="U",U15="k",U15="B"),$D$15,IF(S15>P15,P15+60-S15,P15-S15)) -> 0 | X15: 0 | Y15: 0 | Z15: 0 | AA15: 0 | AD15: 0 | AE15: 0 | AF15: 0 | AG15: 0
A16: =Einstellungen!$L$1 -> Hinweise: | I16: =I15+1 -> 2026-03-07 | J16: Sa | O16: 0 | P16: 0 | T16: nur dienstl. Sonderfälle!* | V16: =IF(S16>P16,O16-1-R16,O16-R16) -> 0 | W16: =IF(S16>P16,P16+60-S16,P16-S16) -> 0 | X16: 0 | Y16: 0 | Z16: 0 | AA16: 0 | AD16: 0 | AE16: 0 | AF16: 0 | AG16: 0
A17: =Einstellungen!$L$2 -> I Beschäftigte mit 39,5 Std-Woche | I17: =I16+1 -> 2026-03-08 | J17: So | O17: 0 | P17: 0 | T17: nur dienstl. Sonderfälle!* | V17: =IF(S17>P17,O17-1-R17,O17-R17) -> 0 | W17: =IF(S17>P17,P17+60-S17,P17-S17) -> 0 | X17: 0 | Y17: 0 | Z17: 0 | AA17: 0 | AD17: 0 | AE17: 0 | AF17: 0 | AG17: 0
A18: =Einstellungen!$L$3 ->  | C18: =Einstellungen!$N$3 -> Beschäftigungsumfang | V18: =INT((60*SUM(V11:V17)+SUM(W11:W17)-W18)/60) -> 0 | W18: =INT(60*SUM(V11:V17)+SUM(W11:W17)-60*INT((60*SUM(V11:V17)+SUM(W11:W17))/60)) -> 0 | X18: =INT((60*SUM(X11:X17)+SUM(Y11:Y17)-Y18)/60) -> 0 | Y18: =INT(60*SUM(X11:X17)+SUM(Y11:Y17)-60*INT((60*SUM(X11:X17)+SUM(Y11:Y17))/60)) -> 0 | Z18: =INT((60*SUM(Z11:Z17)+SUM(AA11:AA17)-AA18)/60) -> 0 | AA18: =INT(60*SUM(Z11:Z17)+SUM(AA11:AA17)-60*INT((60*SUM(Z11:Z17)+SUM(AA11:AA17))/60)) -> 0 | AB18: =INT((60*SUM(AB11:AB17)+SUM(AC11:AC17)-AC18)/60) -> 0 | AC18: =INT(60*SUM(AB11:AB17)+SUM(AC11:AC17)-60*INT((60*SUM(AB11:AB17)+SUM(AC11:AC17))/60)) -> 0 | AD18: =INT((60*SUM(AD11:AD17)+SUM(AE11:AE17)-AE18)/60) -> 0 | AE18: =INT(60*SUM(AD11:AD17)+SUM(AE11:AE17)-60*INT((60*SUM(AD11:AD17)+SUM(AE11:AE17))/60)) -> 0 | AF18: =INT((60*SUM(AF11:AF17)+SUM(AG11:AG17)-AG18)/60) -> 0 | AG18: =INT(60*SUM(AF11:AF17)+SUM(AG11:AG17)-60*INT((60*SUM(AF11:AF17)+SUM(AG11:AG17))/60)) -> 0 | AH18: =INT((60*SUM(AH11:AH17)+SUM(AI11:AI17)-AI18)/60) -> 0 | AI18: =INT(60*SUM(AH11:AH17)+SUM(AI11:AI17)-60*INT((60*SUM(AH11:AH17)+SUM(AI11:AI17))/60)) -> 0 | AK18: =INT((60*SUM(AK11:AK17)+SUM(AL11:AL17)-AL18)/60) -> 0 | AL18: =INT(60*SUM(AK11:AK17)+SUM(AL11:AL17)-60*INT((60*SUM(AK11:AK17)+SUM(AL11:AL17))/60)) -> 0 | AN18: =INT((60*SUM(AN11:AN17)+SUM(AO11:AO17)-AO18)/60) -> 0 | AO18: =INT(60*SUM(AN11:AN17)+SUM(AO11:AO17)-60*INT((60*SUM(AN11:AN17)+SUM(AO11:AO17))/60)) -> 0 | AQ18: =INT((60*SUM(AQ11:AQ17)+SUM(AR11:AR17)-AR18)/60) -> 0 | AR18: =INT(60*SUM(AQ11:AQ17)+SUM(AR11:AR17)-60*INT((60*SUM(AQ11:AQ17)+SUM(AR11:AR17))/60)) -> 0 | AS18: =INT((60*SUM(AS11:AS17)+SUM(AT11:AT17)-AT18)/60) -> 0 | AT18: =INT(60*SUM(AS11:AS17)+SUM(AT11:AT17)-60*INT((60*SUM(AS11:AS17)+SUM(AT11:AT17))/60)) -> 0 | AU18: =INT((60*SUM(AU11:AU17)+SUM(AV11:AV17)-AV18)/60) -> 0 | AV18: =INT(60*SUM(AU11:AU17)+SUM(AV11:AV17)-60*INT((60*SUM(AU11:AU17)+SUM(AV11:AV17))/60)) -> 0 | AW18: =INT((60*SUM(AW11:AW17)+SUM(AX11:AX17)-AX18)/60) -> 0 | AX18: =INT(60*SUM(AW11:AW17)+SUM(AX11:AX17)-60*INT((60*SUM(AW11:AW17)+SUM(AX11:AX17))/60)) -> 0 | AY18: =INT((60*SUM(AY11:AY17)+SUM(AZ11:AZ17)-AZ18)/60) -> 0 | AZ18: =INT(60*SUM(AY11:AY17)+SUM(AZ11:AZ17)-60*INT((60*SUM(AY11:AY17)+SUM(AZ11:AZ17))/60)) -> 0 | BA18: =INT((60*SUM(BA11:BA17)+SUM(BB11:BB17)-BB18)/60) -> 0 | BB18: =INT(60*SUM(BA11:BA17)+SUM(BB11:BB17)-60*INT((60*SUM(BA11:BA17)+SUM(BB11:BB17))/60)) -> 0 | BC18: =INT((60*SUM(BC11:BC17)+SUM(BD11:BD17)-BD18)/60) -> 0 | BD18: =INT(60*SUM(BC11:BC17)+SUM(BD11:BD17)-60*INT((60*SUM(BC11:BC17)+SUM(BD11:BD17))/60)) -> 0 | BE18: =INT((60*SUM(BE11:BE17)+SUM(BF11:BF17)-BF18)/60) -> 0 | BF18: =INT(60*SUM(BE11:BE17)+SUM(BF11:BF17)-60*INT((60*SUM(BE11:BE17)+SUM(BF11:BF17))/60)) -> 0 | BG18: =INT((60*SUM(BG11:BG17)+SUM(BH11:BH17)-BH18)/60) -> 0 | BH18: =INT(60*SUM(BG11:BG17)+SUM(BH11:BH17)-60*INT((60*SUM(BG11:BG17)+SUM(BH11:BH17))/60)) -> 0
A20: =Einstellungen!$L$4 -> 5 Tage-Woche | C20: =Einstellungen!$N$4 -> 1 | D20: =Einstellungen!$O$4 -> 0.75 | F20: =Einstellungen!$Q$4 -> 0.5 | G20: =IF(AND(E11>0,I20<>"",U20<>"f"),F11,0) -> 1 | H20: =IF(AND(I20<>"",U20<>"f"),1,0) -> 1 | I20: =I17+1 -> 2026-03-09 | J20: Mo | O20: =HOUR(N20-K20-(M20-L20)) -> 0 | P20: =MINUTE(N20-K20-(M20-L20)) -> 0 | V20: =IF(OR(U20="U",U20="k",U20="B"),$C$11,IF(S20>P20,O20-1-R20,O20-R20)) -> 0 | W20: =IF(OR(U20="U",U20="k",U20="B"),$D$11,IF(S20>P20,P20+60-S20,P20-S20)) -> 0 | X20: =IF(OR(U20="U",U20="K",U20="B"),0,V20) -> 0 | Y20: =IF(OR(U20="U",U20="K",U20="B"),0,W20) -> 0 | Z20: =INT(((SUM(AB20,AH20,AK20,AN20,AQ20,AS20,AU20,AW20,AY20,BA20,BC20,BE20,BG20)*100)+(SUM(AC20,AI20,AL20,AO20,AR20,AT20,AV20,AX20,AZ20,BB20,BD20,BF20,BH20)/60*100))/100) -> 0 | AA20: =MOD(((SUM(AC20,AI20,AL20,AO20,AR20,AT20,AV20,AX20,AZ20,BB20,BD20,BF20,BH20)*100)+(SUM(AC20,AI20,AL20,AO20,AR20,AT20,AV20,AX20,AZ20,BB20,BD20,BF20,BH20)/60*100))/100,1)*60 -> 0 | AD20: =INT(((SUM(AH20,AK20,AN20)*100)+SUM(AI20,AL20,AO20)/60*100)/100) -> 0 | AE20: =MOD(((SUM(AI20,AL20,AO20)*100)+(SUM(AI20,AL20,AO20)/60*100))/100,1)*60 -> 0 | AF20: =INT(((SUM(AQ20+AS20+AU20+AW20+AY20+BA20+BC20+BE20+BG20)*100)+SUM(AR20+AT20+AV20+AX20+AZ20+BB20+BD20+BF20+BH20)/60*100)/100) -> 0 | AG20: =MOD(((SUM(AR20+AT20+AV20+AX20+AZ20+BB20+BD20+BF20+BH20)*100)+(SUM(AR20+AT20+AV20+AX20+AZ20+BB20+BD20+BF20+BH20)/60*100))/100,1)*60 -> 0
A21: =Einstellungen!$L$5 ->  | G21: =IF(AND(E12>0,I21<>"",U21<>"f"),F12,0) -> 1 | H21: =IF(AND(I21<>"",U21<>"f"),1,0) -> 1 | I21: =I20+1 -> 2026-03-10 | J21: Di | O21: 0 | P21: 0 | V21: =IF(OR(U21="U",U21="k",U21="B"),$C$12,IF(S21>P21,O21-1-R21,O21-R21)) -> 0 | W21: =IF(OR(U21="U",U21="k",U21="B"),$D$12,IF(S21>P21,P21+60-S21,P21-S21)) -> 0 | X21: 0 | Y21: 0 | Z21: 0 | AA21: 0 | AD21: 0 | AE21: 0 | AF21: 0 | AG21: 0
A22: =Einstellungen!$L$6 -> tägliche Regel- | G22: =IF(AND(E13>0,I22<>"",U22<>"f"),F13,0) -> 1 | H22: =IF(AND(I22<>"",U22<>"f"),1,0) -> 1 | I22: =I21+1 -> 2026-03-11 | J22: Mi | O22: 0 | P22: 0 | V22: =IF(OR(U22="U",U22="k",U22="B"),$C$13,IF(S22>P22,O22-1-R22,O22-R22)) -> 0 | W22: =IF(OR(U22="U",U22="k",U22="B"),$D$13,IF(S22>P22,P22+60-S22,P22-S22)) -> 0 | X22: 0 | Y22: 0 | Z22: 0 | AA22: 0 | AD22: 0 | AE22: 0 | AF22: 0 | AG22: 0
A23: =Einstellungen!$L$7 -> arbeitszeit für | G23: =IF(AND(E14>0,I23<>"",U23<>"f"),F14,0) -> 1 | H23: =IF(AND(I23<>"",U23<>"f"),1,0) -> 1 | I23: 2026-03-12 | J23: Do | O23: 0 | P23: 0 | V23: =IF(OR(U23="U",U23="k",U23="B"),$C$14,IF(S23>P23,O23-1-R23,O23-R23)) -> 0 | W23: =IF(OR(U23="U",U23="k",U23="B"),$D$14,IF(S23>P23,P23+60-S23,P23-S23)) -> 0 | X23: 0 | Y23: 0 | Z23: 0 | AA23: 0 | AD23: 0 | AE23: 0 | AF23: 0 | AG23: 0
A24: =Einstellungen!$L$8 -> Wochenfeier- | G24: =IF(AND(E15>0,I24<>"",U24<>"f"),F15,0) -> 1 | H24: =IF(AND(I24<>"",U24<>"f"),1,0) -> 1 | I24: 2026-03-13 | J24: Fr | O24: 0 | P24: 0 | V24: =IF(OR(U24="U",U24="k",U24="B"),$C$15,IF(S24>P24,O24-1-R24,O24-R24)) -> 0 | W24: =IF(OR(U24="U",U24="k",U24="B"),$D$15,IF(S24>P24,P24+60-S24,P24-S24)) -> 0 | X24: 0 | Y24: 0 | Z24: 0 | AA24: 0 | AD24: 0 | AE24: 0 | AF24: 0 | AG24: 0
A25: =Einstellungen!$L$9 -> tage, bei Urlaub | I25: 2026-03-14 | J25: Sa | O25: 0 | P25: 0 | T25: nur dienstl. Sonderfälle!* | V25: =IF(S25>P25,O25-1-R25,O25-R25) -> 0 | W25: =IF(S25>P25,P25+60-S25,P25-S25) -> 0 | X25: 0 | Y25: 0 | Z25: 0 | AA25: 0 | AD25: 0 | AE25: 0 | AF25: 0 | AG25: 0
A26: =Einstellungen!$L$10 -> oder Krankheit | I26: 2026-03-15 | J26: So | O26: 0 | P26: 0 | T26: nur dienstl. Sonderfälle!* | V26: =IF(S26>P26,O26-1-R26,O26-R26) -> 0 | W26: =IF(S26>P26,P26+60-S26,P26-S26) -> 0 | X26: 0 | Y26: 0 | Z26: 0 | AA26: 0 | AD26: 0 | AE26: 0 | AF26: 0 | AG26: 0
A27: =Einstellungen!$L$11 -> Mo-Fr | B27: =Einstellungen!$M$11 -> Std.Min | C27: =Einstellungen!$N$11 -> 7.54 | D27: =Einstellungen!$O$11 -> 5.56 | F27: =Einstellungen!$Q$11 -> 3.57 | V27: =INT((60*SUM(V20:V26)+SUM(W20:W26)-W27)/60) -> 0 | W27: =INT(60*SUM(V20:V26)+SUM(W20:W26)-60*INT((60*SUM(V20:V26)+SUM(W20:W26))/60)) -> 0 | X27: =INT((60*SUM(X20:X26)+SUM(Y20:Y26)-Y27)/60) -> 0 | Y27: =INT(60*SUM(X20:X26)+SUM(Y20:Y26)-60*INT((60*SUM(X20:X26)+SUM(Y20:Y26))/60)) -> 0 | Z27: =INT((60*SUM(Z20:Z26)+SUM(AA20:AA26)-AA27)/60) -> 0 | AA27: =INT(60*SUM(Z20:Z26)+SUM(AA20:AA26)-60*INT((60*SUM(Z20:Z26)+SUM(AA20:AA26))/60)) -> 0 | AB27: =INT((60*SUM(AB20:AB26)+SUM(AC20:AC26)-AC27)/60) -> 0 | AC27: =INT(60*SUM(AB20:AB26)+SUM(AC20:AC26)-60*INT((60*SUM(AB20:AB26)+SUM(AC20:AC26))/60)) -> 0 | AD27: =INT((60*SUM(AD20:AD26)+SUM(AE20:AE26)-AE27)/60) -> 0 | AE27: =INT(60*SUM(AD20:AD26)+SUM(AE20:AE26)-60*INT((60*SUM(AD20:AD26)+SUM(AE20:AE26))/60)) -> 0 | AF27: =INT((60*SUM(AF20:AF26)+SUM(AG20:AG26)-AG27)/60) -> 0 | AG27: =INT(60*SUM(AF20:AF26)+SUM(AG20:AG26)-60*INT((60*SUM(AF20:AF26)+SUM(AG20:AG26))/60)) -> 0 | AH27: =INT((60*SUM(AH20:AH26)+SUM(AI20:AI26)-AI27)/60) -> 0 | AI27: =INT(60*SUM(AH20:AH26)+SUM(AI20:AI26)-60*INT((60*SUM(AH20:AH26)+SUM(AI20:AI26))/60)) -> 0 | AK27: =INT((60*SUM(AK20:AK26)+SUM(AL20:AL26)-AL27)/60) -> 0 | AL27: =INT(60*SUM(AK20:AK26)+SUM(AL20:AL26)-60*INT((60*SUM(AK20:AK26)+SUM(AL20:AL26))/60)) -> 0 | AN27: =INT((60*SUM(AN20:AN26)+SUM(AO20:AO26)-AO27)/60) -> 0 | AO27: =INT(60*SUM(AN20:AN26)+SUM(AO20:AO26)-60*INT((60*SUM(AN20:AN26)+SUM(AO20:AO26))/60)) -> 0 | AQ27: =INT((60*SUM(AQ20:AQ26)+SUM(AR20:AR26)-AR27)/60) -> 0 | AR27: =INT(60*SUM(AQ20:AQ26)+SUM(AR20:AR26)-60*INT((60*SUM(AQ20:AQ26)+SUM(AR20:AR26))/60)) -> 0 | AS27: =INT((60*SUM(AS20:AS26)+SUM(AT20:AT26)-AT27)/60) -> 0 | AT27: =INT(60*SUM(AS20:AS26)+SUM(AT20:AT26)-60*INT((60*SUM(AS20:AS26)+SUM(AT20:AT26))/60)) -> 0 | AU27: =INT((60*SUM(AU20:AU26)+SUM(AV20:AV26)-AV27)/60) -> 0 | AV27: =INT(60*SUM(AU20:AU26)+SUM(AV20:AV26)-60*INT((60*SUM(AU20:AU26)+SUM(AV20:AV26))/60)) -> 0 | AW27: =INT((60*SUM(AW20:AW26)+SUM(AX20:AX26)-AX27)/60) -> 0 | AX27: =INT(60*SUM(AW20:AW26)+SUM(AX20:AX26)-60*INT((60*SUM(AW20:AW26)+SUM(AX20:AX26))/60)) -> 0 | AY27: =INT((60*SUM(AY20:AY26)+SUM(AZ20:AZ26)-AZ27)/60) -> 0 | AZ27: =INT(60*SUM(AY20:AY26)+SUM(AZ20:AZ26)-60*INT((60*SUM(AY20:AY26)+SUM(AZ20:AZ26))/60)) -> 0 | BA27: =INT((60*SUM(BA20:BA26)+SUM(BB20:BB26)-BB27)/60) -> 0 | BB27: =INT(60*SUM(BA20:BA26)+SUM(BB20:BB26)-60*INT((60*SUM(BA20:BA26)+SUM(BB20:BB26))/60)) -> 0 | BC27: =INT((60*SUM(BC20:BC26)+SUM(BD20:BD26)-BD27)/60) -> 0 | BD27: =INT(60*SUM(BC20:BC26)+SUM(BD20:BD26)-60*INT((60*SUM(BC20:BC26)+SUM(BD20:BD26))/60)) -> 0 | BE27: =INT((60*SUM(BE20:BE26)+SUM(BF20:BF26)-BF27)/60) -> 0 | BF27: =INT(60*SUM(BE20:BE26)+SUM(BF20:BF26)-60*INT((60*SUM(BE20:BE26)+SUM(BF20:BF26))/60)) -> 0 | BG27: =INT((60*SUM(BG20:BG26)+SUM(BH20:BH26)-BH27)/60) -> 0 | BH27: =INT(60*SUM(BG20:BG26)+SUM(BH20:BH26)-60*INT((60*SUM(BG20:BG26)+SUM(BH20:BH26))/60)) -> 0
A29: =Einstellungen!$L$13 -> Wochen | G29: =IF(AND(E11>0,I29<>"",U29<>"f"),F11,0) -> 1 | H29: =IF(AND(I29<>"",U29<>"f"),1,0) -> 1 | I29: =I26+1 -> 2026-03-16 | J29: Mo | O29: =HOUR(N29-K29-(M29-L29)) -> 0 | P29: =MINUTE(N29-K29-(M29-L29)) -> 0 | V29: =IF(OR(U29="U",U29="k",U29="B"),$C$11,IF(S29>P29,O29-1-R29,O29-R29)) -> 0 | W29: =IF(OR(U29="U",U29="k",U29="B"),$D$11,IF(S29>P29,P29+60-S29,P29-S29)) -> 0 | X29: =IF(OR(U29="U",U29="K",U29="B"),0,V29) -> 0 | Y29: =IF(OR(U29="U",U29="K",U29="B"),0,W29) -> 0 | Z29: =INT(((SUM(AB29,AH29,AK29,AN29,AQ29,AS29,AU29,AW29,AY29,BA29,BC29,BE29,BG29)*100)+(SUM(AC29,AI29,AL29,AO29,AR29,AT29,AV29,AX29,AZ29,BB29,BD29,BF29,BH29)/60*100))/100) -> 0 | AA29: =MOD(((SUM(AC29,AI29,AL29,AO29,AR29,AT29,AV29,AX29,AZ29,BB29,BD29,BF29,BH29)*100)+(SUM(AC29,AI29,AL29,AO29,AR29,AT29,AV29,AX29,AZ29,BB29,BD29,BF29,BH29)/60*100))/100,1)*60 -> 0 | AD29: =INT(((SUM(AH29,AK29,AN29)*100)+SUM(AI29,AL29,AO29)/60*100)/100) -> 0 | AE29: =MOD(((SUM(AI29,AL29,AO29)*100)+(SUM(AI29,AL29,AO29)/60*100))/100,1)*60 -> 0 | AF29: =INT(((SUM(AQ29+AS29+AU29+AW29+AY29+BA29+BC29+BE29+BG29)*100)+SUM(AR29+AT29+AV29+AX29+AZ29+BB29+BD29+BF29+BH29)/60*100)/100) -> 0 | AG29: =MOD(((SUM(AR29+AT29+AV29+AX29+AZ29+BB29+BD29+BF29+BH29)*100)+(SUM(AR29+AT29+AV29+AX29+AZ29+BB29+BD29+BF29+BH29)/60*100))/100,1)*60 -> 0
A30: =CONCATENATE(Einstellungen!$L$14," ",Einstellungen!$M$14) -> Arbeitzeit Std.Min | C30: =Einstellungen!$N$14 -> 39.30 | D30: =Einstellungen!$O$14 -> 29.38 | F30: =Einstellungen!$Q$14 -> 19.45 | G30: =IF(AND(E12>0,I30<>"",U30<>"f"),F12,0) -> 1 | H30: =IF(AND(I30<>"",U30<>"f"),1,0) -> 1 | I30: =I29+1 -> 2026-03-17 | J30: Di | O30: 0 | P30: 0 | V30: =IF(OR(U30="U",U30="k",U30="B"),$C$12,IF(S30>P30,O30-1-R30,O30-R30)) -> 0 | W30: =IF(OR(U30="U",U30="k",U30="B"),$D$12,IF(S30>P30,P30+60-S30,P30-S30)) -> 0 | X30: 0 | Y30: 0 | Z30: 0 | AA30: 0 | AD30: 0 | AE30: 0 | AF30: 0 | AG30: 0
A31: =Einstellungen!$L$15 -> max.Übertrag auf das | G31: =IF(AND(E13>0,I31<>"",U31<>"f"),F13,0) -> 1 | H31: =IF(AND(I31<>"",U31<>"f"),1,0) -> 1 | I31: =I30+1 -> 2026-03-18 | J31: Mi | O31: 0 | P31: 0 | V31: =IF(OR(U31="U",U31="k",U31="B"),$C$13,IF(S31>P31,O31-1-R31,O31-R31)) -> 0 | W31: =IF(OR(U31="U",U31="k",U31="B"),$D$13,IF(S31>P31,P31+60-S31,P31-S31)) -> 0 | X31: 0 | Y31: 0 | Z31: 0 | AA31: 0 | AD31: 0 | AE31: 0 | AF31: 0 | AG31: 0
A32: =Einstellungen!$L$16 -> Folgejahr Std.Min | C32: =Einstellungen!$N$16 -> 39.30 | D32: =Einstellungen!$O$16 -> 39.30 | F32: =Einstellungen!$Q$16 -> 39.30 | G32: =IF(AND(E14>0,I32<>"",U32<>"f"),F14,0) -> 1 | H32: =IF(AND(I32<>"",U32<>"f"),1,0) -> 1 | I32: 2026-03-19 | J32: Do | O32: 0 | P32: 0 | V32: =IF(OR(U32="U",U32="k",U32="B"),$C$14,IF(S32>P32,O32-1-R32,O32-R32)) -> 0 | W32: =IF(OR(U32="U",U32="k",U32="B"),$D$14,IF(S32>P32,P32+60-S32,P32-S32)) -> 0 | X32: 0 | Y32: 0 | Z32: 0 | AA32: 0 | AD32: 0 | AE32: 0 | AF32: 0 | AG32: 0
A33: =Einstellungen!$L$17 -> II Beschäftigte mit 41 Std-Woche | G33: =IF(AND(E15>0,I33<>"",U33<>"f"),F15,0) -> 1 | H33: =IF(AND(I33<>"",U33<>"f"),1,0) -> 1 | I33: 2026-03-20 | J33: Fr | O33: 0 | P33: 0 | V33: =IF(OR(U33="U",U33="k",U33="B"),$C$15,IF(S33>P33,O33-1-R33,O33-R33)) -> 0 | W33: =IF(OR(U33="U",U33="k",U33="B"),$D$15,IF(S33>P33,P33+60-S33,P33-S33)) -> 0 | X33: 0 | Y33: 0 | Z33: 0 | AA33: 0 | AD33: 0 | AE33: 0 | AF33: 0 | AG33: 0
A34: =Einstellungen!$L$18 -> tägliche Arbeitszeit | I34: 2026-03-21 | J34: Sa | O34: 0 | P34: 0 | T34: nur dienstl. Sonderfälle!* | V34: =IF(S34>P34,O34-1-R34,O34-R34) -> 0 | W34: =IF(S34>P34,P34+60-S34,P34-S34) -> 0 | X34: 0 | Y34: 0 | Z34: 0 | AA34: 0 | AD34: 0 | AE34: 0 | AF34: 0 | AG34: 0
A35: =Einstellungen!$L$19 -> Mo-Fr | B35: =Einstellungen!$M$19 -> Std.Min | C35: =Einstellungen!$N$19 -> 8.12 | D35: =Einstellungen!$O$19 -> 6.09 | F35: =Einstellungen!$Q$19 -> 4.06 | I35: 2026-03-22 | J35: So | O35: 0 | P35: 0 | T35: nur dienstl. Sonderfälle!* | V35: =IF(S35>P35,O35-1-R35,O35-R35) -> 0 | W35: =IF(S35>P35,P35+60-S35,P35-S35) -> 0 | X35: 0 | Y35: 0 | Z35: 0 | AA35: 0 | AD35: 0 | AE35: 0 | AF35: 0 | AG35: 0
A36: =Einstellungen!$L$20 -> Wochen | V36: =INT((60*SUM(V29:V35)+SUM(W29:W35)-W36)/60) -> 0 | W36: =INT(60*SUM(V29:V35)+SUM(W29:W35)-60*INT((60*SUM(V29:V35)+SUM(W29:W35))/60)) -> 0 | X36: =INT((60*SUM(X29:X35)+SUM(Y29:Y35)-Y36)/60) -> 0 | Y36: =INT(60*SUM(X29:X35)+SUM(Y29:Y35)-60*INT((60*SUM(X29:X35)+SUM(Y29:Y35))/60)) -> 0 | Z36: =INT((60*SUM(Z29:Z35)+SUM(AA29:AA35)-AA36)/60) -> 0 | AA36: =INT(60*SUM(Z29:Z35)+SUM(AA29:AA35)-60*INT((60*SUM(Z29:Z35)+SUM(AA29:AA35))/60)) -> 0 | AB36: =INT((60*SUM(AB29:AB35)+SUM(AC29:AC35)-AC36)/60) -> 0 | AC36: =INT(60*SUM(AB29:AB35)+SUM(AC29:AC35)-60*INT((60*SUM(AB29:AB35)+SUM(AC29:AC35))/60)) -> 0 | AD36: =INT((60*SUM(AD29:AD35)+SUM(AE29:AE35)-AE36)/60) -> 0 | AE36: =INT(60*SUM(AD29:AD35)+SUM(AE29:AE35)-60*INT((60*SUM(AD29:AD35)+SUM(AE29:AE35))/60)) -> 0 | AF36: =INT((60*SUM(AF29:AF35)+SUM(AG29:AG35)-AG36)/60) -> 0 | AG36: =INT(60*SUM(AF29:AF35)+SUM(AG29:AG35)-60*INT((60*SUM(AF29:AF35)+SUM(AG29:AG35))/60)) -> 0 | AH36: =INT((60*SUM(AH29:AH35)+SUM(AI29:AI35)-AI36)/60) -> 0 | AI36: =INT(60*SUM(AH29:AH35)+SUM(AI29:AI35)-60*INT((60*SUM(AH29:AH35)+SUM(AI29:AI35))/60)) -> 0 | AK36: =INT((60*SUM(AK29:AK35)+SUM(AL29:AL35)-AL36)/60) -> 0 | AL36: =INT(60*SUM(AK29:AK35)+SUM(AL29:AL35)-60*INT((60*SUM(AK29:AK35)+SUM(AL29:AL35))/60)) -> 0 | AN36: =INT((60*SUM(AN29:AN35)+SUM(AO29:AO35)-AO36)/60) -> 0 | AO36: =INT(60*SUM(AN29:AN35)+SUM(AO29:AO35)-60*INT((60*SUM(AN29:AN35)+SUM(AO29:AO35))/60)) -> 0 | AQ36: =INT((60*SUM(AQ29:AQ35)+SUM(AR29:AR35)-AR36)/60) -> 0 | AR36: =INT(60*SUM(AQ29:AQ35)+SUM(AR29:AR35)-60*INT((60*SUM(AQ29:AQ35)+SUM(AR29:AR35))/60)) -> 0 | AS36: =INT((60*SUM(AS29:AS35)+SUM(AT29:AT35)-AT36)/60) -> 0 | AT36: =INT(60*SUM(AS29:AS35)+SUM(AT29:AT35)-60*INT((60*SUM(AS29:AS35)+SUM(AT29:AT35))/60)) -> 0 | AU36: =INT((60*SUM(AU29:AU35)+SUM(AV29:AV35)-AV36)/60) -> 0 | AV36: =INT(60*SUM(AU29:AU35)+SUM(AV29:AV35)-60*INT((60*SUM(AU29:AU35)+SUM(AV29:AV35))/60)) -> 0 | AW36: =INT((60*SUM(AW29:AW35)+SUM(AX29:AX35)-AX36)/60) -> 0 | AX36: =INT(60*SUM(AW29:AW35)+SUM(AX29:AX35)-60*INT((60*SUM(AW29:AW35)+SUM(AX29:AX35))/60)) -> 0 | AY36: =INT((60*SUM(AY29:AY35)+SUM(AZ29:AZ35)-AZ36)/60) -> 0 | AZ36: =INT(60*SUM(AY29:AY35)+SUM(AZ29:AZ35)-60*INT((60*SUM(AY29:AY35)+SUM(AZ29:AZ35))/60)) -> 0 | BA36: =INT((60*SUM(BA29:BA35)+SUM(BB29:BB35)-BB36)/60) -> 0 | BB36: =INT(60*SUM(BA29:BA35)+SUM(BB29:BB35)-60*INT((60*SUM(BA29:BA35)+SUM(BB29:BB35))/60)) -> 0 | BC36: =INT((60*SUM(BC29:BC35)+SUM(BD29:BD35)-BD36)/60) -> 0 | BD36: =INT(60*SUM(BC29:BC35)+SUM(BD29:BD35)-60*INT((60*SUM(BC29:BC35)+SUM(BD29:BD35))/60)) -> 0 | BE36: =INT((60*SUM(BE29:BE35)+SUM(BF29:BF35)-BF36)/60) -> 0 | BF36: =INT(60*SUM(BE29:BE35)+SUM(BF29:BF35)-60*INT((60*SUM(BE29:BE35)+SUM(BF29:BF35))/60)) -> 0 | BG36: =INT((60*SUM(BG29:BG35)+SUM(BH29:BH35)-BH36)/60) -> 0 | BH36: =INT(60*SUM(BG29:BG35)+SUM(BH29:BH35)-60*INT((60*SUM(BG29:BG35)+SUM(BH29:BH35))/60)) -> 0
A38: =CONCATENATE(Einstellungen!$L$21," ",Einstellungen!$M$21) -> Arbeitzeit Std.Min | C38: =Einstellungen!$N$21 -> 41.00 | D38: =Einstellungen!$O$21 -> 30.45 | F38: =Einstellungen!$Q$21 -> 20.30 | G38: =IF(AND(E11>0,I38<>"",U38<>"f"),F11,0) -> 1 | H38: =IF(AND(I38<>"",U38<>"f"),1,0) -> 1 | I38: =IF(I35<>"",IF(MONTH(I35)=MONTH(I35+1),I35+1,""),"") -> 2026-03-23 | J38: Mo | O38: =HOUR(N38-K38-(M38-L38)) -> 0 | P38: =MINUTE(N38-K38-(M38-L38)) -> 0 | V38: =IF(OR(U38="U",U38="k",U38="B"),$C$11,IF(S38>P38,O38-1-R38,O38-R38)) -> 0 | W38: =IF(OR(U38="U",U38="k",U38="B"),$D$11,IF(S38>P38,P38+60-S38,P38-S38)) -> 0 | X38: =IF(OR(U38="U",U38="K",U38="B"),0,V38) -> 0 | Y38: =IF(OR(U38="U",U38="K",U38="B"),0,W38) -> 0 | Z38: =INT(((SUM(AB38,AH38,AK38,AN38,AQ38,AS38,AU38,AW38,AY38,BA38,BC38,BE38,BG38)*100)+(SUM(AC38,AI38,AL38,AO38,AR38,AT38,AV38,AX38,AZ38,BB38,BD38,BF38,BH38)/60*100))/100) -> 0 | AA38: =MOD(((SUM(AC38,AI38,AL38,AO38,AR38,AT38,AV38,AX38,AZ38,BB38,BD38,BF38,BH38)*100)+(SUM(AC38,AI38,AL38,AO38,AR38,AT38,AV38,AX38,AZ38,BB38,BD38,BF38,BH38)/60*100))/100,1)*60 -> 0 | AD38: =INT(((SUM(AH38,AK38,AN38)*100)+SUM(AI38,AL38,AO38)/60*100)/100) -> 0 | AE38: =MOD(((SUM(AI38,AL38,AO38)*100)+(SUM(AI38,AL38,AO38)/60*100))/100,1)*60 -> 0 | AF38: =INT(((SUM(AQ38+AS38+AU38+AW38+AY38+BA38+BC38+BE38+BG38)*100)+SUM(AR38+AT38+AV38+AX38+AZ38+BB38+BD38+BF38+BH38)/60*100)/100) -> 0 | AG38: =MOD(((SUM(AR38+AT38+AV38+AX38+AZ38+BB38+BD38+BF38+BH38)*100)+(SUM(AR38+AT38+AV38+AX38+AZ38+BB38+BD38+BF38+BH38)/60*100))/100,1)*60 -> 0
A39: =Einstellungen!$L$22 -> max.Übertrag auf das | G39: =IF(AND(E12>0,I39<>"",U39<>"f"),F12,0) -> 1 | H39: =IF(AND(I39<>"",U39<>"f"),1,0) -> 1 | I39: =IF(I38<>"",IF(MONTH(I38)=MONTH(I38+1),I38+1,""),"") -> 2026-03-24 | J39: Di | O39: 0 | P39: 0 | V39: =IF(OR(U39="U",U39="k",U39="B"),$C$12,IF(S39>P39,O39-1-R39,O39-R39)) -> 0 | W39: =IF(OR(U39="U",U39="k",U39="B"),$D$12,IF(S39>P39,P39+60-S39,P39-S39)) -> 0 | X39: 0 | Y39: 0 | Z39: 0 | AA39: 0 | AD39: 0 | AE39: 0 | AF39: 0 | AG39: 0
A40: =Einstellungen!$L$23 -> Folgejahr Std.Min | C40: =Einstellungen!$N$23 -> 41.00 | D40: =Einstellungen!$O$23 -> 41.00 | F40: =Einstellungen!$Q$23 -> 41.00 | G40: =IF(AND(E13>0,I40<>"",U40<>"f"),F13,0) -> 1 | H40: =IF(AND(I40<>"",U40<>"f"),1,0) -> 1 | I40: =IF(I39<>"",IF(MONTH(I39)=MONTH(I39+1),I39+1,""),"") -> 2026-03-25 | J40: Mi | O40: 0 | P40: 0 | V40: =IF(OR(U40="U",U40="k",U40="B"),$C$13,IF(S40>P40,O40-1-R40,O40-R40)) -> 0 | W40: =IF(OR(U40="U",U40="k",U40="B"),$D$13,IF(S40>P40,P40+60-S40,P40-S40)) -> 0 | X40: 0 | Y40: 0 | Z40: 0 | AA40: 0 | AD40: 0 | AE40: 0 | AF40: 0 | AG40: 0
A41: =Einstellungen!$L$24 -> Kernarbeitszeit: | C41: =Einstellungen!$N$24 -> Mo-Do | D41: =Einstellungen!$O$24 -> 9:00 - 14:30 Uhr | G41: =IF(AND(E14>0,I41<>"",U41<>"f"),F14,0) -> 1 | H41: =IF(AND(I41<>"",U41<>"f"),1,0) -> 1 | I41: 2026-03-26 | J41: Do | O41: 0 | P41: 0 | V41: =IF(OR(U41="U",U41="k",U41="B"),$C$14,IF(S41>P41,O41-1-R41,O41-R41)) -> 0 | W41: =IF(OR(U41="U",U41="k",U41="B"),$D$14,IF(S41>P41,P41+60-S41,P41-S41)) -> 0 | X41: 0 | Y41: 0 | Z41: 0 | AA41: 0 | AD41: 0 | AE41: 0 | AF41: 0 | AG41: 0
A42: =Einstellungen!$L$25 ->  | B42: =Einstellungen!$M$25 ->  | C42: =Einstellungen!$N$25 -> Fr | D42: =Einstellungen!$O$25 -> 9:00 - 12:00 Uhr | G42: =IF(AND(E15>0,I42<>"",U42<>"f"),F15,0) -> 1 | H42: =IF(AND(I42<>"",U42<>"f"),1,0) -> 1 | I42: 2026-03-27 | J42: Fr | O42: 0 | P42: 0 | V42: =IF(OR(U42="U",U42="k",U42="B"),$C$15,IF(S42>P42,O42-1-R42,O42-R42)) -> 0 | W42: =IF(OR(U42="U",U42="k",U42="B"),$D$15,IF(S42>P42,P42+60-S42,P42-S42)) -> 0 | X42: 0 | Y42: 0 | Z42: 0 | AA42: 0 | AD42: 0 | AE42: 0 | AF42: 0 | AG42: 0
A43: =Einstellungen!$L$26 -> Gleitzeit: | B43: =Einstellungen!$M$26 -> frühester Beginn | F43: =Einstellungen!$P$26 -> 6:00 Uhr | I43: 2026-03-28 | J43: Sa | O43: 0 | P43: 0 | T43: nur dienstl. Sonderfälle!* | V43: =IF(S43>P43,O43-1-R43,O43-R43) -> 0 | W43: =IF(S43>P43,P43+60-S43,P43-S43) -> 0 | X43: 0 | Y43: 0 | Z43: 0 | AA43: 0 | AD43: 0 | AE43: 0 | AF43: 0 | AG43: 0
A44: =Einstellungen!$L$27 ->  | B44: =Einstellungen!$M$27 -> spätestes Ende | F44: =Einstellungen!$P$27 -> 21:00 Uhr | I44: 2026-03-29 | J44: So | O44: 0 | P44: 0 | T44: nur dienstl. Sonderfälle!* | V44: =IF(S44>P44,O44-1-R44,O44-R44) -> 0 | W44: =IF(S44>P44,P44+60-S44,P44-S44) -> 0 | X44: 0 | Y44: 0 | Z44: 0 | AA44: 0 | AD44: 0 | AE44: 0 | AF44: 0 | AG44: 0
A45: =Einstellungen!$L$29 -> Mittagspause zw. | D45: =Einstellungen!$O$29 -> 11:15 - 14:00 Uhr | V45: =INT((60*SUM(V38:V44)+SUM(W38:W44)-W45)/60) -> 0 | W45: =INT(60*SUM(V38:V44)+SUM(W38:W44)-60*INT((60*SUM(V38:V44)+SUM(W38:W44))/60)) -> 0 | X45: =INT((60*SUM(X38:X44)+SUM(Y38:Y44)-Y45)/60) -> 0 | Y45: =INT(60*SUM(X38:X44)+SUM(Y38:Y44)-60*INT((60*SUM(X38:X44)+SUM(Y38:Y44))/60)) -> 0 | Z45: =INT((60*SUM(Z38:Z44)+SUM(AA38:AA44)-AA45)/60) -> 0 | AA45: =INT(60*SUM(Z38:Z44)+SUM(AA38:AA44)-60*INT((60*SUM(Z38:Z44)+SUM(AA38:AA44))/60)) -> 0 | AB45: =INT((60*SUM(AB38:AB44)+SUM(AC38:AC44)-AC45)/60) -> 0 | AC45: =INT(60*SUM(AB38:AB44)+SUM(AC38:AC44)-60*INT((60*SUM(AB38:AB44)+SUM(AC38:AC44))/60)) -> 0 | AD45: =INT((60*SUM(AD38:AD44)+SUM(AE38:AE44)-AE45)/60) -> 0 | AE45: =INT(60*SUM(AD38:AD44)+SUM(AE38:AE44)-60*INT((60*SUM(AD38:AD44)+SUM(AE38:AE44))/60)) -> 0 | AF45: =INT((60*SUM(AF38:AF44)+SUM(AG38:AG44)-AG45)/60) -> 0 | AG45: =INT(60*SUM(AF38:AF44)+SUM(AG38:AG44)-60*INT((60*SUM(AF38:AF44)+SUM(AG38:AG44))/60)) -> 0 | AH45: =INT((60*SUM(AH38:AH44)+SUM(AI38:AI44)-AI45)/60) -> 0 | AI45: =INT(60*SUM(AH38:AH44)+SUM(AI38:AI44)-60*INT((60*SUM(AH38:AH44)+SUM(AI38:AI44))/60)) -> 0 | AK45: =INT((60*SUM(AK38:AK44)+SUM(AL38:AL44)-AL45)/60) -> 0 | AL45: =INT(60*SUM(AK38:AK44)+SUM(AL38:AL44)-60*INT((60*SUM(AK38:AK44)+SUM(AL38:AL44))/60)) -> 0 | AN45: =INT((60*SUM(AN38:AN44)+SUM(AO38:AO44)-AO45)/60) -> 0 | AO45: =INT(60*SUM(AN38:AN44)+SUM(AO38:AO44)-60*INT((60*SUM(AN38:AN44)+SUM(AO38:AO44))/60)) -> 0 | AQ45: =INT((60*SUM(AQ38:AQ44)+SUM(AR38:AR44)-AR45)/60) -> 0 | AR45: =INT(60*SUM(AQ38:AQ44)+SUM(AR38:AR44)-60*INT((60*SUM(AQ38:AQ44)+SUM(AR38:AR44))/60)) -> 0 | AS45: =INT((60*SUM(AS38:AS44)+SUM(AT38:AT44)-AT45)/60) -> 0 | AT45: =INT(60*SUM(AS38:AS44)+SUM(AT38:AT44)-60*INT((60*SUM(AS38:AS44)+SUM(AT38:AT44))/60)) -> 0 | AU45: =INT((60*SUM(AU38:AU44)+SUM(AV38:AV44)-AV45)/60) -> 0 | AV45: =INT(60*SUM(AU38:AU44)+SUM(AV38:AV44)-60*INT((60*SUM(AU38:AU44)+SUM(AV38:AV44))/60)) -> 0 | AW45: =INT((60*SUM(AW38:AW44)+SUM(AX38:AX44)-AX45)/60) -> 0 | AX45: =INT(60*SUM(AW38:AW44)+SUM(AX38:AX44)-60*INT((60*SUM(AW38:AW44)+SUM(AX38:AX44))/60)) -> 0 | AY45: =INT((60*SUM(AY38:AY44)+SUM(AZ38:AZ44)-AZ45)/60) -> 0 | AZ45: =INT(60*SUM(AY38:AY44)+SUM(AZ38:AZ44)-60*INT((60*SUM(AY38:AY44)+SUM(AZ38:AZ44))/60)) -> 0 | BA45: =INT((60*SUM(BA38:BA44)+SUM(BB38:BB44)-BB45)/60) -> 0 | BB45: =INT(60*SUM(BA38:BA44)+SUM(BB38:BB44)-60*INT((60*SUM(BA38:BA44)+SUM(BB38:BB44))/60)) -> 0 | BC45: =INT((60*SUM(BC38:BC44)+SUM(BD38:BD44)-BD45)/60) -> 0 | BD45: =INT(60*SUM(BC38:BC44)+SUM(BD38:BD44)-60*INT((60*SUM(BC38:BC44)+SUM(BD38:BD44))/60)) -> 0 | BE45: =INT((60*SUM(BE38:BE44)+SUM(BF38:BF44)-BF45)/60) -> 0 | BF45: =INT(60*SUM(BE38:BE44)+SUM(BF38:BF44)-60*INT((60*SUM(BE38:BE44)+SUM(BF38:BF44))/60)) -> 0 | BG45: =INT((60*SUM(BG38:BG44)+SUM(BH38:BH44)-BH45)/60) -> 0 | BH45: =INT(60*SUM(BG38:BG44)+SUM(BH38:BH44)-60*INT((60*SUM(BG38:BG44)+SUM(BH38:BH44))/60)) -> 0
A47: =Einstellungen!$L$30 -> ab 6 Std. Arbeitszeit: Dauer min. | F47: =Einstellungen!$Q$30 -> 30 Min | G47: =IF(AND(E11>0,I47<>"",U47<>"f"),F11,0) -> 1 | H47: =IF(AND(I47<>"",U47<>"f"),1,0) -> 1 | I47: =IF(I44<>"",IF(MONTH(I44)=MONTH(I44+1),I44+1,""),"") -> 2026-03-30 | J47: Mo | O47: =HOUR(N47-K47-(M47-L47)) -> 0 | P47: =MINUTE(N47-K47-(M47-L47)) -> 0 | V47: =IF(OR(U47="U",U47="k",U47="B"),$C$11,IF(S47>P47,O47-1-R47,O47-R47)) -> 0 | W47: =IF(OR(U47="U",U47="k",U47="B"),$D$11,IF(S47>P47,P47+60-S47,P47-S47)) -> 0 | X47: =IF(OR(U47="U",U47="K",U47="B"),0,V47) -> 0 | Y47: =IF(OR(U47="U",U47="K",U47="B"),0,W47) -> 0 | Z47: =INT(((SUM(AB47,AH47,AK47,AN47,AQ47,AS47,AU47,AW47,AY47,BA47,BC47,BE47,BG47)*100)+(SUM(AC47,AI47,AL47,AO47,AR47,AT47,AV47,AX47,AZ47,BB47,BD47,BF47,BH47)/60*100))/100) -> 0 | AA47: =MOD(((SUM(AC47,AI47,AL47,AO47,AR47,AT47,AV47,AX47,AZ47,BB47,BD47,BF47,BH47)*100)+(SUM(AC47,AI47,AL47,AO47,AR47,AT47,AV47,AX47,AZ47,BB47,BD47,BF47,BH47)/60*100))/100,1)*60 -> 0 | AD47: =INT(((SUM(AH47,AK47,AN47)*100)+SUM(AI47,AL47,AO47)/60*100)/100) -> 0 | AE47: =MOD(((SUM(AI47,AL47,AO47)*100)+(SUM(AI47,AL47,AO47)/60*100))/100,1)*60 -> 0 | AF47: =INT(((SUM(AQ47+AS47+AU47+AW47+AY47+BA47+BC47+BE47+BG47)*100)+SUM(AR47+AT47+AV47+AX47+AZ47+BB47+BD47+BF47+BH47)/60*100)/100) -> 0 | AG47: =MOD(((SUM(AR47+AT47+AV47+AX47+AZ47+BB47+BD47+BF47+BH47)*100)+(SUM(AR47+AT47+AV47+AX47+AZ47+BB47+BD47+BF47+BH47)/60*100))/100,1)*60 -> 0
A48: =Einstellungen!$L$31 -> ab 9 Std. (exklusiv Beamte) min. | F48: =Einstellungen!$Q$31 -> 45 Min | G48: =IF(AND(E12>0,I48<>"",U48<>"f"),F12,0) -> 1 | H48: =IF(AND(I48<>"",U48<>"f"),1,0) -> 1 | I48: =IF(I47<>"",IF(MONTH(I47)=MONTH(I47+1),I47+1,""),"") -> 2026-03-31 | J48: Di | O48: 0 | P48: 0 | V48: =IF(OR(U48="U",U48="k",U48="B"),$C$12,IF(S48>P48,O48-1-R48,O48-R48)) -> 0 | W48: =IF(OR(U48="U",U48="k",U48="B"),$D$12,IF(S48>P48,P48+60-S48,P48-S48)) -> 0 | X48: 0 | Y48: 0 | Z48: 0 | AA48: 0 | AD48: 0 | AE48: 0 | AF48: 0 | AG48: 0
A49: =Einstellungen!$L$32 ->  | D49: =Einstellungen!$O$32 -> max. | F49: =Einstellungen!$Q$32 -> 120 Min | G49: =IF(AND(E13>0,I49<>"",U49<>"f"),F13,0) -> 0 | H49: =IF(AND(I49<>"",U49<>"f"),1,0) -> 0 | I49: =IF(I48<>"",IF(MONTH(I48)=MONTH(I48+1),I48+1,""),"") ->  | J49: Mi | O49: 0 | P49: 0 | V49: =IF(OR(U49="U",U49="k",U49="B"),$C$13,IF(S49>P49,O49-1-R49,O49-R49)) -> 0 | W49: =IF(OR(U49="U",U49="k",U49="B"),$D$13,IF(S49>P49,P49+60-S49,P49-S49)) -> 0 | X49: 0 | Y49: 0 | Z49: 0 | AA49: 0 | AD49: 0 | AE49: 0 | AF49: 0 | AG49: 0
A50: =Einstellungen!$L$33 -> tägliche Arbeitszeit | F50: =Einstellungen!$Q$33 -> 10 Std | G50: =IF(AND(E14>0,I50<>"",U50<>"f"),F14,0) -> 0 | H50: =IF(AND(I50<>"",U50<>"f"),1,0) -> 0 | J50: Do | O50: 0 | P50: 0 | V50: =IF(OR(U50="U",U50="k",U50="B"),$C$14,IF(S50>P50,O50-1-R50,O50-R50)) -> 0 | W50: =IF(OR(U50="U",U50="k",U50="B"),$D$14,IF(S50>P50,P50+60-S50,P50-S50)) -> 0 | X50: 0 | Y50: 0 | Z50: 0 | AA50: 0 | AD50: 0 | AE50: 0 | AF50: 0 | AG50: 0
A51: =Einstellungen!$L$34 -> *) beachte § 5 der Dienstvereinbarung vom 17.04.2024 über die Arbeitszeit der Beschäftigten der Universität Hohenheim | G51: =IF(AND(E15>0,I51<>"",U51<>"f"),F15,0) -> 0 | H51: =IF(AND(I51<>"",U51<>"f"),1,0) -> 0 | J51: Fr | O51: 0 | P51: 0 | V51: =IF(OR(U51="U",U51="k",U51="B"),$C$15,IF(S51>P51,O51-1-R51,O51-R51)) -> 0 | W51: =IF(OR(U51="U",U51="k",U51="B"),$D$15,IF(S51>P51,P51+60-S51,P51-S51)) -> 0 | X51: 0 | Y51: 0 | Z51: 0 | AA51: 0 | AD51: 0 | AE51: 0 | AF51: 0 | AG51: 0
J52: Sa | O52: 0 | P52: 0 | T52: nur dienstl. Sonderfälle!* | V52: =IF(S52>P52,O52-1-R52,O52-R52) -> 0 | W52: =IF(S52>P52,P52+60-S52,P52-S52) -> 0 | X52: 0 | Y52: 0 | Z52: 0 | AA52: 0 | AD52: 0 | AE52: 0 | AF52: 0 | AG52: 0
J53: So | O53: 0 | P53: 0 | T53: nur dienstl. Sonderfälle!* | V53: =IF(S53>P53,O53-1-R53,O53-R53) -> 0 | W53: =IF(S53>P53,P53+60-S53,P53-S53) -> 0 | X53: 0 | Y53: 0 | Z53: 0 | AA53: 0 | AD53: 0 | AE53: 0 | AF53: 0 | AG53: 0
V54: =INT((60*SUM(V47:V53)+SUM(W47:W53)-W54)/60) -> 0 | W54: =INT(60*SUM(V47:V53)+SUM(W47:W53)-60*INT((60*SUM(V47:V53)+SUM(W47:W53))/60)) -> 0 | X54: =INT((60*SUM(X47:X53)+SUM(Y47:Y53)-Y54)/60) -> 0 | Y54: =INT(60*SUM(X47:X53)+SUM(Y47:Y53)-60*INT((60*SUM(X47:X53)+SUM(Y47:Y53))/60)) -> 0 | Z54: =INT((60*SUM(Z47:Z53)+SUM(AA47:AA53)-AA54)/60) -> 0 | AA54: =INT(60*SUM(Z47:Z53)+SUM(AA47:AA53)-60*INT((60*SUM(Z47:Z53)+SUM(AA47:AA53))/60)) -> 0 | AB54: =INT((60*SUM(AB47:AB53)+SUM(AC47:AC53)-AC54)/60) -> 0 | AC54: =INT(60*SUM(AB47:AB53)+SUM(AC47:AC53)-60*INT((60*SUM(AB47:AB53)+SUM(AC47:AC53))/60)) -> 0 | AD54: =INT((60*SUM(AD47:AD53)+SUM(AE47:AE53)-AE54)/60) -> 0 | AE54: =INT(60*SUM(AD47:AD53)+SUM(AE47:AE53)-60*INT((60*SUM(AD47:AD53)+SUM(AE47:AE53))/60)) -> 0 | AF54: =INT((60*SUM(AF47:AF53)+SUM(AG47:AG53)-AG54)/60) -> 0 | AG54: =INT(60*SUM(AF47:AF53)+SUM(AG47:AG53)-60*INT((60*SUM(AF47:AF53)+SUM(AG47:AG53))/60)) -> 0 | AH54: =INT((60*SUM(AH47:AH53)+SUM(AI47:AI53)-AI54)/60) -> 0 | AI54: =INT(60*SUM(AH47:AH53)+SUM(AI47:AI53)-60*INT((60*SUM(AH47:AH53)+SUM(AI47:AI53))/60)) -> 0 | AK54: =INT((60*SUM(AK47:AK53)+SUM(AL47:AL53)-AL54)/60) -> 0 | AL54: =INT(60*SUM(AK47:AK53)+SUM(AL47:AL53)-60*INT((60*SUM(AK47:AK53)+SUM(AL47:AL53))/60)) -> 0 | AN54: =INT((60*SUM(AN47:AN53)+SUM(AO47:AO53)-AO54)/60) -> 0 | AO54: =INT(60*SUM(AN47:AN53)+SUM(AO47:AO53)-60*INT((60*SUM(AN47:AN53)+SUM(AO47:AO53))/60)) -> 0 | AQ54: =INT((60*SUM(AQ47:AQ53)+SUM(AR47:AR53)-AR54)/60) -> 0 | AR54: =INT(60*SUM(AQ47:AQ53)+SUM(AR47:AR53)-60*INT((60*SUM(AQ47:AQ53)+SUM(AR47:AR53))/60)) -> 0 | AS54: =INT((60*SUM(AS47:AS53)+SUM(AT47:AT53)-AT54)/60) -> 0 | AT54: =INT(60*SUM(AS47:AS53)+SUM(AT47:AT53)-60*INT((60*SUM(AS47:AS53)+SUM(AT47:AT53))/60)) -> 0 | AU54: =INT((60*SUM(AU47:AU53)+SUM(AV47:AV53)-AV54)/60) -> 0 | AV54: =INT(60*SUM(AU47:AU53)+SUM(AV47:AV53)-60*INT((60*SUM(AU47:AU53)+SUM(AV47:AV53))/60)) -> 0 | AW54: =INT((60*SUM(AW47:AW53)+SUM(AX47:AX53)-AX54)/60) -> 0 | AX54: =INT(60*SUM(AW47:AW53)+SUM(AX47:AX53)-60*INT((60*SUM(AW47:AW53)+SUM(AX47:AX53))/60)) -> 0 | AY54: =INT((60*SUM(AY47:AY53)+SUM(AZ47:AZ53)-AZ54)/60) -> 0 | AZ54: =INT(60*SUM(AY47:AY53)+SUM(AZ47:AZ53)-60*INT((60*SUM(AY47:AY53)+SUM(AZ47:AZ53))/60)) -> 0 | BA54: =INT((60*SUM(BA47:BA53)+SUM(BB47:BB53)-BB54)/60) -> 0 | BB54: =INT(60*SUM(BA47:BA53)+SUM(BB47:BB53)-60*INT((60*SUM(BA47:BA53)+SUM(BB47:BB53))/60)) -> 0 | BC54: =INT((60*SUM(BC47:BC53)+SUM(BD47:BD53)-BD54)/60) -> 0 | BD54: =INT(60*SUM(BC47:BC53)+SUM(BD47:BD53)-60*INT((60*SUM(BC47:BC53)+SUM(BD47:BD53))/60)) -> 0 | BE54: =INT((60*SUM(BE47:BE53)+SUM(BF47:BF53)-BF54)/60) -> 0 | BF54: =INT(60*SUM(BE47:BE53)+SUM(BF47:BF53)-60*INT((60*SUM(BE47:BE53)+SUM(BF47:BF53))/60)) -> 0 | BG54: =INT((60*SUM(BG47:BG53)+SUM(BH47:BH53)-BH54)/60) -> 0 | BH54: =INT(60*SUM(BG47:BG53)+SUM(BH47:BH53)-60*INT((60*SUM(BG47:BG53)+SUM(BH47:BH53))/60)) -> 0
G55: =SUM(G5:G53) -> 22 | H55: =SUM(H5:H53) -> 22 | I55: März | P55: =Einstellungen!A1 -> 2026 | X55: Summe: | Z55: Summe: | AB55: Summe: | AD55: Summe: | AF55: Summe: | AH55: =INT(((SUM(AH9,AH18,AH27,AH36,AH45,AH54)*100)+(SUM(AI9,AI18,AI27,AI36,AI45,AI54)/60*100))/100) -> 0 | AI55: =MOD(((SUM(AH9,AH18,AH27,AH36,AH45,AH54)*100)+(SUM(AI9,AI18,AI27,AI36,AI45,AI54)/60*100))/100,1)*60 -> 0 | AK55: =INT(((SUM(AK9,AK18,AK27,AK36,AK45,AK54)*100)+(SUM(AL9,AL18,AL27,AL36,AL45,AL54)/60*100))/100) -> 0 | AL55: =MOD(((SUM(AK9,AK18,AK27,AK36,AK45,AK54)*100)+(SUM(AL9,AL18,AL27,AL36,AL45,AL54)/60*100))/100,1)*60 -> 0 | AN55: =INT(((SUM(AN9,AN18,AN27,AN36,AN45,AN54)*100)+(SUM(AO9,AO18,AO27,AO36,AO45,AO54)/60*100))/100) -> 0 | AO55: =MOD(((SUM(AN9,AN18,AN27,AN36,AN45,AN54)*100)+(SUM(AO9,AO18,AO27,AO36,AO45,AO54)/60*100))/100,1)*60 -> 0 | AQ55: =INT(((SUM(AQ9,AQ18,AQ27,AQ36,AQ45,AQ54)*100)+(SUM(AR9,AR18,AR27,AR36,AR45,AR54)/60*100))/100) -> 0 | AR55: =MOD(((SUM(AQ9,AQ18,AQ27,AQ36,AQ45,AQ54)*100)+(SUM(AR9,AR18,AR27,AR36,AR45,AR54)/60*100))/100,1)*60 -> 0 | AS55: =INT(((SUM(AS9,AS18,AS27,AS36,AS45,AS54)*100)+(SUM(AT9,AT18,AT27,AT36,AT45,AT54)/60*100))/100) -> 0 | AT55: =MOD(((SUM(AS9,AS18,AS27,AS36,AS45,AS54)*100)+(SUM(AT9,AT18,AT27,AT36,AT45,AT54)/60*100))/100,1)*60 -> 0 | AU55: =INT(((SUM(AU9,AU18,AU27,AU36,AU45,AU54)*100)+(SUM(AV9,AV18,AV27,AV36,AV45,AV54)/60*100))/100) -> 0 | AV55: =MOD(((SUM(AU9,AU18,AU27,AU36,AU45,AU54)*100)+(SUM(AV9,AV18,AV27,AV36,AV45,AV54)/60*100))/100,1)*60 -> 0 | AW55: =INT(((SUM(AW9,AW18,AW27,AW36,AW45,AW54)*100)+(SUM(AX9,AX18,AX27,AX36,AX45,AX54)/60*100))/100) -> 0 | AX55: =MOD(((SUM(AW9,AW18,AW27,AW36,AW45,AW54)*100)+(SUM(AX9,AX18,AX27,AX36,AX45,AX54)/60*100))/100,1)*60 -> 0 | AY55: =INT(((SUM(AY9,AY18,AY27,AY36,AY45,AY54)*100)+(SUM(AZ9,AZ18,AZ27,AZ36,AZ45,AZ54)/60*100))/100) -> 0 | AZ55: =MOD(((SUM(AY9,AY18,AY27,AY36,AY45,AY54)*100)+(SUM(AZ9,AZ18,AZ27,AZ36,AZ45,AZ54)/60*100))/100,1)*60 -> 0 | BA55: =INT(((SUM(BA9,BA18,BA27,BA36,BA45,BA54)*100)+(SUM(BB9,BB18,BB27,BB36,BB45,BB54)/60*100))/100) -> 0 | BB55: =MOD(((SUM(BA9,BA18,BA27,BA36,BA45,BA54)*100)+(SUM(BB9,BB18,BB27,BB36,BB45,BB54)/60*100))/100,1)*60 -> 0 | BC55: =INT(((SUM(BC9,BC18,BC27,BC36,BC45,BC54)*100)+(SUM(BD9,BD18,BD27,BD36,BD45,BD54)/60*100))/100) -> 0 | BD55: =MOD(((SUM(BC9,BC18,BC27,BC36,BC45,BC54)*100)+(SUM(BD9,BD18,BD27,BD36,BD45,BD54)/60*100))/100,1)*60 -> 0 | BE55: =INT(((SUM(BE9,BE18,BE27,BE36,BE45,BE54)*100)+(SUM(BF9,BF18,BF27,BF36,BF45,BF54)/60*100))/100) -> 0 | BF55: =MOD(((SUM(BE9,BE18,BE27,BE36,BE45,BE54)*100)+(SUM(BF9,BF18,BF27,BF36,BF45,BF54)/60*100))/100,1)*60 -> 0 | BG55: =INT(((SUM(BG9,BG18,BG27,BG36,BG45,BG54)*100)+(SUM(BH9,BH18,BH27,BH36,BH45,BH54)/60*100))/100) -> 0 | BH55: =MOD(((SUM(BG9,BG18,BG27,BG36,BG45,BG54)*100)+(SUM(BH9,BH18,BH27,BH36,BH45,BH54)/60*100))/100,1)*60 -> 0
I56: Abrechnungsmonat | P56: Jahr | T56: Monatsarbeitszeit IST | V56: =INT((60*SUM(V54,V45,V36,V27,V18,V9)+SUM(W54,W45,W36,W27,W18,W9)-W56)/60) -> 0 | W56: =INT(60*SUM(V54,V45,V36,V27,V18,V9)+SUM(W54,W45,W36,W27,W18,W9)-60*INT((60*SUM(V54,V45,V36,V27,V18,V9)+SUM(W54,W45,W36,W27,W18,W9))/60)) -> 0 | X56: =INT((60*SUM(X54,X45,X36,X27,X18,X9)+SUM(Y54,Y45,Y36,Y27,Y18,Y9)-Y56)/60) -> 0 | Y56: =INT(60*SUM(X54,X45,X36,X27,X18,X9)+SUM(Y54,Y45,Y36,Y27,Y18,Y9)-60*INT((60*SUM(X54,X45,X36,X27,X18,X9)+SUM(Y54,Y45,Y36,Y27,Y18,Y9))/60)) -> 0 | Z56: =INT((60*SUM(Z54,Z45,Z36,Z27,Z18,Z9)+SUM(AA54,AA45,AA36,AA27,AA18,AA9)-AA56)/60) -> 0 | AA56: =INT(60*SUM(Z54,Z45,Z36,Z27,Z18,Z9)+SUM(AA54,AA45,AA36,AA27,AA18,AA9)-60*INT((60*SUM(Z54,Z45,Z36,Z27,Z18,Z9)+SUM(AA54,AA45,AA36,AA27,AA18,AA9))/60)) -> 0 | AB56: =INT((60*SUM(AB54,AB45,AB36,AB27,AB18,AB9)+SUM(AC54,AC45,AC36,AC27,AC18,AC9)-AC56)/60) -> 0 | AC56: =INT(60*SUM(AB54,AB45,AB36,AB27,AB18,AB9)+SUM(AC54,AC45,AC36,AC27,AC18,AC9)-60*INT((60*SUM(AB54,AB45,AB36,AB27,AB18,AB9)+SUM(AC54,AC45,AC36,AC27,AC18,AC9))/60)) -> 0 | AD56: =INT((60*SUM(AD54,AD45,AD36,AD27,AD18,AD9)+SUM(AE54,AE45,AE36,AE27,AE18,AE9)-AE56)/60) -> 0 | AE56: =INT(60*SUM(AD54,AD45,AD36,AD27,AD18,AD9)+SUM(AE54,AE45,AE36,AE27,AE18,AE9)-60*INT((60*SUM(AD54,AD45,AD36,AD27,AD18,AD9)+SUM(AE54,AE45,AE36,AE27,AE18,AE9))/60)) -> 0 | AF56: =INT((60*SUM(AF54,AF45,AF36,AF27,AF18,AF9)+SUM(AG54,AG45,AG36,AG27,AG18,AG9)-AG56)/60) -> 0 | AG56: =INT(60*SUM(AF54,AF45,AF36,AF27,AF18,AF9)+SUM(AG54,AG45,AG36,AG27,AG18,AG9)-60*INT((60*SUM(AF54,AF45,AF36,AF27,AF18,AF9)+SUM(AG54,AG45,AG36,AG27,AG18,AG9))/60)) -> 0
I57: =Einstellungen!K23 -> Franziska von Hohenheim | T57: Übertrag aus Vormonat (+/-) | U57: =IF(V57*W57<0,"!","") ->  | V57: =ROUND(Febr!V60,0) -> -316 | W57: =ROUND(Febr!W60,0) -> 0
I58: Name, Vorname | Q58: Datum | T58: Summe | V58: =ROUND(SIGN(V56+V57+(W56+W57)/60)*ROUNDDOWN(ABS(V56+V57+(W56+W57)/60),0),0) -> -316 | W58: =ROUND(SIGN(V56+V57+(W56+W57)/60)*(ABS(V56+V57+(W56+W57)/60)-ABS(V58))*60,0) -> 0
I59: =Einstellungen!$K$25 -> 630 | K59: =Einstellungen!K24 -> KIM | T59: Monatsarbeitszeit SOLL | V59: =SUM(Einstellungen!B5) -> 173 | W59: =SUM(Einstellungen!C5) -> 48
I60: Einr.-Nr. | K60: Abt. / FG | Q60: Name Leiter/in | T60: Zeitübertrag auf Folgemonat | U60: =IF(V60*W60<0,"!","") ->  | V60: =ROUND(SIGN(V58-V59+(W58-W59)/60)*ROUNDDOWN(ABS(V58-V59+(W58-W59)/60),0),0) -> -489 | W60: =ROUND(SIGN(V58-V59+(W58-W59)/60)*(ABS(V58-V59+(W58-W59)/60)-ABS(V60))*60,0) -> -48
T62: Summe Urlaubstage | V62: =SUMPRODUCT((U5:U6="U")*(E14:E15>0))+SUMPRODUCT((U11:U15="U")*(E11:E15>0))+SUMPRODUCT((U20:U24="U")*(E11:E15>0))+SUMPRODUCT((U29:U33="U")*(E11:E15>0))+SUMPRODUCT((U38:U42="U")*(E11:E15>0))+SUMPRODUCT((U47:U51="U")*(E11:E15>0)) -> 0
I63: Datum | K63: Unterschrift Mitarbeiter/in | Q63: Unterschrift Leiter/in | T63: alter / neuer Übertrag | V63: =IF(SUM(Einstellungen!K27:K30)>0,Febr!W63,"--- ") -> 30 | W63: =IF(SUM(Einstellungen!K27:K30)>0,V63-V62,"--- ") -> 30

Sheet Apr (hidden)
A1: =Einstellungen!A27 -> Universität Hohenheim KIM © 2026 | I1: Datum | K1: Arbeits- | N1: Arbeits- | O1: Arb.Zeit ohne | Q1: Sonstige Unterbrechungen | T1: Erläuterungen, Hinweise, | U1: U,K | V1: Reine Arb.- | X1: Productive | Z1: Productive | AB1: Sonstiges | AD1: Summe | AF1: Summe | AH1: =Projektdaten!D4 -> EU Projekt 1 | AK1: =Projektdaten!D6 -> EU Projekt 2 | AN1: =Projektdaten!D8 -> EU Projekt 3 | AQ1: =Projektdaten!D13 -> Projekt 1 | AS1: =Projektdaten!D15 -> Projekt 2 | AU1: =Projektdaten!D17 -> Projekt 3 | AW1: =Projektdaten!D19 -> Projekt 4 | AY1: =Projektdaten!D21 -> Projekt 5 | BA1: =Projektdaten!D23 -> Projekt 6 | BC1: =Projektdaten!D25 -> Projekt 7 | BE1: =Projektdaten!D27 -> Projekt 8 | BG1: =Projektdaten!D29 -> Projekt 9
A2: Arbeitszeitblatt | D2: =Einstellungen!A28 -> Version 5.12 | I2: Tag | J2: Wo- | K2: beginn | L2: Mittagspause | N2: ende | O2: Mittagspause | Q2: von - bis | R2: Gesamtdauer | T2: Vermerke, z.B. Dienstreise | U2: F,X | V2: Zeit | W2: IST | X2: Hours | Z2: Hours | AD2: EU- | AF2: andere
J3: tag | L3: von | M3: bis | O3: Std. | P3: Min. | R3: Std. | S3: Min. | T3: - non eligible - | U3: A,B | V3: Std. | W3: Min. | X3: i.S.d. EU | Z3: verteilt | AD3: Projekte | AF3: Projekte
X4: Std. | Y4: Min. | Z4: Std. | AA4: Min. | AB4: Std. | AC4: Min. | AD4: Std. | AE4: Min. | AF4: Std. | AG4: Min. | AH4: Std. | AI4: Min. | AJ4: Geleistete Arbeitspakete nach Annex 1 | AK4: Std. | AL4: Min. | AM4: Geleistete Arbeitspakete nach Annex 1 | AN4: Std. | AO4: Min. | AP4: Geleistete Arbeitspakete nach Annex 1 | AQ4: Std. | AR4: Min. | AS4: Std. | AT4: Min. | AU4: Std. | AV4: Min. | AW4: Std. | AX4: Min. | AY4: Std. | AZ4: Min. | BA4: Std. | BB4: Min. | BC4: Std. | BD4: Min. | BE4: Std. | BF4: Min. | BG4: Std. | BH4: Min.
F5: U | G5: =IF(AND(E14>0,I5<>"",U5<>"f"),1,0) -> 0 | H5: =IF(AND(I5<>"",U5<>"f"),1,0) -> 0 | I5: =IF(CHOOSE(WEEKDAY(Einstellungen!$A$6,2),"Mo","Di","Mi","Do","Fr","Sa","So")=J5,Einstellungen!$A$6,"") ->  | J5: Do | O5: =HOUR(N5-K5-(M5-L5)) -> 0 | P5: =MINUTE(N5-K5-(M5-L5)) -> 0 | V5: =IF(OR(U5="U",U5="k",U5="B"),$C$14,IF(S5>P5,O5-1-R5,O5-R5)) -> 0 | W5: =IF(OR(U5="U",U5="k",U5="B"),$D$14,IF(S5>P5,P5+60-S5,P5-S5)) -> 0 | X5: =IF(OR(U5="U",U5="K",U5="B"),0,V5) -> 0 | Y5: =IF(OR(U5="U",U5="K",U5="B"),0,W5) -> 0 | Z5: =INT(((SUM(AB5,AH5,AK5,AN5,AQ5,AS5,AU5,AW5,AY5,BA5,BC5,BE5,BG5)*100)+(SUM(AC5,AI5,AL5,AO5,AR5,AT5,AV5,AX5,AZ5,BB5,BD5,BF5,BH5)/60*100))/100) -> 0 | AA5: =MOD(((SUM(AC5,AI5,AL5,AO5,AR5,AT5,AV5,AX5,AZ5,BB5,BD5,BF5,BH5)*100)+(SUM(AC5,AI5,AL5,AO5,AR5,AT5,AV5,AX5,AZ5,BB5,BD5,BF5,BH5)/60*100))/100,1)*60 -> 0 | AD5: =INT(((SUM(AH5,AK5,AN5)*100)+SUM(AI5,AL5,AO5)/60*100)/100) -> 0 | AE5: =MOD(((SUM(AI5,AL5,AO5)*100)+(SUM(AI5,AL5,AO5)/60*100))/100,1)*60 -> 0 | AF5: =INT(((SUM(AQ5+AS5+AU5+AW5+AY5+BA5+BC5+BE5+BG5)*100)+SUM(AR5+AT5+AV5+AX5+AZ5+BB5+BD5+BF5+BH5)/60*100)/100) -> 0 | AG5: =MOD(((SUM(AR5+AT5+AV5+AX5+AZ5+BB5+BD5+BF5+BH5)*100)+(SUM(AR5+AT5+AV5+AX5+AZ5+BB5+BD5+BF5+BH5)/60*100))/100,1)*60 -> 0
F6: K | G6: =IF(AND(E15>0,I6<>"",U6<>"f"),F14,0) -> 0 | H6: =IF(AND(I6<>"",U6<>"f"),1,0) -> 0 | I6: =IF(I5<>"",I5+1,IF(CHOOSE(WEEKDAY(Einstellungen!$A$6,2),"Mo","Di","Mi","Do","Fr","Sa","So")=J6,Einstellungen!$A$6,"")) ->  | J6: Fr | O6: =HOUR(N6-K6-(M6-L6)) -> 0 | P6: =MINUTE(N6-K6-(M6-L6)) -> 0 | V6: =IF(OR(U6="U",U6="k",U6="B"),$C$15,IF(S6>P6,O6-1-R6,O6-R6)) -> 0 | W6: =IF(OR(U6="U",U6="k",U6="B"),$D$15,IF(S6>P6,P6+60-S6,P6-S6)) -> 0 | X6: =IF(OR(U6="U",U6="K",U6="B"),0,V6) -> 0 | Y6: =IF(OR(U6="U",U6="K",U6="B"),0,W6) -> 0 | Z6: =INT(((SUM(AB6,AH6,AK6,AN6,AQ6,AS6,AU6,AW6,AY6,BA6,BC6,BE6,BG6)*100)+(SUM(AC6,AI6,AL6,AO6,AR6,AT6,AV6,AX6,AZ6,BB6,BD6,BF6,BH6)/60*100))/100) -> 0 | AA6: =MOD(((SUM(AC6,AI6,AL6,AO6,AR6,AT6,AV6,AX6,AZ6,BB6,BD6,BF6,BH6)*100)+(SUM(AC6,AI6,AL6,AO6,AR6,AT6,AV6,AX6,AZ6,BB6,BD6,BF6,BH6)/60*100))/100,1)*60 -> 0 | AD6: =INT(((SUM(AH6,AK6,AN6)*100)+SUM(AI6,AL6,AO6)/60*100)/100) -> 0 | AE6: =MOD(((SUM(AI6,AL6,AO6)*100)+(SUM(AI6,AL6,AO6)/60*100))/100,1)*60 -> 0 | AF6: =INT(((SUM(AQ6+AS6+AU6+AW6+AY6+BA6+BC6+BE6+BG6)*100)+SUM(AR6+AT6+AV6+AX6+AZ6+BB6+BD6+BF6+BH6)/60*100)/100) -> 0 | AG6: =MOD(((SUM(AR6+AT6+AV6+AX6+AZ6+BB6+BD6+BF6+BH6)*100)+(SUM(AR6+AT6+AV6+AX6+AZ6+BB6+BD6+BF6+BH6)/60*100))/100,1)*60 -> 0
F7: A | G7: =IF(AND(E16>0,I7<>"",U7<>"f"),F15,0) -> 0 | I7: =IF(I6<>"",I6+1,IF(CHOOSE(WEEKDAY(Einstellungen!$A$6,2),"Mo","Di","Mi","Do","Fr","Sa","So")=J7,Einstellungen!$A$6,"")) ->  | J7: Sa | O7: =HOUR(N7-K7-(M7-L7)) -> 0 | P7: =MINUTE(N7-K7-(M7-L7)) -> 0 | T7: nur dienstl. Sonderfälle!* | V7: =IF(S7>P7,O7-1-R7,O7-R7) -> 0 | W7: =IF(S7>P7,P7+60-S7,P7-S7) -> 0 | X7: 0 | Y7: 0 | Z7: =INT(((SUM(AB7,AH7,AK7,AN7,AQ7,AS7,AU7,AW7,AY7,BA7,BC7,BE7,BG7)*100)+(SUM(AC7,AI7,AL7,AO7,AR7,AT7,AV7,AX7,AZ7,BB7,BD7,BF7,BH7)/60*100))/100) -> 0 | AA7: =MOD(((SUM(AC7,AI7,AL7,AO7,AR7,AT7,AV7,AX7,AZ7,BB7,BD7,BF7,BH7)*100)+(SUM(AC7,AI7,AL7,AO7,AR7,AT7,AV7,AX7,AZ7,BB7,BD7,BF7,BH7)/60*100))/100,1)*60 -> 0 | AD7: =INT(((SUM(AH7,AK7,AN7)*100)+SUM(AI7,AL7,AO7)/60*100)/100) -> 0 | AE7: =MOD(((SUM(AI7,AL7,AO7)*100)+(SUM(AI7,AL7,AO7)/60*100))/100,1)*60 -> 0 | AF7: =INT(((SUM(AQ7+AS7+AU7+AW7+AY7+BA7+BC7+BE7+BG7)*100)+SUM(AR7+AT7+AV7+AX7+AZ7+BB7+BD7+BF7+BH7)/60*100)/100) -> 0 | AG7: =MOD(((SUM(AR7+AT7+AV7+AX7+AZ7+BB7+BD7+BF7+BH7)*100)+(SUM(AR7+AT7+AV7+AX7+AZ7+BB7+BD7+BF7+BH7)/60*100))/100,1)*60 -> 0
A8: =IF(Einstellungen!D25>0.0005,"Bitte Werte prüfen","") ->  | F8: B | I8: =IF(I7<>"",I7+1,IF(CHOOSE(WEEKDAY(Einstellungen!$A$6,2),"Mo","Di","Mi","Do","Fr","Sa","So")=J8,Einstellungen!$A$6,"")) ->  | J8: So | O8: =HOUR(N8-K8-(M8-L8)) -> 0 | P8: =MINUTE(N8-K8-(M8-L8)) -> 0 | T8: nur dienstl. Sonderfälle!* | V8: =IF(S8>P8,O8-1-R8,O8-R8) -> 0 | W8: =IF(S8>P8,P8+60-S8,P8-S8) -> 0 | X8: 0 | Y8: 0 | Z8: =INT(((SUM(AB8,AH8,AK8,AN8,AQ8,AS8,AU8,AW8,AY8,BA8,BC8,BE8,BG8)*100)+(SUM(AC8,AI8,AL8,AO8,AR8,AT8,AV8,AX8,AZ8,BB8,BD8,BF8,BH8)/60*100))/100) -> 0 | AA8: =MOD(((SUM(AC8,AI8,AL8,AO8,AR8,AT8,AV8,AX8,AZ8,BB8,BD8,BF8,BH8)*100)+(SUM(AC8,AI8,AL8,AO8,AR8,AT8,AV8,AX8,AZ8,BB8,BD8,BF8,BH8)/60*100))/100,1)*60 -> 0 | AD8: =INT(((SUM(AH8,AK8,AN8)*100)+SUM(AI8,AL8,AO8)/60*100)/100) -> 0 | AE8: =MOD(((SUM(AI8,AL8,AO8)*100)+(SUM(AI8,AL8,AO8)/60*100))/100,1)*60 -> 0 | AF8: =INT(((SUM(AQ8+AS8+AU8+AW8+AY8+BA8+BC8+BE8+BG8)*100)+SUM(AR8+AT8+AV8+AX8+AZ8+BB8+BD8+BF8+BH8)/60*100)/100) -> 0 | AG8: =MOD(((SUM(AR8+AT8+AV8+AX8+AZ8+BB8+BD8+BF8+BH8)*100)+(SUM(AR8+AT8+AV8+AX8+AZ8+BB8+BD8+BF8+BH8)/60*100))/100,1)*60 -> 0
A9: Meine tägl. Regelarbeitszeit: | F9: X | V9: =INT((60*SUM(V5:V8)+SUM(W5:W8)-W9)/60) -> 0 | W9: =INT(60*SUM(V5:V8)+SUM(W5:W8)-60*INT((60*SUM(V5:V8)+SUM(W5:W8))/60)) -> 0 | X9: =INT((60*SUM(X5:X8)+SUM(Y5:Y8)-Y9)/60) -> 0 | Y9: =INT(60*SUM(X5:X8)+SUM(Y5:Y8)-60*INT((60*SUM(X5:X8)+SUM(Y5:Y8))/60)) -> 0 | Z9: =INT((60*SUM(Z5:Z8)+SUM(AA5:AA8)-AA9)/60) -> 0 | AA9: =INT(60*SUM(Z5:Z8)+SUM(AA5:AA8)-60*INT((60*SUM(Z5:Z8)+SUM(AA5:AA8))/60)) -> 0 | AB9: =INT((60*SUM(AB5:AB8)+SUM(AC5:AC8)-AC9)/60) -> 0 | AC9: =INT(60*SUM(AB5:AB8)+SUM(AC5:AC8)-60*INT((60*SUM(AB5:AB8)+SUM(AC5:AC8))/60)) -> 0 | AD9: =INT((60*SUM(AD5:AD8)+SUM(AE5:AE8)-AE9)/60) -> 0 | AE9: =INT(60*SUM(AD5:AD8)+SUM(AE5:AE8)-60*INT((60*SUM(AD5:AD8)+SUM(AE5:AE8))/60)) -> 0 | AF9: =INT((60*SUM(AF5:AF8)+SUM(AG5:AG8)-AG9)/60) -> 0 | AG9: =INT(60*SUM(AF5:AF8)+SUM(AG5:AG8)-60*INT((60*SUM(AF5:AF8)+SUM(AG5:AG8))/60)) -> 0 | AH9: =INT((60*SUM(AH5:AH8)+SUM(AI5:AI8)-AI9)/60) -> 0 | AI9: =INT(60*SUM(AH5:AH8)+SUM(AI5:AI8)-60*INT((60*SUM(AH5:AH8)+SUM(AI5:AI8))/60)) -> 0 | AK9: =INT((60*SUM(AK5:AK8)+SUM(AL5:AL8)-AL9)/60) -> 0 | AL9: =INT(60*SUM(AK5:AK8)+SUM(AL5:AL8)-60*INT((60*SUM(AK5:AK8)+SUM(AL5:AL8))/60)) -> 0 | AN9: =INT((60*SUM(AN5:AN8)+SUM(AO5:AO8)-AO9)/60) -> 0 | AO9: =INT(60*SUM(AN5:AN8)+SUM(AO5:AO8)-60*INT((60*SUM(AN5:AN8)+SUM(AO5:AO8))/60)) -> 0 | AQ9: =INT((60*SUM(AQ5:AQ8)+SUM(AR5:AR8)-AR9)/60) -> 0 | AR9: =INT(60*SUM(AQ5:AQ8)+SUM(AR5:AR8)-60*INT((60*SUM(AQ5:AQ8)+SUM(AR5:AR8))/60)) -> 0 | AS9: =INT((60*SUM(AS5:AS8)+SUM(AT5:AT8)-AT9)/60) -> 0 | AT9: =INT(60*SUM(AS5:AS8)+SUM(AT5:AT8)-60*INT((60*SUM(AS5:AS8)+SUM(AT5:AT8))/60)) -> 0 | AU9: =INT((60*SUM(AU5:AU8)+SUM(AV5:AV8)-AV9)/60) -> 0 | AV9: =INT(60*SUM(AU5:AU8)+SUM(AV5:AV8)-60*INT((60*SUM(AU5:AU8)+SUM(AV5:AV8))/60)) -> 0 | AW9: =INT((60*SUM(AW5:AW8)+SUM(AX5:AX8)-AX9)/60) -> 0 | AX9: =INT(60*SUM(AW5:AW8)+SUM(AX5:AX8)-60*INT((60*SUM(AW5:AW8)+SUM(AX5:AX8))/60)) -> 0 | AY9: =INT((60*SUM(AY5:AY8)+SUM(AZ5:AZ8)-AZ9)/60) -> 0 | AZ9: =INT(60*SUM(AY5:AY8)+SUM(AZ5:AZ8)-60*INT((60*SUM(AY5:AY8)+SUM(AZ5:AZ8))/60)) -> 0 | BA9: =INT((60*SUM(BA5:BA8)+SUM(BB5:BB8)-BB9)/60) -> 0 | BB9: =INT(60*SUM(BA5:BA8)+SUM(BB5:BB8)-60*INT((60*SUM(BA5:BA8)+SUM(BB5:BB8))/60)) -> 0 | BC9: =INT((60*SUM(BC5:BC8)+SUM(BD5:BD8)-BD9)/60) -> 0 | BD9: =INT(60*SUM(BC5:BC8)+SUM(BD5:BD8)-60*INT((60*SUM(BC5:BC8)+SUM(BD5:BD8))/60)) -> 0 | BE9: =INT((60*SUM(BE5:BE8)+SUM(BF5:BF8)-BF9)/60) -> 0 | BF9: =INT(60*SUM(BE5:BE8)+SUM(BF5:BF8)-60*INT((60*SUM(BE5:BE8)+SUM(BF5:BF8))/60)) -> 0 | BG9: =INT((60*SUM(BG5:BG8)+SUM(BH5:BH8)-BH9)/60) -> 0 | BH9: =INT(60*SUM(BG5:BG8)+SUM(BH5:BH8)-60*INT((60*SUM(BG5:BG8)+SUM(BH5:BH8))/60)) -> 0
E10: =5-COUNTIF(E11:E15,0) -> 5 | F10: =(SUM(C11:C15)*60+SUM(D11:D15))/E10 -> 474
A11: Mo | B11: =IF(E11=0,"frei","") ->  | C11: =SUM(Einstellungen!C19) -> 7 | D11: =SUM(Einstellungen!D19) -> 54 | E11: =C11*60+D11 -> 474 | F11: =E11/$F$10 -> 1 | G11: =IF(AND(E11>0,I11<>"",U11<>"f"),F11,0) -> 0 | H11: =IF(AND(I11<>"",U11<>"f"),1,0) -> 0 | I11: =IF(I8<>"",I8+1,IF(CHOOSE(WEEKDAY(Einstellungen!$A$6,2),"Mo","Di","Mi","Do","Fr","Sa","So")=J11,Einstellungen!$A$6,"")) ->  | J11: Mo | O11: =HOUR(N11-K11-(M11-L11)) -> 0 | P11: =MINUTE(N11-K11-(M11-L11)) -> 0 | V11: =IF(OR(U11="U",U11="k",U11="B"),$C$11,IF(S11>P11,O11-1-R11,O11-R11)) -> 0 | W11: =IF(OR(U11="U",U11="k",U11="B"),$D$11,IF(S11>P11,P11+60-S11,P11-S11)) -> 0 | X11: =IF(OR(U11="U",U11="K",U11="B"),0,V11) -> 0 | Y11: =IF(OR(U11="U",U11="K",U11="B"),0,W11) -> 0 | Z11: =INT(((SUM(AB11,AH11,AK11,AN11,AQ11,AS11,AU11,AW11,AY11,BA11,BC11,BE11,BG11)*100)+(SUM(AC11,AI11,AL11,AO11,AR11,AT11,AV11,AX11,AZ11,BB11,BD11,BF11,BH11)/60*100))/100) -> 0 | AA11: =MOD(((SUM(AC11,AI11,AL11,AO11,AR11,AT11,AV11,AX11,AZ11,BB11,BD11,BF11,BH11)*100)+(SUM(AC11,AI11,AL11,AO11,AR11,AT11,AV11,AX11,AZ11,BB11,BD11,BF11,BH11)/60*100))/100,1)*60 -> 0 | AD11: =INT(((SUM(AH11,AK11,AN11)*100)+SUM(AI11,AL11,AO11)/60*100)/100) -> 0 | AE11: =MOD(((SUM(AI11,AL11,AO11)*100)+(SUM(AI11,AL11,AO11)/60*100))/100,1)*60 -> 0 | AF11: =INT(((SUM(AQ11+AS11+AU11+AW11+AY11+BA11+BC11+BE11+BG11)*100)+SUM(AR11+AT11+AV11+AX11+AZ11+BB11+BD11+BF11+BH11)/60*100)/100) -> 0 | AG11: =MOD(((SUM(AR11+AT11+AV11+AX11+AZ11+BB11+BD11+BF11+BH11)*100)+(SUM(AR11+AT11+AV11+AX11+AZ11+BB11+BD11+BF11+BH11)/60*100))/100,1)*60 -> 0
A12: Di | B12: =IF(E12=0,"frei","") ->  | C12: =SUM(Einstellungen!C20) -> 7 | D12: =SUM(Einstellungen!D20) -> 54 | E12: =C12*60+D12 -> 474 | F12: =E12/$F$10 -> 1 | G12: =IF(AND(E12>0,I12<>"",U12<>"f"),F12,0) -> 0 | H12: =IF(AND(I12<>"",U12<>"f"),1,0) -> 0 | I12: =IF(I11<>"",I11+1,IF(CHOOSE(WEEKDAY(Einstellungen!$A$6,2),"Mo","Di","Mi","Do","Fr","Sa","So")=J12,Einstellungen!$A$6,"")) ->  | J12: Di | O12: 0 | P12: 0 | V12: =IF(OR(U12="U",U12="k",U12="B"),$C$12,IF(S12>P12,O12-1-R12,O12-R12)) -> 0 | W12: =IF(OR(U12="U",U12="k",U12="B"),$D$12,IF(S12>P12,P12+60-S12,P12-S12)) -> 0 | X12: 0 | Y12: 0 | Z12: 0 | AA12: 0 | AD12: 0 | AE12: 0 | AF12: 0 | AG12: 0
A13: Mi | B13: =IF(E13=0,"frei","") ->  | C13: =SUM(Einstellungen!C21) -> 7 | D13: =SUM(Einstellungen!D21) -> 54 | E13: =C13*60+D13 -> 474 | F13: =E13/$F$10 -> 1 | G13: =IF(AND(E13>0,I13<>"",U13<>"f"),F13,0) -> 1 | H13: =IF(AND(I13<>"",U13<>"f"),1,0) -> 1 | I13: =IF(I12<>"",I12+1,IF(CHOOSE(WEEKDAY(Einstellungen!$A$6,2),"Mo","Di","Mi","Do","Fr","Sa","So")=J13,Einstellungen!$A$6,"")) -> 2026-04-01 | J13: Mi | O13: 0 | P13: 0 | V13: =IF(OR(U13="U",U13="k",U13="B"),$C$13,IF(S13>P13,O13-1-R13,O13-R13)) -> 0 | W13: =IF(OR(U13="U",U13="k",U13="B"),$D$13,IF(S13>P13,P13+60-S13,P13-S13)) -> 0 | X13: 0 | Y13: 0 | Z13: 0 | AA13: 0 | AD13: 0 | AE13: 0 | AF13: 0 | AG13: 0
A14: Do | B14: =IF(E14=0,"frei","") ->  | C14: =SUM(Einstellungen!C22) -> 7 | D14: =SUM(Einstellungen!D22) -> 54 | E14: =C14*60+D14 -> 474 | F14: =E14/$F$10 -> 1 | G14: =IF(AND(E14>0,I14<>"",U14<>"f"),F14,0) -> 1 | H14: =IF(AND(I14<>"",U14<>"f"),1,0) -> 1 | I14: =IF(I13<>"",I13+1,IF(CHOOSE(WEEKDAY(Einstellungen!$A$6,2),"Mo","Di","Mi","Do","Fr","Sa","So")=J14,Einstellungen!$A$6,"")) -> 2026-04-02 | J14: Do | O14: 0 | P14: 0 | V14: =IF(OR(U14="U",U14="k",U14="B"),$C$14,IF(S14>P14,O14-1-R14,O14-R14)) -> 0 | W14: =IF(OR(U14="U",U14="k",U14="B"),$D$14,IF(S14>P14,P14+60-S14,P14-S14)) -> 0 | X14: 0 | Y14: 0 | Z14: 0 | AA14: 0 | AD14: 0 | AE14: 0 | AF14: 0 | AG14: 0
A15: Fr | B15: =IF(E15=0,"frei","") ->  | C15: =SUM(Einstellungen!C23) -> 7 | D15: =SUM(Einstellungen!D23) -> 54 | E15: =C15*60+D15 -> 474 | F15: =E15/$F$10 -> 1 | G15: =IF(AND(E15>0,I15<>"",U15<>"f"),F15,0) -> 0 | H15: =IF(AND(I15<>"",U15<>"f"),1,0) -> 0 | I15: =I14+1 -> 2026-04-03 | J15: Fr | O15: 0 | P15: 0 | T15: nur dienstl. Sonderfälle!* | U15: F | V15: =IF(OR(U15="U",U15="k",U15="B"),$C$15,IF(S15>P15,O15-1-R15,O15-R15)) -> 0 | W15: =IF(OR(U15="U",U15="k",U15="B"),$D$15,IF(S15>P15,P15+60-S15,P15-S15)) -> 0 | X15: 0 | Y15: 0 | Z15: 0 | AA15: 0 | AD15: 0 | AE15: 0 | AF15: 0 | AG15: 0
A16: =Einstellungen!$L$1 -> Hinweise: | I16: =I15+1 -> 2026-04-04 | J16: Sa | O16: 0 | P16: 0 | T16: nur dienstl. Sonderfälle!* | V16: =IF(S16>P16,O16-1-R16,O16-R16) -> 0 | W16: =IF(S16>P16,P16+60-S16,P16-S16) -> 0 | X16: 0 | Y16: 0 | Z16: 0 | AA16: 0 | AD16: 0 | AE16: 0 | AF16: 0 | AG16: 0
A17: =Einstellungen!$L$2 -> I Beschäftigte mit 39,5 Std-Woche | I17: =I16+1 -> 2026-04-05 | J17: So | O17: 0 | P17: 0 | T17: nur dienstl. Sonderfälle!* | V17: =IF(S17>P17,O17-1-R17,O17-R17) -> 0 | W17: =IF(S17>P17,P17+60-S17,P17-S17) -> 0 | X17: 0 | Y17: 0 | Z17: 0 | AA17: 0 | AD17: 0 | AE17: 0 | AF17: 0 | AG17: 0
A18: =Einstellungen!$L$3 ->  | C18: =Einstellungen!$N$3 -> Beschäftigungsumfang | V18: =INT((60*SUM(V11:V17)+SUM(W11:W17)-W18)/60) -> 0 | W18: =INT(60*SUM(V11:V17)+SUM(W11:W17)-60*INT((60*SUM(V11:V17)+SUM(W11:W17))/60)) -> 0 | X18: =INT((60*SUM(X11:X17)+SUM(Y11:Y17)-Y18)/60) -> 0 | Y18: =INT(60*SUM(X11:X17)+SUM(Y11:Y17)-60*INT((60*SUM(X11:X17)+SUM(Y11:Y17))/60)) -> 0 | Z18: =INT((60*SUM(Z11:Z17)+SUM(AA11:AA17)-AA18)/60) -> 0 | AA18: =INT(60*SUM(Z11:Z17)+SUM(AA11:AA17)-60*INT((60*SUM(Z11:Z17)+SUM(AA11:AA17))/60)) -> 0 | AB18: =INT((60*SUM(AB11:AB17)+SUM(AC11:AC17)-AC18)/60) -> 0 | AC18: =INT(60*SUM(AB11:AB17)+SUM(AC11:AC17)-60*INT((60*SUM(AB11:AB17)+SUM(AC11:AC17))/60)) -> 0 | AD18: =INT((60*SUM(AD11:AD17)+SUM(AE11:AE17)-AE18)/60) -> 0 | AE18: =INT(60*SUM(AD11:AD17)+SUM(AE11:AE17)-60*INT((60*SUM(AD11:AD17)+SUM(AE11:AE17))/60)) -> 0 | AF18: =INT((60*SUM(AF11:AF17)+SUM(AG11:AG17)-AG18)/60) -> 0 | AG18: =INT(60*SUM(AF11:AF17)+SUM(AG11:AG17)-60*INT((60*SUM(AF11:AF17)+SUM(AG11:AG17))/60)) -> 0 | AH18: =INT((60*SUM(AH11:AH17)+SUM(AI11:AI17)-AI18)/60) -> 0 | AI18: =INT(60*SUM(AH11:AH17)+SUM(AI11:AI17)-60*INT((60*SUM(AH11:AH17)+SUM(AI11:AI17))/60)) -> 0 | AK18: =INT((60*SUM(AK11:AK17)+SUM(AL11:AL17)-AL18)/60) -> 0 | AL18: =INT(60*SUM(AK11:AK17)+SUM(AL11:AL17)-60*INT((60*SUM(AK11:AK17)+SUM(AL11:AL17))/60)) -> 0 | AN18: =INT((60*SUM(AN11:AN17)+SUM(AO11:AO17)-AO18)/60) -> 0 | AO18: =INT(60*SUM(AN11:AN17)+SUM(AO11:AO17)-60*INT((60*SUM(AN11:AN17)+SUM(AO11:AO17))/60)) -> 0 | AQ18: =INT((60*SUM(AQ11:AQ17)+SUM(AR11:AR17)-AR18)/60) -> 0 | AR18: =INT(60*SUM(AQ11:AQ17)+SUM(AR11:AR17)-60*INT((60*SUM(AQ11:AQ17)+SUM(AR11:AR17))/60)) -> 0 | AS18: =INT((60*SUM(AS11:AS17)+SUM(AT11:AT17)-AT18)/60) -> 0 | AT18: =INT(60*SUM(AS11:AS17)+SUM(AT11:AT17)-60*INT((60*SUM(AS11:AS17)+SUM(AT11:AT17))/60)) -> 0 | AU18: =INT((60*SUM(AU11:AU17)+SUM(AV11:AV17)-AV18)/60) -> 0 | AV18: =INT(60*SUM(AU11:AU17)+SUM(AV11:AV17)-60*INT((60*SUM(AU11:AU17)+SUM(AV11:AV17))/60)) -> 0 | AW18: =INT((60*SUM(AW11:AW17)+SUM(AX11:AX17)-AX18)/60) -> 0 | AX18: =INT(60*SUM(AW11:AW17)+SUM(AX11:AX17)-60*INT((60*SUM(AW11:AW17)+SUM(AX11:AX17))/60)) -> 0 | AY18: =INT((60*SUM(AY11:AY17)+SUM(AZ11:AZ17)-AZ18)/60) -> 0 | AZ18: =INT(60*SUM(AY11:AY17)+SUM(AZ11:AZ17)-60*INT((60*SUM(AY11:AY17)+SUM(AZ11:AZ17))/60)) -> 0 | BA18: =INT((60*SUM(BA11:BA17)+SUM(BB11:BB17)-BB18)/60) -> 0 | BB18: =INT(60*SUM(BA11:BA17)+SUM(BB11:BB17)-60*INT((60*SUM(BA11:BA17)+SUM(BB11:BB17))/60)) -> 0 | BC18: =INT((60*SUM(BC11:BC17)+SUM(BD11:BD17)-BD18)/60) -> 0 | BD18: =INT(60*SUM(BC11:BC17)+SUM(BD11:BD17)-60*INT((60*SUM(BC11:BC17)+SUM(BD11:BD17))/60)) -> 0 | BE18: =INT((60*SUM(BE11:BE17)+SUM(BF11:BF17)-BF18)/60) -> 0 | BF18: =INT(60*SUM(BE11:BE17)+SUM(BF11:BF17)-60*INT((60*SUM(BE11:BE17)+SUM(BF11:BF17))/60)) -> 0 | BG18: =INT((60*SUM(BG11:BG17)+SUM(BH11:BH17)-BH18)/60) -> 0 | BH18: =INT(60*SUM(BG11:BG17)+SUM(BH11:BH17)-60*INT((60*SUM(BG11:BG17)+SUM(BH11:BH17))/60)) -> 0
A20: =Einstellungen!$L$4 -> 5 Tage-Woche | C20: =Einstellungen!$N$4 -> 1 | D20: =Einstellungen!$O$4 -> 0.75 | F20: =Einstellungen!$Q$4 -> 0.5 | G20: =IF(AND(E11>0,I20<>"",U20<>"f"),F11,0) -> 0 | H20: =IF(AND(I20<>"",U20<>"f"),1,0) -> 0 | I20: =I17+1 -> 2026-04-06 | J20: Mo | O20: =HOUR(N20-K20-(M20-L20)) -> 0 | P20: =MINUTE(N20-K20-(M20-L20)) -> 0 | T20: nur dienstl. Sonderfälle!* | U20: F | V20: =IF(OR(U20="U",U20="k",U20="B"),$C$11,IF(S20>P20,O20-1-R20,O20-R20)) -> 0 | W20: =IF(OR(U20="U",U20="k",U20="B"),$D$11,IF(S20>P20,P20+60-S20,P20-S20)) -> 0 | X20: =IF(OR(U20="U",U20="K",U20="B"),0,V20) -> 0 | Y20: =IF(OR(U20="U",U20="K",U20="B"),0,W20) -> 0 | Z20: =INT(((SUM(AB20,AH20,AK20,AN20,AQ20,AS20,AU20,AW20,AY20,BA20,BC20,BE20,BG20)*100)+(SUM(AC20,AI20,AL20,AO20,AR20,AT20,AV20,AX20,AZ20,BB20,BD20,BF20,BH20)/60*100))/100) -> 0 | AA20: =MOD(((SUM(AC20,AI20,AL20,AO20,AR20,AT20,AV20,AX20,AZ20,BB20,BD20,BF20,BH20)*100)+(SUM(AC20,AI20,AL20,AO20,AR20,AT20,AV20,AX20,AZ20,BB20,BD20,BF20,BH20)/60*100))/100,1)*60 -> 0 | AD20: =INT(((SUM(AH20,AK20,AN20)*100)+SUM(AI20,AL20,AO20)/60*100)/100) -> 0 | AE20: =MOD(((SUM(AI20,AL20,AO20)*100)+(SUM(AI20,AL20,AO20)/60*100))/100,1)*60 -> 0 | AF20: =INT(((SUM(AQ20+AS20+AU20+AW20+AY20+BA20+BC20+BE20+BG20)*100)+SUM(AR20+AT20+AV20+AX20+AZ20+BB20+BD20+BF20+BH20)/60*100)/100) -> 0 | AG20: =MOD(((SUM(AR20+AT20+AV20+AX20+AZ20+BB20+BD20+BF20+BH20)*100)+(SUM(AR20+AT20+AV20+AX20+AZ20+BB20+BD20+BF20+BH20)/60*100))/100,1)*60 -> 0
A21: =Einstellungen!$L$5 ->  | G21: =IF(AND(E12>0,I21<>"",U21<>"f"),F12,0) -> 1 | H21: =IF(AND(I21<>"",U21<>"f"),1,0) -> 1 | I21: =I20+1 -> 2026-04-07 | J21: Di | O21: 0 | P21: 0 | V21: =IF(OR(U21="U",U21="k",U21="B"),$C$12,IF(S21>P21,O21-1-R21,O21-R21)) -> 0 | W21: =IF(OR(U21="U",U21="k",U21="B"),$D$12,IF(S21>P21,P21+60-S21,P21-S21)) -> 0 | X21: 0 | Y21: 0 | Z21: 0 | AA21: 0 | AD21: 0 | AE21: 0 | AF21: 0 | AG21: 0
A22: =Einstellungen!$L$6 -> tägliche Regel- | G22: =IF(AND(E13>0,I22<>"",U22<>"f"),F13,0) -> 1 | H22: =IF(AND(I22<>"",U22<>"f"),1,0) -> 1 | I22: =I21+1 -> 2026-04-08 | J22: Mi | O22: 0 | P22: 0 | V22: =IF(OR(U22="U",U22="k",U22="B"),$C$13,IF(S22>P22,O22-1-R22,O22-R22)) -> 0 | W22: =IF(OR(U22="U",U22="k",U22="B"),$D$13,IF(S22>P22,P22+60-S22,P22-S22)) -> 0 | X22: 0 | Y22: 0 | Z22: 0 | AA22: 0 | AD22: 0 | AE22: 0 | AF22: 0 | AG22: 0
A23: =Einstellungen!$L$7 -> arbeitszeit für | G23: =IF(AND(E14>0,I23<>"",U23<>"f"),F14,0) -> 1 | H23: =IF(AND(I23<>"",U23<>"f"),1,0) -> 1 | I23: 2026-04-09 | J23: Do | O23: 0 | P23: 0 | V23: =IF(OR(U23="U",U23="k",U23="B"),$C$14,IF(S23>P23,O23-1-R23,O23-R23)) -> 0 | W23: =IF(OR(U23="U",U23="k",U23="B"),$D$14,IF(S23>P23,P23+60-S23,P23-S23)) -> 0 | X23: 0 | Y23: 0 | Z23: 0 | AA23: 0 | AD23: 0 | AE23: 0 | AF23: 0 | AG23: 0
A24: =Einstellungen!$L$8 -> Wochenfeier- | G24: =IF(AND(E15>0,I24<>"",U24<>"f"),F15,0) -> 1 | H24: =IF(AND(I24<>"",U24<>"f"),1,0) -> 1 | I24: 2026-04-10 | J24: Fr | O24: 0 | P24: 0 | V24: =IF(OR(U24="U",U24="k",U24="B"),$C$15,IF(S24>P24,O24-1-R24,O24-R24)) -> 0 | W24: =IF(OR(U24="U",U24="k",U24="B"),$D$15,IF(S24>P24,P24+60-S24,P24-S24)) -> 0 | X24: 0 | Y24: 0 | Z24: 0 | AA24: 0 | AD24: 0 | AE24: 0 | AF24: 0 | AG24: 0
A25: =Einstellungen!$L$9 -> tage, bei Urlaub | I25: 2026-04-11 | J25: Sa | O25: 0 | P25: 0 | T25: nur dienstl. Sonderfälle!* | V25: =IF(S25>P25,O25-1-R25,O25-R25) -> 0 | W25: =IF(S25>P25,P25+60-S25,P25-S25) -> 0 | X25: 0 | Y25: 0 | Z25: 0 | AA25: 0 | AD25: 0 | AE25: 0 | AF25: 0 | AG25: 0
A26: =Einstellungen!$L$10 -> oder Krankheit | I26: 2026-04-12 | J26: So | O26: 0 | P26: 0 | T26: nur dienstl. Sonderfälle!* | V26: =IF(S26>P26,O26-1-R26,O26-R26) -> 0 | W26: =IF(S26>P26,P26+60-S26,P26-S26) -> 0 | X26: 0 | Y26: 0 | Z26: 0 | AA26: 0 | AD26: 0 | AE26: 0 | AF26: 0 | AG26: 0
A27: =Einstellungen!$L$11 -> Mo-Fr | B27: =Einstellungen!$M$11 -> Std.Min | C27: =Einstellungen!$N$11 -> 7.54 | D27: =Einstellungen!$O$11 -> 5.56 | F27: =Einstellungen!$Q$11 -> 3.57 | V27: =INT((60*SUM(V20:V26)+SUM(W20:W26)-W27)/60) -> 0 | W27: =INT(60*SUM(V20:V26)+SUM(W20:W26)-60*INT((60*SUM(V20:V26)+SUM(W20:W26))/60)) -> 0 | X27: =INT((60*SUM(X20:X26)+SUM(Y20:Y26)-Y27)/60) -> 0 | Y27: =INT(60*SUM(X20:X26)+SUM(Y20:Y26)-60*INT((60*SUM(X20:X26)+SUM(Y20:Y26))/60)) -> 0 | Z27: =INT((60*SUM(Z20:Z26)+SUM(AA20:AA26)-AA27)/60) -> 0 | AA27: =INT(60*SUM(Z20:Z26)+SUM(AA20:AA26)-60*INT((60*SUM(Z20:Z26)+SUM(AA20:AA26))/60)) -> 0 | AB27: =INT((60*SUM(AB20:AB26)+SUM(AC20:AC26)-AC27)/60) -> 0 | AC27: =INT(60*SUM(AB20:AB26)+SUM(AC20:AC26)-60*INT((60*SUM(AB20:AB26)+SUM(AC20:AC26))/60)) -> 0 | AD27: =INT((60*SUM(AD20:AD26)+SUM(AE20:AE26)-AE27)/60) -> 0 | AE27: =INT(60*SUM(AD20:AD26)+SUM(AE20:AE26)-60*INT((60*SUM(AD20:AD26)+SUM(AE20:AE26))/60)) -> 0 | AF27: =INT((60*SUM(AF20:AF26)+SUM(AG20:AG26)-AG27)/60) -> 0 | AG27: =INT(60*SUM(AF20:AF26)+SUM(AG20:AG26)-60*INT((60*SUM(AF20:AF26)+SUM(AG20:AG26))/60)) -> 0 | AH27: =INT((60*SUM(AH20:AH26)+SUM(AI20:AI26)-AI27)/60) -> 0 | AI27: =INT(60*SUM(AH20:AH26)+SUM(AI20:AI26)-60*INT((60*SUM(AH20:AH26)+SUM(AI20:AI26))/60)) -> 0 | AK27: =INT((60*SUM(AK20:AK26)+SUM(AL20:AL26)-AL27)/60) -> 0 | AL27: =INT(60*SUM(AK20:AK26)+SUM(AL20:AL26)-60*INT((60*SUM(AK20:AK26)+SUM(AL20:AL26))/60)) -> 0 | AN27: =INT((60*SUM(AN20:AN26)+SUM(AO20:AO26)-AO27)/60) -> 0 | AO27: =INT(60*SUM(AN20:AN26)+SUM(AO20:AO26)-60*INT((60*SUM(AN20:AN26)+SUM(AO20:AO26))/60)) -> 0 | AQ27: =INT((60*SUM(AQ20:AQ26)+SUM(AR20:AR26)-AR27)/60) -> 0 | AR27: =INT(60*SUM(AQ20:AQ26)+SUM(AR20:AR26)-60*INT((60*SUM(AQ20:AQ26)+SUM(AR20:AR26))/60)) -> 0 | AS27: =INT((60*SUM(AS20:AS26)+SUM(AT20:AT26)-AT27)/60) -> 0 | AT27: =INT(60*SUM(AS20:AS26)+SUM(AT20:AT26)-60*INT((60*SUM(AS20:AS26)+SUM(AT20:AT26))/60)) -> 0 | AU27: =INT((60*SUM(AU20:AU26)+SUM(AV20:AV26)-AV27)/60) -> 0 | AV27: =INT(60*SUM(AU20:AU26)+SUM(AV20:AV26)-60*INT((60*SUM(AU20:AU26)+SUM(AV20:AV26))/60)) -> 0 | AW27: =INT((60*SUM(AW20:AW26)+SUM(AX20:AX26)-AX27)/60) -> 0 | AX27: =INT(60*SUM(AW20:AW26)+SUM(AX20:AX26)-60*INT((60*SUM(AW20:AW26)+SUM(AX20:AX26))/60)) -> 0 | AY27: =INT((60*SUM(AY20:AY26)+SUM(AZ20:AZ26)-AZ27)/60) -> 0 | AZ27: =INT(60*SUM(AY20:AY26)+SUM(AZ20:AZ26)-60*INT((60*SUM(AY20:AY26)+SUM(AZ20:AZ26))/60)) -> 0 | BA27: =INT((60*SUM(BA20:BA26)+SUM(BB20:BB26)-BB27)/60) -> 0 | BB27: =INT(60*SUM(BA20:BA26)+SUM(BB20:BB26)-60*INT((60*SUM(BA20:BA26)+SUM(BB20:BB26))/60)) -> 0 | BC27: =INT((60*SUM(BC20:BC26)+SUM(BD20:BD26)-BD27)/60) -> 0 | BD27: =INT(60*SUM(BC20:BC26)+SUM(BD20:BD26)-60*INT((60*SUM(BC20:BC26)+SUM(BD20:BD26))/60)) -> 0 | BE27: =INT((60*SUM(BE20:BE26)+SUM(BF20:BF26)-BF27)/60) -> 0 | BF27: =INT(60*SUM(BE20:BE26)+SUM(BF20:BF26)-60*INT((60*SUM(BE20:BE26)+SUM(BF20:BF26))/60)) -> 0 | BG27: =INT((60*SUM(BG20:BG26)+SUM(BH20:BH26)-BH27)/60) -> 0 | BH27: =INT(60*SUM(BG20:BG26)+SUM(BH20:BH26)-60*INT((60*SUM(BG20:BG26)+SUM(BH20:BH26))/60)) -> 0
A29: =Einstellungen!$L$13 -> Wochen | G29: =IF(AND(E11>0,I29<>"",U29<>"f"),F11,0) -> 1 | H29: =IF(AND(I29<>"",U29<>"f"),1,0) -> 1 | I29: =I26+1 -> 2026-04-13 | J29: Mo | O29: =HOUR(N29-K29-(M29-L29)) -> 0 | P29: =MINUTE(N29-K29-(M29-L29)) -> 0 | V29: =IF(OR(U29="U",U29="k",U29="B"),$C$11,IF(S29>P29,O29-1-R29,O29-R29)) -> 0 | W29: =IF(OR(U29="U",U29="k",U29="B"),$D$11,IF(S29>P29,P29+60-S29,P29-S29)) -> 0 | X29: =IF(OR(U29="U",U29="K",U29="B"),0,V29) -> 0 | Y29: =IF(OR(U29="U",U29="K",U29="B"),0,W29) -> 0 | Z29: =INT(((SUM(AB29,AH29,AK29,AN29,AQ29,AS29,AU29,AW29,AY29,BA29,BC29,BE29,BG29)*100)+(SUM(AC29,AI29,AL29,AO29,AR29,AT29,AV29,AX29,AZ29,BB29,BD29,BF29,BH29)/60*100))/100) -> 0 | AA29: =MOD(((SUM(AC29,AI29,AL29,AO29,AR29,AT29,AV29,AX29,AZ29,BB29,BD29,BF29,BH29)*100)+(SUM(AC29,AI29,AL29,AO29,AR29,AT29,AV29,AX29,AZ29,BB29,BD29,BF29,BH29)/60*100))/100,1)*60 -> 0 | AD29: =INT(((SUM(AH29,AK29,AN29)*100)+SUM(AI29,AL29,AO29)/60*100)/100) -> 0 | AE29: =MOD(((SUM(AI29,AL29,AO29)*100)+(SUM(AI29,AL29,AO29)/60*100))/100,1)*60 -> 0 | AF29: =INT(((SUM(AQ29+AS29+AU29+AW29+AY29+BA29+BC29+BE29+BG29)*100)+SUM(AR29+AT29+AV29+AX29+AZ29+BB29+BD29+BF29+BH29)/60*100)/100) -> 0 | AG29: =MOD(((SUM(AR29+AT29+AV29+AX29+AZ29+BB29+BD29+BF29+BH29)*100)+(SUM(AR29+AT29+AV29+AX29+AZ29+BB29+BD29+BF29+BH29)/60*100))/100,1)*60 -> 0
A30: =CONCATENATE(Einstellungen!$L$14," ",Einstellungen!$M$14) -> Arbeitzeit Std.Min | C30: =Einstellungen!$N$14 -> 39.30 | D30: =Einstellungen!$O$14 -> 29.38 | F30: =Einstellungen!$Q$14 -> 19.45 | G30: =IF(AND(E12>0,I30<>"",U30<>"f"),F12,0) -> 1 | H30: =IF(AND(I30<>"",U30<>"f"),1,0) -> 1 | I30: =I29+1 -> 2026-04-14 | J30: Di | O30: 0 | P30: 0 | V30: =IF(OR(U30="U",U30="k",U30="B"),$C$12,IF(S30>P30,O30-1-R30,O30-R30)) -> 0 | W30: =IF(OR(U30="U",U30="k",U30="B"),$D$12,IF(S30>P30,P30+60-S30,P30-S30)) -> 0 | X30: 0 | Y30: 0 | Z30: 0 | AA30: 0 | AD30: 0 | AE30: 0 | AF30: 0 | AG30: 0
A31: =Einstellungen!$L$15 -> max.Übertrag auf das | G31: =IF(AND(E13>0,I31<>"",U31<>"f"),F13,0) -> 1 | H31: =IF(AND(I31<>"",U31<>"f"),1,0) -> 1 | I31: =I30+1 -> 2026-04-15 | J31: Mi | O31: 0 | P31: 0 | V31: =IF(OR(U31="U",U31="k",U31="B"),$C$13,IF(S31>P31,O31-1-R31,O31-R31)) -> 0 | W31: =IF(OR(U31="U",U31="k",U31="B"),$D$13,IF(S31>P31,P31+60-S31,P31-S31)) -> 0 | X31: 0 | Y31: 0 | Z31: 0 | AA31: 0 | AD31: 0 | AE31: 0 | AF31: 0 | AG31: 0
A32: =Einstellungen!$L$16 -> Folgejahr Std.Min | C32: =Einstellungen!$N$16 -> 39.30 | D32: =Einstellungen!$O$16 -> 39.30 | F32: =Einstellungen!$Q$16 -> 39.30 | G32: =IF(AND(E14>0,I32<>"",U32<>"f"),F14,0) -> 1 | H32: =IF(AND(I32<>"",U32<>"f"),1,0) -> 1 | I32: 2026-04-16 | J32: Do | O32: 0 | P32: 0 | V32: =IF(OR(U32="U",U32="k",U32="B"),$C$14,IF(S32>P32,O32-1-R32,O32-R32)) -> 0 | W32: =IF(OR(U32="U",U32="k",U32="B"),$D$14,IF(S32>P32,P32+60-S32,P32-S32)) -> 0 | X32: 0 | Y32: 0 | Z32: 0 | AA32: 0 | AD32: 0 | AE32: 0 | AF32: 0 | AG32: 0
A33: =Einstellungen!$L$17 -> II Beschäftigte mit 41 Std-Woche | G33: =IF(AND(E15>0,I33<>"",U33<>"f"),F15,0) -> 1 | H33: =IF(AND(I33<>"",U33<>"f"),1,0) -> 1 | I33: 2026-04-17 | J33: Fr | O33: 0 | P33: 0 | V33: =IF(OR(U33="U",U33="k",U33="B"),$C$15,IF(S33>P33,O33-1-R33,O33-R33)) -> 0 | W33: =IF(OR(U33="U",U33="k",U33="B"),$D$15,IF(S33>P33,P33+60-S33,P33-S33)) -> 0 | X33: 0 | Y33: 0 | Z33: 0 | AA33: 0 | AD33: 0 | AE33: 0 | AF33: 0 | AG33: 0
A34: =Einstellungen!$L$18 -> tägliche Arbeitszeit | I34: 2026-04-18 | J34: Sa | O34: 0 | P34: 0 | T34: nur dienstl. Sonderfälle!* | V34: =IF(S34>P34,O34-1-R34,O34-R34) -> 0 | W34: =IF(S34>P34,P34+60-S34,P34-S34) -> 0 | X34: 0 | Y34: 0 | Z34: 0 | AA34: 0 | AD34: 0 | AE34: 0 | AF34: 0 | AG34: 0
A35: =Einstellungen!$L$19 -> Mo-Fr | B35: =Einstellungen!$M$19 -> Std.Min | C35: =Einstellungen!$N$19 -> 8.12 | D35: =Einstellungen!$O$19 -> 6.09 | F35: =Einstellungen!$Q$19 -> 4.06 | I35: 2026-04-19 | J35: So | O35: 0 | P35: 0 | T35: nur dienstl. Sonderfälle!* | V35: =IF(S35>P35,O35-1-R35,O35-R35) -> 0 | W35: =IF(S35>P35,P35+60-S35,P35-S35) -> 0 | X35: 0 | Y35: 0 | Z35: 0 | AA35: 0 | AD35: 0 | AE35: 0 | AF35: 0 | AG35: 0
A36: =Einstellungen!$L$20 -> Wochen | V36: =INT((60*SUM(V29:V35)+SUM(W29:W35)-W36)/60) -> 0 | W36: =INT(60*SUM(V29:V35)+SUM(W29:W35)-60*INT((60*SUM(V29:V35)+SUM(W29:W35))/60)) -> 0 | X36: =INT((60*SUM(X29:X35)+SUM(Y29:Y35)-Y36)/60) -> 0 | Y36: =INT(60*SUM(X29:X35)+SUM(Y29:Y35)-60*INT((60*SUM(X29:X35)+SUM(Y29:Y35))/60)) -> 0 | Z36: =INT((60*SUM(Z29:Z35)+SUM(AA29:AA35)-AA36)/60) -> 0 | AA36: =INT(60*SUM(Z29:Z35)+SUM(AA29:AA35)-60*INT((60*SUM(Z29:Z35)+SUM(AA29:AA35))/60)) -> 0 | AB36: =INT((60*SUM(AB29:AB35)+SUM(AC29:AC35)-AC36)/60) -> 0 | AC36: =INT(60*SUM(AB29:AB35)+SUM(AC29:AC35)-60*INT((60*SUM(AB29:AB35)+SUM(AC29:AC35))/60)) -> 0 | AD36: =INT((60*SUM(AD29:AD35)+SUM(AE29:AE35)-AE36)/60) -> 0 | AE36: =INT(60*SUM(AD29:AD35)+SUM(AE29:AE35)-60*INT((60*SUM(AD29:AD35)+SUM(AE29:AE35))/60)) -> 0 | AF36: =INT((60*SUM(AF29:AF35)+SUM(AG29:AG35)-AG36)/60) -> 0 | AG36: =INT(60*SUM(AF29:AF35)+SUM(AG29:AG35)-60*INT((60*SUM(AF29:AF35)+SUM(AG29:AG35))/60)) -> 0 | AH36: =INT((60*SUM(AH29:AH35)+SUM(AI29:AI35)-AI36)/60) -> 0 | AI36: =INT(60*SUM(AH29:AH35)+SUM(AI29:AI35)-60*INT((60*SUM(AH29:AH35)+SUM(AI29:AI35))/60)) -> 0 | AK36: =INT((60*SUM(AK29:AK35)+SUM(AL29:AL35)-AL36)/60) -> 0 | AL36: =INT(60*SUM(AK29:AK35)+SUM(AL29:AL35)-60*INT((60*SUM(AK29:AK35)+SUM(AL29:AL35))/60)) -> 0 | AN36: =INT((60*SUM(AN29:AN35)+SUM(AO29:AO35)-AO36)/60) -> 0 | AO36: =INT(60*SUM(AN29:AN35)+SUM(AO29:AO35)-60*INT((60*SUM(AN29:AN35)+SUM(AO29:AO35))/60)) -> 0 | AQ36: =INT((60*SUM(AQ29:AQ35)+SUM(AR29:AR35)-AR36)/60) -> 0 | AR36: =INT(60*SUM(AQ29:AQ35)+SUM(AR29:AR35)-60*INT((60*SUM(AQ29:AQ35)+SUM(AR29:AR35))/60)) -> 0 | AS36: =INT((60*SUM(AS29:AS35)+SUM(AT29:AT35)-AT36)/60) -> 0 | AT36: =INT(60*SUM(AS29:AS35)+SUM(AT29:AT35)-60*INT((60*SUM(AS29:AS35)+SUM(AT29:AT35))/60)) -> 0 | AU36: =INT((60*SUM(AU29:AU35)+SUM(AV29:AV35)-AV36)/60) -> 0 | AV36: =INT(60*SUM(AU29:AU35)+SUM(AV29:AV35)-60*INT((60*SUM(AU29:AU35)+SUM(AV29:AV35))/60)) -> 0 | AW36: =INT((60*SUM(AW29:AW35)+SUM(AX29:AX35)-AX36)/60) -> 0 | AX36: =INT(60*SUM(AW29:AW35)+SUM(AX29:AX35)-60*INT((60*SUM(AW29:AW35)+SUM(AX29:AX35))/60)) -> 0 | AY36: =INT((60*SUM(AY29:AY35)+SUM(AZ29:AZ35)-AZ36)/60) -> 0 | AZ36: =INT(60*SUM(AY29:AY35)+SUM(AZ29:AZ35)-60*INT((60*SUM(AY29:AY35)+SUM(AZ29:AZ35))/60)) -> 0 | BA36: =INT((60*SUM(BA29:BA35)+SUM(BB29:BB35)-BB36)/60) -> 0 | BB36: =INT(60*SUM(BA29:BA35)+SUM(BB29:BB35)-60*INT((60*SUM(BA29:BA35)+SUM(BB29:BB35))/60)) -> 0 | BC36: =INT((60*SUM(BC29:BC35)+SUM(BD29:BD35)-BD36)/60) -> 0 | BD36: =INT(60*SUM(BC29:BC35)+SUM(BD29:BD35)-60*INT((60*SUM(BC29:BC35)+SUM(BD29:BD35))/60)) -> 0 | BE36: =INT((60*SUM(BE29:BE35)+SUM(BF29:BF35)-BF36)/60) -> 0 | BF36: =INT(60*SUM(BE29:BE35)+SUM(BF29:BF35)-60*INT((60*SUM(BE29:BE35)+SUM(BF29:BF35))/60)) -> 0 | BG36: =INT((60*SUM(BG29:BG35)+SUM(BH29:BH35)-BH36)/60) -> 0 | BH36: =INT(60*SUM(BG29:BG35)+SUM(BH29:BH35)-60*INT((60*SUM(BG29:BG35)+SUM(BH29:BH35))/60)) -> 0
A38: =CONCATENATE(Einstellungen!$L$21," ",Einstellungen!$M$21) -> Arbeitzeit Std.Min | C38: =Einstellungen!$N$21 -> 41.00 | D38: =Einstellungen!$O$21 -> 30.45 | F38: =Einstellungen!$Q$21 -> 20.30 | G38: =IF(AND(E11>0,I38<>"",U38<>"f"),F11,0) -> 1 | H38: =IF(AND(I38<>"",U38<>"f"),1,0) -> 1 | I38: =IF(I35<>"",IF(MONTH(I35)=MONTH(I35+1),I35+1,""),"") -> 2026-04-20 | J38: Mo | O38: =HOUR(N38-K38-(M38-L38)) -> 0 | P38: =MINUTE(N38-K38-(M38-L38)) -> 0 | V38: =IF(OR(U38="U",U38="k",U38="B"),$C$11,IF(S38>P38,O38-1-R38,O38-R38)) -> 0 | W38: =IF(OR(U38="U",U38="k",U38="B"),$D$11,IF(S38>P38,P38+60-S38,P38-S38)) -> 0 | X38: =IF(OR(U38="U",U38="K",U38="B"),0,V38) -> 0 | Y38: =IF(OR(U38="U",U38="K",U38="B"),0,W38) -> 0 | Z38: =INT(((SUM(AB38,AH38,AK38,AN38,AQ38,AS38,AU38,AW38,AY38,BA38,BC38,BE38,BG38)*100)+(SUM(AC38,AI38,AL38,AO38,AR38,AT38,AV38,AX38,AZ38,BB38,BD38,BF38,BH38)/60*100))/100) -> 0 | AA38: =MOD(((SUM(AC38,AI38,AL38,AO38,AR38,AT38,AV38,AX38,AZ38,BB38,BD38,BF38,BH38)*100)+(SUM(AC38,AI38,AL38,AO38,AR38,AT38,AV38,AX38,AZ38,BB38,BD38,BF38,BH38)/60*100))/100,1)*60 -> 0 | AD38: =INT(((SUM(AH38,AK38,AN38)*100)+SUM(AI38,AL38,AO38)/60*100)/100) -> 0 | AE38: =MOD(((SUM(AI38,AL38,AO38)*100)+(SUM(AI38,AL38,AO38)/60*100))/100,1)*60 -> 0 | AF38: =INT(((SUM(AQ38+AS38+AU38+AW38+AY38+BA38+BC38+BE38+BG38)*100)+SUM(AR38+AT38+AV38+AX38+AZ38+BB38+BD38+BF38+BH38)/60*100)/100) -> 0 | AG38: =MOD(((SUM(AR38+AT38+AV38+AX38+AZ38+BB38+BD38+BF38+BH38)*100)+(SUM(AR38+AT38+AV38+AX38+AZ38+BB38+BD38+BF38+BH38)/60*100))/100,1)*60 -> 0
A39: =Einstellungen!$L$22 -> max.Übertrag auf das | G39: =IF(AND(E12>0,I39<>"",U39<>"f"),F12,0) -> 1 | H39: =IF(AND(I39<>"",U39<>"f"),1,0) -> 1 | I39: =IF(I38<>"",IF(MONTH(I38)=MONTH(I38+1),I38+1,""),"") -> 2026-04-21 | J39: Di | O39: 0 | P39: 0 | V39: =IF(OR(U39="U",U39="k",U39="B"),$C$12,IF(S39>P39,O39-1-R39,O39-R39)) -> 0 | W39: =IF(OR(U39="U",U39="k",U39="B"),$D$12,IF(S39>P39,P39+60-S39,P39-S39)) -> 0 | X39: 0 | Y39: 0 | Z39: 0 | AA39: 0 | AD39: 0 | AE39: 0 | AF39: 0 | AG39: 0
A40: =Einstellungen!$L$23 -> Folgejahr Std.Min | C40: =Einstellungen!$N$23 -> 41.00 | D40: =Einstellungen!$O$23 -> 41.00 | F40: =Einstellungen!$Q$23 -> 41.00 | G40: =IF(AND(E13>0,I40<>"",U40<>"f"),F13,0) -> 1 | H40: =IF(AND(I40<>"",U40<>"f"),1,0) -> 1 | I40: =IF(I39<>"",IF(MONTH(I39)=MONTH(I39+1),I39+1,""),"") -> 2026-04-22 | J40: Mi | O40: 0 | P40: 0 | V40: =IF(OR(U40="U",U40="k",U40="B"),$C$13,IF(S40>P40,O40-1-R40,O40-R40)) -> 0 | W40: =IF(OR(U40="U",U40="k",U40="B"),$D$13,IF(S40>P40,P40+60-S40,P40-S40)) -> 0 | X40: 0 | Y40: 0 | Z40: 0 | AA40: 0 | AD40: 0 | AE40: 0 | AF40: 0 | AG40: 0
A41: =Einstellungen!$L$24 -> Kernarbeitszeit: | C41: =Einstellungen!$N$24 -> Mo-Do | D41: =Einstellungen!$O$24 -> 9:00 - 14:30 Uhr | G41: =IF(AND(E14>0,I41<>"",U41<>"f"),F14,0) -> 1 | H41: =IF(AND(I41<>"",U41<>"f"),1,0) -> 1 | I41: 2026-04-23 | J41: Do | O41: 0 | P41: 0 | V41: =IF(OR(U41="U",U41="k",U41="B"),$C$14,IF(S41>P41,O41-1-R41,O41-R41)) -> 0 | W41: =IF(OR(U41="U",U41="k",U41="B"),$D$14,IF(S41>P41,P41+60-S41,P41-S41)) -> 0 | X41: 0 | Y41: 0 | Z41: 0 | AA41: 0 | AD41: 0 | AE41: 0 | AF41: 0 | AG41: 0
A42: =Einstellungen!$L$25 ->  | B42: =Einstellungen!$M$25 ->  | C42: =Einstellungen!$N$25 -> Fr | D42: =Einstellungen!$O$25 -> 9:00 - 12:00 Uhr | G42: =IF(AND(E15>0,I42<>"",U42<>"f"),F15,0) -> 1 | H42: =IF(AND(I42<>"",U42<>"f"),1,0) -> 1 | I42: 2026-04-24 | J42: Fr | O42: 0 | P42: 0 | V42: =IF(OR(U42="U",U42="k",U42="B"),$C$15,IF(S42>P42,O42-1-R42,O42-R42)) -> 0 | W42: =IF(OR(U42="U",U42="k",U42="B"),$D$15,IF(S42>P42,P42+60-S42,P42-S42)) -> 0 | X42: 0 | Y42: 0 | Z42: 0 | AA42: 0 | AD42: 0 | AE42: 0 | AF42: 0 | AG42: 0
A43: =Einstellungen!$L$26 -> Gleitzeit: | B43: =Einstellungen!$M$26 -> frühester Beginn | F43: =Einstellungen!$P$26 -> 6:00 Uhr | I43: 2026-04-25 | J43: Sa | O43: 0 | P43: 0 | T43: nur dienstl. Sonderfälle!* | V43: =IF(S43>P43,O43-1-R43,O43-R43) -> 0 | W43: =IF(S43>P43,P43+60-S43,P43-S43) -> 0 | X43: 0 | Y43: 0 | Z43: 0 | AA43: 0 | AD43: 0 | AE43: 0 | AF43: 0 | AG43: 0
A44: =Einstellungen!$L$27 ->  | B44: =Einstellungen!$M$27 -> spätestes Ende | F44: =Einstellungen!$P$27 -> 21:00 Uhr | I44: 2026-04-26 | J44: So | O44: 0 | P44: 0 | T44: nur dienstl. Sonderfälle!* | V44: =IF(S44>P44,O44-1-R44,O44-R44) -> 0 | W44: =IF(S44>P44,P44+60-S44,P44-S44) -> 0 | X44: 0 | Y44: 0 | Z44: 0 | AA44: 0 | AD44: 0 | AE44: 0 | AF44: 0 | AG44: 0
A45: =Einstellungen!$L$29 -> Mittagspause zw. | D45: =Einstellungen!$O$29 -> 11:15 - 14:00 Uhr | V45: =INT((60*SUM(V38:V44)+SUM(W38:W44)-W45)/60) -> 0 | W45: =INT(60*SUM(V38:V44)+SUM(W38:W44)-60*INT((60*SUM(V38:V44)+SUM(W38:W44))/60)) -> 0 | X45: =INT((60*SUM(X38:X44)+SUM(Y38:Y44)-Y45)/60) -> 0 | Y45: =INT(60*SUM(X38:X44)+SUM(Y38:Y44)-60*INT((60*SUM(X38:X44)+SUM(Y38:Y44))/60)) -> 0 | Z45: =INT((60*SUM(Z38:Z44)+SUM(AA38:AA44)-AA45)/60) -> 0 | AA45: =INT(60*SUM(Z38:Z44)+SUM(AA38:AA44)-60*INT((60*SUM(Z38:Z44)+SUM(AA38:AA44))/60)) -> 0 | AB45: =INT((60*SUM(AB38:AB44)+SUM(AC38:AC44)-AC45)/60) -> 0 | AC45: =INT(60*SUM(AB38:AB44)+SUM(AC38:AC44)-60*INT((60*SUM(AB38:AB44)+SUM(AC38:AC44))/60)) -> 0 | AD45: =INT((60*SUM(AD38:AD44)+SUM(AE38:AE44)-AE45)/60) -> 0 | AE45: =INT(60*SUM(AD38:AD44)+SUM(AE38:AE44)-60*INT((60*SUM(AD38:AD44)+SUM(AE38:AE44))/60)) -> 0 | AF45: =INT((60*SUM(AF38:AF44)+SUM(AG38:AG44)-AG45)/60) -> 0 | AG45: =INT(60*SUM(AF38:AF44)+SUM(AG38:AG44)-60*INT((60*SUM(AF38:AF44)+SUM(AG38:AG44))/60)) -> 0 | AH45: =INT((60*SUM(AH38:AH44)+SUM(AI38:AI44)-AI45)/60) -> 0 | AI45: =INT(60*SUM(AH38:AH44)+SUM(AI38:AI44)-60*INT((60*SUM(AH38:AH44)+SUM(AI38:AI44))/60)) -> 0 | AK45: =INT((60*SUM(AK38:AK44)+SUM(AL38:AL44)-AL45)/60) -> 0 | AL45: =INT(60*SUM(AK38:AK44)+SUM(AL38:AL44)-60*INT((60*SUM(AK38:AK44)+SUM(AL38:AL44))/60)) -> 0 | AN45: =INT((60*SUM(AN38:AN44)+SUM(AO38:AO44)-AO45)/60) -> 0 | AO45: =INT(60*SUM(AN38:AN44)+SUM(AO38:AO44)-60*INT((60*SUM(AN38:AN44)+SUM(AO38:AO44))/60)) -> 0 | AQ45: =INT((60*SUM(AQ38:AQ44)+SUM(AR38:AR44)-AR45)/60) -> 0 | AR45: =INT(60*SUM(AQ38:AQ44)+SUM(AR38:AR44)-60*INT((60*SUM(AQ38:AQ44)+SUM(AR38:AR44))/60)) -> 0 | AS45: =INT((60*SUM(AS38:AS44)+SUM(AT38:AT44)-AT45)/60) -> 0 | AT45: =INT(60*SUM(AS38:AS44)+SUM(AT38:AT44)-60*INT((60*SUM(AS38:AS44)+SUM(AT38:AT44))/60)) -> 0 | AU45: =INT((60*SUM(AU38:AU44)+SUM(AV38:AV44)-AV45)/60) -> 0 | AV45: =INT(60*SUM(AU38:AU44)+SUM(AV38:AV44)-60*INT((60*SUM(AU38:AU44)+SUM(AV38:AV44))/60)) -> 0 | AW45: =INT((60*SUM(AW38:AW44)+SUM(AX38:AX44)-AX45)/60) -> 0 | AX45: =INT(60*SUM(AW38:AW44)+SUM(AX38:AX44)-60*INT((60*SUM(AW38:AW44)+SUM(AX38:AX44))/60)) -> 0 | AY45: =INT((60*SUM(AY38:AY44)+SUM(AZ38:AZ44)-AZ45)/60) -> 0 | AZ45: =INT(60*SUM(AY38:AY44)+SUM(AZ38:AZ44)-60*INT((60*SUM(AY38:AY44)+SUM(AZ38:AZ44))/60)) -> 0 | BA45: =INT((60*SUM(BA38:BA44)+SUM(BB38:BB44)-BB45)/60) -> 0 | BB45: =INT(60*SUM(BA38:BA44)+SUM(BB38:BB44)-60*INT((60*SUM(BA38:BA44)+SUM(BB38:BB44))/60)) -> 0 | BC45: =INT((60*SUM(BC38:BC44)+SUM(BD38:BD44)-BD45)/60) -> 0 | BD45: =INT(60*SUM(BC38:BC44)+SUM(BD38:BD44)-60*INT((60*SUM(BC38:BC44)+SUM(BD38:BD44))/60)) -> 0 | BE45: =INT((60*SUM(BE38:BE44)+SUM(BF38:BF44)-BF45)/60) -> 0 | BF45: =INT(60*SUM(BE38:BE44)+SUM(BF38:BF44)-60*INT((60*SUM(BE38:BE44)+SUM(BF38:BF44))/60)) -> 0 | BG45: =INT((60*SUM(BG38:BG44)+SUM(BH38:BH44)-BH45)/60) -> 0 | BH45: =INT(60*SUM(BG38:BG44)+SUM(BH38:BH44)-60*INT((60*SUM(BG38:BG44)+SUM(BH38:BH44))/60)) -> 0
A47: =Einstellungen!$L$30 -> ab 6 Std. Arbeitszeit: Dauer min. | F47: =Einstellungen!$Q$30 -> 30 Min | G47: =IF(AND(E11>0,I47<>"",U47<>"f"),F11,0) -> 1 | H47: =IF(AND(I47<>"",U47<>"f"),1,0) -> 1 | I47: =IF(I44<>"",IF(MONTH(I44)=MONTH(I44+1),I44+1,""),"") -> 2026-04-27 | J47: Mo | O47: =HOUR(N47-K47-(M47-L47)) -> 0 | P47: =MINUTE(N47-K47-(M47-L47)) -> 0 | V47: =IF(OR(U47="U",U47="k",U47="B"),$C$11,IF(S47>P47,O47-1-R47,O47-R47)) -> 0 | W47: =IF(OR(U47="U",U47="k",U47="B"),$D$11,IF(S47>P47,P47+60-S47,P47-S47)) -> 0 | X47: =IF(OR(U47="U",U47="K",U47="B"),0,V47) -> 0 | Y47: =IF(OR(U47="U",U47="K",U47="B"),0,W47) -> 0 | Z47: =INT(((SUM(AB47,AH47,AK47,AN47,AQ47,AS47,AU47,AW47,AY47,BA47,BC47,BE47,BG47)*100)+(SUM(AC47,AI47,AL47,AO47,AR47,AT47,AV47,AX47,AZ47,BB47,BD47,BF47,BH47)/60*100))/100) -> 0 | AA47: =MOD(((SUM(AC47,AI47,AL47,AO47,AR47,AT47,AV47,AX47,AZ47,BB47,BD47,BF47,BH47)*100)+(SUM(AC47,AI47,AL47,AO47,AR47,AT47,AV47,AX47,AZ47,BB47,BD47,BF47,BH47)/60*100))/100,1)*60 -> 0 | AD47: =INT(((SUM(AH47,AK47,AN47)*100)+SUM(AI47,AL47,AO47)/60*100)/100) -> 0 | AE47: =MOD(((SUM(AI47,AL47,AO47)*100)+(SUM(AI47,AL47,AO47)/60*100))/100,1)*60 -> 0 | AF47: =INT(((SUM(AQ47+AS47+AU47+AW47+AY47+BA47+BC47+BE47+BG47)*100)+SUM(AR47+AT47+AV47+AX47+AZ47+BB47+BD47+BF47+BH47)/60*100)/100) -> 0 | AG47: =MOD(((SUM(AR47+AT47+AV47+AX47+AZ47+BB47+BD47+BF47+BH47)*100)+(SUM(AR47+AT47+AV47+AX47+AZ47+BB47+BD47+BF47+BH47)/60*100))/100,1)*60 -> 0
A48: =Einstellungen!$L$31 -> ab 9 Std. (exklusiv Beamte) min. | F48: =Einstellungen!$Q$31 -> 45 Min | G48: =IF(AND(E12>0,I48<>"",U48<>"f"),F12,0) -> 1 | H48: =IF(AND(I48<>"",U48<>"f"),1,0) -> 1 | I48: =IF(I47<>"",IF(MONTH(I47)=MONTH(I47+1),I47+1,""),"") -> 2026-04-28 | J48: Di | O48: 0 | P48: 0 | V48: =IF(OR(U48="U",U48="k",U48="B"),$C$12,IF(S48>P48,O48-1-R48,O48-R48)) -> 0 | W48: =IF(OR(U48="U",U48="k",U48="B"),$D$12,IF(S48>P48,P48+60-S48,P48-S48)) -> 0 | X48: 0 | Y48: 0 | Z48: 0 | AA48: 0 | AD48: 0 | AE48: 0 | AF48: 0 | AG48: 0
A49: =Einstellungen!$L$32 ->  | D49: =Einstellungen!$O$32 -> max. | F49: =Einstellungen!$Q$32 -> 120 Min | G49: =IF(AND(E13>0,I49<>"",U49<>"f"),F13,0) -> 1 | H49: =IF(AND(I49<>"",U49<>"f"),1,0) -> 1 | I49: =IF(I48<>"",IF(MONTH(I48)=MONTH(I48+1),I48+1,""),"") -> 2026-04-29 | J49: Mi | O49: 0 | P49: 0 | V49: =IF(OR(U49="U",U49="k",U49="B"),$C$13,IF(S49>P49,O49-1-R49,O49-R49)) -> 0 | W49: =IF(OR(U49="U",U49="k",U49="B"),$D$13,IF(S49>P49,P49+60-S49,P49-S49)) -> 0 | X49: 0 | Y49: 0 | Z49: 0 | AA49: 0 | AD49: 0 | AE49: 0 | AF49: 0 | AG49: 0
A50: =Einstellungen!$L$33 -> tägliche Arbeitszeit | F50: =Einstellungen!$Q$33 -> 10 Std | G50: =IF(AND(E14>0,I50<>"",U50<>"f"),F14,0) -> 1 | H50: =IF(AND(I50<>"",U50<>"f"),1,0) -> 1 | I50: 2026-04-30 | J50: Do | O50: 0 | P50: 0 | V50: =IF(OR(U50="U",U50="k",U50="B"),$C$14,IF(S50>P50,O50-1-R50,O50-R50)) -> 0 | W50: =IF(OR(U50="U",U50="k",U50="B"),$D$14,IF(S50>P50,P50+60-S50,P50-S50)) -> 0 | X50: 0 | Y50: 0 | Z50: 0 | AA50: 0 | AD50: 0 | AE50: 0 | AF50: 0 | AG50: 0
A51: =Einstellungen!$L$34 -> *) beachte § 5 der Dienstvereinbarung vom 17.04.2024 über die Arbeitszeit der Beschäftigten der Universität Hohenheim | G51: =IF(AND(E15>0,I51<>"",U51<>"f"),F15,0) -> 0 | H51: =IF(AND(I51<>"",U51<>"f"),1,0) -> 0 | J51: Fr | O51: 0 | P51: 0 | V51: =IF(OR(U51="U",U51="k",U51="B"),$C$15,IF(S51>P51,O51-1-R51,O51-R51)) -> 0 | W51: =IF(OR(U51="U",U51="k",U51="B"),$D$15,IF(S51>P51,P51+60-S51,P51-S51)) -> 0 | X51: 0 | Y51: 0 | Z51: 0 | AA51: 0 | AD51: 0 | AE51: 0 | AF51: 0 | AG51: 0
J52: Sa | O52: 0 | P52: 0 | T52: nur dienstl. Sonderfälle!* | V52: =IF(S52>P52,O52-1-R52,O52-R52) -> 0 | W52: =IF(S52>P52,P52+60-S52,P52-S52) -> 0 | X52: 0 | Y52: 0 | Z52: 0 | AA52: 0 | AD52: 0 | AE52: 0 | AF52: 0 | AG52: 0
J53: So | O53: 0 | P53: 0 | T53: nur dienstl. Sonderfälle!* | V53: =IF(S53>P53,O53-1-R53,O53-R53) -> 0 | W53: =IF(S53>P53,P53+60-S53,P53-S53) -> 0 | X53: 0 | Y53: 0 | Z53: 0 | AA53: 0 | AD53: 0 | AE53: 0 | AF53: 0 | AG53: 0
V54: =INT((60*SUM(V47:V53)+SUM(W47:W53)-W54)/60) -> 0 | W54: =INT(60*SUM(V47:V53)+SUM(W47:W53)-60*INT((60*SUM(V47:V53)+SUM(W47:W53))/60)) -> 0 | X54: =INT((60*SUM(X47:X53)+SUM(Y47:Y53)-Y54)/60) -> 0 | Y54: =INT(60*SUM(X47:X53)+SUM(Y47:Y53)-60*INT((60*SUM(X47:X53)+SUM(Y47:Y53))/60)) -> 0 | Z54: =INT((60*SUM(Z47:Z53)+SUM(AA47:AA53)-AA54)/60) -> 0 | AA54: =INT(60*SUM(Z47:Z53)+SUM(AA47:AA53)-60*INT((60*SUM(Z47:Z53)+SUM(AA47:AA53))/60)) -> 0 | AB54: =INT((60*SUM(AB47:AB53)+SUM(AC47:AC53)-AC54)/60) -> 0 | AC54: =INT(60*SUM(AB47:AB53)+SUM(AC47:AC53)-60*INT((60*SUM(AB47:AB53)+SUM(AC47:AC53))/60)) -> 0 | AD54: =INT((60*SUM(AD47:AD53)+SUM(AE47:AE53)-AE54)/60) -> 0 | AE54: =INT(60*SUM(AD47:AD53)+SUM(AE47:AE53)-60*INT((60*SUM(AD47:AD53)+SUM(AE47:AE53))/60)) -> 0 | AF54: =INT((60*SUM(AF47:AF53)+SUM(AG47:AG53)-AG54)/60) -> 0 | AG54: =INT(60*SUM(AF47:AF53)+SUM(AG47:AG53)-60*INT((60*SUM(AF47:AF53)+SUM(AG47:AG53))/60)) -> 0 | AH54: =INT((60*SUM(AH47:AH53)+SUM(AI47:AI53)-AI54)/60) -> 0 | AI54: =INT(60*SUM(AH47:AH53)+SUM(AI47:AI53)-60*INT((60*SUM(AH47:AH53)+SUM(AI47:AI53))/60)) -> 0 | AK54: =INT((60*SUM(AK47:AK53)+SUM(AL47:AL53)-AL54)/60) -> 0 | AL54: =INT(60*SUM(AK47:AK53)+SUM(AL47:AL53)-60*INT((60*SUM(AK47:AK53)+SUM(AL47:AL53))/60)) -> 0 | AN54: =INT((60*SUM(AN47:AN53)+SUM(AO47:AO53)-AO54)/60) -> 0 | AO54: =INT(60*SUM(AN47:AN53)+SUM(AO47:AO53)-60*INT((60*SUM(AN47:AN53)+SUM(AO47:AO53))/60)) -> 0 | AQ54: =INT((60*SUM(AQ47:AQ53)+SUM(AR47:AR53)-AR54)/60) -> 0 | AR54: =INT(60*SUM(AQ47:AQ53)+SUM(AR47:AR53)-60*INT((60*SUM(AQ47:AQ53)+SUM(AR47:AR53))/60)) -> 0 | AS54: =INT((60*SUM(AS47:AS53)+SUM(AT47:AT53)-AT54)/60) -> 0 | AT54: =INT(60*SUM(AS47:AS53)+SUM(AT47:AT53)-60*INT((60*SUM(AS47:AS53)+SUM(AT47:AT53))/60)) -> 0 | AU54: =INT((60*SUM(AU47:AU53)+SUM(AV47:AV53)-AV54)/60) -> 0 | AV54: =INT(60*SUM(AU47:AU53)+SUM(AV47:AV53)-60*INT((60*SUM(AU47:AU53)+SUM(AV47:AV53))/60)) -> 0 | AW54: =INT((60*SUM(AW47:AW53)+SUM(AX47:AX53)-AX54)/60) -> 0 | AX54: =INT(60*SUM(AW47:AW53)+SUM(AX47:AX53)-60*INT((60*SUM(AW47:AW53)+SUM(AX47:AX53))/60)) -> 0 | AY54: =INT((60*SUM(AY47:AY53)+SUM(AZ47:AZ53)-AZ54)/60) -> 0 | AZ54: =INT(60*SUM(AY47:AY53)+SUM(AZ47:AZ53)-60*INT((60*SUM(AY47:AY53)+SUM(AZ47:AZ53))/60)) -> 0 | BA54: =INT((60*SUM(BA47:BA53)+SUM(BB47:BB53)-BB54)/60) -> 0 | BB54: =INT(60*SUM(BA47:BA53)+SUM(BB47:BB53)-60*INT((60*SUM(BA47:BA53)+SUM(BB47:BB53))/60)) -> 0 | BC54: =INT((60*SUM(BC47:BC53)+SUM(BD47:BD53)-BD54)/60) -> 0 | BD54: =INT(60*SUM(BC47:BC53)+SUM(BD47:BD53)-60*INT((60*SUM(BC47:BC53)+SUM(BD47:BD53))/60)) -> 0 | BE54: =INT((60*SUM(BE47:BE53)+SUM(BF47:BF53)-BF54)/60) -> 0 | BF54: =INT(60*SUM(BE47:BE53)+SUM(BF47:BF53)-60*INT((60*SUM(BE47:BE53)+SUM(BF47:BF53))/60)) -> 0 | BG54: =INT((60*SUM(BG47:BG53)+SUM(BH47:BH53)-BH54)/60) -> 0 | BH54: =INT(60*SUM(BG47:BG53)+SUM(BH47:BH53)-60*INT((60*SUM(BG47:BG53)+SUM(BH47:BH53))/60)) -> 0
G55: =SUM(G5:G53) -> 20 | H55: =SUM(H5:H53) -> 20 | I55: April | P55: =Einstellungen!A1 -> 2026 | X55: Summe: | Z55: Summe: | AB55: Summe: | AD55: Summe: | AF55: Summe: | AH55: =INT(((SUM(AH9,AH18,AH27,AH36,AH45,AH54)*100)+(SUM(AI9,AI18,AI27,AI36,AI45,AI54)/60*100))/100) -> 0 | AI55: =MOD(((SUM(AH9,AH18,AH27,AH36,AH45,AH54)*100)+(SUM(AI9,AI18,AI27,AI36,AI45,AI54)/60*100))/100,1)*60 -> 0 | AK55: =INT(((SUM(AK9,AK18,AK27,AK36,AK45,AK54)*100)+(SUM(AL9,AL18,AL27,AL36,AL45,AL54)/60*100))/100) -> 0 | AL55: =MOD(((SUM(AK9,AK18,AK27,AK36,AK45,AK54)*100)+(SUM(AL9,AL18,AL27,AL36,AL45,AL54)/60*100))/100,1)*60 -> 0 | AN55: =INT(((SUM(AN9,AN18,AN27,AN36,AN45,AN54)*100)+(SUM(AO9,AO18,AO27,AO36,AO45,AO54)/60*100))/100) -> 0 | AO55: =MOD(((SUM(AN9,AN18,AN27,AN36,AN45,AN54)*100)+(SUM(AO9,AO18,AO27,AO36,AO45,AO54)/60*100))/100,1)*60 -> 0 | AQ55: =INT(((SUM(AQ9,AQ18,AQ27,AQ36,AQ45,AQ54)*100)+(SUM(AR9,AR18,AR27,AR36,AR45,AR54)/60*100))/100) -> 0 | AR55: =MOD(((SUM(AQ9,AQ18,AQ27,AQ36,AQ45,AQ54)*100)+(SUM(AR9,AR18,AR27,AR36,AR45,AR54)/60*100))/100,1)*60 -> 0 | AS55: =INT(((SUM(AS9,AS18,AS27,AS36,AS45,AS54)*100)+(SUM(AT9,AT18,AT27,AT36,AT45,AT54)/60*100))/100) -> 0 | AT55: =MOD(((SUM(AS9,AS18,AS27,AS36,AS45,AS54)*100)+(SUM(AT9,AT18,AT27,AT36,AT45,AT54)/60*100))/100,1)*60 -> 0 | AU55: =INT(((SUM(AU9,AU18,AU27,AU36,AU45,AU54)*100)+(SUM(AV9,AV18,AV27,AV36,AV45,AV54)/60*100))/100) -> 0 | AV55: =MOD(((SUM(AU9,AU18,AU27,AU36,AU45,AU54)*100)+(SUM(AV9,AV18,AV27,AV36,AV45,AV54)/60*100))/100,1)*60 -> 0 | AW55: =INT(((SUM(AW9,AW18,AW27,AW36,AW45,AW54)*100)+(SUM(AX9,AX18,AX27,AX36,AX45,AX54)/60*100))/100) -> 0 | AX55: =MOD(((SUM(AW9,AW18,AW27,AW36,AW45,AW54)*100)+(SUM(AX9,AX18,AX27,AX36,AX45,AX54)/60*100))/100,1)*60 -> 0 | AY55: =INT(((SUM(AY9,AY18,AY27,AY36,AY45,AY54)*100)+(SUM(AZ9,AZ18,AZ27,AZ36,AZ45,AZ54)/60*100))/100) -> 0 | AZ55: =MOD(((SUM(AY9,AY18,AY27,AY36,AY45,AY54)*100)+(SUM(AZ9,AZ18,AZ27,AZ36,AZ45,AZ54)/60*100))/100,1)*60 -> 0 | BA55: =INT(((SUM(BA9,BA18,BA27,BA36,BA45,BA54)*100)+(SUM(BB9,BB18,BB27,BB36,BB45,BB54)/60*100))/100) -> 0 | BB55: =MOD(((SUM(BA9,BA18,BA27,BA36,BA45,BA54)*100)+(SUM(BB9,BB18,BB27,BB36,BB45,BB54)/60*100))/100,1)*60 -> 0 | BC55: =INT(((SUM(BC9,BC18,BC27,BC36,BC45,BC54)*100)+(SUM(BD9,BD18,BD27,BD36,BD45,BD54)/60*100))/100) -> 0 | BD55: =MOD(((SUM(BC9,BC18,BC27,BC36,BC45,BC54)*100)+(SUM(BD9,BD18,BD27,BD36,BD45,BD54)/60*100))/100,1)*60 -> 0 | BE55: =INT(((SUM(BE9,BE18,BE27,BE36,BE45,BE54)*100)+(SUM(BF9,BF18,BF27,BF36,BF45,BF54)/60*100))/100) -> 0 | BF55: =MOD(((SUM(BE9,BE18,BE27,BE36,BE45,BE54)*100)+(SUM(BF9,BF18,BF27,BF36,BF45,BF54)/60*100))/100,1)*60 -> 0 | BG55: =INT(((SUM(BG9,BG18,BG27,BG36,BG45,BG54)*100)+(SUM(BH9,BH18,BH27,BH36,BH45,BH54)/60*100))/100) -> 0 | BH55: =MOD(((SUM(BG9,BG18,BG27,BG36,BG45,BG54)*100)+(SUM(BH9,BH18,BH27,BH36,BH45,BH54)/60*100))/100,1)*60 -> 0
I56: Abrechnungsmonat | P56: Jahr | T56: Monatsarbeitszeit IST | V56: =INT((60*SUM(V54,V45,V36,V27,V18,V9)+SUM(W54,W45,W36,W27,W18,W9)-W56)/60) -> 0 | W56: =INT(60*SUM(V54,V45,V36,V27,V18,V9)+SUM(W54,W45,W36,W27,W18,W9)-60*INT((60*SUM(V54,V45,V36,V27,V18,V9)+SUM(W54,W45,W36,W27,W18,W9))/60)) -> 0 | X56: =INT((60*SUM(X54,X45,X36,X27,X18,X9)+SUM(Y54,Y45,Y36,Y27,Y18,Y9)-Y56)/60) -> 0 | Y56: =INT(60*SUM(X54,X45,X36,X27,X18,X9)+SUM(Y54,Y45,Y36,Y27,Y18,Y9)-60*INT((60*SUM(X54,X45,X36,X27,X18,X9)+SUM(Y54,Y45,Y36,Y27,Y18,Y9))/60)) -> 0 | Z56: =INT((60*SUM(Z54,Z45,Z36,Z27,Z18,Z9)+SUM(AA54,AA45,AA36,AA27,AA18,AA9)-AA56)/60) -> 0 | AA56: =INT(60*SUM(Z54,Z45,Z36,Z27,Z18,Z9)+SUM(AA54,AA45,AA36,AA27,AA18,AA9)-60*INT((60*SUM(Z54,Z45,Z36,Z27,Z18,Z9)+SUM(AA54,AA45,AA36,AA27,AA18,AA9))/60)) -> 0 | AB56: =INT((60*SUM(AB54,AB45,AB36,AB27,AB18,AB9)+SUM(AC54,AC45,AC36,AC27,AC18,AC9)-AC56)/60) -> 0 | AC56: =INT(60*SUM(AB54,AB45,AB36,AB27,AB18,AB9)+SUM(AC54,AC45,AC36,AC27,AC18,AC9)-60*INT((60*SUM(AB54,AB45,AB36,AB27,AB18,AB9)+SUM(AC54,AC45,AC36,AC27,AC18,AC9))/60)) -> 0 | AD56: =INT((60*SUM(AD54,AD45,AD36,AD27,AD18,AD9)+SUM(AE54,AE45,AE36,AE27,AE18,AE9)-AE56)/60) -> 0 | AE56: =INT(60*SUM(AD54,AD45,AD36,AD27,AD18,AD9)+SUM(AE54,AE45,AE36,AE27,AE18,AE9)-60*INT((60*SUM(AD54,AD45,AD36,AD27,AD18,AD9)+SUM(AE54,AE45,AE36,AE27,AE18,AE9))/60)) -> 0 | AF56: =INT((60*SUM(AF54,AF45,AF36,AF27,AF18,AF9)+SUM(AG54,AG45,AG36,AG27,AG18,AG9)-AG56)/60) -> 0 | AG56: =INT(60*SUM(AF54,AF45,AF36,AF27,AF18,AF9)+SUM(AG54,AG45,AG36,AG27,AG18,AG9)-60*INT((60*SUM(AF54,AF45,AF36,AF27,AF18,AF9)+SUM(AG54,AG45,AG36,AG27,AG18,AG9))/60)) -> 0
I57: =Einstellungen!K23 -> Franziska von Hohenheim | T57: Übertrag aus Vormonat (+/-) | U57: =IF(V57*W57<0,"!","") ->  | V57: =ROUND(März!V60,0) -> -489 | W57: =ROUND(März!W60,0) -> -48
I58: Name, Vorname | Q58: Datum | T58: Summe | V58: =ROUND(SIGN(V56+V57+(W56+W57)/60)*ROUNDDOWN(ABS(V56+V57+(W56+W57)/60),0),0) -> -489 | W58: =ROUND(SIGN(V56+V57+(W56+W57)/60)*(ABS(V56+V57+(W56+W57)/60)-ABS(V58))*60,0) -> -48
I59: =Einstellungen!$K$25 -> 630 | K59: =Einstellungen!K24 -> KIM | T59: Monatsarbeitszeit SOLL | V59: =SUM(Einstellungen!B6) -> 158 | W59: =SUM(Einstellungen!C6) -> 0
I60: Einr.-Nr. | K60: Abt. / FG | Q60: Name Leiter/in | T60: Zeitübertrag auf Folgemonat | U60: =IF(V60*W60<0,"!","") ->  | V60: =ROUND(SIGN(V58-V59+(W58-W59)/60)*ROUNDDOWN(ABS(V58-V59+(W58-W59)/60),0),0) -> -647 | W60: =ROUND(SIGN(V58-V59+(W58-W59)/60)*(ABS(V58-V59+(W58-W59)/60)-ABS(V60))*60,0) -> -48
T62: Summe Urlaubstage | V62: =SUMPRODUCT((U5:U6="U")*(E14:E15>0))+SUMPRODUCT((U11:U15="U")*(E11:E15>0))+SUMPRODUCT((U20:U24="U")*(E11:E15>0))+SUMPRODUCT((U29:U33="U")*(E11:E15>0))+SUMPRODUCT((U38:U42="U")*(E11:E15>0))+SUMPRODUCT((U47:U51="U")*(E11:E15>0)) -> 0
I63: Datum | K63: Unterschrift Mitarbeiter/in | Q63: Unterschrift Leiter/in | T63: alter / neuer Übertrag | V63: =IF(SUM(Einstellungen!K27:K30)>0,März!W63,"--- ") -> 30 | W63: =IF(SUM(Einstellungen!K27:K30)>0,V63-V62,"--- ") -> 30

Sheet Mai (hidden)
A1: =Einstellungen!A27 -> Universität Hohenheim KIM © 2026 | I1: Datum | K1: Arbeits- | N1: Arbeits- | O1: Arb.Zeit ohne | Q1: Sonstige Unterbrechungen | T1: Erläuterungen, Hinweise, | U1: U,K | V1: Reine Arb.- | X1: Productive | Z1: Productive | AB1: Sonstiges | AD1: Summe | AF1: Summe | AH1: =Projektdaten!D4 -> EU Projekt 1 | AK1: =Projektdaten!D6 -> EU Projekt 2 | AN1: =Projektdaten!D8 -> EU Projekt 3 | AQ1: =Projektdaten!D13 -> Projekt 1 | AS1: =Projektdaten!D15 -> Projekt 2 | AU1: =Projektdaten!D17 -> Projekt 3 | AW1: =Projektdaten!D19 -> Projekt 4 | AY1: =Projektdaten!D21 -> Projekt 5 | BA1: =Projektdaten!D23 -> Projekt 6 | BC1: =Projektdaten!D25 -> Projekt 7 | BE1: =Projektdaten!D27 -> Projekt 8 | BG1: =Projektdaten!D29 -> Projekt 9
A2: Arbeitszeitblatt | D2: =Einstellungen!A28 -> Version 5.12 | I2: Tag | J2: Wo- | K2: beginn | L2: Mittagspause | N2: ende | O2: Mittagspause | Q2: von - bis | R2: Gesamtdauer | T2: Vermerke, z.B. Dienstreise | U2: F,X | V2: Zeit | W2: IST | X2: Hours | Z2: Hours | AD2: EU- | AF2: andere
J3: tag | L3: von | M3: bis | O3: Std. | P3: Min. | R3: Std. | S3: Min. | T3: - non eligible - | U3: A,B | V3: Std. | W3: Min. | X3: i.S.d. EU | Z3: verteilt | AD3: Projekte | AF3: Projekte
X4: Std. | Y4: Min. | Z4: Std. | AA4: Min. | AB4: Std. | AC4: Min. | AD4: Std. | AE4: Min. | AF4: Std. | AG4: Min. | AH4: Std. | AI4: Min. | AJ4: Geleistete Arbeitspakete nach Annex 1 | AK4: Std. | AL4: Min. | AM4: Geleistete Arbeitspakete nach Annex 1 | AN4: Std. | AO4: Min. | AP4: Geleistete Arbeitspakete nach Annex 1 | AQ4: Std. | AR4: Min. | AS4: Std. | AT4: Min. | AU4: Std. | AV4: Min. | AW4: Std. | AX4: Min. | AY4: Std. | AZ4: Min. | BA4: Std. | BB4: Min. | BC4: Std. | BD4: Min. | BE4: Std. | BF4: Min. | BG4: Std. | BH4: Min.
F5: U | G5: =IF(AND(E14>0,I5<>"",U5<>"f"),1,0) -> 0 | H5: =IF(AND(I5<>"",U5<>"f"),1,0) -> 0 | I5: =IF(CHOOSE(WEEKDAY(Einstellungen!$A$7,2),"Mo","Di","Mi","Do","Fr","Sa","So")=J5,Einstellungen!$A$7,"") ->  | J5: Do | O5: =HOUR(N5-K5-(M5-L5)) -> 0 | P5: =MINUTE(N5-K5-(M5-L5)) -> 0 | V5: =IF(OR(U5="U",U5="k",U5="B"),$C$14,IF(S5>P5,O5-1-R5,O5-R5)) -> 0 | W5: =IF(OR(U5="U",U5="k",U5="B"),$D$14,IF(S5>P5,P5+60-S5,P5-S5)) -> 0 | X5: =IF(OR(U5="U",U5="K",U5="B"),0,V5) -> 0 | Y5: =IF(OR(U5="U",U5="K",U5="B"),0,W5) -> 0 | Z5: =INT(((SUM(AB5,AH5,AK5,AN5,AQ5,AS5,AU5,AW5,AY5,BA5,BC5,BE5,BG5)*100)+(SUM(AC5,AI5,AL5,AO5,AR5,AT5,AV5,AX5,AZ5,BB5,BD5,BF5,BH5)/60*100))/100) -> 0 | AA5: =MOD(((SUM(AC5,AI5,AL5,AO5,AR5,AT5,AV5,AX5,AZ5,BB5,BD5,BF5,BH5)*100)+(SUM(AC5,AI5,AL5,AO5,AR5,AT5,AV5,AX5,AZ5,BB5,BD5,BF5,BH5)/60*100))/100,1)*60 -> 0 | AD5: =INT(((SUM(AH5,AK5,AN5)*100)+SUM(AI5,AL5,AO5)/60*100)/100) -> 0 | AE5: =MOD(((SUM(AI5,AL5,AO5)*100)+(SUM(AI5,AL5,AO5)/60*100))/100,1)*60 -> 0 | AF5: =INT(((SUM(AQ5+AS5+AU5+AW5+AY5+BA5+BC5+BE5+BG5)*100)+SUM(AR5+AT5+AV5+AX5+AZ5+BB5+BD5+BF5+BH5)/60*100)/100) -> 0 | AG5: =MOD(((SUM(AR5+AT5+AV5+AX5+AZ5+BB5+BD5+BF5+BH5)*100)+(SUM(AR5+AT5+AV5+AX5+AZ5+BB5+BD5+BF5+BH5)/60*100))/100,1)*60 -> 0
F6: K | G6: =IF(AND(E15>0,I6<>"",U6<>"f"),F14,0) -> 0 | H6: =IF(AND(I6<>"",U6<>"f"),1,0) -> 0 | I6: =IF(I5<>"",I5+1,IF(CHOOSE(WEEKDAY(Einstellungen!$A$7,2),"Mo","Di","Mi","Do","Fr","Sa","So")=J6,Einstellungen!$A$7,"")) -> 2026-05-01 | J6: Fr | O6: =HOUR(N6-K6-(M6-L6)) -> 0 | P6: =MINUTE(N6-K6-(M6-L6)) -> 0 | T6: nur dienstl. Sonderfälle!* | U6: F | V6: =IF(OR(U6="U",U6="k",U6="B"),$C$15,IF(S6>P6,O6-1-R6,O6-R6)) -> 0 | W6: =IF(OR(U6="U",U6="k",U6="B"),$D$15,IF(S6>P6,P6+60-S6,P6-S6)) -> 0 | X6: =IF(OR(U6="U",U6="K",U6="B"),0,V6) -> 0 | Y6: =IF(OR(U6="U",U6="K",U6="B"),0,W6) -> 0 | Z6: =INT(((SUM(AB6,AH6,AK6,AN6,AQ6,AS6,AU6,AW6,AY6,BA6,BC6,BE6,BG6)*100)+(SUM(AC6,AI6,AL6,AO6,AR6,AT6,AV6,AX6,AZ6,BB6,BD6,BF6,BH6)/60*100))/100) -> 0 | AA6: =MOD(((SUM(AC6,AI6,AL6,AO6,AR6,AT6,AV6,AX6,AZ6,BB6,BD6,BF6,BH6)*100)+(SUM(AC6,AI6,AL6,AO6,AR6,AT6,AV6,AX6,AZ6,BB6,BD6,BF6,BH6)/60*100))/100,1)*60 -> 0 | AD6: =INT(((SUM(AH6,AK6,AN6)*100)+SUM(AI6,AL6,AO6)/60*100)/100) -> 0 | AE6: =MOD(((SUM(AI6,AL6,AO6)*100)+(SUM(AI6,AL6,AO6)/60*100))/100,1)*60 -> 0 | AF6: =INT(((SUM(AQ6+AS6+AU6+AW6+AY6+BA6+BC6+BE6+BG6)*100)+SUM(AR6+AT6+AV6+AX6+AZ6+BB6+BD6+BF6+BH6)/60*100)/100) -> 0 | AG6: =MOD(((SUM(AR6+AT6+AV6+AX6+AZ6+BB6+BD6+BF6+BH6)*100)+(SUM(AR6+AT6+AV6+AX6+AZ6+BB6+BD6+BF6+BH6)/60*100))/100,1)*60 -> 0
F7: A | G7: =IF(AND(E16>0,I7<>"",U7<>"f"),F15,0) -> 0 | I7: =IF(I6<>"",I6+1,IF(CHOOSE(WEEKDAY(Einstellungen!$A$7,2),"Mo","Di","Mi","Do","Fr","Sa","So")=J7,Einstellungen!$A$7,"")) -> 2026-05-02 | J7: Sa | O7: =HOUR(N7-K7-(M7-L7)) -> 0 | P7: =MINUTE(N7-K7-(M7-L7)) -> 0 | T7: nur dienstl. Sonderfälle!* | V7: =IF(S7>P7,O7-1-R7,O7-R7) -> 0 | W7: =IF(S7>P7,P7+60-S7,P7-S7) -> 0 | X7: 0 | Y7: 0 | Z7: =INT(((SUM(AB7,AH7,AK7,AN7,AQ7,AS7,AU7,AW7,AY7,BA7,BC7,BE7,BG7)*100)+(SUM(AC7,AI7,AL7,AO7,AR7,AT7,AV7,AX7,AZ7,BB7,BD7,BF7,BH7)/60*100))/100) -> 0 | AA7: =MOD(((SUM(AC7,AI7,AL7,AO7,AR7,AT7,AV7,AX7,AZ7,BB7,BD7,BF7,BH7)*100)+(SUM(AC7,AI7,AL7,AO7,AR7,AT7,AV7,AX7,AZ7,BB7,BD7,BF7,BH7)/60*100))/100,1)*60 -> 0 | AD7: =INT(((SUM(AH7,AK7,AN7)*100)+SUM(AI7,AL7,AO7)/60*100)/100) -> 0 | AE7: =MOD(((SUM(AI7,AL7,AO7)*100)+(SUM(AI7,AL7,AO7)/60*100))/100,1)*60 -> 0 | AF7: =INT(((SUM(AQ7+AS7+AU7+AW7+AY7+BA7+BC7+BE7+BG7)*100)+SUM(AR7+AT7+AV7+AX7+AZ7+BB7+BD7+BF7+BH7)/60*100)/100) -> 0 | AG7: =MOD(((SUM(AR7+AT7+AV7+AX7+AZ7+BB7+BD7+BF7+BH7)*100)+(SUM(AR7+AT7+AV7+AX7+AZ7+BB7+BD7+BF7+BH7)/60*100))/100,1)*60 -> 0
A8: =IF(Einstellungen!D25>0.0005,"Bitte Werte prüfen","") ->  | F8: B | I8: =IF(I7<>"",I7+1,IF(CHOOSE(WEEKDAY(Einstellungen!$A$7,2),"Mo","Di","Mi","Do","Fr","Sa","So")=J8,Einstellungen!$A$7,"")) -> 2026-05-03 | J8: So | O8: =HOUR(N8-K8-(M8-L8)) -> 0 | P8: =MINUTE(N8-K8-(M8-L8)) -> 0 | T8: nur dienstl. Sonderfälle!* | V8: =IF(S8>P8,O8-1-R8,O8-R8) -> 0 | W8: =IF(S8>P8,P8+60-S8,P8-S8) -> 0 | X8: 0 | Y8: 0 | Z8: =INT(((SUM(AB8,AH8,AK8,AN8,AQ8,AS8,AU8,AW8,AY8,BA8,BC8,BE8,BG8)*100)+(SUM(AC8,AI8,AL8,AO8,AR8,AT8,AV8,AX8,AZ8,BB8,BD8,BF8,BH8)/60*100))/100) -> 0 | AA8: =MOD(((SUM(AC8,AI8,AL8,AO8,AR8,AT8,AV8,AX8,AZ8,BB8,BD8,BF8,BH8)*100)+(SUM(AC8,AI8,AL8,AO8,AR8,AT8,AV8,AX8,AZ8,BB8,BD8,BF8,BH8)/60*100))/100,1)*60 -> 0 | AD8: =INT(((SUM(AH8,AK8,AN8)*100)+SUM(AI8,AL8,AO8)/60*100)/100) -> 0 | AE8: =MOD(((SUM(AI8,AL8,AO8)*100)+(SUM(AI8,AL8,AO8)/60*100))/100,1)*60 -> 0 | AF8: =INT(((SUM(AQ8+AS8+AU8+AW8+AY8+BA8+BC8+BE8+BG8)*100)+SUM(AR8+AT8+AV8+AX8+AZ8+BB8+BD8+BF8+BH8)/60*100)/100) -> 0 | AG8: =MOD(((SUM(AR8+AT8+AV8+AX8+AZ8+BB8+BD8+BF8+BH8)*100)+(SUM(AR8+AT8+AV8+AX8+AZ8+BB8+BD8+BF8+BH8)/60*100))/100,1)*60 -> 0
A9: Meine tägl. Regelarbeitszeit: | F9: X | V9: =INT((60*SUM(V5:V8)+SUM(W5:W8)-W9)/60) -> 0 | W9: =INT(60*SUM(V5:V8)+SUM(W5:W8)-60*INT((60*SUM(V5:V8)+SUM(W5:W8))/60)) -> 0 | X9: =INT((60*SUM(X5:X8)+SUM(Y5:Y8)-Y9)/60) -> 0 | Y9: =INT(60*SUM(X5:X8)+SUM(Y5:Y8)-60*INT((60*SUM(X5:X8)+SUM(Y5:Y8))/60)) -> 0 | Z9: =INT((60*SUM(Z5:Z8)+SUM(AA5:AA8)-AA9)/60) -> 0 | AA9: =INT(60*SUM(Z5:Z8)+SUM(AA5:AA8)-60*INT((60*SUM(Z5:Z8)+SUM(AA5:AA8))/60)) -> 0 | AB9: =INT((60*SUM(AB5:AB8)+SUM(AC5:AC8)-AC9)/60) -> 0 | AC9: =INT(60*SUM(AB5:AB8)+SUM(AC5:AC8)-60*INT((60*SUM(AB5:AB8)+SUM(AC5:AC8))/60)) -> 0 | AD9: =INT((60*SUM(AD5:AD8)+SUM(AE5:AE8)-AE9)/60) -> 0 | AE9: =INT(60*SUM(AD5:AD8)+SUM(AE5:AE8)-60*INT((60*SUM(AD5:AD8)+SUM(AE5:AE8))/60)) -> 0 | AF9: =INT((60*SUM(AF5:AF8)+SUM(AG5:AG8)-AG9)/60) -> 0 | AG9: =INT(60*SUM(AF5:AF8)+SUM(AG5:AG8)-60*INT((60*SUM(AF5:AF8)+SUM(AG5:AG8))/60)) -> 0 | AH9: =INT((60*SUM(AH5:AH8)+SUM(AI5:AI8)-AI9)/60) -> 0 | AI9: =INT(60*SUM(AH5:AH8)+SUM(AI5:AI8)-60*INT((60*SUM(AH5:AH8)+SUM(AI5:AI8))/60)) -> 0 | AK9: =INT((60*SUM(AK5:AK8)+SUM(AL5:AL8)-AL9)/60) -> 0 | AL9: =INT(60*SUM(AK5:AK8)+SUM(AL5:AL8)-60*INT((60*SUM(AK5:AK8)+SUM(AL5:AL8))/60)) -> 0 | AN9: =INT((60*SUM(AN5:AN8)+SUM(AO5:AO8)-AO9)/60) -> 0 | AO9: =INT(60*SUM(AN5:AN8)+SUM(AO5:AO8)-60*INT((60*SUM(AN5:AN8)+SUM(AO5:AO8))/60)) -> 0 | AQ9: =INT((60*SUM(AQ5:AQ8)+SUM(AR5:AR8)-AR9)/60) -> 0 | AR9: =INT(60*SUM(AQ5:AQ8)+SUM(AR5:AR8)-60*INT((60*SUM(AQ5:AQ8)+SUM(AR5:AR8))/60)) -> 0 | AS9: =INT((60*SUM(AS5:AS8)+SUM(AT5:AT8)-AT9)/60) -> 0 | AT9: =INT(60*SUM(AS5:AS8)+SUM(AT5:AT8)-60*INT((60*SUM(AS5:AS8)+SUM(AT5:AT8))/60)) -> 0 | AU9: =INT((60*SUM(AU5:AU8)+SUM(AV5:AV8)-AV9)/60) -> 0 | AV9: =INT(60*SUM(AU5:AU8)+SUM(AV5:AV8)-60*INT((60*SUM(AU5:AU8)+SUM(AV5:AV8))/60)) -> 0 | AW9: =INT((60*SUM(AW5:AW8)+SUM(AX5:AX8)-AX9)/60) -> 0 | AX9: =INT(60*SUM(AW5:AW8)+SUM(AX5:AX8)-60*INT((60*SUM(AW5:AW8)+SUM(AX5:AX8))/60)) -> 0 | AY9: =INT((60*SUM(AY5:AY8)+SUM(AZ5:AZ8)-AZ9)/60) -> 0 | AZ9: =INT(60*SUM(AY5:AY8)+SUM(AZ5:AZ8)-60*INT((60*SUM(AY5:AY8)+SUM(AZ5:AZ8))/60)) -> 0 | BA9: =INT((60*SUM(BA5:BA8)+SUM(BB5:BB8)-BB9)/60) -> 0 | BB9: =INT(60*SUM(BA5:BA8)+SUM(BB5:BB8)-60*INT((60*SUM(BA5:BA8)+SUM(BB5:BB8))/60)) -> 0 | BC9: =INT((60*SUM(BC5:BC8)+SUM(BD5:BD8)-BD9)/60) -> 0 | BD9: =INT(60*SUM(BC5:BC8)+SUM(BD5:BD8)-60*INT((60*SUM(BC5:BC8)+SUM(BD5:BD8))/60)) -> 0 | BE9: =INT((60*SUM(BE5:BE8)+SUM(BF5:BF8)-BF9)/60) -> 0 | BF9: =INT(60*SUM(BE5:BE8)+SUM(BF5:BF8)-60*INT((60*SUM(BE5:BE8)+SUM(BF5:BF8))/60)) -> 0 | BG9: =INT((60*SUM(BG5:BG8)+SUM(BH5:BH8)-BH9)/60) -> 0 | BH9: =INT(60*SUM(BG5:BG8)+SUM(BH5:BH8)-60*INT((60*SUM(BG5:BG8)+SUM(BH5:BH8))/60)) -> 0
E10: =5-COUNTIF(E11:E15,0) -> 5 | F10: =(SUM(C11:C15)*60+SUM(D11:D15))/E10 -> 474
A11: Mo | B11: =IF(E11=0,"frei","") ->  | C11: =SUM(Einstellungen!C19) -> 7 | D11: =SUM(Einstellungen!D19) -> 54 | E11: =C11*60+D11 -> 474 | F11: =E11/$F$10 -> 1 | G11: =IF(AND(E11>0,I11<>"",U11<>"f"),F11,0) -> 1 | H11: =IF(AND(I11<>"",U11<>"f"),1,0) -> 1 | I11: =IF(I8<>"",I8+1,IF(CHOOSE(WEEKDAY(Einstellungen!$A$7,2),"Mo","Di","Mi","Do","Fr","Sa","So")=J11,Einstellungen!$A$7,"")) -> 2026-05-04 | J11: Mo | O11: =HOUR(N11-K11-(M11-L11)) -> 0 | P11: =MINUTE(N11-K11-(M11-L11)) -> 0 | V11: =IF(OR(U11="U",U11="k",U11="B"),$C$11,IF(S11>P11,O11-1-R11,O11-R11)) -> 0 | W11: =IF(OR(U11="U",U11="k",U11="B"),$D$11,IF(S11>P11,P11+60-S11,P11-S11)) -> 0 | X11: =IF(OR(U11="U",U11="K",U11="B"),0,V11) -> 0 | Y11: =IF(OR(U11="U",U11="K",U11="B"),0,W11) -> 0 | Z11: =INT(((SUM(AB11,AH11,AK11,AN11,AQ11,AS11,AU11,AW11,AY11,BA11,BC11,BE11,BG11)*100)+(SUM(AC11,AI11,AL11,AO11,AR11,AT11,AV11,AX11,AZ11,BB11,BD11,BF11,BH11)/60*100))/100) -> 0 | AA11: =MOD(((SUM(AC11,AI11,AL11,AO11,AR11,AT11,AV11,AX11,AZ11,BB11,BD11,BF11,BH11)*100)+(SUM(AC11,AI11,AL11,AO11,AR11,AT11,AV11,AX11,AZ11,BB11,BD11,BF11,BH11)/60*100))/100,1)*60 -> 0 | AD11: =INT(((SUM(AH11,AK11,AN11)*100)+SUM(AI11,AL11,AO11)/60*100)/100) -> 0 | AE11: =MOD(((SUM(AI11,AL11,AO11)*100)+(SUM(AI11,AL11,AO11)/60*100))/100,1)*60 -> 0 | AF11: =INT(((SUM(AQ11+AS11+AU11+AW11+AY11+BA11+BC11+BE11+BG11)*100)+SUM(AR11+AT11+AV11+AX11+AZ11+BB11+BD11+BF11+BH11)/60*100)/100) -> 0 | AG11: =MOD(((SUM(AR11+AT11+AV11+AX11+AZ11+BB11+BD11+BF11+BH11)*100)+(SUM(AR11+AT11+AV11+AX11+AZ11+BB11+BD11+BF11+BH11)/60*100))/100,1)*60 -> 0
A12: Di | B12: =IF(E12=0,"frei","") ->  | C12: =SUM(Einstellungen!C20) -> 7 | D12: =SUM(Einstellungen!D20) -> 54 | E12: =C12*60+D12 -> 474 | F12: =E12/$F$10 -> 1 | G12: =IF(AND(E12>0,I12<>"",U12<>"f"),F12,0) -> 1 | H12: =IF(AND(I12<>"",U12<>"f"),1,0) -> 1 | I12: =IF(I11<>"",I11+1,IF(CHOOSE(WEEKDAY(Einstellungen!$A$7,2),"Mo","Di","Mi","Do","Fr","Sa","So")=J12,Einstellungen!$A$7,"")) -> 2026-05-05 | J12: Di | O12: 0 | P12: 0 | V12: =IF(OR(U12="U",U12="k",U12="B"),$C$12,IF(S12>P12,O12-1-R12,O12-R12)) -> 0 | W12: =IF(OR(U12="U",U12="k",U12="B"),$D$12,IF(S12>P12,P12+60-S12,P12-S12)) -> 0 | X12: 0 | Y12: 0 | Z12: 0 | AA12: 0 | AD12: 0 | AE12: 0 | AF12: 0 | AG12: 0
A13: Mi | B13: =IF(E13=0,"frei","") ->  | C13: =SUM(Einstellungen!C21) -> 7 | D13: =SUM(Einstellungen!D21) -> 54 | E13: =C13*60+D13 -> 474 | F13: =E13/$F$10 -> 1 | G13: =IF(AND(E13>0,I13<>"",U13<>"f"),F13,0) -> 1 | H13: =IF(AND(I13<>"",U13<>"f"),1,0) -> 1 | I13: =IF(I12<>"",I12+1,IF(CHOOSE(WEEKDAY(Einstellungen!$A$7,2),"Mo","Di","Mi","Do","Fr","Sa","So")=J13,Einstellungen!$A$7,"")) -> 2026-05-06 | J13: Mi | O13: 0 | P13: 0 | V13: =IF(OR(U13="U",U13="k",U13="B"),$C$13,IF(S13>P13,O13-1-R13,O13-R13)) -> 0 | W13: =IF(OR(U13="U",U13="k",U13="B"),$D$13,IF(S13>P13,P13+60-S13,P13-S13)) -> 0 | X13: 0 | Y13: 0 | Z13: 0 | AA13: 0 | AD13: 0 | AE13: 0 | AF13: 0 | AG13: 0
A14: Do | B14: =IF(E14=0,"frei","") ->  | C14: =SUM(Einstellungen!C22) -> 7 | D14: =SUM(Einstellungen!D22) -> 54 | E14: =C14*60+D14 -> 474 | F14: =E14/$F$10 -> 1 | G14: =IF(AND(E14>0,I14<>"",U14<>"f"),F14,0) -> 1 | H14: =IF(AND(I14<>"",U14<>"f"),1,0) -> 1 | I14: =IF(I13<>"",I13+1,IF(CHOOSE(WEEKDAY(Einstellungen!$A$7,2),"Mo","Di","Mi","Do","Fr","Sa","So")=J14,Einstellungen!$A$7,"")) -> 2026-05-07 | J14: Do | O14: 0 | P14: 0 | V14: =IF(OR(U14="U",U14="k",U14="B"),$C$14,IF(S14>P14,O14-1-R14,O14-R14)) -> 0 | W14: =IF(OR(U14="U",U14="k",U14="B"),$D$14,IF(S14>P14,P14+60-S14,P14-S14)) -> 0 | X14: 0 | Y14: 0 | Z14: 0 | AA14: 0 | AD14: 0 | AE14: 0 | AF14: 0 | AG14: 0
A15: Fr | B15: =IF(E15=0,"frei","") ->  | C15: =SUM(Einstellungen!C23) -> 7 | D15: =SUM(Einstellungen!D23) -> 54 | E15: =C15*60+D15 -> 474 | F15: =E15/$F$10 -> 1 | G15: =IF(AND(E15>0,I15<>"",U15<>"f"),F15,0) -> 1 | H15: =IF(AND(I15<>"",U15<>"f"),1,0) -> 1 | I15: =I14+1 -> 2026-05-08 | J15: Fr | O15: 0 | P15: 0 | V15: =IF(OR(U15="U",U15="k",U15="B"),$C$15,IF(S15>P15,O15-1-R15,O15-R15)) -> 0 | W15: =IF(OR(U15="U",U15="k",U15="B"),$D$15,IF(S15>P15,P15+60-S15,P15-S15)) -> 0 | X15: 0 | Y15: 0 | Z15: 0 | AA15: 0 | AD15: 0 | AE15: 0 | AF15: 0 | AG15: 0
A16: =Einstellungen!$L$1 -> Hinweise: | I16: =I15+1 -> 2026-05-09 | J16: Sa | O16: 0 | P16: 0 | T16: nur dienstl. Sonderfälle!* | V16: =IF(S16>P16,O16-1-R16,O16-R16) -> 0 | W16: =IF(S16>P16,P16+60-S16,P16-S16) -> 0 | X16: 0 | Y16: 0 | Z16: 0 | AA16: 0 | AD16: 0 | AE16: 0 | AF16: 0 | AG16: 0
A17: =Einstellungen!$L$2 -> I Beschäftigte mit 39,5 Std-Woche | I17: =I16+1 -> 2026-05-10 | J17: So | O17: 0 | P17: 0 | T17: nur dienstl. Sonderfälle!* | V17: =IF(S17>P17,O17-1-R17,O17-R17) -> 0 | W17: =IF(S17>P17,P17+60-S17,P17-S17) -> 0 | X17: 0 | Y17: 0 | Z17: 0 | AA17: 0 | AD17: 0 | AE17: 0 | AF17: 0 | AG17: 0
A18: =Einstellungen!$L$3 ->  | C18: =Einstellungen!$N$3 -> Beschäftigungsumfang | V18: =INT((60*SUM(V11:V17)+SUM(W11:W17)-W18)/60) -> 0 | W18: =INT(60*SUM(V11:V17)+SUM(W11:W17)-60*INT((60*SUM(V11:V17)+SUM(W11:W17))/60)) -> 0 | X18: =INT((60*SUM(X11:X17)+SUM(Y11:Y17)-Y18)/60) -> 0 | Y18: =INT(60*SUM(X11:X17)+SUM(Y11:Y17)-60*INT((60*SUM(X11:X17)+SUM(Y11:Y17))/60)) -> 0 | Z18: =INT((60*SUM(Z11:Z17)+SUM(AA11:AA17)-AA18)/60) -> 0 | AA18: =INT(60*SUM(Z11:Z17)+SUM(AA11:AA17)-60*INT((60*SUM(Z11:Z17)+SUM(AA11:AA17))/60)) -> 0 | AB18: =INT((60*SUM(AB11:AB17)+SUM(AC11:AC17)-AC18)/60) -> 0 | AC18: =INT(60*SUM(AB11:AB17)+SUM(AC11:AC17)-60*INT((60*SUM(AB11:AB17)+SUM(AC11:AC17))/60)) -> 0 | AD18: =INT((60*SUM(AD11:AD17)+SUM(AE11:AE17)-AE18)/60) -> 0 | AE18: =INT(60*SUM(AD11:AD17)+SUM(AE11:AE17)-60*INT((60*SUM(AD11:AD17)+SUM(AE11:AE17))/60)) -> 0 | AF18: =INT((60*SUM(AF11:AF17)+SUM(AG11:AG17)-AG18)/60) -> 0 | AG18: =INT(60*SUM(AF11:AF17)+SUM(AG11:AG17)-60*INT((60*SUM(AF11:AF17)+SUM(AG11:AG17))/60)) -> 0 | AH18: =INT((60*SUM(AH11:AH17)+SUM(AI11:AI17)-AI18)/60) -> 0 | AI18: =INT(60*SUM(AH11:AH17)+SUM(AI11:AI17)-60*INT((60*SUM(AH11:AH17)+SUM(AI11:AI17))/60)) -> 0 | AK18: =INT((60*SUM(AK11:AK17)+SUM(AL11:AL17)-AL18)/60) -> 0 | AL18: =INT(60*SUM(AK11:AK17)+SUM(AL11:AL17)-60*INT((60*SUM(AK11:AK17)+SUM(AL11:AL17))/60)) -> 0 | AN18: =INT((60*SUM(AN11:AN17)+SUM(AO11:AO17)-AO18)/60) -> 0 | AO18: =INT(60*SUM(AN11:AN17)+SUM(AO11:AO17)-60*INT((60*SUM(AN11:AN17)+SUM(AO11:AO17))/60)) -> 0 | AQ18: =INT((60*SUM(AQ11:AQ17)+SUM(AR11:AR17)-AR18)/60) -> 0 | AR18: =INT(60*SUM(AQ11:AQ17)+SUM(AR11:AR17)-60*INT((60*SUM(AQ11:AQ17)+SUM(AR11:AR17))/60)) -> 0 | AS18: =INT((60*SUM(AS11:AS17)+SUM(AT11:AT17)-AT18)/60) -> 0 | AT18: =INT(60*SUM(AS11:AS17)+SUM(AT11:AT17)-60*INT((60*SUM(AS11:AS17)+SUM(AT11:AT17))/60)) -> 0 | AU18: =INT((60*SUM(AU11:AU17)+SUM(AV11:AV17)-AV18)/60) -> 0 | AV18: =INT(60*SUM(AU11:AU17)+SUM(AV11:AV17)-60*INT((60*SUM(AU11:AU17)+SUM(AV11:AV17))/60)) -> 0 | AW18: =INT((60*SUM(AW11:AW17)+SUM(AX11:AX17)-AX18)/60) -> 0 | AX18: =INT(60*SUM(AW11:AW17)+SUM(AX11:AX17)-60*INT((60*SUM(AW11:AW17)+SUM(AX11:AX17))/60)) -> 0 | AY18: =INT((60*SUM(AY11:AY17)+SUM(AZ11:AZ17)-AZ18)/60) -> 0 | AZ18: =INT(60*SUM(AY11:AY17)+SUM(AZ11:AZ17)-60*INT((60*SUM(AY11:AY17)+SUM(AZ11:AZ17))/60)) -> 0 | BA18: =INT((60*SUM(BA11:BA17)+SUM(BB11:BB17)-BB18)/60) -> 0 | BB18: =INT(60*SUM(BA11:BA17)+SUM(BB11:BB17)-60*INT((60*SUM(BA11:BA17)+SUM(BB11:BB17))/60)) -> 0 | BC18: =INT((60*SUM(BC11:BC17)+SUM(BD11:BD17)-BD18)/60) -> 0 | BD18: =INT(60*SUM(BC11:BC17)+SUM(BD11:BD17)-60*INT((60*SUM(BC11:BC17)+SUM(BD11:BD17))/60)) -> 0 | BE18: =INT((60*SUM(BE11:BE17)+SUM(BF11:BF17)-BF18)/60) -> 0 | BF18: =INT(60*SUM(BE11:BE17)+SUM(BF11:BF17)-60*INT((60*SUM(BE11:BE17)+SUM(BF11:BF17))/60)) -> 0 | BG18: =INT((60*SUM(BG11:BG17)+SUM(BH11:BH17)-BH18)/60) -> 0 | BH18: =INT(60*SUM(BG11:BG17)+SUM(BH11:BH17)-60*INT((60*SUM(BG11:BG17)+SUM(BH11:BH17))/60)) -> 0
A20: =Einstellungen!$L$4 -> 5 Tage-Woche | C20: =Einstellungen!$N$4 -> 1 | D20: =Einstellungen!$O$4 -> 0.75 | F20: =Einstellungen!$Q$4 -> 0.5 | G20: =IF(AND(E11>0,I20<>"",U20<>"f"),F11,0) -> 1 | H20: =IF(AND(I20<>"",U20<>"f"),1,0) -> 1 | I20: =I17+1 -> 2026-05-11 | J20: Mo | O20: =HOUR(N20-K20-(M20-L20)) -> 0 | P20: =MINUTE(N20-K20-(M20-L20)) -> 0 | V20: =IF(OR(U20="U",U20="k",U20="B"),$C$11,IF(S20>P20,O20-1-R20,O20-R20)) -> 0 | W20: =IF(OR(U20="U",U20="k",U20="B"),$D$11,IF(S20>P20,P20+60-S20,P20-S20)) -> 0 | X20: =IF(OR(U20="U",U20="K",U20="B"),0,V20) -> 0 | Y20: =IF(OR(U20="U",U20="K",U20="B"),0,W20) -> 0 | Z20: =INT(((SUM(AB20,AH20,AK20,AN20,AQ20,AS20,AU20,AW20,AY20,BA20,BC20,BE20,BG20)*100)+(SUM(AC20,AI20,AL20,AO20,AR20,AT20,AV20,AX20,AZ20,BB20,BD20,BF20,BH20)/60*100))/100) -> 0 | AA20: =MOD(((SUM(AC20,AI20,AL20,AO20,AR20,AT20,AV20,AX20,AZ20,BB20,BD20,BF20,BH20)*100)+(SUM(AC20,AI20,AL20,AO20,AR20,AT20,AV20,AX20,AZ20,BB20,BD20,BF20,BH20)/60*100))/100,1)*60 -> 0 | AD20: =INT(((SUM(AH20,AK20,AN20)*100)+SUM(AI20,AL20,AO20)/60*100)/100) -> 0 | AE20: =MOD(((SUM(AI20,AL20,AO20)*100)+(SUM(AI20,AL20,AO20)/60*100))/100,1)*60 -> 0 | AF20: =INT(((SUM(AQ20+AS20+AU20+AW20+AY20+BA20+BC20+BE20+BG20)*100)+SUM(AR20+AT20+AV20+AX20+AZ20+BB20+BD20+BF20+BH20)/60*100)/100) -> 0 | AG20: =MOD(((SUM(AR20+AT20+AV20+AX20+AZ20+BB20+BD20+BF20+BH20)*100)+(SUM(AR20+AT20+AV20+AX20+AZ20+BB20+BD20+BF20+BH20)/60*100))/100,1)*60 -> 0
A21: =Einstellungen!$L$5 ->  | G21: =IF(AND(E12>0,I21<>"",U21<>"f"),F12,0) -> 1 | H21: =IF(AND(I21<>"",U21<>"f"),1,0) -> 1 | I21: =I20+1 -> 2026-05-12 | J21: Di | O21: 0 | P21: 0 | V21: =IF(OR(U21="U",U21="k",U21="B"),$C$12,IF(S21>P21,O21-1-R21,O21-R21)) -> 0 | W21: =IF(OR(U21="U",U21="k",U21="B"),$D$12,IF(S21>P21,P21+60-S21,P21-S21)) -> 0 | X21: 0 | Y21: 0 | Z21: 0 | AA21: 0 | AD21: 0 | AE21: 0 | AF21: 0 | AG21: 0
A22: =Einstellungen!$L$6 -> tägliche Regel- | G22: =IF(AND(E13>0,I22<>"",U22<>"f"),F13,0) -> 1 | H22: =IF(AND(I22<>"",U22<>"f"),1,0) -> 1 | I22: =I21+1 -> 2026-05-13 | J22: Mi | O22: 0 | P22: 0 | V22: =IF(OR(U22="U",U22="k",U22="B"),$C$13,IF(S22>P22,O22-1-R22,O22-R22)) -> 0 | W22: =IF(OR(U22="U",U22="k",U22="B"),$D$13,IF(S22>P22,P22+60-S22,P22-S22)) -> 0 | X22: 0 | Y22: 0 | Z22: 0 | AA22: 0 | AD22: 0 | AE22: 0 | AF22: 0 | AG22: 0
A23: =Einstellungen!$L$7 -> arbeitszeit für | G23: =IF(AND(E14>0,I23<>"",U23<>"f"),F14,0) -> 0 | H23: =IF(AND(I23<>"",U23<>"f"),1,0) -> 0 | I23: 2026-05-14 | J23: Do | O23: 0 | P23: 0 | T23: nur dienstl. Sonderfälle!* | U23: F | V23: =IF(OR(U23="U",U23="k",U23="B"),$C$14,IF(S23>P23,O23-1-R23,O23-R23)) -> 0 | W23: =IF(OR(U23="U",U23="k",U23="B"),$D$14,IF(S23>P23,P23+60-S23,P23-S23)) -> 0 | X23: 0 | Y23: 0 | Z23: 0 | AA23: 0 | AD23: 0 | AE23: 0 | AF23: 0 | AG23: 0
A24: =Einstellungen!$L$8 -> Wochenfeier- | G24: =IF(AND(E15>0,I24<>"",U24<>"f"),F15,0) -> 1 | H24: =IF(AND(I24<>"",U24<>"f"),1,0) -> 1 | I24: 2026-05-15 | J24: Fr | O24: 0 | P24: 0 | V24: =IF(OR(U24="U",U24="k",U24="B"),$C$15,IF(S24>P24,O24-1-R24,O24-R24)) -> 0 | W24: =IF(OR(U24="U",U24="k",U24="B"),$D$15,IF(S24>P24,P24+60-S24,P24-S24)) -> 0 | X24: 0 | Y24: 0 | Z24: 0 | AA24: 0 | AD24: 0 | AE24: 0 | AF24: 0 | AG24: 0
A25: =Einstellungen!$L$9 -> tage, bei Urlaub | I25: 2026-05-16 | J25: Sa | O25: 0 | P25: 0 | T25: nur dienstl. Sonderfälle!* | V25: =IF(S25>P25,O25-1-R25,O25-R25) -> 0 | W25: =IF(S25>P25,P25+60-S25,P25-S25) -> 0 | X25: 0 | Y25: 0 | Z25: 0 | AA25: 0 | AD25: 0 | AE25: 0 | AF25: 0 | AG25: 0
A26: =Einstellungen!$L$10 -> oder Krankheit | I26: 2026-05-17 | J26: So | O26: 0 | P26: 0 | T26: nur dienstl. Sonderfälle!* | V26: =IF(S26>P26,O26-1-R26,O26-R26) -> 0 | W26: =IF(S26>P26,P26+60-S26,P26-S26) -> 0 | X26: 0 | Y26: 0 | Z26: 0 | AA26: 0 | AD26: 0 | AE26: 0 | AF26: 0 | AG26: 0
A27: =Einstellungen!$L$11 -> Mo-Fr | B27: =Einstellungen!$M$11 -> Std.Min | C27: =Einstellungen!$N$11 -> 7.54 | D27: =Einstellungen!$O$11 -> 5.56 | F27: =Einstellungen!$Q$11 -> 3.57 | V27: =INT((60*SUM(V20:V26)+SUM(W20:W26)-W27)/60) -> 0 | W27: =INT(60*SUM(V20:V26)+SUM(W20:W26)-60*INT((60*SUM(V20:V26)+SUM(W20:W26))/60)) -> 0 | X27: =INT((60*SUM(X20:X26)+SUM(Y20:Y26)-Y27)/60) -> 0 | Y27: =INT(60*SUM(X20:X26)+SUM(Y20:Y26)-60*INT((60*SUM(X20:X26)+SUM(Y20:Y26))/60)) -> 0 | Z27: =INT((60*SUM(Z20:Z26)+SUM(AA20:AA26)-AA27)/60) -> 0 | AA27: =INT(60*SUM(Z20:Z26)+SUM(AA20:AA26)-60*INT((60*SUM(Z20:Z26)+SUM(AA20:AA26))/60)) -> 0 | AB27: =INT((60*SUM(AB20:AB26)+SUM(AC20:AC26)-AC27)/60) -> 0 | AC27: =INT(60*SUM(AB20:AB26)+SUM(AC20:AC26)-60*INT((60*SUM(AB20:AB26)+SUM(AC20:AC26))/60)) -> 0 | AD27: =INT((60*SUM(AD20:AD26)+SUM(AE20:AE26)-AE27)/60) -> 0 | AE27: =INT(60*SUM(AD20:AD26)+SUM(AE20:AE26)-60*INT((60*SUM(AD20:AD26)+SUM(AE20:AE26))/60)) -> 0 | AF27: =INT((60*SUM(AF20:AF26)+SUM(AG20:AG26)-AG27)/60) -> 0 | AG27: =INT(60*SUM(AF20:AF26)+SUM(AG20:AG26)-60*INT((60*SUM(AF20:AF26)+SUM(AG20:AG26))/60)) -> 0 | AH27: =INT((60*SUM(AH20:AH26)+SUM(AI20:AI26)-AI27)/60) -> 0 | AI27: =INT(60*SUM(AH20:AH26)+SUM(AI20:AI26)-60*INT((60*SUM(AH20:AH26)+SUM(AI20:AI26))/60)) -> 0 | AK27: =INT((60*SUM(AK20:AK26)+SUM(AL20:AL26)-AL27)/60) -> 0 | AL27: =INT(60*SUM(AK20:AK26)+SUM(AL20:AL26)-60*INT((60*SUM(AK20:AK26)+SUM(AL20:AL26))/60)) -> 0 | AN27: =INT((60*SUM(AN20:AN26)+SUM(AO20:AO26)-AO27)/60) -> 0 | AO27: =INT(60*SUM(AN20:AN26)+SUM(AO20:AO26)-60*INT((60*SUM(AN20:AN26)+SUM(AO20:AO26))/60)) -> 0 | AQ27: =INT((60*SUM(AQ20:AQ26)+SUM(AR20:AR26)-AR27)/60) -> 0 | AR27: =INT(60*SUM(AQ20:AQ26)+SUM(AR20:AR26)-60*INT((60*SUM(AQ20:AQ26)+SUM(AR20:AR26))/60)) -> 0 | AS27: =INT((60*SUM(AS20:AS26)+SUM(AT20:AT26)-AT27)/60) -> 0 | AT27: =INT(60*SUM(AS20:AS26)+SUM(AT20:AT26)-60*INT((60*SUM(AS20:AS26)+SUM(AT20:AT26))/60)) -> 0 | AU27: =INT((60*SUM(AU20:AU26)+SUM(AV20:AV26)-AV27)/60) -> 0 | AV27: =INT(60*SUM(AU20:AU26)+SUM(AV20:AV26)-60*INT((60*SUM(AU20:AU26)+SUM(AV20:AV26))/60)) -> 0 | AW27: =INT((60*SUM(AW20:AW26)+SUM(AX20:AX26)-AX27)/60) -> 0 | AX27: =INT(60*SUM(AW20:AW26)+SUM(AX20:AX26)-60*INT((60*SUM(AW20:AW26)+SUM(AX20:AX26))/60)) -> 0 | AY27: =INT((60*SUM(AY20:AY26)+SUM(AZ20:AZ26)-AZ27)/60) -> 0 | AZ27: =INT(60*SUM(AY20:AY26)+SUM(AZ20:AZ26)-60*INT((60*SUM(AY20:AY26)+SUM(AZ20:AZ26))/60)) -> 0 | BA27: =INT((60*SUM(BA20:BA26)+SUM(BB20:BB26)-BB27)/60) -> 0 | BB27: =INT(60*SUM(BA20:BA26)+SUM(BB20:BB26)-60*INT((60*SUM(BA20:BA26)+SUM(BB20:BB26))/60)) -> 0 | BC27: =INT((60*SUM(BC20:BC26)+SUM(BD20:BD26)-BD27)/60) -> 0 | BD27: =INT(60*SUM(BC20:BC26)+SUM(BD20:BD26)-60*INT((60*SUM(BC20:BC26)+SUM(BD20:BD26))/60)) -> 0 | BE27: =INT((60*SUM(BE20:BE26)+SUM(BF20:BF26)-BF27)/60) -> 0 | BF27: =INT(60*SUM(BE20:BE26)+SUM(BF20:BF26)-60*INT((60*SUM(BE20:BE26)+SUM(BF20:BF26))/60)) -> 0 | BG27: =INT((60*SUM(BG20:BG26)+SUM(BH20:BH26)-BH27)/60) -> 0 | BH27: =INT(60*SUM(BG20:BG26)+SUM(BH20:BH26)-60*INT((60*SUM(BG20:BG26)+SUM(BH20:BH26))/60)) -> 0
A29: =Einstellungen!$L$13 -> Wochen | G29: =IF(AND(E11>0,I29<>"",U29<>"f"),F11,0) -> 1 | H29: =IF(AND(I29<>"",U29<>"f"),1,0) -> 1 | I29: =I26+1 -> 2026-05-18 | J29: Mo | O29: =HOUR(N29-K29-(M29-L29)) -> 0 | P29: =MINUTE(N29-K29-(M29-L29)) -> 0 | V29: =IF(OR(U29="U",U29="k",U29="B"),$C$11,IF(S29>P29,O29-1-R29,O29-R29)) -> 0 | W29: =IF(OR(U29="U",U29="k",U29="B"),$D$11,IF(S29>P29,P29+60-S29,P29-S29)) -> 0 | X29: =IF(OR(U29="U",U29="K",U29="B"),0,V29) -> 0 | Y29: =IF(OR(U29="U",U29="K",U29="B"),0,W29) -> 0 | Z29: =INT(((SUM(AB29,AH29,AK29,AN29,AQ29,AS29,AU29,AW29,AY29,BA29,BC29,BE29,BG29)*100)+(SUM(AC29,AI29,AL29,AO29,AR29,AT29,AV29,AX29,AZ29,BB29,BD29,BF29,BH29)/60*100))/100) -> 0 | AA29: =MOD(((SUM(AC29,AI29,AL29,AO29,AR29,AT29,AV29,AX29,AZ29,BB29,BD29,BF29,BH29)*100)+(SUM(AC29,AI29,AL29,AO29,AR29,AT29,AV29,AX29,AZ29,BB29,BD29,BF29,BH29)/60*100))/100,1)*60 -> 0 | AD29: =INT(((SUM(AH29,AK29,AN29)*100)+SUM(AI29,AL29,AO29)/60*100)/100) -> 0 | AE29: =MOD(((SUM(AI29,AL29,AO29)*100)+(SUM(AI29,AL29,AO29)/60*100))/100,1)*60 -> 0 | AF29: =INT(((SUM(AQ29+AS29+AU29+AW29+AY29+BA29+BC29+BE29+BG29)*100)+SUM(AR29+AT29+AV29+AX29+AZ29+BB29+BD29+BF29+BH29)/60*100)/100) -> 0 | AG29: =MOD(((SUM(AR29+AT29+AV29+AX29+AZ29+BB29+BD29+BF29+BH29)*100)+(SUM(AR29+AT29+AV29+AX29+AZ29+BB29+BD29+BF29+BH29)/60*100))/100,1)*60 -> 0
A30: =CONCATENATE(Einstellungen!$L$14," ",Einstellungen!$M$14) -> Arbeitzeit Std.Min | C30: =Einstellungen!$N$14 -> 39.30 | D30: =Einstellungen!$O$14 -> 29.38 | F30: =Einstellungen!$Q$14 -> 19.45 | G30: =IF(AND(E12>0,I30<>"",U30<>"f"),F12,0) -> 1 | H30: =IF(AND(I30<>"",U30<>"f"),1,0) -> 1 | I30: =I29+1 -> 2026-05-19 | J30: Di | O30: 0 | P30: 0 | V30: =IF(OR(U30="U",U30="k",U30="B"),$C$12,IF(S30>P30,O30-1-R30,O30-R30)) -> 0 | W30: =IF(OR(U30="U",U30="k",U30="B"),$D$12,IF(S30>P30,P30+60-S30,P30-S30)) -> 0 | X30: 0 | Y30: 0 | Z30: 0 | AA30: 0 | AD30: 0 | AE30: 0 | AF30: 0 | AG30: 0
A31: =Einstellungen!$L$15 -> max.Übertrag auf das | G31: =IF(AND(E13>0,I31<>"",U31<>"f"),F13,0) -> 1 | H31: =IF(AND(I31<>"",U31<>"f"),1,0) -> 1 | I31: =I30+1 -> 2026-05-20 | J31: Mi | O31: 0 | P31: 0 | V31: =IF(OR(U31="U",U31="k",U31="B"),$C$13,IF(S31>P31,O31-1-R31,O31-R31)) -> 0 | W31: =IF(OR(U31="U",U31="k",U31="B"),$D$13,IF(S31>P31,P31+60-S31,P31-S31)) -> 0 | X31: 0 | Y31: 0 | Z31: 0 | AA31: 0 | AD31: 0 | AE31: 0 | AF31: 0 | AG31: 0
A32: =Einstellungen!$L$16 -> Folgejahr Std.Min | C32: =Einstellungen!$N$16 -> 39.30 | D32: =Einstellungen!$O$16 -> 39.30 | F32: =Einstellungen!$Q$16 -> 39.30 | G32: =IF(AND(E14>0,I32<>"",U32<>"f"),F14,0) -> 1 | H32: =IF(AND(I32<>"",U32<>"f"),1,0) -> 1 | I32: 2026-05-21 | J32: Do | O32: 0 | P32: 0 | V32: =IF(OR(U32="U",U32="k",U32="B"),$C$14,IF(S32>P32,O32-1-R32,O32-R32)) -> 0 | W32: =IF(OR(U32="U",U32="k",U32="B"),$D$14,IF(S32>P32,P32+60-S32,P32-S32)) -> 0 | X32: 0 | Y32: 0 | Z32: 0 | AA32: 0 | AD32: 0 | AE32: 0 | AF32: 0 | AG32: 0
A33: =Einstellungen!$L$17 -> II Beschäftigte mit 41 Std-Woche | G33: =IF(AND(E15>0,I33<>"",U33<>"f"),F15,0) -> 1 | H33: =IF(AND(I33<>"",U33<>"f"),1,0) -> 1 | I33: 2026-05-22 | J33: Fr | O33: 0 | P33: 0 | V33: =IF(OR(U33="U",U33="k",U33="B"),$C$15,IF(S33>P33,O33-1-R33,O33-R33)) -> 0 | W33: =IF(OR(U33="U",U33="k",U33="B"),$D$15,IF(S33>P33,P33+60-S33,P33-S33)) -> 0 | X33: 0 | Y33: 0 | Z33: 0 | AA33: 0 | AD33: 0 | AE33: 0 | AF33: 0 | AG33: 0
A34: =Einstellungen!$L$18 -> tägliche Arbeitszeit | I34: 2026-05-23 | J34: Sa | O34: 0 | P34: 0 | T34: nur dienstl. Sonderfälle!* | V34: =IF(S34>P34,O34-1-R34,O34-R34) -> 0 | W34: =IF(S34>P34,P34+60-S34,P34-S34) -> 0 | X34: 0 | Y34: 0 | Z34: 0 | AA34: 0 | AD34: 0 | AE34: 0 | AF34: 0 | AG34: 0
A35: =Einstellungen!$L$19 -> Mo-Fr | B35: =Einstellungen!$M$19 -> Std.Min | C35: =Einstellungen!$N$19 -> 8.12 | D35: =Einstellungen!$O$19 -> 6.09 | F35: =Einstellungen!$Q$19 -> 4.06 | I35: 2026-05-24 | J35: So | O35: 0 | P35: 0 | T35: nur dienstl. Sonderfälle!* | V35: =IF(S35>P35,O35-1-R35,O35-R35) -> 0 | W35: =IF(S35>P35,P35+60-S35,P35-S35) -> 0 | X35: 0 | Y35: 0 | Z35: 0 | AA35: 0 | AD35: 0 | AE35: 0 | AF35: 0 | AG35: 0
A36: =Einstellungen!$L$20 -> Wochen | V36: =INT((60*SUM(V29:V35)+SUM(W29:W35)-W36)/60) -> 0 | W36: =INT(60*SUM(V29:V35)+SUM(W29:W35)-60*INT((60*SUM(V29:V35)+SUM(W29:W35))/60)) -> 0 | X36: =INT((60*SUM(X29:X35)+SUM(Y29:Y35)-Y36)/60) -> 0 | Y36: =INT(60*SUM(X29:X35)+SUM(Y29:Y35)-60*INT((60*SUM(X29:X35)+SUM(Y29:Y35))/60)) -> 0 | Z36: =INT((60*SUM(Z29:Z35)+SUM(AA29:AA35)-AA36)/60) -> 0 | AA36: =INT(60*SUM(Z29:Z35)+SUM(AA29:AA35)-60*INT((60*SUM(Z29:Z35)+SUM(AA29:AA35))/60)) -> 0 | AB36: =INT((60*SUM(AB29:AB35)+SUM(AC29:AC35)-AC36)/60) -> 0 | AC36: =INT(60*SUM(AB29:AB35)+SUM(AC29:AC35)-60*INT((60*SUM(AB29:AB35)+SUM(AC29:AC35))/60)) -> 0 | AD36: =INT((60*SUM(AD29:AD35)+SUM(AE29:AE35)-AE36)/60) -> 0 | AE36: =INT(60*SUM(AD29:AD35)+SUM(AE29:AE35)-60*INT((60*SUM(AD29:AD35)+SUM(AE29:AE35))/60)) -> 0 | AF36: =INT((60*SUM(AF29:AF35)+SUM(AG29:AG35)-AG36)/60) -> 0 | AG36: =INT(60*SUM(AF29:AF35)+SUM(AG29:AG35)-60*INT((60*SUM(AF29:AF35)+SUM(AG29:AG35))/60)) -> 0 | AH36: =INT((60*SUM(AH29:AH35)+SUM(AI29:AI35)-AI36)/60) -> 0 | AI36: =INT(60*SUM(AH29:AH35)+SUM(AI29:AI35)-60*INT((60*SUM(AH29:AH35)+SUM(AI29:AI35))/60)) -> 0 | AK36: =INT((60*SUM(AK29:AK35)+SUM(AL29:AL35)-AL36)/60) -> 0 | AL36: =INT(60*SUM(AK29:AK35)+SUM(AL29:AL35)-60*INT((60*SUM(AK29:AK35)+SUM(AL29:AL35))/60)) -> 0 | AN36: =INT((60*SUM(AN29:AN35)+SUM(AO29:AO35)-AO36)/60) -> 0 | AO36: =INT(60*SUM(AN29:AN35)+SUM(AO29:AO35)-60*INT((60*SUM(AN29:AN35)+SUM(AO29:AO35))/60)) -> 0 | AQ36: =INT((60*SUM(AQ29:AQ35)+SUM(AR29:AR35)-AR36)/60) -> 0 | AR36: =INT(60*SUM(AQ29:AQ35)+SUM(AR29:AR35)-60*INT((60*SUM(AQ29:AQ35)+SUM(AR29:AR35))/60)) -> 0 | AS36: =INT((60*SUM(AS29:AS35)+SUM(AT29:AT35)-AT36)/60) -> 0 | AT36: =INT(60*SUM(AS29:AS35)+SUM(AT29:AT35)-60*INT((60*SUM(AS29:AS35)+SUM(AT29:AT35))/60)) -> 0 | AU36: =INT((60*SUM(AU29:AU35)+SUM(AV29:AV35)-AV36)/60) -> 0 | AV36: =INT(60*SUM(AU29:AU35)+SUM(AV29:AV35)-60*INT((60*SUM(AU29:AU35)+SUM(AV29:AV35))/60)) -> 0 | AW36: =INT((60*SUM(AW29:AW35)+SUM(AX29:AX35)-AX36)/60) -> 0 | AX36: =INT(60*SUM(AW29:AW35)+SUM(AX29:AX35)-60*INT((60*SUM(AW29:AW35)+SUM(AX29:AX35))/60)) -> 0 | AY36: =INT((60*SUM(AY29:AY35)+SUM(AZ29:AZ35)-AZ36)/60) -> 0 | AZ36: =INT(60*SUM(AY29:AY35)+SUM(AZ29:AZ35)-60*INT((60*SUM(AY29:AY35)+SUM(AZ29:AZ35))/60)) -> 0 | BA36: =INT((60*SUM(BA29:BA35)+SUM(BB29:BB35)-BB36)/60) -> 0 | BB36: =INT(60*SUM(BA29:BA35)+SUM(BB29:BB35)-60*INT((60*SUM(BA29:BA35)+SUM(BB29:BB35))/60)) -> 0 | BC36: =INT((60*SUM(BC29:BC35)+SUM(BD29:BD35)-BD36)/60) -> 0 | BD36: =INT(60*SUM(BC29:BC35)+SUM(BD29:BD35)-60*INT((60*SUM(BC29:BC35)+SUM(BD29:BD35))/60)) -> 0 | BE36: =INT((60*SUM(BE29:BE35)+SUM(BF29:BF35)-BF36)/60) -> 0 | BF36: =INT(60*SUM(BE29:BE35)+SUM(BF29:BF35)-60*INT((60*SUM(BE29:BE35)+SUM(BF29:BF35))/60)) -> 0 | BG36: =INT((60*SUM(BG29:BG35)+SUM(BH29:BH35)-BH36)/60) -> 0 | BH36: =INT(60*SUM(BG29:BG35)+SUM(BH29:BH35)-60*INT((60*SUM(BG29:BG35)+SUM(BH29:BH35))/60)) -> 0
A38: =CONCATENATE(Einstellungen!$L$21," ",Einstellungen!$M$21) -> Arbeitzeit Std.Min | C38: =Einstellungen!$N$21 -> 41.00 | D38: =Einstellungen!$O$21 -> 30.45 | F38: =Einstellungen!$Q$21 -> 20.30 | G38: =IF(AND(E11>0,I38<>"",U38<>"f"),F11,0) -> 0 | H38: =IF(AND(I38<>"",U38<>"f"),1,0) -> 0 | I38: =IF(I35<>"",IF(MONTH(I35)=MONTH(I35+1),I35+1,""),"") -> 2026-05-25 | J38: Mo | O38: =HOUR(N38-K38-(M38-L38)) -> 0 | P38: =MINUTE(N38-K38-(M38-L38)) -> 0 | T38: nur dienstl. Sonderfälle!* | U38: F | V38: =IF(OR(U38="U",U38="k",U38="B"),$C$11,IF(S38>P38,O38-1-R38,O38-R38)) -> 0 | W38: =IF(OR(U38="U",U38="k",U38="B"),$D$11,IF(S38>P38,P38+60-S38,P38-S38)) -> 0 | X38: =IF(OR(U38="U",U38="K",U38="B"),0,V38) -> 0 | Y38: =IF(OR(U38="U",U38="K",U38="B"),0,W38) -> 0 | Z38: =INT(((SUM(AB38,AH38,AK38,AN38,AQ38,AS38,AU38,AW38,AY38,BA38,BC38,BE38,BG38)*100)+(SUM(AC38,AI38,AL38,AO38,AR38,AT38,AV38,AX38,AZ38,BB38,BD38,BF38,BH38)/60*100))/100) -> 0 | AA38: =MOD(((SUM(AC38,AI38,AL38,AO38,AR38,AT38,AV38,AX38,AZ38,BB38,BD38,BF38,BH38)*100)+(SUM(AC38,AI38,AL38,AO38,AR38,AT38,AV38,AX38,AZ38,BB38,BD38,BF38,BH38)/60*100))/100,1)*60 -> 0 | AD38: =INT(((SUM(AH38,AK38,AN38)*100)+SUM(AI38,AL38,AO38)/60*100)/100) -> 0 | AE38: =MOD(((SUM(AI38,AL38,AO38)*100)+(SUM(AI38,AL38,AO38)/60*100))/100,1)*60 -> 0 | AF38: =INT(((SUM(AQ38+AS38+AU38+AW38+AY38+BA38+BC38+BE38+BG38)*100)+SUM(AR38+AT38+AV38+AX38+AZ38+BB38+BD38+BF38+BH38)/60*100)/100) -> 0 | AG38: =MOD(((SUM(AR38+AT38+AV38+AX38+AZ38+BB38+BD38+BF38+BH38)*100)+(SUM(AR38+AT38+AV38+AX38+AZ38+BB38+BD38+BF38+BH38)/60*100))/100,1)*60 -> 0
A39: =Einstellungen!$L$22 -> max.Übertrag auf das | G39: =IF(AND(E12>0,I39<>"",U39<>"f"),F12,0) -> 1 | H39: =IF(AND(I39<>"",U39<>"f"),1,0) -> 1 | I39: =IF(I38<>"",IF(MONTH(I38)=MONTH(I38+1),I38+1,""),"") -> 2026-05-26 | J39: Di | O39: 0 | P39: 0 | V39: =IF(OR(U39="U",U39="k",U39="B"),$C$12,IF(S39>P39,O39-1-R39,O39-R39)) -> 0 | W39: =IF(OR(U39="U",U39="k",U39="B"),$D$12,IF(S39>P39,P39+60-S39,P39-S39)) -> 0 | X39: 0 | Y39: 0 | Z39: 0 | AA39: 0 | AD39: 0 | AE39: 0 | AF39: 0 | AG39: 0
A40: =Einstellungen!$L$23 -> Folgejahr Std.Min | C40: =Einstellungen!$N$23 -> 41.00 | D40: =Einstellungen!$O$23 -> 41.00 | F40: =Einstellungen!$Q$23 -> 41.00 | G40: =IF(AND(E13>0,I40<>"",U40<>"f"),F13,0) -> 1 | H40: =IF(AND(I40<>"",U40<>"f"),1,0) -> 1 | I40: =IF(I39<>"",IF(MONTH(I39)=MONTH(I39+1),I39+1,""),"") -> 2026-05-27 | J40: Mi | O40: 0 | P40: 0 | V40: =IF(OR(U40="U",U40="k",U40="B"),$C$13,IF(S40>P40,O40-1-R40,O40-R40)) -> 0 | W40: =IF(OR(U40="U",U40="k",U40="B"),$D$13,IF(S40>P40,P40+60-S40,P40-S40)) -> 0 | X40: 0 | Y40: 0 | Z40: 0 | AA40: 0 | AD40: 0 | AE40: 0 | AF40: 0 | AG40: 0
A41: =Einstellungen!$L$24 -> Kernarbeitszeit: | C41: =Einstellungen!$N$24 -> Mo-Do | D41: =Einstellungen!$O$24 -> 9:00 - 14:30 Uhr | G41: =IF(AND(E14>0,I41<>"",U41<>"f"),F14,0) -> 1 | H41: =IF(AND(I41<>"",U41<>"f"),1,0) -> 1 | I41: 2026-05-28 | J41: Do | O41: 0 | P41: 0 | V41: =IF(OR(U41="U",U41="k",U41="B"),$C$14,IF(S41>P41,O41-1-R41,O41-R41)) -> 0 | W41: =IF(OR(U41="U",U41="k",U41="B"),$D$14,IF(S41>P41,P41+60-S41,P41-S41)) -> 0 | X41: 0 | Y41: 0 | Z41: 0 | AA41: 0 | AD41: 0 | AE41: 0 | AF41: 0 | AG41: 0
A42: =Einstellungen!$L$25 ->  | B42: =Einstellungen!$M$25 ->  | C42: =Einstellungen!$N$25 -> Fr | D42: =Einstellungen!$O$25 -> 9:00 - 12:00 Uhr | G42: =IF(AND(E15>0,I42<>"",U42<>"f"),F15,0) -> 1 | H42: =IF(AND(I42<>"",U42<>"f"),1,0) -> 1 | I42: 2026-05-29 | J42: Fr | O42: 0 | P42: 0 | V42: =IF(OR(U42="U",U42="k",U42="B"),$C$15,IF(S42>P42,O42-1-R42,O42-R42)) -> 0 | W42: =IF(OR(U42="U",U42="k",U42="B"),$D$15,IF(S42>P42,P42+60-S42,P42-S42)) -> 0 | X42: 0 | Y42: 0 | Z42: 0 | AA42: 0 | AD42: 0 | AE42: 0 | AF42: 0 | AG42: 0
A43: =Einstellungen!$L$26 -> Gleitzeit: | B43: =Einstellungen!$M$26 -> frühester Beginn | F43: =Einstellungen!$P$26 -> 6:00 Uhr | I43: 2026-05-30 | J43: Sa | O43: 0 | P43: 0 | T43: nur dienstl. Sonderfälle!* | V43: =IF(S43>P43,O43-1-R43,O43-R43) -> 0 | W43: =IF(S43>P43,P43+60-S43,P43-S43) -> 0 | X43: 0 | Y43: 0 | Z43: 0 | AA43: 0 | AD43: 0 | AE43: 0 | AF43: 0 | AG43: 0
A44: =Einstellungen!$L$27 ->  | B44: =Einstellungen!$M$27 -> spätestes Ende | F44: =Einstellungen!$P$27 -> 21:00 Uhr | I44: 2026-05-31 | J44: So | O44: 0 | P44: 0 | T44: nur dienstl. Sonderfälle!* | V44: =IF(S44>P44,O44-1-R44,O44-R44) -> 0 | W44: =IF(S44>P44,P44+60-S44,P44-S44) -> 0 | X44: 0 | Y44: 0 | Z44: 0 | AA44: 0 | AD44: 0 | AE44: 0 | AF44: 0 | AG44: 0
A45: =Einstellungen!$L$29 -> Mittagspause zw. | D45: =Einstellungen!$O$29 -> 11:15 - 14:00 Uhr | V45: =INT((60*SUM(V38:V44)+SUM(W38:W44)-W45)/60) -> 0 | W45: =INT(60*SUM(V38:V44)+SUM(W38:W44)-60*INT((60*SUM(V38:V44)+SUM(W38:W44))/60)) -> 0 | X45: =INT((60*SUM(X38:X44)+SUM(Y38:Y44)-Y45)/60) -> 0 | Y45: =INT(60*SUM(X38:X44)+SUM(Y38:Y44)-60*INT((60*SUM(X38:X44)+SUM(Y38:Y44))/60)) -> 0 | Z45: =INT((60*SUM(Z38:Z44)+SUM(AA38:AA44)-AA45)/60) -> 0 | AA45: =INT(60*SUM(Z38:Z44)+SUM(AA38:AA44)-60*INT((60*SUM(Z38:Z44)+SUM(AA38:AA44))/60)) -> 0 | AB45: =INT((60*SUM(AB38:AB44)+SUM(AC38:AC44)-AC45)/60) -> 0 | AC45: =INT(60*SUM(AB38:AB44)+SUM(AC38:AC44)-60*INT((60*SUM(AB38:AB44)+SUM(AC38:AC44))/60)) -> 0 | AD45: =INT((60*SUM(AD38:AD44)+SUM(AE38:AE44)-AE45)/60) -> 0 | AE45: =INT(60*SUM(AD38:AD44)+SUM(AE38:AE44)-60*INT((60*SUM(AD38:AD44)+SUM(AE38:AE44))/60)) -> 0 | AF45: =INT((60*SUM(AF38:AF44)+SUM(AG38:AG44)-AG45)/60) -> 0 | AG45: =INT(60*SUM(AF38:AF44)+SUM(AG38:AG44)-60*INT((60*SUM(AF38:AF44)+SUM(AG38:AG44))/60)) -> 0 | AH45: =INT((60*SUM(AH38:AH44)+SUM(AI38:AI44)-AI45)/60) -> 0 | AI45: =INT(60*SUM(AH38:AH44)+SUM(AI38:AI44)-60*INT((60*SUM(AH38:AH44)+SUM(AI38:AI44))/60)) -> 0 | AK45: =INT((60*SUM(AK38:AK44)+SUM(AL38:AL44)-AL45)/60) -> 0 | AL45: =INT(60*SUM(AK38:AK44)+SUM(AL38:AL44)-60*INT((60*SUM(AK38:AK44)+SUM(AL38:AL44))/60)) -> 0 | AN45: =INT((60*SUM(AN38:AN44)+SUM(AO38:AO44)-AO45)/60) -> 0 | AO45: =INT(60*SUM(AN38:AN44)+SUM(AO38:AO44)-60*INT((60*SUM(AN38:AN44)+SUM(AO38:AO44))/60)) -> 0 | AQ45: =INT((60*SUM(AQ38:AQ44)+SUM(AR38:AR44)-AR45)/60) -> 0 | AR45: =INT(60*SUM(AQ38:AQ44)+SUM(AR38:AR44)-60*INT((60*SUM(AQ38:AQ44)+SUM(AR38:AR44))/60)) -> 0 | AS45: =INT((60*SUM(AS38:AS44)+SUM(AT38:AT44)-AT45)/60) -> 0 | AT45: =INT(60*SUM(AS38:AS44)+SUM(AT38:AT44)-60*INT((60*SUM(AS38:AS44)+SUM(AT38:AT44))/60)) -> 0 | AU45: =INT((60*SUM(AU38:AU44)+SUM(AV38:AV44)-AV45)/60) -> 0 | AV45: =INT(60*SUM(AU38:AU44)+SUM(AV38:AV44)-60*INT((60*SUM(AU38:AU44)+SUM(AV38:AV44))/60)) -> 0 | AW45: =INT((60*SUM(AW38:AW44)+SUM(AX38:AX44)-AX45)/60) -> 0 | AX45: =INT(60*SUM(AW38:AW44)+SUM(AX38:AX44)-60*INT((60*SUM(AW38:AW44)+SUM(AX38:AX44))/60)) -> 0 | AY45: =INT((60*SUM(AY38:AY44)+SUM(AZ38:AZ44)-AZ45)/60) -> 0 | AZ45: =INT(60*SUM(AY38:AY44)+SUM(AZ38:AZ44)-60*INT((60*SUM(AY38:AY44)+SUM(AZ38:AZ44))/60)) -> 0 | BA45: =INT((60*SUM(BA38:BA44)+SUM(BB38:BB44)-BB45)/60) -> 0 | BB45: =INT(60*SUM(BA38:BA44)+SUM(BB38:BB44)-60*INT((60*SUM(BA38:BA44)+SUM(BB38:BB44))/60)) -> 0 | BC45: =INT((60*SUM(BC38:BC44)+SUM(BD38:BD44)-BD45)/60) -> 0 | BD45: =INT(60*SUM(BC38:BC44)+SUM(BD38:BD44)-60*INT((60*SUM(BC38:BC44)+SUM(BD38:BD44))/60)) -> 0 | BE45: =INT((60*SUM(BE38:BE44)+SUM(BF38:BF44)-BF45)/60) -> 0 | BF45: =INT(60*SUM(BE38:BE44)+SUM(BF38:BF44)-60*INT((60*SUM(BE38:BE44)+SUM(BF38:BF44))/60)) -> 0 | BG45: =INT((60*SUM(BG38:BG44)+SUM(BH38:BH44)-BH45)/60) -> 0 | BH45: =INT(60*SUM(BG38:BG44)+SUM(BH38:BH44)-60*INT((60*SUM(BG38:BG44)+SUM(BH38:BH44))/60)) -> 0
A47: =Einstellungen!$L$30 -> ab 6 Std. Arbeitszeit: Dauer min. | F47: =Einstellungen!$Q$30 -> 30 Min | G47: =IF(AND(E11>0,I47<>"",U47<>"f"),F11,0) -> 0 | H47: =IF(AND(I47<>"",U47<>"f"),1,0) -> 0 | I47: =IF(I44<>"",IF(MONTH(I44)=MONTH(I44+1),I44+1,""),"") ->  | J47: Mo | O47: =HOUR(N47-K47-(M47-L47)) -> 0 | P47: =MINUTE(N47-K47-(M47-L47)) -> 0 | V47: =IF(OR(U47="U",U47="k",U47="B"),$C$11,IF(S47>P47,O47-1-R47,O47-R47)) -> 0 | W47: =IF(OR(U47="U",U47="k",U47="B"),$D$11,IF(S47>P47,P47+60-S47,P47-S47)) -> 0 | X47: =IF(OR(U47="U",U47="K",U47="B"),0,V47) -> 0 | Y47: =IF(OR(U47="U",U47="K",U47="B"),0,W47) -> 0 | Z47: =INT(((SUM(AB47,AH47,AK47,AN47,AQ47,AS47,AU47,AW47,AY47,BA47,BC47,BE47,BG47)*100)+(SUM(AC47,AI47,AL47,AO47,AR47,AT47,AV47,AX47,AZ47,BB47,BD47,BF47,BH47)/60*100))/100) -> 0 | AA47: =MOD(((SUM(AC47,AI47,AL47,AO47,AR47,AT47,AV47,AX47,AZ47,BB47,BD47,BF47,BH47)*100)+(SUM(AC47,AI47,AL47,AO47,AR47,AT47,AV47,AX47,AZ47,BB47,BD47,BF47,BH47)/60*100))/100,1)*60 -> 0 | AD47: =INT(((SUM(AH47,AK47,AN47)*100)+SUM(AI47,AL47,AO47)/60*100)/100) -> 0 | AE47: =MOD(((SUM(AI47,AL47,AO47)*100)+(SUM(AI47,AL47,AO47)/60*100))/100,1)*60 -> 0 | AF47: =INT(((SUM(AQ47+AS47+AU47+AW47+AY47+BA47+BC47+BE47+BG47)*100)+SUM(AR47+AT47+AV47+AX47+AZ47+BB47+BD47+BF47+BH47)/60*100)/100) -> 0 | AG47: =MOD(((SUM(AR47+AT47+AV47+AX47+AZ47+BB47+BD47+BF47+BH47)*100)+(SUM(AR47+AT47+AV47+AX47+AZ47+BB47+BD47+BF47+BH47)/60*100))/100,1)*60 -> 0
A48: =Einstellungen!$L$31 -> ab 9 Std. (exklusiv Beamte) min. | F48: =Einstellungen!$Q$31 -> 45 Min | G48: =IF(AND(E12>0,I48<>"",U48<>"f"),F12,0) -> 0 | H48: =IF(AND(I48<>"",U48<>"f"),1,0) -> 0 | I48: =IF(I47<>"",IF(MONTH(I47)=MONTH(I47+1),I47+1,""),"") ->  | J48: Di | O48: 0 | P48: 0 | V48: =IF(OR(U48="U",U48="k",U48="B"),$C$12,IF(S48>P48,O48-1-R48,O48-R48)) -> 0 | W48: =IF(OR(U48="U",U48="k",U48="B"),$D$12,IF(S48>P48,P48+60-S48,P48-S48)) -> 0 | X48: 0 | Y48: 0 | Z48: 0 | AA48: 0 | AD48: 0 | AE48: 0 | AF48: 0 | AG48: 0
A49: =Einstellungen!$L$32 ->  | D49: =Einstellungen!$O$32 -> max. | F49: =Einstellungen!$Q$32 -> 120 Min | G49: =IF(AND(E13>0,I49<>"",U49<>"f"),F13,0) -> 0 | H49: =IF(AND(I49<>"",U49<>"f"),1,0) -> 0 | I49: =IF(I48<>"",IF(MONTH(I48)=MONTH(I48+1),I48+1,""),"") ->  | J49: Mi | O49: 0 | P49: 0 | V49: =IF(OR(U49="U",U49="k",U49="B"),$C$13,IF(S49>P49,O49-1-R49,O49-R49)) -> 0 | W49: =IF(OR(U49="U",U49="k",U49="B"),$D$13,IF(S49>P49,P49+60-S49,P49-S49)) -> 0 | X49: 0 | Y49: 0 | Z49: 0 | AA49: 0 | AD49: 0 | AE49: 0 | AF49: 0 | AG49: 0
A50: =Einstellungen!$L$33 -> tägliche Arbeitszeit | F50: =Einstellungen!$Q$33 -> 10 Std | G50: =IF(AND(E14>0,I50<>"",U50<>"f"),F14,0) -> 0 | H50: =IF(AND(I50<>"",U50<>"f"),1,0) -> 0 | J50: Do | O50: 0 | P50: 0 | V50: =IF(OR(U50="U",U50="k",U50="B"),$C$14,IF(S50>P50,O50-1-R50,O50-R50)) -> 0 | W50: =IF(OR(U50="U",U50="k",U50="B"),$D$14,IF(S50>P50,P50+60-S50,P50-S50)) -> 0 | X50: 0 | Y50: 0 | Z50: 0 | AA50: 0 | AD50: 0 | AE50: 0 | AF50: 0 | AG50: 0
A51: =Einstellungen!$L$34 -> *) beachte § 5 der Dienstvereinbarung vom 17.04.2024 über die Arbeitszeit der Beschäftigten der Universität Hohenheim | G51: =IF(AND(E15>0,I51<>"",U51<>"f"),F15,0) -> 0 | H51: =IF(AND(I51<>"",U51<>"f"),1,0) -> 0 | J51: Fr | O51: 0 | P51: 0 | V51: =IF(OR(U51="U",U51="k",U51="B"),$C$15,IF(S51>P51,O51-1-R51,O51-R51)) -> 0 | W51: =IF(OR(U51="U",U51="k",U51="B"),$D$15,IF(S51>P51,P51+60-S51,P51-S51)) -> 0 | X51: 0 | Y51: 0 | Z51: 0 | AA51: 0 | AD51: 0 | AE51: 0 | AF51: 0 | AG51: 0
J52: Sa | O52: 0 | P52: 0 | T52: nur dienstl. Sonderfälle!* | V52: =IF(S52>P52,O52-1-R52,O52-R52) -> 0 | W52: =IF(S52>P52,P52+60-S52,P52-S52) -> 0 | X52: 0 | Y52: 0 | Z52: 0 | AA52: 0 | AD52: 0 | AE52: 0 | AF52: 0 | AG52: 0
J53: So | O53: 0 | P53: 0 | T53: nur dienstl. Sonderfälle!* | V53: =IF(S53>P53,O53-1-R53,O53-R53) -> 0 | W53: =IF(S53>P53,P53+60-S53,P53-S53) -> 0 | X53: 0 | Y53: 0 | Z53: 0 | AA53: 0 | AD53: 0 | AE53: 0 | AF53: 0 | AG53: 0
V54: =INT((60*SUM(V47:V53)+SUM(W47:W53)-W54)/60) -> 0 | W54: =INT(60*SUM(V47:V53)+SUM(W47:W53)-60*INT((60*SUM(V47:V53)+SUM(W47:W53))/60)) -> 0 | X54: =INT((60*SUM(X47:X53)+SUM(Y47:Y53)-Y54)/60) -> 0 | Y54: =INT(60*SUM(X47:X53)+SUM(Y47:Y53)-60*INT((60*SUM(X47:X53)+SUM(Y47:Y53))/60)) -> 0 | Z54: =INT((60*SUM(Z47:Z53)+SUM(AA47:AA53)-AA54)/60) -> 0 | AA54: =INT(60*SUM(Z47:Z53)+SUM(AA47:AA53)-60*INT((60*SUM(Z47:Z53)+SUM(AA47:AA53))/60)) -> 0 | AB54: =INT((60*SUM(AB47:AB53)+SUM(AC47:AC53)-AC54)/60) -> 0 | AC54: =INT(60*SUM(AB47:AB53)+SUM(AC47:AC53)-60*INT((60*SUM(AB47:AB53)+SUM(AC47:AC53))/60)) -> 0 | AD54: =INT((60*SUM(AD47:AD53)+SUM(AE47:AE53)-AE54)/60) -> 0 | AE54: =INT(60*SUM(AD47:AD53)+SUM(AE47:AE53)-60*INT((60*SUM(AD47:AD53)+SUM(AE47:AE53))/60)) -> 0 | AF54: =INT((60*SUM(AF47:AF53)+SUM(AG47:AG53)-AG54)/60) -> 0 | AG54: =INT(60*SUM(AF47:AF53)+SUM(AG47:AG53)-60*INT((60*SUM(AF47:AF53)+SUM(AG47:AG53))/60)) -> 0 | AH54: =INT((60*SUM(AH47:AH53)+SUM(AI47:AI53)-AI54)/60) -> 0 | AI54: =INT(60*SUM(AH47:AH53)+SUM(AI47:AI53)-60*INT((60*SUM(AH47:AH53)+SUM(AI47:AI53))/60)) -> 0 | AK54: =INT((60*SUM(AK47:AK53)+SUM(AL47:AL53)-AL54)/60) -> 0 | AL54: =INT(60*SUM(AK47:AK53)+SUM(AL47:AL53)-60*INT((60*SUM(AK47:AK53)+SUM(AL47:AL53))/60)) -> 0 | AN54: =INT((60*SUM(AN47:AN53)+SUM(AO47:AO53)-AO54)/60) -> 0 | AO54: =INT(60*SUM(AN47:AN53)+SUM(AO47:AO53)-60*INT((60*SUM(AN47:AN53)+SUM(AO47:AO53))/60)) -> 0 | AQ54: =INT((60*SUM(AQ47:AQ53)+SUM(AR47:AR53)-AR54)/60) -> 0 | AR54: =INT(60*SUM(AQ47:AQ53)+SUM(AR47:AR53)-60*INT((60*SUM(AQ47:AQ53)+SUM(AR47:AR53))/60)) -> 0 | AS54: =INT((60*SUM(AS47:AS53)+SUM(AT47:AT53)-AT54)/60) -> 0 | AT54: =INT(60*SUM(AS47:AS53)+SUM(AT47:AT53)-60*INT((60*SUM(AS47:AS53)+SUM(AT47:AT53))/60)) -> 0 | AU54: =INT((60*SUM(AU47:AU53)+SUM(AV47:AV53)-AV54)/60) -> 0 | AV54: =INT(60*SUM(AU47:AU53)+SUM(AV47:AV53)-60*INT((60*SUM(AU47:AU53)+SUM(AV47:AV53))/60)) -> 0 | AW54: =INT((60*SUM(AW47:AW53)+SUM(AX47:AX53)-AX54)/60) -> 0 | AX54: =INT(60*SUM(AW47:AW53)+SUM(AX47:AX53)-60*INT((60*SUM(AW47:AW53)+SUM(AX47:AX53))/60)) -> 0 | AY54: =INT((60*SUM(AY47:AY53)+SUM(AZ47:AZ53)-AZ54)/60) -> 0 | AZ54: =INT(60*SUM(AY47:AY53)+SUM(AZ47:AZ53)-60*INT((60*SUM(AY47:AY53)+SUM(AZ47:AZ53))/60)) -> 0 | BA54: =INT((60*SUM(BA47:BA53)+SUM(BB47:BB53)-BB54)/60) -> 0 | BB54: =INT(60*SUM(BA47:BA53)+SUM(BB47:BB53)-60*INT((60*SUM(BA47:BA53)+SUM(BB47:BB53))/60)) -> 0 | BC54: =INT((60*SUM(BC47:BC53)+SUM(BD47:BD53)-BD54)/60) -> 0 | BD54: =INT(60*SUM(BC47:BC53)+SUM(BD47:BD53)-60*INT((60*SUM(BC47:BC53)+SUM(BD47:BD53))/60)) -> 0 | BE54: =INT((60*SUM(BE47:BE53)+SUM(BF47:BF53)-BF54)/60) -> 0 | BF54: =INT(60*SUM(BE47:BE53)+SUM(BF47:BF53)-60*INT((60*SUM(BE47:BE53)+SUM(BF47:BF53))/60)) -> 0 | BG54: =INT((60*SUM(BG47:BG53)+SUM(BH47:BH53)-BH54)/60) -> 0 | BH54: =INT(60*SUM(BG47:BG53)+SUM(BH47:BH53)-60*INT((60*SUM(BG47:BG53)+SUM(BH47:BH53))/60)) -> 0
G55: =SUM(G5:G53) -> 18 | H55: =SUM(H5:H53) -> 18 | I55: Mai | P55: =Einstellungen!A1 -> 2026 | X55: Summe: | Z55: Summe: | AB55: Summe: | AD55: Summe: | AF55: Summe: | AH55: =INT(((SUM(AH9,AH18,AH27,AH36,AH45,AH54)*100)+(SUM(AI9,AI18,AI27,AI36,AI45,AI54)/60*100))/100) -> 0 | AI55: =MOD(((SUM(AH9,AH18,AH27,AH36,AH45,AH54)*100)+(SUM(AI9,AI18,AI27,AI36,AI45,AI54)/60*100))/100,1)*60 -> 0 | AK55: =INT(((SUM(AK9,AK18,AK27,AK36,AK45,AK54)*100)+(SUM(AL9,AL18,AL27,AL36,AL45,AL54)/60*100))/100) -> 0 | AL55: =MOD(((SUM(AK9,AK18,AK27,AK36,AK45,AK54)*100)+(SUM(AL9,AL18,AL27,AL36,AL45,AL54)/60*100))/100,1)*60 -> 0 | AN55: =INT(((SUM(AN9,AN18,AN27,AN36,AN45,AN54)*100)+(SUM(AO9,AO18,AO27,AO36,AO45,AO54)/60*100))/100) -> 0 | AO55: =MOD(((SUM(AN9,AN18,AN27,AN36,AN45,AN54)*100)+(SUM(AO9,AO18,AO27,AO36,AO45,AO54)/60*100))/100,1)*60 -> 0 | AQ55: =INT(((SUM(AQ9,AQ18,AQ27,AQ36,AQ45,AQ54)*100)+(SUM(AR9,AR18,AR27,AR36,AR45,AR54)/60*100))/100) -> 0 | AR55: =MOD(((SUM(AQ9,AQ18,AQ27,AQ36,AQ45,AQ54)*100)+(SUM(AR9,AR18,AR27,AR36,AR45,AR54)/60*100))/100,1)*60 -> 0 | AS55: =INT(((SUM(AS9,AS18,AS27,AS36,AS45,AS54)*100)+(SUM(AT9,AT18,AT27,AT36,AT45,AT54)/60*100))/100) -> 0 | AT55: =MOD(((SUM(AS9,AS18,AS27,AS36,AS45,AS54)*100)+(SUM(AT9,AT18,AT27,AT36,AT45,AT54)/60*100))/100,1)*60 -> 0 | AU55: =INT(((SUM(AU9,AU18,AU27,AU36,AU45,AU54)*100)+(SUM(AV9,AV18,AV27,AV36,AV45,AV54)/60*100))/100) -> 0 | AV55: =MOD(((SUM(AU9,AU18,AU27,AU36,AU45,AU54)*100)+(SUM(AV9,AV18,AV27,AV36,AV45,AV54)/60*100))/100,1)*60 -> 0 | AW55: =INT(((SUM(AW9,AW18,AW27,AW36,AW45,AW54)*100)+(SUM(AX9,AX18,AX27,AX36,AX45,AX54)/60*100))/100) -> 0 | AX55: =MOD(((SUM(AW9,AW18,AW27,AW36,AW45,AW54)*100)+(SUM(AX9,AX18,AX27,AX36,AX45,AX54)/60*100))/100,1)*60 -> 0 | AY55: =INT(((SUM(AY9,AY18,AY27,AY36,AY45,AY54)*100)+(SUM(AZ9,AZ18,AZ27,AZ36,AZ45,AZ54)/60*100))/100) -> 0 | AZ55: =MOD(((SUM(AY9,AY18,AY27,AY36,AY45,AY54)*100)+(SUM(AZ9,AZ18,AZ27,AZ36,AZ45,AZ54)/60*100))/100,1)*60 -> 0 | BA55: =INT(((SUM(BA9,BA18,BA27,BA36,BA45,BA54)*100)+(SUM(BB9,BB18,BB27,BB36,BB45,BB54)/60*100))/100) -> 0 | BB55: =MOD(((SUM(BA9,BA18,BA27,BA36,BA45,BA54)*100)+(SUM(BB9,BB18,BB27,BB36,BB45,BB54)/60*100))/100,1)*60 -> 0 | BC55: =INT(((SUM(BC9,BC18,BC27,BC36,BC45,BC54)*100)+(SUM(BD9,BD18,BD27,BD36,BD45,BD54)/60*100))/100) -> 0 | BD55: =MOD(((SUM(BC9,BC18,BC27,BC36,BC45,BC54)*100)+(SUM(BD9,BD18,BD27,BD36,BD45,BD54)/60*100))/100,1)*60 -> 0 | BE55: =INT(((SUM(BE9,BE18,BE27,BE36,BE45,BE54)*100)+(SUM(BF9,BF18,BF27,BF36,BF45,BF54)/60*100))/100) -> 0 | BF55: =MOD(((SUM(BE9,BE18,BE27,BE36,BE45,BE54)*100)+(SUM(BF9,BF18,BF27,BF36,BF45,BF54)/60*100))/100,1)*60 -> 0 | BG55: =INT(((SUM(BG9,BG18,BG27,BG36,BG45,BG54)*100)+(SUM(BH9,BH18,BH27,BH36,BH45,BH54)/60*100))/100) -> 0 | BH55: =MOD(((SUM(BG9,BG18,BG27,BG36,BG45,BG54)*100)+(SUM(BH9,BH18,BH27,BH36,BH45,BH54)/60*100))/100,1)*60 -> 0
I56: Abrechnungsmonat | P56: Jahr | T56: Monatsarbeitszeit IST | V56: =INT((60*SUM(V54,V45,V36,V27,V18,V9)+SUM(W54,W45,W36,W27,W18,W9)-W56)/60) -> 0 | W56: =INT(60*SUM(V54,V45,V36,V27,V18,V9)+SUM(W54,W45,W36,W27,W18,W9)-60*INT((60*SUM(V54,V45,V36,V27,V18,V9)+SUM(W54,W45,W36,W27,W18,W9))/60)) -> 0 | X56: =INT((60*SUM(X54,X45,X36,X27,X18,X9)+SUM(Y54,Y45,Y36,Y27,Y18,Y9)-Y56)/60) -> 0 | Y56: =INT(60*SUM(X54,X45,X36,X27,X18,X9)+SUM(Y54,Y45,Y36,Y27,Y18,Y9)-60*INT((60*SUM(X54,X45,X36,X27,X18,X9)+SUM(Y54,Y45,Y36,Y27,Y18,Y9))/60)) -> 0 | Z56: =INT((60*SUM(Z54,Z45,Z36,Z27,Z18,Z9)+SUM(AA54,AA45,AA36,AA27,AA18,AA9)-AA56)/60) -> 0 | AA56: =INT(60*SUM(Z54,Z45,Z36,Z27,Z18,Z9)+SUM(AA54,AA45,AA36,AA27,AA18,AA9)-60*INT((60*SUM(Z54,Z45,Z36,Z27,Z18,Z9)+SUM(AA54,AA45,AA36,AA27,AA18,AA9))/60)) -> 0 | AB56: =INT((60*SUM(AB54,AB45,AB36,AB27,AB18,AB9)+SUM(AC54,AC45,AC36,AC27,AC18,AC9)-AC56)/60) -> 0 | AC56: =INT(60*SUM(AB54,AB45,AB36,AB27,AB18,AB9)+SUM(AC54,AC45,AC36,AC27,AC18,AC9)-60*INT((60*SUM(AB54,AB45,AB36,AB27,AB18,AB9)+SUM(AC54,AC45,AC36,AC27,AC18,AC9))/60)) -> 0 | AD56: =INT((60*SUM(AD54,AD45,AD36,AD27,AD18,AD9)+SUM(AE54,AE45,AE36,AE27,AE18,AE9)-AE56)/60) -> 0 | AE56: =INT(60*SUM(AD54,AD45,AD36,AD27,AD18,AD9)+SUM(AE54,AE45,AE36,AE27,AE18,AE9)-60*INT((60*SUM(AD54,AD45,AD36,AD27,AD18,AD9)+SUM(AE54,AE45,AE36,AE27,AE18,AE9))/60)) -> 0 | AF56: =INT((60*SUM(AF54,AF45,AF36,AF27,AF18,AF9)+SUM(AG54,AG45,AG36,AG27,AG18,AG9)-AG56)/60) -> 0 | AG56: =INT(60*SUM(AF54,AF45,AF36,AF27,AF18,AF9)+SUM(AG54,AG45,AG36,AG27,AG18,AG9)-60*INT((60*SUM(AF54,AF45,AF36,AF27,AF18,AF9)+SUM(AG54,AG45,AG36,AG27,AG18,AG9))/60)) -> 0
I57: =Einstellungen!K23 -> Franziska von Hohenheim | T57: Übertrag aus Vormonat (+/-) | U57: =IF(V57*W57<0,"!","") ->  | V57: =ROUND(Apr!V60,0) -> -647 | W57: =ROUND(Apr!W60,0) -> -48
I58: Name, Vorname | Q58: Datum | T58: Summe | V58: =ROUND(SIGN(V56+V57+(W56+W57)/60)*ROUNDDOWN(ABS(V56+V57+(W56+W57)/60),0),0) -> -647 | W58: =ROUND(SIGN(V56+V57+(W56+W57)/60)*(ABS(V56+V57+(W56+W57)/60)-ABS(V58))*60,0) -> -48
I59: =Einstellungen!$K$25 -> 630 | K59: =Einstellungen!K24 -> KIM | T59: Monatsarbeitszeit SOLL | V59: =SUM(Einstellungen!B7) -> 142 | W59: =SUM(Einstellungen!C7) -> 12
I60: Einr.-Nr. | K60: Abt. / FG | Q60: Name Leiter/in | T60: Zeitübertrag auf Folgemonat | U60: =IF(V60*W60<0,"!","") ->  | V60: =ROUND(SIGN(V58-V59+(W58-W59)/60)*ROUNDDOWN(ABS(V58-V59+(W58-W59)/60),0),0) -> -790 | W60: =ROUND(SIGN(V58-V59+(W58-W59)/60)*(ABS(V58-V59+(W58-W59)/60)-ABS(V60))*60,0) -> 0
T62: Summe Urlaubstage | V62: =SUMPRODUCT((U5:U6="U")*(E14:E15>0))+SUMPRODUCT((U11:U15="U")*(E11:E15>0))+SUMPRODUCT((U20:U24="U")*(E11:E15>0))+SUMPRODUCT((U29:U33="U")*(E11:E15>0))+SUMPRODUCT((U38:U42="U")*(E11:E15>0))+SUMPRODUCT((U47:U51="U")*(E11:E15>0)) -> 0
I63: Datum | K63: Unterschrift Mitarbeiter/in | Q63: Unterschrift Leiter/in | T63: alter / neuer Übertrag | V63: =IF(SUM(Einstellungen!K27:K30)>0,Apr!W63,"--- ") -> 30 | W63: =IF(SUM(Einstellungen!K27:K30)>0,V63-V62,"--- ") -> 30

Sheet Juni (hidden)
A1: =Einstellungen!A27 -> Universität Hohenheim KIM © 2026 | I1: Datum | K1: Arbeits- | N1: Arbeits- | O1: Arb.Zeit ohne | Q1: Sonstige Unterbrechungen | T1: Erläuterungen, Hinweise, | U1: U,K | V1: Reine Arb.- | X1: Productive | Z1: Productive | AB1: Sonstiges | AD1: Summe | AF1: Summe | AH1: =Projektdaten!D4 -> EU Projekt 1 | AK1: =Projektdaten!D6 -> EU Projekt 2 | AN1: =Projektdaten!D8 -> EU Projekt 3 | AQ1: =Projektdaten!D13 -> Projekt 1 | AS1: =Projektdaten!D15 -> Projekt 2 | AU1: =Projektdaten!D17 -> Projekt 3 | AW1: =Projektdaten!D19 -> Projekt 4 | AY1: =Projektdaten!D21 -> Projekt 5 | BA1: =Projektdaten!D23 -> Projekt 6 | BC1: =Projektdaten!D25 -> Projekt 7 | BE1: =Projektdaten!D27 -> Projekt 8 | BG1: =Projektdaten!D29 -> Projekt 9
A2: Arbeitszeitblatt | D2: =Einstellungen!A28 -> Version 5.12 | I2: Tag | J2: Wo- | K2: beginn | L2: Mittagspause | N2: ende | O2: Mittagspause | Q2: von - bis | R2: Gesamtdauer | T2: Vermerke, z.B. Dienstreise | U2: F,X | V2: Zeit | W2: IST | X2: Hours | Z2: Hours | AD2: EU- | AF2: andere
J3: tag | L3: von | M3: bis | O3: Std. | P3: Min. | R3: Std. | S3: Min. | T3: - non eligible - | U3: A,B | V3: Std. | W3: Min. | X3: i.S.d. EU | Z3: verteilt | AD3: Projekte | AF3: Projekte
X4: Std. | Y4: Min. | Z4: Std. | AA4: Min. | AB4: Std. | AC4: Min. | AD4: Std. | AE4: Min. | AF4: Std. | AG4: Min. | AH4: Std. | AI4: Min. | AJ4: Geleistete Arbeitspakete nach Annex 1 | AK4: Std. | AL4: Min. | AM4: Geleistete Arbeitspakete nach Annex 1 | AN4: Std. | AO4: Min. | AP4: Geleistete Arbeitspakete nach Annex 1 | AQ4: Std. | AR4: Min. | AS4: Std. | AT4: Min. | AU4: Std. | AV4: Min. | AW4: Std. | AX4: Min. | AY4: Std. | AZ4: Min. | BA4: Std. | BB4: Min. | BC4: Std. | BD4: Min. | BE4: Std. | BF4: Min. | BG4: Std. | BH4: Min.
F5: U | G5: =IF(AND(E14>0,I5<>"",U5<>"f"),1,0) -> 0 | H5: =IF(AND(I5<>"",U5<>"f"),1,0) -> 0 | I5: =IF(CHOOSE(WEEKDAY(Einstellungen!$A$8,2),"Mo","Di","Mi","Do","Fr","Sa","So")=J5,Einstellungen!$A$8,"") ->  | J5: Do | O5: =HOUR(N5-K5-(M5-L5)) -> 0 | P5: =MINUTE(N5-K5-(M5-L5)) -> 0 | V5: =IF(OR(U5="U",U5="k",U5="B"),$C$14,IF(S5>P5,O5-1-R5,O5-R5)) -> 0 | W5: =IF(OR(U5="U",U5="k",U5="B"),$D$14,IF(S5>P5,P5+60-S5,P5-S5)) -> 0 | X5: =IF(OR(U5="U",U5="K",U5="B"),0,V5) -> 0 | Y5: =IF(OR(U5="U",U5="K",U5="B"),0,W5) -> 0 | Z5: =INT(((SUM(AB5,AH5,AK5,AN5,AQ5,AS5,AU5,AW5,AY5,BA5,BC5,BE5,BG5)*100)+(SUM(AC5,AI5,AL5,AO5,AR5,AT5,AV5,AX5,AZ5,BB5,BD5,BF5,BH5)/60*100))/100) -> 0 | AA5: =MOD(((SUM(AC5,AI5,AL5,AO5,AR5,AT5,AV5,AX5,AZ5,BB5,BD5,BF5,BH5)*100)+(SUM(AC5,AI5,AL5,AO5,AR5,AT5,AV5,AX5,AZ5,BB5,BD5,BF5,BH5)/60*100))/100,1)*60 -> 0 | AD5: =INT(((SUM(AH5,AK5,AN5)*100)+SUM(AI5,AL5,AO5)/60*100)/100) -> 0 | AE5: =MOD(((SUM(AI5,AL5,AO5)*100)+(SUM(AI5,AL5,AO5)/60*100))/100,1)*60 -> 0 | AF5: =INT(((SUM(AQ5+AS5+AU5+AW5+AY5+BA5+BC5+BE5+BG5)*100)+SUM(AR5+AT5+AV5+AX5+AZ5+BB5+BD5+BF5+BH5)/60*100)/100) -> 0 | AG5: =MOD(((SUM(AR5+AT5+AV5+AX5+AZ5+BB5+BD5+BF5+BH5)*100)+(SUM(AR5+AT5+AV5+AX5+AZ5+BB5+BD5+BF5+BH5)/60*100))/100,1)*60 -> 0
F6: K | G6: =IF(AND(E15>0,I6<>"",U6<>"f"),F14,0) -> 0 | H6: =IF(AND(I6<>"",U6<>"f"),1,0) -> 0 | I6: =IF(I5<>"",I5+1,IF(CHOOSE(WEEKDAY(Einstellungen!$A$8,2),"Mo","Di","Mi","Do","Fr","Sa","So")=J6,Einstellungen!$A$8,"")) ->  | J6: Fr | O6: =HOUR(N6-K6-(M6-L6)) -> 0 | P6: =MINUTE(N6-K6-(M6-L6)) -> 0 | V6: =IF(OR(U6="U",U6="k",U6="B"),$C$15,IF(S6>P6,O6-1-R6,O6-R6)) -> 0 | W6: =IF(OR(U6="U",U6="k",U6="B"),$D$15,IF(S6>P6,P6+60-S6,P6-S6)) -> 0 | X6: =IF(OR(U6="U",U6="K",U6="B"),0,V6) -> 0 | Y6: =IF(OR(U6="U",U6="K",U6="B"),0,W6) -> 0 | Z6: =INT(((SUM(AB6,AH6,AK6,AN6,AQ6,AS6,AU6,AW6,AY6,BA6,BC6,BE6,BG6)*100)+(SUM(AC6,AI6,AL6,AO6,AR6,AT6,AV6,AX6,AZ6,BB6,BD6,BF6,BH6)/60*100))/100) -> 0 | AA6: =MOD(((SUM(AC6,AI6,AL6,AO6,AR6,AT6,AV6,AX6,AZ6,BB6,BD6,BF6,BH6)*100)+(SUM(AC6,AI6,AL6,AO6,AR6,AT6,AV6,AX6,AZ6,BB6,BD6,BF6,BH6)/60*100))/100,1)*60 -> 0 | AD6: =INT(((SUM(AH6,AK6,AN6)*100)+SUM(AI6,AL6,AO6)/60*100)/100) -> 0 | AE6: =MOD(((SUM(AI6,AL6,AO6)*100)+(SUM(AI6,AL6,AO6)/60*100))/100,1)*60 -> 0 | AF6: =INT(((SUM(AQ6+AS6+AU6+AW6+AY6+BA6+BC6+BE6+BG6)*100)+SUM(AR6+AT6+AV6+AX6+AZ6+BB6+BD6+BF6+BH6)/60*100)/100) -> 0 | AG6: =MOD(((SUM(AR6+AT6+AV6+AX6+AZ6+BB6+BD6+BF6+BH6)*100)+(SUM(AR6+AT6+AV6+AX6+AZ6+BB6+BD6+BF6+BH6)/60*100))/100,1)*60 -> 0
F7: A | G7: =IF(AND(E16>0,I7<>"",U7<>"f"),F15,0) -> 0 | I7: =IF(I6<>"",I6+1,IF(CHOOSE(WEEKDAY(Einstellungen!$A$8,2),"Mo","Di","Mi","Do","Fr","Sa","So")=J7,Einstellungen!$A$8,"")) ->  | J7: Sa | O7: =HOUR(N7-K7-(M7-L7)) -> 0 | P7: =MINUTE(N7-K7-(M7-L7)) -> 0 | T7: nur dienstl. Sonderfälle!* | V7: =IF(S7>P7,O7-1-R7,O7-R7) -> 0 | W7: =IF(S7>P7,P7+60-S7,P7-S7) -> 0 | X7: 0 | Y7: 0 | Z7: =INT(((SUM(AB7,AH7,AK7,AN7,AQ7,AS7,AU7,AW7,AY7,BA7,BC7,BE7,BG7)*100)+(SUM(AC7,AI7,AL7,AO7,AR7,AT7,AV7,AX7,AZ7,BB7,BD7,BF7,BH7)/60*100))/100) -> 0 | AA7: =MOD(((SUM(AC7,AI7,AL7,AO7,AR7,AT7,AV7,AX7,AZ7,BB7,BD7,BF7,BH7)*100)+(SUM(AC7,AI7,AL7,AO7,AR7,AT7,AV7,AX7,AZ7,BB7,BD7,BF7,BH7)/60*100))/100,1)*60 -> 0 | AD7: =INT(((SUM(AH7,AK7,AN7)*100)+SUM(AI7,AL7,AO7)/60*100)/100) -> 0 | AE7: =MOD(((SUM(AI7,AL7,AO7)*100)+(SUM(AI7,AL7,AO7)/60*100))/100,1)*60 -> 0 | AF7: =INT(((SUM(AQ7+AS7+AU7+AW7+AY7+BA7+BC7+BE7+BG7)*100)+SUM(AR7+AT7+AV7+AX7+AZ7+BB7+BD7+BF7+BH7)/60*100)/100) -> 0 | AG7: =MOD(((SUM(AR7+AT7+AV7+AX7+AZ7+BB7+BD7+BF7+BH7)*100)+(SUM(AR7+AT7+AV7+AX7+AZ7+BB7+BD7+BF7+BH7)/60*100))/100,1)*60 -> 0
A8: =IF(Einstellungen!D25>0.0005,"Bitte Werte prüfen","") ->  | F8: B | I8: =IF(I7<>"",I7+1,IF(CHOOSE(WEEKDAY(Einstellungen!$A$8,2),"Mo","Di","Mi","Do","Fr","Sa","So")=J8,Einstellungen!$A$8,"")) ->  | J8: So | O8: =HOUR(N8-K8-(M8-L8)) -> 0 | P8: =MINUTE(N8-K8-(M8-L8)) -> 0 | T8: nur dienstl. Sonderfälle!* | V8: =IF(S8>P8,O8-1-R8,O8-R8) -> 0 | W8: =IF(S8>P8,P8+60-S8,P8-S8) -> 0 | X8: 0 | Y8: 0 | Z8: =INT(((SUM(AB8,AH8,AK8,AN8,AQ8,AS8,AU8,AW8,AY8,BA8,BC8,BE8,BG8)*100)+(SUM(AC8,AI8,AL8,AO8,AR8,AT8,AV8,AX8,AZ8,BB8,BD8,BF8,BH8)/60*100))/100) -> 0 | AA8: =MOD(((SUM(AC8,AI8,AL8,AO8,AR8,AT8,AV8,AX8,AZ8,BB8,BD8,BF8,BH8)*100)+(SUM(AC8,AI8,AL8,AO8,AR8,AT8,AV8,AX8,AZ8,BB8,BD8,BF8,BH8)/60*100))/100,1)*60 -> 0 | AD8: =INT(((SUM(AH8,AK8,AN8)*100)+SUM(AI8,AL8,AO8)/60*100)/100) -> 0 | AE8: =MOD(((SUM(AI8,AL8,AO8)*100)+(SUM(AI8,AL8,AO8)/60*100))/100,1)*60 -> 0 | AF8: =INT(((SUM(AQ8+AS8+AU8+AW8+AY8+BA8+BC8+BE8+BG8)*100)+SUM(AR8+AT8+AV8+AX8+AZ8+BB8+BD8+BF8+BH8)/60*100)/100) -> 0 | AG8: =MOD(((SUM(AR8+AT8+AV8+AX8+AZ8+BB8+BD8+BF8+BH8)*100)+(SUM(AR8+AT8+AV8+AX8+AZ8+BB8+BD8+BF8+BH8)/60*100))/100,1)*60 -> 0
A9: Meine tägl. Regelarbeitszeit: | F9: X | V9: =INT((60*SUM(V5:V8)+SUM(W5:W8)-W9)/60) -> 0 | W9: =INT(60*SUM(V5:V8)+SUM(W5:W8)-60*INT((60*SUM(V5:V8)+SUM(W5:W8))/60)) -> 0 | X9: =INT((60*SUM(X5:X8)+SUM(Y5:Y8)-Y9)/60) -> 0 | Y9: =INT(60*SUM(X5:X8)+SUM(Y5:Y8)-60*INT((60*SUM(X5:X8)+SUM(Y5:Y8))/60)) -> 0 | Z9: =INT((60*SUM(Z5:Z8)+SUM(AA5:AA8)-AA9)/60) -> 0 | AA9: =INT(60*SUM(Z5:Z8)+SUM(AA5:AA8)-60*INT((60*SUM(Z5:Z8)+SUM(AA5:AA8))/60)) -> 0 | AB9: =INT((60*SUM(AB5:AB8)+SUM(AC5:AC8)-AC9)/60) -> 0 | AC9: =INT(60*SUM(AB5:AB8)+SUM(AC5:AC8)-60*INT((60*SUM(AB5:AB8)+SUM(AC5:AC8))/60)) -> 0 | AD9: =INT((60*SUM(AD5:AD8)+SUM(AE5:AE8)-AE9)/60) -> 0 | AE9: =INT(60*SUM(AD5:AD8)+SUM(AE5:AE8)-60*INT((60*SUM(AD5:AD8)+SUM(AE5:AE8))/60)) -> 0 | AF9: =INT((60*SUM(AF5:AF8)+SUM(AG5:AG8)-AG9)/60) -> 0 | AG9: =INT(60*SUM(AF5:AF8)+SUM(AG5:AG8)-60*INT((60*SUM(AF5:AF8)+SUM(AG5:AG8))/60)) -> 0 | AH9: =INT((60*SUM(AH5:AH8)+SUM(AI5:AI8)-AI9)/60) -> 0 | AI9: =INT(60*SUM(AH5:AH8)+SUM(AI5:AI8)-60*INT((60*SUM(AH5:AH8)+SUM(AI5:AI8))/60)) -> 0 | AK9: =INT((60*SUM(AK5:AK8)+SUM(AL5:AL8)-AL9)/60) -> 0 | AL9: =INT(60*SUM(AK5:AK8)+SUM(AL5:AL8)-60*INT((60*SUM(AK5:AK8)+SUM(AL5:AL8))/60)) -> 0 | AN9: =INT((60*SUM(AN5:AN8)+SUM(AO5:AO8)-AO9)/60) -> 0 | AO9: =INT(60*SUM(AN5:AN8)+SUM(AO5:AO8)-60*INT((60*SUM(AN5:AN8)+SUM(AO5:AO8))/60)) -> 0 | AQ9: =INT((60*SUM(AQ5:AQ8)+SUM(AR5:AR8)-AR9)/60) -> 0 | AR9: =INT(60*SUM(AQ5:AQ8)+SUM(AR5:AR8)-60*INT((60*SUM(AQ5:AQ8)+SUM(AR5:AR8))/60)) -> 0 | AS9: =INT((60*SUM(AS5:AS8)+SUM(AT5:AT8)-AT9)/60) -> 0 | AT9: =INT(60*SUM(AS5:AS8)+SUM(AT5:AT8)-60*INT((60*SUM(AS5:AS8)+SUM(AT5:AT8))/60)) -> 0 | AU9: =INT((60*SUM(AU5:AU8)+SUM(AV5:AV8)-AV9)/60) -> 0 | AV9: =INT(60*SUM(AU5:AU8)+SUM(AV5:AV8)-60*INT((60*SUM(AU5:AU8)+SUM(AV5:AV8))/60)) -> 0 | AW9: =INT((60*SUM(AW5:AW8)+SUM(AX5:AX8)-AX9)/60) -> 0 | AX9: =INT(60*SUM(AW5:AW8)+SUM(AX5:AX8)-60*INT((60*SUM(AW5:AW8)+SUM(AX5:AX8))/60)) -> 0 | AY9: =INT((60*SUM(AY5:AY8)+SUM(AZ5:AZ8)-AZ9)/60) -> 0 | AZ9: =INT(60*SUM(AY5:AY8)+SUM(AZ5:AZ8)-60*INT((60*SUM(AY5:AY8)+SUM(AZ5:AZ8))/60)) -> 0 | BA9: =INT((60*SUM(BA5:BA8)+SUM(BB5:BB8)-BB9)/60) -> 0 | BB9: =INT(60*SUM(BA5:BA8)+SUM(BB5:BB8)-60*INT((60*SUM(BA5:BA8)+SUM(BB5:BB8))/60)) -> 0 | BC9: =INT((60*SUM(BC5:BC8)+SUM(BD5:BD8)-BD9)/60) -> 0 | BD9: =INT(60*SUM(BC5:BC8)+SUM(BD5:BD8)-60*INT((60*SUM(BC5:BC8)+SUM(BD5:BD8))/60)) -> 0 | BE9: =INT((60*SUM(BE5:BE8)+SUM(BF5:BF8)-BF9)/60) -> 0 | BF9: =INT(60*SUM(BE5:BE8)+SUM(BF5:BF8)-60*INT((60*SUM(BE5:BE8)+SUM(BF5:BF8))/60)) -> 0 | BG9: =INT((60*SUM(BG5:BG8)+SUM(BH5:BH8)-BH9)/60) -> 0 | BH9: =INT(60*SUM(BG5:BG8)+SUM(BH5:BH8)-60*INT((60*SUM(BG5:BG8)+SUM(BH5:BH8))/60)) -> 0
E10: =5-COUNTIF(E11:E15,0) -> 5 | F10: =(SUM(C11:C15)*60+SUM(D11:D15))/E10 -> 474
A11: Mo | B11: =IF(E11=0,"frei","") ->  | C11: =SUM(Einstellungen!C19) -> 7 | D11: =SUM(Einstellungen!D19) -> 54 | E11: =C11*60+D11 -> 474 | F11: =E11/$F$10 -> 1 | G11: =IF(AND(E11>0,I11<>"",U11<>"f"),F11,0) -> 1 | H11: =IF(AND(I11<>"",U11<>"f"),1,0) -> 1 | I11: =IF(I8<>"",I8+1,IF(CHOOSE(WEEKDAY(Einstellungen!$A$8,2),"Mo","Di","Mi","Do","Fr","Sa","So")=J11,Einstellungen!$A$8,"")) -> 2026-06-01 | J11: Mo | O11: =HOUR(N11-K11-(M11-L11)) -> 0 | P11: =MINUTE(N11-K11-(M11-L11)) -> 0 | V11: =IF(OR(U11="U",U11="k",U11="B"),$C$11,IF(S11>P11,O11-1-R11,O11-R11)) -> 0 | W11: =IF(OR(U11="U",U11="k",U11="B"),$D$11,IF(S11>P11,P11+60-S11,P11-S11)) -> 0 | X11: =IF(OR(U11="U",U11="K",U11="B"),0,V11) -> 0 | Y11: =IF(OR(U11="U",U11="K",U11="B"),0,W11) -> 0 | Z11: =INT(((SUM(AB11,AH11,AK11,AN11,AQ11,AS11,AU11,AW11,AY11,BA11,BC11,BE11,BG11)*100)+(SUM(AC11,AI11,AL11,AO11,AR11,AT11,AV11,AX11,AZ11,BB11,BD11,BF11,BH11)/60*100))/100) -> 0 | AA11: =MOD(((SUM(AC11,AI11,AL11,AO11,AR11,AT11,AV11,AX11,AZ11,BB11,BD11,BF11,BH11)*100)+(SUM(AC11,AI11,AL11,AO11,AR11,AT11,AV11,AX11,AZ11,BB11,BD11,BF11,BH11)/60*100))/100,1)*60 -> 0 | AD11: =INT(((SUM(AH11,AK11,AN11)*100)+SUM(AI11,AL11,AO11)/60*100)/100) -> 0 | AE11: =MOD(((SUM(AI11,AL11,AO11)*100)+(SUM(AI11,AL11,AO11)/60*100))/100,1)*60 -> 0 | AF11: =INT(((SUM(AQ11+AS11+AU11+AW11+AY11+BA11+BC11+BE11+BG11)*100)+SUM(AR11+AT11+AV11+AX11+AZ11+BB11+BD11+BF11+BH11)/60*100)/100) -> 0 | AG11: =MOD(((SUM(AR11+AT11+AV11+AX11+AZ11+BB11+BD11+BF11+BH11)*100)+(SUM(AR11+AT11+AV11+AX11+AZ11+BB11+BD11+BF11+BH11)/60*100))/100,1)*60 -> 0
A12: Di | B12: =IF(E12=0,"frei","") ->  | C12: =SUM(Einstellungen!C20) -> 7 | D12: =SUM(Einstellungen!D20) -> 54 | E12: =C12*60+D12 -> 474 | F12: =E12/$F$10 -> 1 | G12: =IF(AND(E12>0,I12<>"",U12<>"f"),F12,0) -> 1 | H12: =IF(AND(I12<>"",U12<>"f"),1,0) -> 1 | I12: =IF(I11<>"",I11+1,IF(CHOOSE(WEEKDAY(Einstellungen!$A$8,2),"Mo","Di","Mi","Do","Fr","Sa","So")=J12,Einstellungen!$A$8,"")) -> 2026-06-02 | J12: Di | O12: 0 | P12: 0 | V12: =IF(OR(U12="U",U12="k",U12="B"),$C$12,IF(S12>P12,O12-1-R12,O12-R12)) -> 0 | W12: =IF(OR(U12="U",U12="k",U12="B"),$D$12,IF(S12>P12,P12+60-S12,P12-S12)) -> 0 | X12: 0 | Y12: 0 | Z12: 0 | AA12: 0 | AD12: 0 | AE12: 0 | AF12: 0 | AG12: 0
A13: Mi | B13: =IF(E13=0,"frei","") ->  | C13: =SUM(Einstellungen!C21) -> 7 | D13: =SUM(Einstellungen!D21) -> 54 | E13: =C13*60+D13 -> 474 | F13: =E13/$F$10 -> 1 | G13: =IF(AND(E13>0,I13<>"",U13<>"f"),F13,0) -> 1 | H13: =IF(AND(I13<>"",U13<>"f"),1,0) -> 1 | I13: =IF(I12<>"",I12+1,IF(CHOOSE(WEEKDAY(Einstellungen!$A$8,2),"Mo","Di","Mi","Do","Fr","Sa","So")=J13,Einstellungen!$A$8,"")) -> 2026-06-03 | J13: Mi | O13: 0 | P13: 0 | V13: =IF(OR(U13="U",U13="k",U13="B"),$C$13,IF(S13>P13,O13-1-R13,O13-R13)) -> 0 | W13: =IF(OR(U13="U",U13="k",U13="B"),$D$13,IF(S13>P13,P13+60-S13,P13-S13)) -> 0 | X13: 0 | Y13: 0 | Z13: 0 | AA13: 0 | AD13: 0 | AE13: 0 | AF13: 0 | AG13: 0
A14: Do | B14: =IF(E14=0,"frei","") ->  | C14: =SUM(Einstellungen!C22) -> 7 | D14: =SUM(Einstellungen!D22) -> 54 | E14: =C14*60+D14 -> 474 | F14: =E14/$F$10 -> 1 | G14: =IF(AND(E14>0,I14<>"",U14<>"f"),F14,0) -> 0 | H14: =IF(AND(I14<>"",U14<>"f"),1,0) -> 0 | I14: =IF(I13<>"",I13+1,IF(CHOOSE(WEEKDAY(Einstellungen!$A$8,2),"Mo","Di","Mi","Do","Fr","Sa","So")=J14,Einstellungen!$A$8,"")) -> 2026-06-04 | J14: Do | O14: 0 | P14: 0 | T14: nur dienstl. Sonderfälle!* | U14: F | V14: =IF(OR(U14="U",U14="k",U14="B"),$C$14,IF(S14>P14,O14-1-R14,O14-R14)) -> 0 | W14: =IF(OR(U14="U",U14="k",U14="B"),$D$14,IF(S14>P14,P14+60-S14,P14-S14)) -> 0 | X14: 0 | Y14: 0 | Z14: 0 | AA14: 0 | AD14: 0 | AE14: 0 | AF14: 0 | AG14: 0
A15: Fr | B15: =IF(E15=0,"frei","") ->  | C15: =SUM(Einstellungen!C23) -> 7 | D15: =SUM(Einstellungen!D23) -> 54 | E15: =C15*60+D15 -> 474 | F15: =E15/$F$10 -> 1 | G15: =IF(AND(E15>0,I15<>"",U15<>"f"),F15,0) -> 1 | H15: =IF(AND(I15<>"",U15<>"f"),1,0) -> 1 | I15: =I14+1 -> 2026-06-05 | J15: Fr | O15: 0 | P15: 0 | V15: =IF(OR(U15="U",U15="k",U15="B"),$C$15,IF(S15>P15,O15-1-R15,O15-R15)) -> 0 | W15: =IF(OR(U15="U",U15="k",U15="B"),$D$15,IF(S15>P15,P15+60-S15,P15-S15)) -> 0 | X15: 0 | Y15: 0 | Z15: 0 | AA15: 0 | AD15: 0 | AE15: 0 | AF15: 0 | AG15: 0
A16: =Einstellungen!$L$1 -> Hinweise: | I16: =I15+1 -> 2026-06-06 | J16: Sa | O16: 0 | P16: 0 | T16: nur dienstl. Sonderfälle!* | V16: =IF(S16>P16,O16-1-R16,O16-R16) -> 0 | W16: =IF(S16>P16,P16+60-S16,P16-S16) -> 0 | X16: 0 | Y16: 0 | Z16: 0 | AA16: 0 | AD16: 0 | AE16: 0 | AF16: 0 | AG16: 0
A17: =Einstellungen!$L$2 -> I Beschäftigte mit 39,5 Std-Woche | I17: =I16+1 -> 2026-06-07 | J17: So | O17: 0 | P17: 0 | T17: nur dienstl. Sonderfälle!* | V17: =IF(S17>P17,O17-1-R17,O17-R17) -> 0 | W17: =IF(S17>P17,P17+60-S17,P17-S17) -> 0 | X17: 0 | Y17: 0 | Z17: 0 | AA17: 0 | AD17: 0 | AE17: 0 | AF17: 0 | AG17: 0
A18: =Einstellungen!$L$3 ->  | C18: =Einstellungen!$N$3 -> Beschäftigungsumfang | V18: =INT((60*SUM(V11:V17)+SUM(W11:W17)-W18)/60) -> 0 | W18: =INT(60*SUM(V11:V17)+SUM(W11:W17)-60*INT((60*SUM(V11:V17)+SUM(W11:W17))/60)) -> 0 | X18: =INT((60*SUM(X11:X17)+SUM(Y11:Y17)-Y18)/60) -> 0 | Y18: =INT(60*SUM(X11:X17)+SUM(Y11:Y17)-60*INT((60*SUM(X11:X17)+SUM(Y11:Y17))/60)) -> 0 | Z18: =INT((60*SUM(Z11:Z17)+SUM(AA11:AA17)-AA18)/60) -> 0 | AA18: =INT(60*SUM(Z11:Z17)+SUM(AA11:AA17)-60*INT((60*SUM(Z11:Z17)+SUM(AA11:AA17))/60)) -> 0 | AB18: =INT((60*SUM(AB11:AB17)+SUM(AC11:AC17)-AC18)/60) -> 0 | AC18: =INT(60*SUM(AB11:AB17)+SUM(AC11:AC17)-60*INT((60*SUM(AB11:AB17)+SUM(AC11:AC17))/60)) -> 0 | AD18: =INT((60*SUM(AD11:AD17)+SUM(AE11:AE17)-AE18)/60) -> 0 | AE18: =INT(60*SUM(AD11:AD17)+SUM(AE11:AE17)-60*INT((60*SUM(AD11:AD17)+SUM(AE11:AE17))/60)) -> 0 | AF18: =INT((60*SUM(AF11:AF17)+SUM(AG11:AG17)-AG18)/60) -> 0 | AG18: =INT(60*SUM(AF11:AF17)+SUM(AG11:AG17)-60*INT((60*SUM(AF11:AF17)+SUM(AG11:AG17))/60)) -> 0 | AH18: =INT((60*SUM(AH11:AH17)+SUM(AI11:AI17)-AI18)/60) -> 0 | AI18: =INT(60*SUM(AH11:AH17)+SUM(AI11:AI17)-60*INT((60*SUM(AH11:AH17)+SUM(AI11:AI17))/60)) -> 0 | AK18: =INT((60*SUM(AK11:AK17)+SUM(AL11:AL17)-AL18)/60) -> 0 | AL18: =INT(60*SUM(AK11:AK17)+SUM(AL11:AL17)-60*INT((60*SUM(AK11:AK17)+SUM(AL11:AL17))/60)) -> 0 | AN18: =INT((60*SUM(AN11:AN17)+SUM(AO11:AO17)-AO18)/60) -> 0 | AO18: =INT(60*SUM(AN11:AN17)+SUM(AO11:AO17)-60*INT((60*SUM(AN11:AN17)+SUM(AO11:AO17))/60)) -> 0 | AQ18: =INT((60*SUM(AQ11:AQ17)+SUM(AR11:AR17)-AR18)/60) -> 0 | AR18: =INT(60*SUM(AQ11:AQ17)+SUM(AR11:AR17)-60*INT((60*SUM(AQ11:AQ17)+SUM(AR11:AR17))/60)) -> 0 | AS18: =INT((60*SUM(AS11:AS17)+SUM(AT11:AT17)-AT18)/60) -> 0 | AT18: =INT(60*SUM(AS11:AS17)+SUM(AT11:AT17)-60*INT((60*SUM(AS11:AS17)+SUM(AT11:AT17))/60)) -> 0 | AU18: =INT((60*SUM(AU11:AU17)+SUM(AV11:AV17)-AV18)/60) -> 0 | AV18: =INT(60*SUM(AU11:AU17)+SUM(AV11:AV17)-60*INT((60*SUM(AU11:AU17)+SUM(AV11:AV17))/60)) -> 0 | AW18: =INT((60*SUM(AW11:AW17)+SUM(AX11:AX17)-AX18)/60) -> 0 | AX18: =INT(60*SUM(AW11:AW17)+SUM(AX11:AX17)-60*INT((60*SUM(AW11:AW17)+SUM(AX11:AX17))/60)) -> 0 | AY18: =INT((60*SUM(AY11:AY17)+SUM(AZ11:AZ17)-AZ18)/60) -> 0 | AZ18: =INT(60*SUM(AY11:AY17)+SUM(AZ11:AZ17)-60*INT((60*SUM(AY11:AY17)+SUM(AZ11:AZ17))/60)) -> 0 | BA18: =INT((60*SUM(BA11:BA17)+SUM(BB11:BB17)-BB18)/60) -> 0 | BB18: =INT(60*SUM(BA11:BA17)+SUM(BB11:BB17)-60*INT((60*SUM(BA11:BA17)+SUM(BB11:BB17))/60)) -> 0 | BC18: =INT((60*SUM(BC11:BC17)+SUM(BD11:BD17)-BD18)/60) -> 0 | BD18: =INT(60*SUM(BC11:BC17)+SUM(BD11:BD17)-60*INT((60*SUM(BC11:BC17)+SUM(BD11:BD17))/60)) -> 0 | BE18: =INT((60*SUM(BE11:BE17)+SUM(BF11:BF17)-BF18)/60) -> 0 | BF18: =INT(60*SUM(BE11:BE17)+SUM(BF11:BF17)-60*INT((60*SUM(BE11:BE17)+SUM(BF11:BF17))/60)) -> 0 | BG18: =INT((60*SUM(BG11:BG17)+SUM(BH11:BH17)-BH18)/60) -> 0 | BH18: =INT(60*SUM(BG11:BG17)+SUM(BH11:BH17)-60*INT((60*SUM(BG11:BG17)+SUM(BH11:BH17))/60)) -> 0
A20: =Einstellungen!$L$4 -> 5 Tage-Woche | C20: =Einstellungen!$N$4 -> 1 | D20: =Einstellungen!$O$4 -> 0.75 | F20: =Einstellungen!$Q$4 -> 0.5 | G20: =IF(AND(E11>0,I20<>"",U20<>"f"),F11,0) -> 1 | H20: =IF(AND(I20<>"",U20<>"f"),1,0) -> 1 | I20: =I17+1 -> 2026-06-08 | J20: Mo | O20: =HOUR(N20-K20-(M20-L20)) -> 0 | P20: =MINUTE(N20-K20-(M20-L20)) -> 0 | V20: =IF(OR(U20="U",U20="k",U20="B"),$C$11,IF(S20>P20,O20-1-R20,O20-R20)) -> 0 | W20: =IF(OR(U20="U",U20="k",U20="B"),$D$11,IF(S20>P20,P20+60-S20,P20-S20)) -> 0 | X20: =IF(OR(U20="U",U20="K",U20="B"),0,V20) -> 0 | Y20: =IF(OR(U20="U",U20="K",U20="B"),0,W20) -> 0 | Z20: =INT(((SUM(AB20,AH20,AK20,AN20,AQ20,AS20,AU20,AW20,AY20,BA20,BC20,BE20,BG20)*100)+(SUM(AC20,AI20,AL20,AO20,AR20,AT20,AV20,AX20,AZ20,BB20,BD20,BF20,BH20)/60*100))/100) -> 0 | AA20: =MOD(((SUM(AC20,AI20,AL20,AO20,AR20,AT20,AV20,AX20,AZ20,BB20,BD20,BF20,BH20)*100)+(SUM(AC20,AI20,AL20,AO20,AR20,AT20,AV20,AX20,AZ20,BB20,BD20,BF20,BH20)/60*100))/100,1)*60 -> 0 | AD20: =INT(((SUM(AH20,AK20,AN20)*100)+SUM(AI20,AL20,AO20)/60*100)/100) -> 0 | AE20: =MOD(((SUM(AI20,AL20,AO20)*100)+(SUM(AI20,AL20,AO20)/60*100))/100,1)*60 -> 0 | AF20: =INT(((SUM(AQ20+AS20+AU20+AW20+AY20+BA20+BC20+BE20+BG20)*100)+SUM(AR20+AT20+AV20+AX20+AZ20+BB20+BD20+BF20+BH20)/60*100)/100) -> 0 | AG20: =MOD(((SUM(AR20+AT20+AV20+AX20+AZ20+BB20+BD20+BF20+BH20)*100)+(SUM(AR20+AT20+AV20+AX20+AZ20+BB20+BD20+BF20+BH20)/60*100))/100,1)*60 -> 0
A21: =Einstellungen!$L$5 ->  | G21: =IF(AND(E12>0,I21<>"",U21<>"f"),F12,0) -> 1 | H21: =IF(AND(I21<>"",U21<>"f"),1,0) -> 1 | I21: =I20+1 -> 2026-06-09 | J21: Di | O21: 0 | P21: 0 | V21: =IF(OR(U21="U",U21="k",U21="B"),$C$12,IF(S21>P21,O21-1-R21,O21-R21)) -> 0 | W21: =IF(OR(U21="U",U21="k",U21="B"),$D$12,IF(S21>P21,P21+60-S21,P21-S21)) -> 0 | X21: 0 | Y21: 0 | Z21: 0 | AA21: 0 | AD21: 0 | AE21: 0 | AF21: 0 | AG21: 0
A22: =Einstellungen!$L$6 -> tägliche Regel- | G22: =IF(AND(E13>0,I22<>"",U22<>"f"),F13,0) -> 1 | H22: =IF(AND(I22<>"",U22<>"f"),1,0) -> 1 | I22: =I21+1 -> 2026-06-10 | J22: Mi | O22: 0 | P22: 0 | V22: =IF(OR(U22="U",U22="k",U22="B"),$C$13,IF(S22>P22,O22-1-R22,O22-R22)) -> 0 | W22: =IF(OR(U22="U",U22="k",U22="B"),$D$13,IF(S22>P22,P22+60-S22,P22-S22)) -> 0 | X22: 0 | Y22: 0 | Z22: 0 | AA22: 0 | AD22: 0 | AE22: 0 | AF22: 0 | AG22: 0
A23: =Einstellungen!$L$7 -> arbeitszeit für | G23: =IF(AND(E14>0,I23<>"",U23<>"f"),F14,0) -> 1 | H23: =IF(AND(I23<>"",U23<>"f"),1,0) -> 1 | I23: 2026-06-11 | J23: Do | O23: 0 | P23: 0 | V23: =IF(OR(U23="U",U23="k",U23="B"),$C$14,IF(S23>P23,O23-1-R23,O23-R23)) -> 0 | W23: =IF(OR(U23="U",U23="k",U23="B"),$D$14,IF(S23>P23,P23+60-S23,P23-S23)) -> 0 | X23: 0 | Y23: 0 | Z23: 0 | AA23: 0 | AD23: 0 | AE23: 0 | AF23: 0 | AG23: 0
A24: =Einstellungen!$L$8 -> Wochenfeier- | G24: =IF(AND(E15>0,I24<>"",U24<>"f"),F15,0) -> 1 | H24: =IF(AND(I24<>"",U24<>"f"),1,0) -> 1 | I24: 2026-06-12 | J24: Fr | O24: 0 | P24: 0 | V24: =IF(OR(U24="U",U24="k",U24="B"),$C$15,IF(S24>P24,O24-1-R24,O24-R24)) -> 0 | W24: =IF(OR(U24="U",U24="k",U24="B"),$D$15,IF(S24>P24,P24+60-S24,P24-S24)) -> 0 | X24: 0 | Y24: 0 | Z24: 0 | AA24: 0 | AD24: 0 | AE24: 0 | AF24: 0 | AG24: 0
A25: =Einstellungen!$L$9 -> tage, bei Urlaub | I25: 2026-06-13 | J25: Sa | O25: 0 | P25: 0 | T25: nur dienstl. Sonderfälle!* | V25: =IF(S25>P25,O25-1-R25,O25-R25) -> 0 | W25: =IF(S25>P25,P25+60-S25,P25-S25) -> 0 | X25: 0 | Y25: 0 | Z25: 0 | AA25: 0 | AD25: 0 | AE25: 0 | AF25: 0 | AG25: 0
A26: =Einstellungen!$L$10 -> oder Krankheit | I26: 2026-06-14 | J26: So | O26: 0 | P26: 0 | T26: nur dienstl. Sonderfälle!* | V26: =IF(S26>P26,O26-1-R26,O26-R26) -> 0 | W26: =IF(S26>P26,P26+60-S26,P26-S26) -> 0 | X26: 0 | Y26: 0 | Z26: 0 | AA26: 0 | AD26: 0 | AE26: 0 | AF26: 0 | AG26: 0
A27: =Einstellungen!$L$11 -> Mo-Fr | B27: =Einstellungen!$M$11 -> Std.Min | C27: =Einstellungen!$N$11 -> 7.54 | D27: =Einstellungen!$O$11 -> 5.56 | F27: =Einstellungen!$Q$11 -> 3.57 | V27: =INT((60*SUM(V20:V26)+SUM(W20:W26)-W27)/60) -> 0 | W27: =INT(60*SUM(V20:V26)+SUM(W20:W26)-60*INT((60*SUM(V20:V26)+SUM(W20:W26))/60)) -> 0 | X27: =INT((60*SUM(X20:X26)+SUM(Y20:Y26)-Y27)/60) -> 0 | Y27: =INT(60*SUM(X20:X26)+SUM(Y20:Y26)-60*INT((60*SUM(X20:X26)+SUM(Y20:Y26))/60)) -> 0 | Z27: =INT((60*SUM(Z20:Z26)+SUM(AA20:AA26)-AA27)/60) -> 0 | AA27: =INT(60*SUM(Z20:Z26)+SUM(AA20:AA26)-60*INT((60*SUM(Z20:Z26)+SUM(AA20:AA26))/60)) -> 0 | AB27: =INT((60*SUM(AB20:AB26)+SUM(AC20:AC26)-AC27)/60) -> 0 | AC27: =INT(60*SUM(AB20:AB26)+SUM(AC20:AC26)-60*INT((60*SUM(AB20:AB26)+SUM(AC20:AC26))/60)) -> 0 | AD27: =INT((60*SUM(AD20:AD26)+SUM(AE20:AE26)-AE27)/60) -> 0 | AE27: =INT(60*SUM(AD20:AD26)+SUM(AE20:AE26)-60*INT((60*SUM(AD20:AD26)+SUM(AE20:AE26))/60)) -> 0 | AF27: =INT((60*SUM(AF20:AF26)+SUM(AG20:AG26)-AG27)/60) -> 0 | AG27: =INT(60*SUM(AF20:AF26)+SUM(AG20:AG26)-60*INT((60*SUM(AF20:AF26)+SUM(AG20:AG26))/60)) -> 0 | AH27: =INT((60*SUM(AH20:AH26)+SUM(AI20:AI26)-AI27)/60) -> 0 | AI27: =INT(60*SUM(AH20:AH26)+SUM(AI20:AI26)-60*INT((60*SUM(AH20:AH26)+SUM(AI20:AI26))/60)) -> 0 | AK27: =INT((60*SUM(AK20:AK26)+SUM(AL20:AL26)-AL27)/60) -> 0 | AL27: =INT(60*SUM(AK20:AK26)+SUM(AL20:AL26)-60*INT((60*SUM(AK20:AK26)+SUM(AL20:AL26))/60)) -> 0 | AN27: =INT((60*SUM(AN20:AN26)+SUM(AO20:AO26)-AO27)/60) -> 0 | AO27: =INT(60*SUM(AN20:AN26)+SUM(AO20:AO26)-60*INT((60*SUM(AN20:AN26)+SUM(AO20:AO26))/60)) -> 0 | AQ27: =INT((60*SUM(AQ20:AQ26)+SUM(AR20:AR26)-AR27)/60) -> 0 | AR27: =INT(60*SUM(AQ20:AQ26)+SUM(AR20:AR26)-60*INT((60*SUM(AQ20:AQ26)+SUM(AR20:AR26))/60)) -> 0 | AS27: =INT((60*SUM(AS20:AS26)+SUM(AT20:AT26)-AT27)/60) -> 0 | AT27: =INT(60*SUM(AS20:AS26)+SUM(AT20:AT26)-60*INT((60*SUM(AS20:AS26)+SUM(AT20:AT26))/60)) -> 0 | AU27: =INT((60*SUM(AU20:AU26)+SUM(AV20:AV26)-AV27)/60) -> 0 | AV27: =INT(60*SUM(AU20:AU26)+SUM(AV20:AV26)-60*INT((60*SUM(AU20:AU26)+SUM(AV20:AV26))/60)) -> 0 | AW27: =INT((60*SUM(AW20:AW26)+SUM(AX20:AX26)-AX27)/60) -> 0 | AX27: =INT(60*SUM(AW20:AW26)+SUM(AX20:AX26)-60*INT((60*SUM(AW20:AW26)+SUM(AX20:AX26))/60)) -> 0 | AY27: =INT((60*SUM(AY20:AY26)+SUM(AZ20:AZ26)-AZ27)/60) -> 0 | AZ27: =INT(60*SUM(AY20:AY26)+SUM(AZ20:AZ26)-60*INT((60*SUM(AY20:AY26)+SUM(AZ20:AZ26))/60)) -> 0 | BA27: =INT((60*SUM(BA20:BA26)+SUM(BB20:BB26)-BB27)/60) -> 0 | BB27: =INT(60*SUM(BA20:BA26)+SUM(BB20:BB26)-60*INT((60*SUM(BA20:BA26)+SUM(BB20:BB26))/60)) -> 0 | BC27: =INT((60*SUM(BC20:BC26)+SUM(BD20:BD26)-BD27)/60) -> 0 | BD27: =INT(60*SUM(BC20:BC26)+SUM(BD20:BD26)-60*INT((60*SUM(BC20:BC26)+SUM(BD20:BD26))/60)) -> 0 | BE27: =INT((60*SUM(BE20:BE26)+SUM(BF20:BF26)-BF27)/60) -> 0 | BF27: =INT(60*SUM(BE20:BE26)+SUM(BF20:BF26)-60*INT((60*SUM(BE20:BE26)+SUM(BF20:BF26))/60)) -> 0 | BG27: =INT((60*SUM(BG20:BG26)+SUM(BH20:BH26)-BH27)/60) -> 0 | BH27: =INT(60*SUM(BG20:BG26)+SUM(BH20:BH26)-60*INT((60*SUM(BG20:BG26)+SUM(BH20:BH26))/60)) -> 0
A29: =Einstellungen!$L$13 -> Wochen | G29: =IF(AND(E11>0,I29<>"",U29<>"f"),F11,0) -> 1 | H29: =IF(AND(I29<>"",U29<>"f"),1,0) -> 1 | I29: =I26+1 -> 2026-06-15 | J29: Mo | O29: =HOUR(N29-K29-(M29-L29)) -> 0 | P29: =MINUTE(N29-K29-(M29-L29)) -> 0 | V29: =IF(OR(U29="U",U29="k",U29="B"),$C$11,IF(S29>P29,O29-1-R29,O29-R29)) -> 0 | W29: =IF(OR(U29="U",U29="k",U29="B"),$D$11,IF(S29>P29,P29+60-S29,P29-S29)) -> 0 | X29: =IF(OR(U29="U",U29="K",U29="B"),0,V29) -> 0 | Y29: =IF(OR(U29="U",U29="K",U29="B"),0,W29) -> 0 | Z29: =INT(((SUM(AB29,AH29,AK29,AN29,AQ29,AS29,AU29,AW29,AY29,BA29,BC29,BE29,BG29)*100)+(SUM(AC29,AI29,AL29,AO29,AR29,AT29,AV29,AX29,AZ29,BB29,BD29,BF29,BH29)/60*100))/100) -> 0 | AA29: =MOD(((SUM(AC29,AI29,AL29,AO29,AR29,AT29,AV29,AX29,AZ29,BB29,BD29,BF29,BH29)*100)+(SUM(AC29,AI29,AL29,AO29,AR29,AT29,AV29,AX29,AZ29,BB29,BD29,BF29,BH29)/60*100))/100,1)*60 -> 0 | AD29: =INT(((SUM(AH29,AK29,AN29)*100)+SUM(AI29,AL29,AO29)/60*100)/100) -> 0 | AE29: =MOD(((SUM(AI29,AL29,AO29)*100)+(SUM(AI29,AL29,AO29)/60*100))/100,1)*60 -> 0 | AF29: =INT(((SUM(AQ29+AS29+AU29+AW29+AY29+BA29+BC29+BE29+BG29)*100)+SUM(AR29+AT29+AV29+AX29+AZ29+BB29+BD29+BF29+BH29)/60*100)/100) -> 0 | AG29: =MOD(((SUM(AR29+AT29+AV29+AX29+AZ29+BB29+BD29+BF29+BH29)*100)+(SUM(AR29+AT29+AV29+AX29+AZ29+BB29+BD29+BF29+BH29)/60*100))/100,1)*60 -> 0
A30: =CONCATENATE(Einstellungen!$L$14," ",Einstellungen!$M$14) -> Arbeitzeit Std.Min | C30: =Einstellungen!$N$14 -> 39.30 | D30: =Einstellungen!$O$14 -> 29.38 | F30: =Einstellungen!$Q$14 -> 19.45 | G30: =IF(AND(E12>0,I30<>"",U30<>"f"),F12,0) -> 1 | H30: =IF(AND(I30<>"",U30<>"f"),1,0) -> 1 | I30: =I29+1 -> 2026-06-16 | J30: Di | O30: 0 | P30: 0 | V30: =IF(OR(U30="U",U30="k",U30="B"),$C$12,IF(S30>P30,O30-1-R30,O30-R30)) -> 0 | W30: =IF(OR(U30="U",U30="k",U30="B"),$D$12,IF(S30>P30,P30+60-S30,P30-S30)) -> 0 | X30: 0 | Y30: 0 | Z30: 0 | AA30: 0 | AD30: 0 | AE30: 0 | AF30: 0 | AG30: 0
A31: =Einstellungen!$L$15 -> max.Übertrag auf das | G31: =IF(AND(E13>0,I31<>"",U31<>"f"),F13,0) -> 1 | H31: =IF(AND(I31<>"",U31<>"f"),1,0) -> 1 | I31: =I30+1 -> 2026-06-17 | J31: Mi | O31: 0 | P31: 0 | V31: =IF(OR(U31="U",U31="k",U31="B"),$C$13,IF(S31>P31,O31-1-R31,O31-R31)) -> 0 | W31: =IF(OR(U31="U",U31="k",U31="B"),$D$13,IF(S31>P31,P31+60-S31,P31-S31)) -> 0 | X31: 0 | Y31: 0 | Z31: 0 | AA31: 0 | AD31: 0 | AE31: 0 | AF31: 0 | AG31: 0
A32: =Einstellungen!$L$16 -> Folgejahr Std.Min | C32: =Einstellungen!$N$16 -> 39.30 | D32: =Einstellungen!$O$16 -> 39.30 | F32: =Einstellungen!$Q$16 -> 39.30 | G32: =IF(AND(E14>0,I32<>"",U32<>"f"),F14,0) -> 1 | H32: =IF(AND(I32<>"",U32<>"f"),1,0) -> 1 | I32: 2026-06-18 | J32: Do | O32: 0 | P32: 0 | V32: =IF(OR(U32="U",U32="k",U32="B"),$C$14,IF(S32>P32,O32-1-R32,O32-R32)) -> 0 | W32: =IF(OR(U32="U",U32="k",U32="B"),$D$14,IF(S32>P32,P32+60-S32,P32-S32)) -> 0 | X32: 0 | Y32: 0 | Z32: 0 | AA32: 0 | AD32: 0 | AE32: 0 | AF32: 0 | AG32: 0
A33: =Einstellungen!$L$17 -> II Beschäftigte mit 41 Std-Woche | G33: =IF(AND(E15>0,I33<>"",U33<>"f"),F15,0) -> 1 | H33: =IF(AND(I33<>"",U33<>"f"),1,0) -> 1 | I33: 2026-06-19 | J33: Fr | O33: 0 | P33: 0 | V33: =IF(OR(U33="U",U33="k",U33="B"),$C$15,IF(S33>P33,O33-1-R33,O33-R33)) -> 0 | W33: =IF(OR(U33="U",U33="k",U33="B"),$D$15,IF(S33>P33,P33+60-S33,P33-S33)) -> 0 | X33: 0 | Y33: 0 | Z33: 0 | AA33: 0 | AD33: 0 | AE33: 0 | AF33: 0 | AG33: 0
A34: =Einstellungen!$L$18 -> tägliche Arbeitszeit | I34: 2026-06-20 | J34: Sa | O34: 0 | P34: 0 | T34: nur dienstl. Sonderfälle!* | V34: =IF(S34>P34,O34-1-R34,O34-R34) -> 0 | W34: =IF(S34>P34,P34+60-S34,P34-S34) -> 0 | X34: 0 | Y34: 0 | Z34: 0 | AA34: 0 | AD34: 0 | AE34: 0 | AF34: 0 | AG34: 0
A35: =Einstellungen!$L$19 -> Mo-Fr | B35: =Einstellungen!$M$19 -> Std.Min | C35: =Einstellungen!$N$19 -> 8.12 | D35: =Einstellungen!$O$19 -> 6.09 | F35: =Einstellungen!$Q$19 -> 4.06 | I35: 2026-06-21 | J35: So | O35: 0 | P35: 0 | T35: nur dienstl. Sonderfälle!* | V35: =IF(S35>P35,O35-1-R35,O35-R35) -> 0 | W35: =IF(S35>P35,P35+60-S35,P35-S35) -> 0 | X35: 0 | Y35: 0 | Z35: 0 | AA35: 0 | AD35: 0 | AE35: 0 | AF35: 0 | AG35: 0
A36: =Einstellungen!$L$20 -> Wochen | V36: =INT((60*SUM(V29:V35)+SUM(W29:W35)-W36)/60) -> 0 | W36: =INT(60*SUM(V29:V35)+SUM(W29:W35)-60*INT((60*SUM(V29:V35)+SUM(W29:W35))/60)) -> 0 | X36: =INT((60*SUM(X29:X35)+SUM(Y29:Y35)-Y36)/60) -> 0 | Y36: =INT(60*SUM(X29:X35)+SUM(Y29:Y35)-60*INT((60*SUM(X29:X35)+SUM(Y29:Y35))/60)) -> 0 | Z36: =INT((60*SUM(Z29:Z35)+SUM(AA29:AA35)-AA36)/60) -> 0 | AA36: =INT(60*SUM(Z29:Z35)+SUM(AA29:AA35)-60*INT((60*SUM(Z29:Z35)+SUM(AA29:AA35))/60)) -> 0 | AB36: =INT((60*SUM(AB29:AB35)+SUM(AC29:AC35)-AC36)/60) -> 0 | AC36: =INT(60*SUM(AB29:AB35)+SUM(AC29:AC35)-60*INT((60*SUM(AB29:AB35)+SUM(AC29:AC35))/60)) -> 0 | AD36: =INT((60*SUM(AD29:AD35)+SUM(AE29:AE35)-AE36)/60) -> 0 | AE36: =INT(60*SUM(AD29:AD35)+SUM(AE29:AE35)-60*INT((60*SUM(AD29:AD35)+SUM(AE29:AE35))/60)) -> 0 | AF36: =INT((60*SUM(AF29:AF35)+SUM(AG29:AG35)-AG36)/60) -> 0 | AG36: =INT(60*SUM(AF29:AF35)+SUM(AG29:AG35)-60*INT((60*SUM(AF29:AF35)+SUM(AG29:AG35))/60)) -> 0 | AH36: =INT((60*SUM(AH29:AH35)+SUM(AI29:AI35)-AI36)/60) -> 0 | AI36: =INT(60*SUM(AH29:AH35)+SUM(AI29:AI35)-60*INT((60*SUM(AH29:AH35)+SUM(AI29:AI35))/60)) -> 0 | AK36: =INT((60*SUM(AK29:AK35)+SUM(AL29:AL35)-AL36)/60) -> 0 | AL36: =INT(60*SUM(AK29:AK35)+SUM(AL29:AL35)-60*INT((60*SUM(AK29:AK35)+SUM(AL29:AL35))/60)) -> 0 | AN36: =INT((60*SUM(AN29:AN35)+SUM(AO29:AO35)-AO36)/60) -> 0 | AO36: =INT(60*SUM(AN29:AN35)+SUM(AO29:AO35)-60*INT((60*SUM(AN29:AN35)+SUM(AO29:AO35))/60)) -> 0 | AQ36: =INT((60*SUM(AQ29:AQ35)+SUM(AR29:AR35)-AR36)/60) -> 0 | AR36: =INT(60*SUM(AQ29:AQ35)+SUM(AR29:AR35)-60*INT((60*SUM(AQ29:AQ35)+SUM(AR29:AR35))/60)) -> 0 | AS36: =INT((60*SUM(AS29:AS35)+SUM(AT29:AT35)-AT36)/60) -> 0 | AT36: =INT(60*SUM(AS29:AS35)+SUM(AT29:AT35)-60*INT((60*SUM(AS29:AS35)+SUM(AT29:AT35))/60)) -> 0 | AU36: =INT((60*SUM(AU29:AU35)+SUM(AV29:AV35)-AV36)/60) -> 0 | AV36: =INT(60*SUM(AU29:AU35)+SUM(AV29:AV35)-60*INT((60*SUM(AU29:AU35)+SUM(AV29:AV35))/60)) -> 0 | AW36: =INT((60*SUM(AW29:AW35)+SUM(AX29:AX35)-AX36)/60) -> 0 | AX36: =INT(60*SUM(AW29:AW35)+SUM(AX29:AX35)-60*INT((60*SUM(AW29:AW35)+SUM(AX29:AX35))/60)) -> 0 | AY36: =INT((60*SUM(AY29:AY35)+SUM(AZ29:AZ35)-AZ36)/60) -> 0 | AZ36: =INT(60*SUM(AY29:AY35)+SUM(AZ29:AZ35)-60*INT((60*SUM(AY29:AY35)+SUM(AZ29:AZ35))/60)) -> 0 | BA36: =INT((60*SUM(BA29:BA35)+SUM(BB29:BB35)-BB36)/60) -> 0 | BB36: =INT(60*SUM(BA29:BA35)+SUM(BB29:BB35)-60*INT((60*SUM(BA29:BA35)+SUM(BB29:BB35))/60)) -> 0 | BC36: =INT((60*SUM(BC29:BC35)+SUM(BD29:BD35)-BD36)/60) -> 0 | BD36: =INT(60*SUM(BC29:BC35)+SUM(BD29:BD35)-60*INT((60*SUM(BC29:BC35)+SUM(BD29:BD35))/60)) -> 0 | BE36: =INT((60*SUM(BE29:BE35)+SUM(BF29:BF35)-BF36)/60) -> 0 | BF36: =INT(60*SUM(BE29:BE35)+SUM(BF29:BF35)-60*INT((60*SUM(BE29:BE35)+SUM(BF29:BF35))/60)) -> 0 | BG36: =INT((60*SUM(BG29:BG35)+SUM(BH29:BH35)-BH36)/60) -> 0 | BH36: =INT(60*SUM(BG29:BG35)+SUM(BH29:BH35)-60*INT((60*SUM(BG29:BG35)+SUM(BH29:BH35))/60)) -> 0
A38: =CONCATENATE(Einstellungen!$L$21," ",Einstellungen!$M$21) -> Arbeitzeit Std.Min | C38: =Einstellungen!$N$21 -> 41.00 | D38: =Einstellungen!$O$21 -> 30.45 | F38: =Einstellungen!$Q$21 -> 20.30 | G38: =IF(AND(E11>0,I38<>"",U38<>"f"),F11,0) -> 1 | H38: =IF(AND(I38<>"",U38<>"f"),1,0) -> 1 | I38: =IF(I35<>"",IF(MONTH(I35)=MONTH(I35+1),I35+1,""),"") -> 2026-06-22 | J38: Mo | O38: =HOUR(N38-K38-(M38-L38)) -> 0 | P38: =MINUTE(N38-K38-(M38-L38)) -> 0 | V38: =IF(OR(U38="U",U38="k",U38="B"),$C$11,IF(S38>P38,O38-1-R38,O38-R38)) -> 0 | W38: =IF(OR(U38="U",U38="k",U38="B"),$D$11,IF(S38>P38,P38+60-S38,P38-S38)) -> 0 | X38: =IF(OR(U38="U",U38="K",U38="B"),0,V38) -> 0 | Y38: =IF(OR(U38="U",U38="K",U38="B"),0,W38) -> 0 | Z38: =INT(((SUM(AB38,AH38,AK38,AN38,AQ38,AS38,AU38,AW38,AY38,BA38,BC38,BE38,BG38)*100)+(SUM(AC38,AI38,AL38,AO38,AR38,AT38,AV38,AX38,AZ38,BB38,BD38,BF38,BH38)/60*100))/100) -> 0 | AA38: =MOD(((SUM(AC38,AI38,AL38,AO38,AR38,AT38,AV38,AX38,AZ38,BB38,BD38,BF38,BH38)*100)+(SUM(AC38,AI38,AL38,AO38,AR38,AT38,AV38,AX38,AZ38,BB38,BD38,BF38,BH38)/60*100))/100,1)*60 -> 0 | AD38: =INT(((SUM(AH38,AK38,AN38)*100)+SUM(AI38,AL38,AO38)/60*100)/100) -> 0 | AE38: =MOD(((SUM(AI38,AL38,AO38)*100)+(SUM(AI38,AL38,AO38)/60*100))/100,1)*60 -> 0 | AF38: =INT(((SUM(AQ38+AS38+AU38+AW38+AY38+BA38+BC38+BE38+BG38)*100)+SUM(AR38+AT38+AV38+AX38+AZ38+BB38+BD38+BF38+BH38)/60*100)/100) -> 0 | AG38: =MOD(((SUM(AR38+AT38+AV38+AX38+AZ38+BB38+BD38+BF38+BH38)*100)+(SUM(AR38+AT38+AV38+AX38+AZ38+BB38+BD38+BF38+BH38)/60*100))/100,1)*60 -> 0
A39: =Einstellungen!$L$22 -> max.Übertrag auf das | G39: =IF(AND(E12>0,I39<>"",U39<>"f"),F12,0) -> 1 | H39: =IF(AND(I39<>"",U39<>"f"),1,0) -> 1 | I39: =IF(I38<>"",IF(MONTH(I38)=MONTH(I38+1),I38+1,""),"") -> 2026-06-23 | J39: Di | O39: 0 | P39: 0 | V39: =IF(OR(U39="U",U39="k",U39="B"),$C$12,IF(S39>P39,O39-1-R39,O39-R39)) -> 0 | W39: =IF(OR(U39="U",U39="k",U39="B"),$D$12,IF(S39>P39,P39+60-S39,P39-S39)) -> 0 | X39: 0 | Y39: 0 | Z39: 0 | AA39: 0 | AD39: 0 | AE39: 0 | AF39: 0 | AG39: 0
A40: =Einstellungen!$L$23 -> Folgejahr Std.Min | C40: =Einstellungen!$N$23 -> 41.00 | D40: =Einstellungen!$O$23 -> 41.00 | F40: =Einstellungen!$Q$23 -> 41.00 | G40: =IF(AND(E13>0,I40<>"",U40<>"f"),F13,0) -> 1 | H40: =IF(AND(I40<>"",U40<>"f"),1,0) -> 1 | I40: =IF(I39<>"",IF(MONTH(I39)=MONTH(I39+1),I39+1,""),"") -> 2026-06-24 | J40: Mi | O40: 0 | P40: 0 | V40: =IF(OR(U40="U",U40="k",U40="B"),$C$13,IF(S40>P40,O40-1-R40,O40-R40)) -> 0 | W40: =IF(OR(U40="U",U40="k",U40="B"),$D$13,IF(S40>P40,P40+60-S40,P40-S40)) -> 0 | X40: 0 | Y40: 0 | Z40: 0 | AA40: 0 | AD40: 0 | AE40: 0 | AF40: 0 | AG40: 0
A41: =Einstellungen!$L$24 -> Kernarbeitszeit: | C41: =Einstellungen!$N$24 -> Mo-Do | D41: =Einstellungen!$O$24 -> 9:00 - 14:30 Uhr | G41: =IF(AND(E14>0,I41<>"",U41<>"f"),F14,0) -> 1 | H41: =IF(AND(I41<>"",U41<>"f"),1,0) -> 1 | I41: 2026-06-25 | J41: Do | O41: 0 | P41: 0 | V41: =IF(OR(U41="U",U41="k",U41="B"),$C$14,IF(S41>P41,O41-1-R41,O41-R41)) -> 0 | W41: =IF(OR(U41="U",U41="k",U41="B"),$D$14,IF(S41>P41,P41+60-S41,P41-S41)) -> 0 | X41: 0 | Y41: 0 | Z41: 0 | AA41: 0 | AD41: 0 | AE41: 0 | AF41: 0 | AG41: 0
A42: =Einstellungen!$L$25 ->  | B42: =Einstellungen!$M$25 ->  | C42: =Einstellungen!$N$25 -> Fr | D42: =Einstellungen!$O$25 -> 9:00 - 12:00 Uhr | G42: =IF(AND(E15>0,I42<>"",U42<>"f"),F15,0) -> 1 | H42: =IF(AND(I42<>"",U42<>"f"),1,0) -> 1 | I42: 2026-06-26 | J42: Fr | O42: 0 | P42: 0 | V42: =IF(OR(U42="U",U42="k",U42="B"),$C$15,IF(S42>P42,O42-1-R42,O42-R42)) -> 0 | W42: =IF(OR(U42="U",U42="k",U42="B"),$D$15,IF(S42>P42,P42+60-S42,P42-S42)) -> 0 | X42: 0 | Y42: 0 | Z42: 0 | AA42: 0 | AD42: 0 | AE42: 0 | AF42: 0 | AG42: 0
A43: =Einstellungen!$L$26 -> Gleitzeit: | B43: =Einstellungen!$M$26 -> frühester Beginn | F43: =Einstellungen!$P$26 -> 6:00 Uhr | I43: 2026-06-27 | J43: Sa | O43: 0 | P43: 0 | T43: nur dienstl. Sonderfälle!* | V43: =IF(S43>P43,O43-1-R43,O43-R43) -> 0 | W43: =IF(S43>P43,P43+60-S43,P43-S43) -> 0 | X43: 0 | Y43: 0 | Z43: 0 | AA43: 0 | AD43: 0 | AE43: 0 | AF43: 0 | AG43: 0
A44: =Einstellungen!$L$27 ->  | B44: =Einstellungen!$M$27 -> spätestes Ende | F44: =Einstellungen!$P$27 -> 21:00 Uhr | I44: 2026-06-28 | J44: So | O44: 0 | P44: 0 | T44: nur dienstl. Sonderfälle!* | V44: =IF(S44>P44,O44-1-R44,O44-R44) -> 0 | W44: =IF(S44>P44,P44+60-S44,P44-S44) -> 0 | X44: 0 | Y44: 0 | Z44: 0 | AA44: 0 | AD44: 0 | AE44: 0 | AF44: 0 | AG44: 0
A45: =Einstellungen!$L$29 -> Mittagspause zw. | D45: =Einstellungen!$O$29 -> 11:15 - 14:00 Uhr | V45: =INT((60*SUM(V38:V44)+SUM(W38:W44)-W45)/60) -> 0 | W45: =INT(60*SUM(V38:V44)+SUM(W38:W44)-60*INT((60*SUM(V38:V44)+SUM(W38:W44))/60)) -> 0 | X45: =INT((60*SUM(X38:X44)+SUM(Y38:Y44)-Y45)/60) -> 0 | Y45: =INT(60*SUM(X38:X44)+SUM(Y38:Y44)-60*INT((60*SUM(X38:X44)+SUM(Y38:Y44))/60)) -> 0 | Z45: =INT((60*SUM(Z38:Z44)+SUM(AA38:AA44)-AA45)/60) -> 0 | AA45: =INT(60*SUM(Z38:Z44)+SUM(AA38:AA44)-60*INT((60*SUM(Z38:Z44)+SUM(AA38:AA44))/60)) -> 0 | AB45: =INT((60*SUM(AB38:AB44)+SUM(AC38:AC44)-AC45)/60) -> 0 | AC45: =INT(60*SUM(AB38:AB44)+SUM(AC38:AC44)-60*INT((60*SUM(AB38:AB44)+SUM(AC38:AC44))/60)) -> 0 | AD45: =INT((60*SUM(AD38:AD44)+SUM(AE38:AE44)-AE45)/60) -> 0 | AE45: =INT(60*SUM(AD38:AD44)+SUM(AE38:AE44)-60*INT((60*SUM(AD38:AD44)+SUM(AE38:AE44))/60)) -> 0 | AF45: =INT((60*SUM(AF38:AF44)+SUM(AG38:AG44)-AG45)/60) -> 0 | AG45: =INT(60*SUM(AF38:AF44)+SUM(AG38:AG44)-60*INT((60*SUM(AF38:AF44)+SUM(AG38:AG44))/60)) -> 0 | AH45: =INT((60*SUM(AH38:AH44)+SUM(AI38:AI44)-AI45)/60) -> 0 | AI45: =INT(60*SUM(AH38:AH44)+SUM(AI38:AI44)-60*INT((60*SUM(AH38:AH44)+SUM(AI38:AI44))/60)) -> 0 | AK45: =INT((60*SUM(AK38:AK44)+SUM(AL38:AL44)-AL45)/60) -> 0 | AL45: =INT(60*SUM(AK38:AK44)+SUM(AL38:AL44)-60*INT((60*SUM(AK38:AK44)+SUM(AL38:AL44))/60)) -> 0 | AN45: =INT((60*SUM(AN38:AN44)+SUM(AO38:AO44)-AO45)/60) -> 0 | AO45: =INT(60*SUM(AN38:AN44)+SUM(AO38:AO44)-60*INT((60*SUM(AN38:AN44)+SUM(AO38:AO44))/60)) -> 0 | AQ45: =INT((60*SUM(AQ38:AQ44)+SUM(AR38:AR44)-AR45)/60) -> 0 | AR45: =INT(60*SUM(AQ38:AQ44)+SUM(AR38:AR44)-60*INT((60*SUM(AQ38:AQ44)+SUM(AR38:AR44))/60)) -> 0 | AS45: =INT((60*SUM(AS38:AS44)+SUM(AT38:AT44)-AT45)/60) -> 0 | AT45: =INT(60*SUM(AS38:AS44)+SUM(AT38:AT44)-60*INT((60*SUM(AS38:AS44)+SUM(AT38:AT44))/60)) -> 0 | AU45: =INT((60*SUM(AU38:AU44)+SUM(AV38:AV44)-AV45)/60) -> 0 | AV45: =INT(60*SUM(AU38:AU44)+SUM(AV38:AV44)-60*INT((60*SUM(AU38:AU44)+SUM(AV38:AV44))/60)) -> 0 | AW45: =INT((60*SUM(AW38:AW44)+SUM(AX38:AX44)-AX45)/60) -> 0 | AX45: =INT(60*SUM(AW38:AW44)+SUM(AX38:AX44)-60*INT((60*SUM(AW38:AW44)+SUM(AX38:AX44))/60)) -> 0 | AY45: =INT((60*SUM(AY38:AY44)+SUM(AZ38:AZ44)-AZ45)/60) -> 0 | AZ45: =INT(60*SUM(AY38:AY44)+SUM(AZ38:AZ44)-60*INT((60*SUM(AY38:AY44)+SUM(AZ38:AZ44))/60)) -> 0 | BA45: =INT((60*SUM(BA38:BA44)+SUM(BB38:BB44)-BB45)/60) -> 0 | BB45: =INT(60*SUM(BA38:BA44)+SUM(BB38:BB44)-60*INT((60*SUM(BA38:BA44)+SUM(BB38:BB44))/60)) -> 0 | BC45: =INT((60*SUM(BC38:BC44)+SUM(BD38:BD44)-BD45)/60) -> 0 | BD45: =INT(60*SUM(BC38:BC44)+SUM(BD38:BD44)-60*INT((60*SUM(BC38:BC44)+SUM(BD38:BD44))/60)) -> 0 | BE45: =INT((60*SUM(BE38:BE44)+SUM(BF38:BF44)-BF45)/60) -> 0 | BF45: =INT(60*SUM(BE38:BE44)+SUM(BF38:BF44)-60*INT((60*SUM(BE38:BE44)+SUM(BF38:BF44))/60)) -> 0 | BG45: =INT((60*SUM(BG38:BG44)+SUM(BH38:BH44)-BH45)/60) -> 0 | BH45: =INT(60*SUM(BG38:BG44)+SUM(BH38:BH44)-60*INT((60*SUM(BG38:BG44)+SUM(BH38:BH44))/60)) -> 0
A47: =Einstellungen!$L$30 -> ab 6 Std. Arbeitszeit: Dauer min. | F47: =Einstellungen!$Q$30 -> 30 Min | G47: =IF(AND(E11>0,I47<>"",U47<>"f"),F11,0) -> 1 | H47: =IF(AND(I47<>"",U47<>"f"),1,0) -> 1 | I47: =IF(I44<>"",IF(MONTH(I44)=MONTH(I44+1),I44+1,""),"") -> 2026-06-29 | J47: Mo | O47: =HOUR(N47-K47-(M47-L47)) -> 0 | P47: =MINUTE(N47-K47-(M47-L47)) -> 0 | V47: =IF(OR(U47="U",U47="k",U47="B"),$C$11,IF(S47>P47,O47-1-R47,O47-R47)) -> 0 | W47: =IF(OR(U47="U",U47="k",U47="B"),$D$11,IF(S47>P47,P47+60-S47,P47-S47)) -> 0 | X47: =IF(OR(U47="U",U47="K",U47="B"),0,V47) -> 0 | Y47: =IF(OR(U47="U",U47="K",U47="B"),0,W47) -> 0 | Z47: =INT(((SUM(AB47,AH47,AK47,AN47,AQ47,AS47,AU47,AW47,AY47,BA47,BC47,BE47,BG47)*100)+(SUM(AC47,AI47,AL47,AO47,AR47,AT47,AV47,AX47,AZ47,BB47,BD47,BF47,BH47)/60*100))/100) -> 0 | AA47: =MOD(((SUM(AC47,AI47,AL47,AO47,AR47,AT47,AV47,AX47,AZ47,BB47,BD47,BF47,BH47)*100)+(SUM(AC47,AI47,AL47,AO47,AR47,AT47,AV47,AX47,AZ47,BB47,BD47,BF47,BH47)/60*100))/100,1)*60 -> 0 | AD47: =INT(((SUM(AH47,AK47,AN47)*100)+SUM(AI47,AL47,AO47)/60*100)/100) -> 0 | AE47: =MOD(((SUM(AI47,AL47,AO47)*100)+(SUM(AI47,AL47,AO47)/60*100))/100,1)*60 -> 0 | AF47: =INT(((SUM(AQ47+AS47+AU47+AW47+AY47+BA47+BC47+BE47+BG47)*100)+SUM(AR47+AT47+AV47+AX47+AZ47+BB47+BD47+BF47+BH47)/60*100)/100) -> 0 | AG47: =MOD(((SUM(AR47+AT47+AV47+AX47+AZ47+BB47+BD47+BF47+BH47)*100)+(SUM(AR47+AT47+AV47+AX47+AZ47+BB47+BD47+BF47+BH47)/60*100))/100,1)*60 -> 0
A48: =Einstellungen!$L$31 -> ab 9 Std. (exklusiv Beamte) min. | F48: =Einstellungen!$Q$31 -> 45 Min | G48: =IF(AND(E12>0,I48<>"",U48<>"f"),F12,0) -> 1 | H48: =IF(AND(I48<>"",U48<>"f"),1,0) -> 1 | I48: =IF(I47<>"",IF(MONTH(I47)=MONTH(I47+1),I47+1,""),"") -> 2026-06-30 | J48: Di | O48: 0 | P48: 0 | V48: =IF(OR(U48="U",U48="k",U48="B"),$C$12,IF(S48>P48,O48-1-R48,O48-R48)) -> 0 | W48: =IF(OR(U48="U",U48="k",U48="B"),$D$12,IF(S48>P48,P48+60-S48,P48-S48)) -> 0 | X48: 0 | Y48: 0 | Z48: 0 | AA48: 0 | AD48: 0 | AE48: 0 | AF48: 0 | AG48: 0
A49: =Einstellungen!$L$32 ->  | D49: =Einstellungen!$O$32 -> max. | F49: =Einstellungen!$Q$32 -> 120 Min | G49: =IF(AND(E13>0,I49<>"",U49<>"f"),F13,0) -> 0 | H49: =IF(AND(I49<>"",U49<>"f"),1,0) -> 0 | I49: =IF(I48<>"",IF(MONTH(I48)=MONTH(I48+1),I48+1,""),"") ->  | J49: Mi | O49: 0 | P49: 0 | V49: =IF(OR(U49="U",U49="k",U49="B"),$C$13,IF(S49>P49,O49-1-R49,O49-R49)) -> 0 | W49: =IF(OR(U49="U",U49="k",U49="B"),$D$13,IF(S49>P49,P49+60-S49,P49-S49)) -> 0 | X49: 0 | Y49: 0 | Z49: 0 | AA49: 0 | AD49: 0 | AE49: 0 | AF49: 0 | AG49: 0
A50: =Einstellungen!$L$33 -> tägliche Arbeitszeit | F50: =Einstellungen!$Q$33 -> 10 Std | G50: =IF(AND(E14>0,I50<>"",U50<>"f"),F14,0) -> 0 | H50: =IF(AND(I50<>"",U50<>"f"),1,0) -> 0 | J50: Do | O50: 0 | P50: 0 | V50: =IF(OR(U50="U",U50="k",U50="B"),$C$14,IF(S50>P50,O50-1-R50,O50-R50)) -> 0 | W50: =IF(OR(U50="U",U50="k",U50="B"),$D$14,IF(S50>P50,P50+60-S50,P50-S50)) -> 0 | X50: 0 | Y50: 0 | Z50: 0 | AA50: 0 | AD50: 0 | AE50: 0 | AF50: 0 | AG50: 0
A51: =Einstellungen!$L$34 -> *) beachte § 5 der Dienstvereinbarung vom 17.04.2024 über die Arbeitszeit der Beschäftigten der Universität Hohenheim | G51: =IF(AND(E15>0,I51<>"",U51<>"f"),F15,0) -> 0 | H51: =IF(AND(I51<>"",U51<>"f"),1,0) -> 0 | J51: Fr | O51: 0 | P51: 0 | V51: =IF(OR(U51="U",U51="k",U51="B"),$C$15,IF(S51>P51,O51-1-R51,O51-R51)) -> 0 | W51: =IF(OR(U51="U",U51="k",U51="B"),$D$15,IF(S51>P51,P51+60-S51,P51-S51)) -> 0 | X51: 0 | Y51: 0 | Z51: 0 | AA51: 0 | AD51: 0 | AE51: 0 | AF51: 0 | AG51: 0
J52: Sa | O52: 0 | P52: 0 | T52: nur dienstl. Sonderfälle!* | V52: =IF(S52>P52,O52-1-R52,O52-R52) -> 0 | W52: =IF(S52>P52,P52+60-S52,P52-S52) -> 0 | X52: 0 | Y52: 0 | Z52: 0 | AA52: 0 | AD52: 0 | AE52: 0 | AF52: 0 | AG52: 0
J53: So | O53: 0 | P53: 0 | T53: nur dienstl. Sonderfälle!* | V53: =IF(S53>P53,O53-1-R53,O53-R53) -> 0 | W53: =IF(S53>P53,P53+60-S53,P53-S53) -> 0 | X53: 0 | Y53: 0 | Z53: 0 | AA53: 0 | AD53: 0 | AE53: 0 | AF53: 0 | AG53: 0
V54: =INT((60*SUM(V47:V53)+SUM(W47:W53)-W54)/60) -> 0 | W54: =INT(60*SUM(V47:V53)+SUM(W47:W53)-60*INT((60*SUM(V47:V53)+SUM(W47:W53))/60)) -> 0 | X54: =INT((60*SUM(X47:X53)+SUM(Y47:Y53)-Y54)/60) -> 0 | Y54: =INT(60*SUM(X47:X53)+SUM(Y47:Y53)-60*INT((60*SUM(X47:X53)+SUM(Y47:Y53))/60)) -> 0 | Z54: =INT((60*SUM(Z47:Z53)+SUM(AA47:AA53)-AA54)/60) -> 0 | AA54: =INT(60*SUM(Z47:Z53)+SUM(AA47:AA53)-60*INT((60*SUM(Z47:Z53)+SUM(AA47:AA53))/60)) -> 0 | AB54: =INT((60*SUM(AB47:AB53)+SUM(AC47:AC53)-AC54)/60) -> 0 | AC54: =INT(60*SUM(AB47:AB53)+SUM(AC47:AC53)-60*INT((60*SUM(AB47:AB53)+SUM(AC47:AC53))/60)) -> 0 | AD54: =INT((60*SUM(AD47:AD53)+SUM(AE47:AE53)-AE54)/60) -> 0 | AE54: =INT(60*SUM(AD47:AD53)+SUM(AE47:AE53)-60*INT((60*SUM(AD47:AD53)+SUM(AE47:AE53))/60)) -> 0 | AF54: =INT((60*SUM(AF47:AF53)+SUM(AG47:AG53)-AG54)/60) -> 0 | AG54: =INT(60*SUM(AF47:AF53)+SUM(AG47:AG53)-60*INT((60*SUM(AF47:AF53)+SUM(AG47:AG53))/60)) -> 0 | AH54: =INT((60*SUM(AH47:AH53)+SUM(AI47:AI53)-AI54)/60) -> 0 | AI54: =INT(60*SUM(AH47:AH53)+SUM(AI47:AI53)-60*INT((60*SUM(AH47:AH53)+SUM(AI47:AI53))/60)) -> 0 | AK54: =INT((60*SUM(AK47:AK53)+SUM(AL47:AL53)-AL54)/60) -> 0 | AL54: =INT(60*SUM(AK47:AK53)+SUM(AL47:AL53)-60*INT((60*SUM(AK47:AK53)+SUM(AL47:AL53))/60)) -> 0 | AN54: =INT((60*SUM(AN47:AN53)+SUM(AO47:AO53)-AO54)/60) -> 0 | AO54: =INT(60*SUM(AN47:AN53)+SUM(AO47:AO53)-60*INT((60*SUM(AN47:AN53)+SUM(AO47:AO53))/60)) -> 0 | AQ54: =INT((60*SUM(AQ47:AQ53)+SUM(AR47:AR53)-AR54)/60) -> 0 | AR54: =INT(60*SUM(AQ47:AQ53)+SUM(AR47:AR53)-60*INT((60*SUM(AQ47:AQ53)+SUM(AR47:AR53))/60)) -> 0 | AS54: =INT((60*SUM(AS47:AS53)+SUM(AT47:AT53)-AT54)/60) -> 0 | AT54: =INT(60*SUM(AS47:AS53)+SUM(AT47:AT53)-60*INT((60*SUM(AS47:AS53)+SUM(AT47:AT53))/60)) -> 0 | AU54: =INT((60*SUM(AU47:AU53)+SUM(AV47:AV53)-AV54)/60) -> 0 | AV54: =INT(60*SUM(AU47:AU53)+SUM(AV47:AV53)-60*INT((60*SUM(AU47:AU53)+SUM(AV47:AV53))/60)) -> 0 | AW54: =INT((60*SUM(AW47:AW53)+SUM(AX47:AX53)-AX54)/60) -> 0 | AX54: =INT(60*SUM(AW47:AW53)+SUM(AX47:AX53)-60*INT((60*SUM(AW47:AW53)+SUM(AX47:AX53))/60)) -> 0 | AY54: =INT((60*SUM(AY47:AY53)+SUM(AZ47:AZ53)-AZ54)/60) -> 0 | AZ54: =INT(60*SUM(AY47:AY53)+SUM(AZ47:AZ53)-60*INT((60*SUM(AY47:AY53)+SUM(AZ47:AZ53))/60)) -> 0 | BA54: =INT((60*SUM(BA47:BA53)+SUM(BB47:BB53)-BB54)/60) -> 0 | BB54: =INT(60*SUM(BA47:BA53)+SUM(BB47:BB53)-60*INT((60*SUM(BA47:BA53)+SUM(BB47:BB53))/60)) -> 0 | BC54: =INT((60*SUM(BC47:BC53)+SUM(BD47:BD53)-BD54)/60) -> 0 | BD54: =INT(60*SUM(BC47:BC53)+SUM(BD47:BD53)-60*INT((60*SUM(BC47:BC53)+SUM(BD47:BD53))/60)) -> 0 | BE54: =INT((60*SUM(BE47:BE53)+SUM(BF47:BF53)-BF54)/60) -> 0 | BF54: =INT(60*SUM(BE47:BE53)+SUM(BF47:BF53)-60*INT((60*SUM(BE47:BE53)+SUM(BF47:BF53))/60)) -> 0 | BG54: =INT((60*SUM(BG47:BG53)+SUM(BH47:BH53)-BH54)/60) -> 0 | BH54: =INT(60*SUM(BG47:BG53)+SUM(BH47:BH53)-60*INT((60*SUM(BG47:BG53)+SUM(BH47:BH53))/60)) -> 0
G55: =SUM(G5:G53) -> 21 | H55: =SUM(H5:H53) -> 21 | I55: Juni | P55: =Einstellungen!A1 -> 2026 | X55: Summe: | Z55: Summe: | AB55: Summe: | AD55: Summe: | AF55: Summe: | AH55: =INT(((SUM(AH9,AH18,AH27,AH36,AH45,AH54)*100)+(SUM(AI9,AI18,AI27,AI36,AI45,AI54)/60*100))/100) -> 0 | AI55: =MOD(((SUM(AH9,AH18,AH27,AH36,AH45,AH54)*100)+(SUM(AI9,AI18,AI27,AI36,AI45,AI54)/60*100))/100,1)*60 -> 0 | AK55: =INT(((SUM(AK9,AK18,AK27,AK36,AK45,AK54)*100)+(SUM(AL9,AL18,AL27,AL36,AL45,AL54)/60*100))/100) -> 0 | AL55: =MOD(((SUM(AK9,AK18,AK27,AK36,AK45,AK54)*100)+(SUM(AL9,AL18,AL27,AL36,AL45,AL54)/60*100))/100,1)*60 -> 0 | AN55: =INT(((SUM(AN9,AN18,AN27,AN36,AN45,AN54)*100)+(SUM(AO9,AO18,AO27,AO36,AO45,AO54)/60*100))/100) -> 0 | AO55: =MOD(((SUM(AN9,AN18,AN27,AN36,AN45,AN54)*100)+(SUM(AO9,AO18,AO27,AO36,AO45,AO54)/60*100))/100,1)*60 -> 0 | AQ55: =INT(((SUM(AQ9,AQ18,AQ27,AQ36,AQ45,AQ54)*100)+(SUM(AR9,AR18,AR27,AR36,AR45,AR54)/60*100))/100) -> 0 | AR55: =MOD(((SUM(AQ9,AQ18,AQ27,AQ36,AQ45,AQ54)*100)+(SUM(AR9,AR18,AR27,AR36,AR45,AR54)/60*100))/100,1)*60 -> 0 | AS55: =INT(((SUM(AS9,AS18,AS27,AS36,AS45,AS54)*100)+(SUM(AT9,AT18,AT27,AT36,AT45,AT54)/60*100))/100) -> 0 | AT55: =MOD(((SUM(AS9,AS18,AS27,AS36,AS45,AS54)*100)+(SUM(AT9,AT18,AT27,AT36,AT45,AT54)/60*100))/100,1)*60 -> 0 | AU55: =INT(((SUM(AU9,AU18,AU27,AU36,AU45,AU54)*100)+(SUM(AV9,AV18,AV27,AV36,AV45,AV54)/60*100))/100) -> 0 | AV55: =MOD(((SUM(AU9,AU18,AU27,AU36,AU45,AU54)*100)+(SUM(AV9,AV18,AV27,AV36,AV45,AV54)/60*100))/100,1)*60 -> 0 | AW55: =INT(((SUM(AW9,AW18,AW27,AW36,AW45,AW54)*100)+(SUM(AX9,AX18,AX27,AX36,AX45,AX54)/60*100))/100) -> 0 | AX55: =MOD(((SUM(AW9,AW18,AW27,AW36,AW45,AW54)*100)+(SUM(AX9,AX18,AX27,AX36,AX45,AX54)/60*100))/100,1)*60 -> 0 | AY55: =INT(((SUM(AY9,AY18,AY27,AY36,AY45,AY54)*100)+(SUM(AZ9,AZ18,AZ27,AZ36,AZ45,AZ54)/60*100))/100) -> 0 | AZ55: =MOD(((SUM(AY9,AY18,AY27,AY36,AY45,AY54)*100)+(SUM(AZ9,AZ18,AZ27,AZ36,AZ45,AZ54)/60*100))/100,1)*60 -> 0 | BA55: =INT(((SUM(BA9,BA18,BA27,BA36,BA45,BA54)*100)+(SUM(BB9,BB18,BB27,BB36,BB45,BB54)/60*100))/100) -> 0 | BB55: =MOD(((SUM(BA9,BA18,BA27,BA36,BA45,BA54)*100)+(SUM(BB9,BB18,BB27,BB36,BB45,BB54)/60*100))/100,1)*60 -> 0 | BC55: =INT(((SUM(BC9,BC18,BC27,BC36,BC45,BC54)*100)+(SUM(BD9,BD18,BD27,BD36,BD45,BD54)/60*100))/100) -> 0 | BD55: =MOD(((SUM(BC9,BC18,BC27,BC36,BC45,BC54)*100)+(SUM(BD9,BD18,BD27,BD36,BD45,BD54)/60*100))/100,1)*60 -> 0 | BE55: =INT(((SUM(BE9,BE18,BE27,BE36,BE45,BE54)*100)+(SUM(BF9,BF18,BF27,BF36,BF45,BF54)/60*100))/100) -> 0 | BF55: =MOD(((SUM(BE9,BE18,BE27,BE36,BE45,BE54)*100)+(SUM(BF9,BF18,BF27,BF36,BF45,BF54)/60*100))/100,1)*60 -> 0 | BG55: =INT(((SUM(BG9,BG18,BG27,BG36,BG45,BG54)*100)+(SUM(BH9,BH18,BH27,BH36,BH45,BH54)/60*100))/100) -> 0 | BH55: =MOD(((SUM(BG9,BG18,BG27,BG36,BG45,BG54)*100)+(SUM(BH9,BH18,BH27,BH36,BH45,BH54)/60*100))/100,1)*60 -> 0
